Workbook

Sheet Disclaimer
A4: Disclaimer

Sheet Legenda
A1: Valores: | B1: Valores em milhões de reais, salvo quando indicado o contrário
A3: Código da ação: | B3: Código de negociação da ação na Bolsa de Valores de São Paulo.
A5: Cotação: | B5: Cotação da ação em bolsa.
A7: Quantidade de Ações: | B7: Soma das ações Ordinárias e Preferenciais do último Balanço, ajustado a eventuais desdobramentos, excluindo ações em tesouraria
A9: Valor de Mercado: | B9: Quantidade de ações da Companhia, multiplicada pela cotação da ação
A11: Patrimônio Líquido: | B11: Patrimônio Líquido na data do último Balanço Patrimonial divulgado
A13: Receita Líquida: | B13: Receita Líquida referente ao período citado.
A15: Lucro Líquido: | B15: Lucro Líquido em valores acumulados no período
A17: Lucro Por Ação: | B17: Lucro Líquido acumulado nos últimos 12 meses, dividido pela quantidade total de ações
B18: Fórmula: L.L. (últ. 12 meses) / Qtd. Ações
A20: Valor Patrim. da Ação: | B20: Patrimônio Líquido do último Balanço Patrimonial divulgado, dividido pelo número total de ações
B21: Fórmula: P.L. / Qtd. Ações
A23: Preço /Valor Patr. Ação: | B23: Cotação da ação dividido pelo Valor Patrimonial da ação
B24: Fórmula: Cot. / Vlr. Patr.
A26: Relação Preço/Lucro: | B26: Preço da ação dividido pelo Lucro por ação nos últimos 12 meses
B27: Fórmula: Cot. / LPA (últ. 12 meses)
A29: Rentab. Patrim.: | B29: Lucro líquido acumulado nos últimos 12 meses dividido pelo Patrimônio Líquido há 12 meses
B30: Fórmula: Rent=(L.L. últ. 12 meses)/(P.L. inicial)
A32: Dív. Líq./Patrim.: | B32: (Endividamento financeiro total - caixa - aplicações financeiras de curto prazo)/Patrim. Líq. (Dados do último Balanço Patrimonial divulgado)
B33: Fórmula: (Dívida Fin - (Caixa + Aplic. Fin.))/P.L.
A35: EBITDA: | B35: (Earnings Before Interests, Taxes, Depreciation and Amortization) = Lucro antes dos juros, impostos, depreciação e amortização
B36: Fórmula: Lucro Bruto - Despesas com Vendas e Gerais/Admin. + Outras Receitas Oper. - Outras Despesas Oper. + Depreciação
B37: e Amortizações (Dados do Balanço Patrimonial do exercício citado)
A39: Firm Value/ Ebitda: | B39: Valor de mercado somado ao endividamento líquido (último Balanço divulgado) dividido pelo EBITDA (anual) do exercício anterior
B40: Fórmula: (Vlr. Merc + Dívida Fin -(Caixa + Aplic. Fin.))/ EBITDA
A42: Dividendos: | B42: Montante de dividendos e/ou juros s/ capital pagos no período citado
A44: Yield: | B44: Montante de dividendos e/ ou juros s/ capital pagos no exercício anterior dividido pelo Valor de Mercado atual.
B45: Fórmulas: (Div + JSC)/ Vlr. Merc
A47: Oscilação no Mês: | B47: Oscilação da ação acumulada no mês
A49: Oscilação no Ano: | B49: Oscilação da ação acumulada no ano
A51: % ON/Total: | B51: Percentual de ações ordinárias dividido pelo número total de ações da empresa
A53: * Observação (composição das Units):
A56: Uma unit de AES Tietê corresponde a uma ação ON e quatro ações PN
A57: Uma unit de Alupar corresponde a uma ação ON e duas ações PN
A58: Uma unit de BTG Pactual corresponde a uma ação ON e duas ações PNA do Banco BTG + 1 BDR A e 2 BDR B do BTG Pactual Participations
A59: Uma unit de Contax corresponde a uma ação ON e quatro ações PN
A60: Uma unit de Energisa corresponde a uma ação ON e quatro ações PN
A61: Uma unit de Klabin corresponde a uma ação ON e quatro ações PN
A62: Uma unit de Renova corresponde a uma ação ON e duas ações PN
A63: Uma unit de Sanepar corresponde a uma ação ON e quatro ações PN
A64: Uma unit de Santander corresponde a uma ação ON e uma ação PN
A65: Uma unit de Sul América corresponde a uma ação ON e duas ações PN
A66: Uma unit de Taesa corresponde a uma ação ON e duas ações PN
A67: Uma unit de Viavarejo corresponde a uma ação ON e duas ações PN

Sheet Correção (hidden)
B2: Código | C2: Empresa | D2: Classe | E2: Quantidade | F2: Índice de Ajuste | G2: Quantidade Ajustada
B3: KLBN11 | C3: Klabin | D3: UNT N2 | E3: =VLOOKUP(B3,Economática!$A$3:$AI$823,8,FALSE) -> 17.03 | F3: 5 | G3: =E3/F3 -> 3.406
B4: ALUP11 | C4: Alupar | D4: UNT N2 | E4: 611.73 | F4: 3 | G4: =(E4/F4) -> 203.91
B5: CTAX11 | C5: Contax | D5: UNT N2 | E5: 344.008 | F5: 5 | G5: =(E5/F5) -> 68.8016
B6: RNEW11 | C6: Renova | D6: UNT N2 | E6: 231.29 | F6: 3 | G6: =(E6/F6) -> 77.09666667
B7: SANB11 | C7: Santander BR | D7: UNT N2 | E7: =VLOOKUP(B7,Economática!$A$3:$AI$823,8,FALSE) -> 43.97 | F7: 2 | G7: =E7/F7 -> 21.985
B8: TIET11 | C8: AES Tietê | D8: UNT N2 | E8: =VLOOKUP(B8,Economática!$A$3:$AI$823,8,FALSE) -> 11.08 | F8: 5 | G8: 2.216
B9: SULA11 | C9: Sul America | D9: UNT N2 | E9: =VLOOKUP(B9,Economática!$A$3:$AI$823,8,FALSE) -> 29.8 | F9: 3 | G9: 9.933333333
B10: VVAR11 | C10: Viavarejo | D10: UNT N2 | E10: 659.16 | F10: 3 | G10: 219.72
B11: TAEE11 | C11: Taesa | D11: UNT N2 | E11: =VLOOKUP(B11,Economática!$A$3:$AI$823,8,FALSE) -> 24.8 | F11: 3 | G11: 8.266666667
B12: BBTG11 | C12: BTG Pactual | D12: UNT N2 | E12: =VLOOKUP(B12,Economática!$A$3:$AI$823,8,FALSE) ->  | F12: 3
B13: ENGI11 | C13: Energisa | D13: UNT N2 | E13: =VLOOKUP(B13,Economática!$A$3:$AI$823,8,FALSE) -> 40.55 | F13: 5 | G13: 8.11
B14: SAPR4 | C14: Sanepar | D14: UNT N2 | E14: =VLOOKUP(B14,Economática!$A$3:$AI$823,8,FALSE) -> 13.9 | F14: 5 | G14: 2.78
B16: Economática | C16: Guia
B17: Agro e Pesca | C17: Agro
B18: Alimentos e Beb | C18: Alimentos e Bebidas
B19: Comércio | C19: Comércio
B20: Construção | C20: Construção
B21: Eletroeletrônicos | C21: Eletroeletrônicos
B22: Energia Elétrica | C22: Energia Elétrica
B23: Finanças e Seguros | C23: Finanças e Seguros
B24: Minerais não Met | C24: Mineração
B25: Mineração | C25: Mineração
B26: Máquinas Indust | C26: Máquinas Industriais
B27: Outros | C27: Outros
B28: Papel e Celulose | C28: Papel e Celulose
B29: Petróleo e Gas | C29: Petróleo e Gás
B30: Química | C30: Química
B31: Siderur & Metalur | C31: Siderurgia e Metalurgia
B32: Software e Dados | C32: Software e Dados
B33: Telecomunicações | C33: Telecom
B34: Textil | C34: Têxtil
B35: Transporte Serviç | C35: Transportes
B36: Veiculos e peças | C36: Veículos e peças

Sheet Economática (hidden)
A2: 1 | B2: =A2+1 -> 2 | C2: =B2+1 -> 3 | D2: =C2+1 -> 4 | E2: 5 | F2: 6 | G2: 7 | H2: 8 | I2: 9 | J2: 10 | K2: 11 | L2: 12 | M2: 13 | N2: 14 | O2: 15 | P2: 16 | Q2: 17 | R2: 18 | S2: 19 | T2: =S2+1 -> 20 | U2: 21 | V2: 22 | W2: 23 | X2: 24 | Y2: 25 | Z2: 26 | AA2: 27 | AB2: 28 | AC2: 29 | AD2: 30 | AE2: 31 | AF2: 32 | AG2: 33 | AH2: 34 | AI2: 35 | AJ2: =AI2+1 -> 36 | AK2: =AJ2+1 -> 37
A3: Código | B3: Nome | C3: Classe | D3: Pais Sede | E3: Tipo de Ativo | F3: Setor|Economatica | G3: Valor Mercado|da empresa|29Mar19|Em moeda orig|em milhões | H3: Fechamento|29Mar19|ajust p/ prov|Em moeda orig | I3: Qtd Ações|Outstanding|da empresa|em milhões|29Mar19 | J3: Patrim Liq| Mais recente| Em moeda orig| em milhões| consolid:sim* | K3: Receita| Dez 2017| Em moeda orig| em milhões| no exercício| consolid:sim* | L3: Receita| Dez 2018| Em moeda orig| em milhões| no exercício| consolid:sim* | M3: Lucro Liquido| < Dez 2017| Em moeda orig| em milhões| no exercício| consolid:sim* | N3: Lucro Liquido| < Mar 2018| Em moeda orig| em milhões| no exercício| consolid:sim* | O3: Lucro Liquido| < Jun 2018| Em moeda orig| em milhões| no exercício| consolid:sim* | P3: Lucro Liquido| < Set 2018| Em moeda orig| em milhões| no exercício| consolid:sim* | Q3: Lucro Liquido| < Dez 2018| Em moeda orig| em milhões| no exercício| consolid:sim* | R3: Lucro Liquido| Dez 2017| Em moeda orig| em milhões| no exercício| consolid:sim* | S3: Lucro Liquido| Dez 2018| Em moeda orig| em milhões| no exercício| consolid:sim* | T3: Lucro Liquido| Mais recente| Em moeda orig| em milhões| de 12 meses| consolid:sim* | U3: RenPat(in)| Mais recente| Em moeda orig| de 12 meses| consolid:sim* | V3: DL/PL| Mais recente| consolid:sim* | W3: EBITDA| Dez 2017| Em moeda orig| em milhões| no exercício| consolid:sim* | X3: EBITDA| Dez 2018| Em moeda orig| em milhões| no exercício| consolid:sim* | Y3: EBITDA| Mais recente| Em moeda orig| em milhões| de 12 meses| consolid:sim* | Z3: Div Tt Lq| Mais recente| Em moeda orig| em milhões| consolid:sim* | AA3: DivPag| Mais recente| Em moeda orig| em milhões| de 12 meses| consolid:não* | AB3: Retorno|do fechamento|no mês|(de 28Fev19|até 29Mar19)|Em moeda orig|ajust p/ prov | AC3: Retorno|do fechamento|de 29Dez17|até o ultimo negocio|Em moeda orig|ajust p/ prov | AD3: QAcOrd| Mais recente| em milhões| consolid:não* | AE3: Qtd Ações|Emitidas|da empresa|em milhões|29Mar19 | AF3: Indicador 1 | AG3: Código | AH3: ReInFi| Dez 2017| Em moeda orig| em milhares| no exercício| consolid:sim* | AI3: ReInFi| Dez 2018| Em moeda orig| em milhares| no exercício| consolid:sim* | AJ3: Media|nulos = 0|do volume$|em 1 mês|até o ultimo negocio|Em moeda orig|em milhares | AK3: Ativo /|Cancelado
A4: =IF(AG4="","",AG4) -> AGRO3 | B4: Brasilagro | C4: ON | D4: BR | E4: Ação | F4: Agro e Pesca | G4: 836.62 | H4: 15.55 | I4: 53.802 | J4: 882.81 | K4: 174.6 | L4: 336.38 | M4: 31.64 | N4: 85.62 | O4: 126.34 | P4: 136.64 | Q4: 136.12 | R4: 31.64 | S4: 136.12 | T4: 230.83 | U4: 33.2711 | V4: 23.6371 | W4: 58.8 | X4: 175.9 | Y4: 301.1 | Z4: 208.672 | AA4: -41 | AB4: -1.9 | AC4: 31.2 | AD4: 56.9 | AE4: 56.9 | AF4: 1 | AG4: AGRO3 | AH4: - | AI4: - | AJ4: 1271 | AK4: ativo
A5: SLCE3 | B5: SLC Agricola | C5: ON | D5: BR | E5: Ação | F5: Agro e Pesca | G5: 3862.93 | H5: 41.06 | I5: 94.08 | J5: 2598.17 | K5: 2219.9 | L5: 2823.47 | M5: 356.34 | N5: 154.32 | O5: 311.37 | P5: 347.16 | Q5: 381.25 | R5: 356.34 | S5: 381.25 | T5: 381.25 | U5: 15.0454 | V5: 34.4336 | W5: 685 | X5: 769 | Y5: 769 | Z5: 962.335 | AA5: -199.99 | AB5: 0.1 | AC5: 61.7 | AD5: 95.3 | AE5: 95.3 | AF5: 1 | AG5: SLCE3 | AH5: - | AI5: - | AJ5: 27219 | AK5: ativo
A6: BSEV3 | B6: Biosev | C6: ON | D6: BR | E6: Ação | F6: Agro e Pesca | G6: 2724.55 | H6: 2.67 | I6: 1020.429 | J6: 624.42 | K6: 5147.72 | L6: 4959.07 | M6: -823.16 | N6: -1269.83 | O6: -506.21 | P6: -661.76 | Q6: -892.2 | R6: -823.16 | S6: -892.2 | T6: -1338.87 | U6: - | V6: 800.1728 | W6: 968.8 | X6: 1050.1 | Y6: 1007.6 | Z6: 5047.034 | AA6: 0 | AB6: -8.6 | AC6: -40.8 | AD6: 1020.4 | AE6: 1020.4 | AF6: 1 | AG6: BSEV3 | AH6: - | AI6: - | AJ6: 33 | AK6: ativo
A7: FRTA3 | B7: Pomifrutas | C7: ON | D7: BR | E7: Ação | F7: Agro e Pesca | G7: 10.69 | H7: 0.89 | I7: 12.006 | J7: -68.56 | K7: 44.73 | L7: 5.22 | M7: -20.05 | N7: -1.56 | O7: -5.72 | P7: -7.1 | Q7: -7.51 | R7: -20.05 | S7: -7.51 | T7: -7.51 | U7: - | V7: -69.8676 | W7: -18.1 | X7: -10.8 | Y7: -10.8 | Z7: 47.904 | AA7: - | AB7: -6.3 | AC7: -38.2 | AD7: 12 | AE7: 12 | AF7: 1 | AG7: FRTA3 | AH7: - | AI7: - | AJ7: 10 | AK7: ativo
A8: MRFG3 | B8: Marfrig | C8: ON | D8: BR | E8: Ação | F8: Alimentos e Beb | G8: 3702.47 | H8: 5.98 | I8: 619.141 | J8: 673.46 | K8: 18577.87 | L8: 29715.18 | M8: -483.47 | N8: -202.69 | O8: -740.35 | P8: -820.79 | Q8: 1395.26 | R8: -483.47 | S8: 1395.26 | T8: 1395.26 | U8: 81.7536 | V8: 200.5943 | W8: 1566.1 | X8: 1075.2 | Y8: 1075.2 | Z8: 8046.955 | AA8: 0 | AB8: 8.7 | AC8: -18.3 | AD8: 621.3 | AE8: 621.3 | AF8: 1 | AG8: MRFG3 | AH8: - | AI8: - | AJ8: 24174 | AK8: ativo
A9: BAUH4 | B9: Excelsior | C9: PN | D9: BR | E9: Ação | F9: Alimentos e Beb | G9: 138.33 | H9: 26.49 | I9: 5.222 | J9: 49.15 | K9: 163.05 | L9: 173.87 | M9: 9.42 | N9: 2.38 | O9: 4.05 | P9: 8.03 | Q9: 10.05 | R9: 9.42 | S9: 10.05 | T9: 10.05 | U9: 24.2292 | V9: -49.0223 | W9: 17.1 | X9: 17.9 | Y9: 17.9 | Z9: -24.093 | AA9: -3.13 | AB9: 7.9 | AC9: 152.9 | AD9: 2.8 | AE9: 5.2 | AF9: 0.545 | AG9: BAUH4 | AH9: - | AI9: - | AJ9: 33 | AK9: ativo
A10: ABEV3 | B10: Ambev S/A | C10: ON | D10: BR | E10: Ação | F10: Alimentos e Beb | G10: 264586.43 | H10: 16.83 | I10: 15721.119 | J10: 56340.62 | K10: 47899.28 | L10: 50231.34 | M10: 7331.97 | N10: 2515.96 | O10: 4833.11 | P10: 7664.27 | Q10: 11024.68 | R10: 7331.97 | S10: 11024.68 | T10: 11024.68 | U10: 23.7114 | V10: -15.7333 | W10: 20035.8 | X10: 21013.5 | Y10: 21013.5 | Z10: -9054.121 | AA10: -8598.12 | AB10: -2.3 | AC10: -18.3 | AD10: 15722.1 | AE10: 15722.1 | AF10: 1 | AG10: ABEV3 | AH10: - | AI10: - | AJ10: 414292 | AK10: ativo
A11: CAML3 | B11: Camil | C11: ON | D11: BR | E11: Ação | F11: Alimentos e Beb | G11: 2752.81 | H11: 6.81 | I11: 404.23 | J11: 2091.19 | K11: - | L11: - | M11: 173.43 | N11: 250.67 | O11: 32.56 | P11: 111.63 | Q11: 261.93 | R11: - | S11: - | T11: 339.17 | U11: 18.6252 | V11: 44.2193 | W11: - | X11: - | Y11: 487.4 | Z11: 924.709 | AA11: -85 | AB11: -5.3 | AC11: -11 | AD11: 410.1 | AE11: 410.1 | AF11: 1 | AG11: CAML3 | AH11: - | AI11: - | AJ11: 6752 | AK11: ativo
A12: MDIA3 | B12: M.Diasbranco | C12: ON | D12: BR | E12: Ação | F12: Alimentos e Beb | G12: 14729.55 | H12: 43.45 | I12: 339 | J12: 5561.84 | K12: 5415.42 | L12: 6025.05 | M12: 844.18 | N12: 139.78 | O12: 349.4 | P12: 583.69 | Q12: 723.5 | R12: 844.18 | S12: 723.5 | T12: 723.5 | U12: 14.4934 | V12: 14.3442 | W12: 966.3 | X12: 933.1 | Y12: 933.1 | Z12: 797.804 | AA12: -132.37 | AB12: -7.5 | AC12: -15.8 | AD12: 339 | AE12: 339 | AF12: 1 | AG12: MDIA3 | AH12: - | AI12: - | AJ12: 25527 | AK12: ativo
A13: SMTO3 | B13: Sao Martinho | C13: ON | D13: BR | E13: Ação | F13: Alimentos e Beb | G13: 6433.72 | H13: 18.34 | I13: 350.803 | J13: 3344.62 | K13: 2321.36 | L13: 2236.67 | M13: 338.37 | N13: 491.71 | O13: 103.96 | P13: 162.51 | Q13: 228.44 | R13: 338.37 | S13: 228.44 | T13: 381.77 | U13: 11.3114 | V13: 93.0538 | W13: 817.3 | X13: 739 | Y13: 1616.9 | Z13: 3112.29 | AA13: -180 | AB13: -2.3 | AC13: -2.5 | AD13: 364 | AE13: 364 | AF13: 1 | AG13: SMTO3 | AH13: - | AI13: - | AJ13: 14785 | AK13: ativo
A14: JBSS3 | B14: JBS | C14: ON | D14: BR | E14: Ação | F14: Alimentos e Beb | G14: 42396.68 | H14: 15.92 | I14: 2663.108 | J14: 25647 | K14: 163169.98 | L14: 181680.24 | M14: 534.2 | N14: 506.52 | O14: -404.56 | P14: -538.05 | Q14: 25.2 | R14: 534.2 | S14: 25.2 | T14: 25.2 | U14: 0.8038 | V14: 168.9594 | W14: 11218.8 | X14: 11988.8 | Y14: 11988.8 | Z14: 47217.749 | AA14: -126.88 | AB14: 18.5 | AC14: 63.2 | AD14: 2728.7 | AE14: 2728.7 | AF14: 1 | AG14: JBSS3 | AH14: - | AI14: - | AJ14: 142192 | AK14: ativo
A15: BRFS3 | B15: BRF SA | C15: ON | D15: BR | E15: Ação | F15: Alimentos e Beb | G15: 18378.57 | H15: 22.65 | I15: 811.416 | J15: 6964.63 | K15: 33469.35 | L15: 30188.42 | M15: -1125.57 | N15: -124.32 | O15: -1709.24 | P15: -2351.8 | Q15: -4448.06 | R15: -1125.57 | S15: -4448.06 | T15: -4448.06 | U15: -38.1314 | V15: 222.9069 | W15: 2654.1 | X15: 1540.9 | Y15: 1540.9 | Z15: 16788.847 | AA15: 0 | AB15: 10.1 | AC15: -38.1 | AD15: 812.5 | AE15: 812.5 | AF15: 1 | AG15: BRFS3 | AH15: - | AI15: - | AJ15: 175256 | AK15: ativo
A16: BEEF3 | B16: Minerva | C16: ON | D16: BR | E16: Ação | F16: Alimentos e Beb | G16: 2623.15 | H16: 7.03 | I16: 373.137 | J16: -301.11 | K16: 12103.79 | L16: 16214.91 | M16: -281.02 | N16: -114.72 | O16: -1040.7 | P16: -1172.72 | Q16: -1264.78 | R16: -281.02 | S16: -1264.78 | T16: -1264.78 | U16: -1779.4533 | V16: -2016.0434 | W16: 1134.6 | X16: 896.2 | Y16: 896.2 | Z16: 6070.589 | AA16: 0 | AB16: 10.2 | AC16: -34 | AD16: 376.7 | AE16: 376.7 | AF16: 1 | AG16: BEEF3 | AH16: - | AI16: - | AJ16: 18037 | AK16: ativo
A17: JBDU4 | B17: J B Duarte | C17: PN | D17: BR | E17: Ação | F17: Alimentos e Beb | G17: 0.93 | H17: 6.8 | I17: 0.136 | J17: 25.77 | K17: 0 | L17: - | M17: -1.44 | N17: 33.52 | O17: 27.9 | P17: - | Q17: - | R17: -1.44 | S17: - | T17: 27.59 | U17: - | V17: 20.5075 | W17: - | X17: - | Y17: - | Z17: 5.285 | AA17: - | AB17: -8.4 | AC17: -77.6 | AD17: 1.4 | AE17: 0.1 | AF17: 10 | AG17: JBDU4 | AH17: - | AI17: - | AJ17: 7 | AK17: ativo
A18: MNPR3 | B18: Minupar | C18: ON | D18: BR | E18: Ação | F18: Alimentos e Beb | G18: 14.91 | H18: 2.1 | I18: 7.1 | J18: -359.63 | K18: 190.42 | L18: 199.56 | M18: -25.34 | N18: -1.69 | O18: -8.04 | P18: -5.83 | Q18: -66.97 | R18: -25.34 | S18: -66.97 | T18: -66.97 | U18: - | V18: -0.1258 | W18: 11.6 | X18: - | Y18: - | Z18: 0.453 | AA18: 0 | AB18: -6.7 | AC18: -26.3 | AD18: 7.1 | AE18: 7.1 | AF18: 1 | AG18: MNPR3 | AH18: - | AI18: - | AJ18: 21 | AK18: ativo
A19: NATU3 | B19: Natura | C19: ON | D19: BR | E19: Ação | F19: Comércio | G19: 19550.7 | H19: 45.39 | I19: 430.727 | J19: 2574.1 | K19: 9852.71 | L19: 13397.42 | M19: 670.25 | N19: 24.39 | O19: 56.19 | P19: 166.75 | Q19: 548.38 | R19: 670.25 | S19: 548.38 | T19: 548.38 | U19: 33.5452 | V19: 233.4777 | W19: 1742 | X19: 1846.6 | Y19: 1846.6 | Z19: 6009.955 | AA19: -201.65 | AB19: -6.2 | AC19: 39.8 | AD19: 431.2 | AE19: 431.2 | AF19: 1 | AG19: NATU3 | AH19: - | AI19: - | AJ19: 113704 | AK19: ativo
A20: LREN3 | B20: Lojas Renner | C20: ON | D20: BR | E20: Ação | F20: Comércio | G20: 31445.73 | H20: 43.8 | I20: 717.939 | J20: 3954.51 | K20: 7444.31 | L20: 8426.54 | M20: 732.68 | N20: 111.44 | O20: 386.15 | P20: 580.36 | Q20: 1020.14 | R20: 732.68 | S20: 1020.14 | T20: 1020.14 | U20: 31.6474 | V20: 13.6357 | W20: 1416.3 | X20: 1738.4 | Y20: 1738.4 | Z20: 539.224 | AA20: -287.65 | AB20: 1.4 | AC20: 25.4 | AD20: 720 | AE20: 720 | AF20: 1 | AG20: LREN3 | AH20: - | AI20: - | AJ20: 174575 | AK20: ativo
A21: MGLU3 | B21: Magaz Luiza | C21: ON | D21: BR | E21: Ação | F21: Comércio | G21: 32662.46 | H21: 172.85 | I21: 188.964 | J21: 2302.87 | K21: 11984.25 | L21: 15590.44 | M21: 389.02 | N21: 147.48 | O21: 288.23 | P21: 407.79 | Q21: 597.43 | R21: 389.02 | S21: 597.43 | T21: 597.43 | U21: 28.806 | V21: -23.9801 | W21: 1030.8 | X21: 1245.2 | Y21: 1245.2 | Z21: -552.231 | AA21: -114.27 | AB21: -0.4 | AC21: 116.8 | AD21: 190.6 | AE21: 190.6 | AF21: 1 | AG21: MGLU3 | AH21: - | AI21: - | AJ21: 173672 | AK21: ativo
A22: PNVL3 | B22: Dimed | C22: ON | D22: BR | E22: Ação | F22: Comércio | G22: 1704.16 | H22: 391.99 | I22: 4.516 | J22: 463.91 | K22: 2258.25 | L22: 2432.25 | M22: 59.8 | N22: 12.65 | O22: 28.35 | P22: 49.15 | Q22: 74.98 | R22: 59.8 | S22: 74.98 | T22: 74.98 | U22: 17.5706 | V22: 21.924 | W22: 117.9 | X22: 139.7 | Y22: 139.7 | Z22: 101.708 | AA22: -17.89 | AB22: 4.8 | AC22: -0.1 | AD22: 4.1 | AE22: 4.5 | AF22: 0.901 | AG22: PNVL3 | AH22: - | AI22: - | AJ22: 525 | AK22: ativo
A23: RADL3 | B23: RaiaDrogasil | C23: ON | D23: BR | E23: Ação | F23: Comércio | G23: 21505.86 | H23: 65.3 | I23: 329.339 | J23: 3499.86 | K23: 13212.51 | L23: 14801.45 | M23: 511.16 | N23: 120.95 | O23: 257.41 | P23: 385.36 | Q23: 502.45 | R23: 511.16 | S23: 502.45 | T23: 502.45 | U23: 15.6694 | V23: 17.019 | W23: 1130.7 | X23: 1137.3 | Y23: 1137.3 | Z23: 601.582 | AA23: -173.62 | AB23: 0.1 | AC23: -28 | AD23: 330.4 | AE23: 330.4 | AF23: 1 | AG23: RADL3 | AH23: - | AI23: - | AJ23: 82118 | AK23: ativo
A24: CRFB3 | B24: Carrefour BR | C24: ON | D24: BR | E24: Ação | F24: Comércio | G24: 39847.27 | H24: 20.09 | I24: 1983.438 | J24: 13033 | K24: 50280 | L24: 54267 | M24: 1599 | N24: 280 | O24: 669 | P24: 1024 | Q24: 1660 | R24: 1599 | S24: 1660 | T24: 1660 | U24: 14.1781 | V24: -21.4993 | W24: 3785 | X24: 3891 | Y24: 3891 | Z24: -3020 | AA24: -697 | AB24: 2.9 | AC24: 34.8 | AD24: 1983.4 | AE24: 1983.4 | AF24: 1 | AG24: CRFB3 | AH24: - | AI24: - | AJ24: 53321 | AK24: ativo
A25: CGRA4 | B25: Grazziotin | C25: PN | D25: BR | E25: Ação | F25: Comércio | G25: 483.54 | H25: 24.08 | I25: 20.057 | J25: 497.95 | K25: 428.28 | L25: 463.17 | M25: 61.4 | N25: 4.76 | O25: 22.57 | P25: 32.29 | Q25: 53.77 | R25: 61.4 | S25: 53.77 | T25: 53.77 | U25: 11.2413 | V25: -12.5102 | W25: 61.2 | X25: 59.8 | Y25: 59.8 | Z25: -62.294 | AA25: -22 | AB25: -7.6 | AC25: -7.5 | AD25: 8.2 | AE25: 20.2 | AF25: 0.405 | AG25: CGRA4 | AH25: - | AI25: - | AJ25: 246 | AK25: ativo
A26: PCAR4 | B26: P.Acucar-Cbd | C26: PN | D26: BR | E26: Ação | F26: Comércio | G26: 24384.33 | H26: 91.46 | I26: 266.612 | J26: 11083 | K26: 44634 | L26: 49388 | M26: 619 | N26: 150 | O26: 628 | P26: 778 | Q26: 1193 | R26: 619 | S26: 1193 | T26: 1193 | U26: 8.8775 | V26: 8.2933 | W26: 2342 | X26: 3066 | Y26: 3066 | Z26: 1156 | AA26: -342 | AB26: -1 | AC26: 18.9 | AD26: 99.7 | AE26: 266.8 | AF26: 0.374 | AG26: PCAR4 | AH26: - | AI26: - | AJ26: 118490 | AK26: ativo
A27: WLMM4 | B27: Wlm Ind Com | C27: PN | D27: BR | E27: Ação | F27: Comércio | G27: 233.41 | H27: 6.71 | I27: 36.415 | J27: 388.14 | K27: 489.74 | L27: 752.3 | M27: -6.68 | N27: 5.43 | O27: 4.4 | P27: 11.13 | Q27: 16.08 | R27: -6.68 | S27: 16.08 | T27: 16.08 | U27: 4.2812 | V27: -7.8729 | W27: -4.7 | X27: 21.9 | Y27: 21.9 | Z27: -30.59 | AA27: 0 | AB27: 5 | AC27: 27.8 | AD27: 16.6 | AE27: 36.4 | AF27: 0.455 | AG27: WLMM4 | AH27: - | AI27: - | AJ27: 26 | AK27: ativo
A28: LAME4 | B28: Lojas Americ | C28: PN | D28: BR | E28: Ação | F28: Comércio | G28: 24887.58 | H28: 16.77 | I28: 1598.353 | J28: 4924.6 | K28: 17044.72 | L28: 17689.86 | M28: 237.63 | N28: 20.02 | O28: 46.29 | P28: 107.69 | Q28: 380.49 | R28: 237.63 | S28: 380.49 | T28: 380.49 | U28: 3.7258 | V28: 88.626 | W28: 2682.2 | X28: 2654.4 | Y28: 2654.4 | Z28: 5571.142 | AA28: -101.73 | AB28: -15.8 | AC28: -0.8 | AD28: 539.9 | AE28: 1600.7 | AF28: 0.337 | AG28: LAME4 | AH28: - | AI28: - | AJ28: 132106 | AK28: ativo
A29: AMAR3 | B29: Lojas Marisa | C29: ON | D29: BR | E29: Ação | F29: Comércio | G29: 1313.52 | H29: 6.43 | I29: 204.28 | J29: 973.65 | K29: 2875.58 | L29: 2764.13 | M29: -60.44 | N29: -41.08 | O29: -78.09 | P29: -131.17 | Q29: 28.36 | R29: -60.44 | S29: 28.36 | T29: 28.36 | U29: 2.9556 | V29: 63.6364 | W29: 265.6 | X29: 417.9 | Y29: 417.9 | Z29: 619.596 | AA29: 0 | AB29: 4.4 | AC29: -11.3 | AD29: 204.1 | AE29: 204.1 | AF29: 1 | AG29: AMAR3 | AH29: - | AI29: - | AJ29: 6029 | AK29: ativo
A30: MEAL3 | B30: Imc S/A | C30: ON | D30: BR | E30: Ação | F30: Comércio | G30: 1025.25 | H30: 6.49 | I30: 157.974 | J30: 1015.22 | K30: 1494.51 | L30: 1582.08 | M30: 3.67 | N30: -6.43 | O30: -3.84 | P30: 9.41 | Q30: 7.89 | R30: 3.67 | S30: 7.89 | T30: 7.89 | U30: 0.7863 | V30: 2.871 | W30: 108.5 | X30: 102.8 | Y30: 102.8 | Z30: 29.147 | AA30: -0.87 | AB30: 5 | AC30: -18 | AD30: 166.5 | AE30: 166.5 | AF30: 1 | AG30: MEAL3 | AH30: - | AI30: - | AJ30: 3451 | AK30: ativo
A31: PFRM3 | B31: Profarma | C31: ON | D31: BR | E31: Ação | F31: Comércio | G31: 530.91 | H31: 4.33 | I31: 122.611 | J31: 1021.21 | K31: 4100.71 | L31: 4271.13 | M31: -112.72 | N31: -5.9 | O31: -4.39 | P31: -11.94 | Q31: -9.73 | R31: -112.72 | S31: -9.73 | T31: -9.73 | U31: -1.3049 | V31: 39.84 | W31: 20.2 | X31: 88.6 | Y31: 88.6 | Z31: 406.85 | AA31: 0 | AB31: 1.2 | AC31: -39.3 | AD31: 123.8 | AE31: 123.8 | AF31: 1 | AG31: PFRM3 | AH31: - | AI31: - | AJ31: 1204 | AK31: ativo
A32: BTOW3 | B32: B2W Digital | C32: ON | D32: BR | E32: Ação | F32: Comércio | G32: 19306.4 | H32: 42.22 | I32: 457.281 | J32: 3537.12 | K32: 7120.78 | L32: 6488.47 | M32: -411.45 | N32: -115.14 | O32: -223.95 | P32: -329.74 | Q32: -397.43 | R32: -411.45 | S32: -397.43 | T32: -397.43 | U32: -10.188 | V32: 51.1026 | W32: 583.3 | X32: 412.3 | Y32: 412.3 | Z32: 1807.556 | AA32: 0 | AB32: -12.7 | AC32: 106 | AD32: 457.3 | AE32: 457.3 | AF32: 1 | AG32: BTOW3 | AH32: - | AI32: - | AJ32: 114449 | AK32: ativo
A33: BPHA3 | B33: BR Pharma | C33: ON | D33: BR | E33: Ação | F33: Comércio | G33: 157.18 | H33: 1.39 | I33: 113.081 | J33: -268.38 | K33: 516.79 | L33: 9.54 | M33: -1621.68 | N33: -151.45 | O33: -220.97 | P33: -233.34 | Q33: 1048.96 | R33: -1621.68 | S33: 1048.96 | T33: 1048.96 | U33: - | V33: -23.4899 | W33: -1475.8 | X33: - | Y33: - | Z33: 63.043 | AA33: 0 | AB33: -6.1 | AC33: -61.8 | AD33: 113.1 | AE33: 113.1 | AF33: 1 | AG33: BPHA3 | AH33: - | AI33: - | AJ33: 42 | AK33: ativo
A34: TEND3 | B34: Tenda | C34: ON | D34: BR | E34: Ação | F34: Construção | G34: 816.87 | H34: 16.88 | I34: 48.393 | J34: 1197.67 | K34: 1357.9 | L34: 1681.25 | M34: 106.69 | N34: 36.27 | O34: 87.86 | P34: 152.29 | Q34: 200.29 | R34: 106.69 | S34: 200.29 | T34: 200.29 | U34: 17.3016 | V34: -26.0072 | W34: 141.9 | X34: 243.5 | Y34: 243.5 | Z34: -313.068 | AA34: -24.99 | AB34: 0.8 | AC34: 71.7 | AD34: 52.1 | AE34: 52.1 | AF34: 1 | AG34: TEND3 | AH34: - | AI34: - | AJ34: 16726 | AK34: ativo
A35: TRIS3 | B35: Trisul | C35: ON | D35: BR | E35: Ação | F35: Construção | G35: 686.75 | H35: 4.7 | I35: 146.118 | J35: 560.76 | K35: 441.68 | L35: 545.25 | M35: 34.99 | N35: 12.89 | O35: 30.29 | P35: 51.39 | Q35: 71.95 | R35: 34.99 | S35: 71.95 | T35: 71.95 | U35: 14.0541 | V35: 29.5693 | W35: 61.1 | X35: 102.7 | Y35: 102.7 | Z35: 177.561 | AA35: 0 | AB35: -0.8 | AC35: 136.9 | AD35: 146.1 | AE35: 146.1 | AF35: 1 | AG35: TRIS3 | AH35: - | AI35: - | AJ35: 2186 | AK35: ativo
A36: MRVE3 | B36: MRV | C36: ON | D36: BR | E36: Ação | F36: Construção | G36: 6169.74 | H36: 13.99 | I36: 441.011 | J36: 4630.45 | K36: 4759.89 | L36: 5419 | M36: 653.4 | N36: 159.66 | O36: 325.74 | P36: 499.8 | Q36: 690.31 | R36: 653.4 | S36: 690.31 | T36: 690.31 | U36: 13.0778 | V36: 42.4275 | W36: 715.7 | X36: 805.6 | Y36: 805.6 | Z36: 2068.166 | AA36: -455.63 | AB36: 2.9 | AC36: 20.1 | AD36: 444.1 | AE36: 444.1 | AF36: 1 | AG36: MRVE3 | AH36: - | AI36: - | AJ36: 59092 | AK36: ativo
A37: JHSF3 | B37: JHSF Part | C37: ON | D37: BR | E37: Ação | F37: Construção | G37: 1289.35 | H37: 2.45 | I37: 526.266 | J37: 2227.84 | K37: 355.89 | L37: 485.69 | M37: -22.65 | N37: -10.94 | O37: -3.72 | P37: 114.86 | Q37: 182.33 | R37: -22.65 | S37: 182.33 | T37: 182.33 | U37: 9.0996 | V37: 42.2145 | W37: 203.8 | X37: 342.1 | Y37: 342.1 | Z37: 957.108 | AA37: 0 | AB37: 7 | AC37: 40 | AD37: 526.4 | AE37: 526.4 | AF37: 1 | AG37: JHSF3 | AH37: - | AI37: - | AJ37: 4115 | AK37: ativo
A38: EZTC3 | B38: Eztec | C38: ON | D38: BR | E38: Ação | F38: Construção | G38: 4422.05 | H38: 26.8 | I38: 165.002 | J38: 2609.72 | K38: 980.32 | L38: 390.76 | M38: 358.83 | N38: 5.43 | O38: 20.14 | P38: 54 | Q38: 97.54 | R38: 358.83 | S38: 97.54 | T38: 97.54 | U38: 3.9838 | V38: -15.2876 | W38: 321.2 | X38: 6 | Y38: 6 | Z38: -403.136 | AA38: -85.22 | AB38: 0.5 | AC38: 27 | AD38: 165 | AE38: 165 | AF38: 1 | AG38: EZTC3 | AH38: - | AI38: - | AJ38: 19079 | AK38: ativo
A39: LOGG3 | B39: Log Com Prop | C39: ON | D39: BR | E39: Ação | F39: Construção | G39: 1252.86 | H39: 16.98 | I39: 73.785 | J39: 2147.27 | K39: 99.49 | L39: 104.83 | M39: 37.41 | N39: 10.67 | O39: 23.12 | P39: 33.87 | Q39: 43.49 | R39: 37.41 | S39: 43.49 | T39: 43.49 | U39: 2.3311 | V39: 36.5724 | W39: 72.2 | X39: 83.7 | Y39: 83.7 | Z39: 789.825 | AA39: -3.55 | AB39: -2.8 | AC39: - | AD39: 69.2 | AE39: 73.8 | AF39: 0.938 | AG39: LOGG3 | AH39: - | AI39: - | AJ39: 3980 | AK39: ativo
A40: CYRE3 | B40: Cyrela Realt | C40: ON | D40: BR | E40: Ação | F40: Construção | G40: 6251.41 | H40: 16.27 | I40: 384.229 | J40: 5148.55 | K40: 2673.77 | L40: 3146.16 | M40: -95 | N40: -51.28 | O40: -79.72 | P40: -200.47 | Q40: -84.36 | R40: -95 | S40: -84.36 | T40: -84.36 | U40: 0.0947 | V40: 17.4563 | W40: 83.4 | X40: 113.8 | Y40: 113.8 | Z40: 966.697 | AA40: -430 | AB40: -4.9 | AC40: 33.2 | AD40: 399.8 | AE40: 399.8 | AF40: 1 | AG40: CYRE3 | AH40: - | AI40: - | AJ40: 52025 | AK40: ativo
A41: RDNI3 | B41: Rni | C41: ON | D41: BR | E41: Ação | F41: Construção | G41: 232.04 | H41: 5.5 | I41: 42.189 | J41: 615.3 | K41: 289.72 | L41: 182.61 | M41: -93.19 | N41: -11.75 | O41: -20.87 | P41: -18.35 | Q41: -26.1 | R41: -93.19 | S41: -26.1 | T41: -26.1 | U41: -4.175 | V41: 36.2373 | W41: -73.9 | X41: -28 | Y41: -28 | Z41: 226.955 | AA41: 0 | AB41: -6 | AC41: -10.6 | AD41: 43.8 | AE41: 43.8 | AF41: 1 | AG41: RDNI3 | AH41: - | AI41: - | AJ41: 35 | AK41: ativo
A42: DIRR3 | B42: Direcional | C42: ON | D42: BR | E42: Ação | F42: Construção | G42: 1274.44 | H42: 8.67 | I42: 146.994 | J42: 1282.69 | K42: 751.86 | L42: 1166.05 | M42: -143.78 | N42: -8.09 | O42: -11.87 | P42: -95.69 | Q42: -77.5 | R42: -143.78 | S42: -77.5 | T42: -77.5 | U42: -4.6086 | V42: 9.9225 | W42: -108.8 | X42: -10.7 | Y42: -10.7 | Z42: 138.248 | AA42: -90 | AB42: 3.7 | AC42: 75.6 | AD42: 153.4 | AE42: 153.4 | AF42: 1 | AG42: DIRR3 | AH42: - | AI42: - | AJ42: 8854 | AK42: ativo
A43: EVEN3 | B43: Even | C43: ON | D43: BR | E43: Ação | F43: Construção | G43: 1283.25 | H43: 6 | I43: 213.876 | J43: 1577.77 | K43: 1583.95 | L43: 1474.85 | M43: -378.66 | N43: -25.68 | O43: -56.05 | P43: -68.41 | Q43: -160.71 | R43: -378.66 | S43: -160.71 | T43: -160.71 | U43: -7.0108 | V43: 41.889 | W43: -346.2 | X43: -148.2 | Y43: -148.2 | Z43: 757.143 | AA43: 0 | AB43: 0.5 | AC43: 4.5 | AD43: 217 | AE43: 217 | AF43: 1 | AG43: EVEN3 | AH43: - | AI43: - | AJ43: 6144 | AK43: ativo
A44: CRDE3 | B44: Cr2 | C44: ON | D44: BR | E44: Ação | F44: Construção | G44: 47.47 | H44: 19.6 | I44: 2.422 | J44: 167.02 | K44: 11.49 | L44: 5.28 | M44: -4.49 | N44: -7.07 | O44: -6.98 | P44: -9.98 | Q44: -15.71 | R44: -4.49 | S44: -15.71 | T44: -15.71 | U44: -11.1184 | V44: -16.7321 | W44: -7.4 | X44: -18.3 | Y44: -18.3 | Z44: -28.034 | AA44: 0 | AB44: -2.8 | AC44: -33.8 | AD44: 48.4 | AE44: 2.4 | AF44: 20 | AG44: CRDE3 | AH44: - | AI44: - | AJ44: 12 | AK44: ativo
A45: HBOR3 | B45: Helbor | C45: ON | D45: BR | E45: Ação | F45: Construção | G45: 601.33 | H45: 1.33 | I45: 452.126 | J45: 823.34 | K45: 518.14 | L45: 633.6 | M45: -309.12 | N45: -67.85 | O45: -166.11 | P45: -295.37 | Q45: -340.93 | R45: -309.12 | S45: -340.93 | T45: -340.93 | U45: -18.99 | V45: 139.1069 | W45: -244 | X45: -305.4 | Y45: -305.4 | Z45: 1598.415 | AA45: 0 | AB45: -5.7 | AC45: -32.1 | AD45: 457.9 | AE45: 457.9 | AF45: 1 | AG45: HBOR3 | AH45: - | AI45: - | AJ45: 1388 | AK45: ativo
A46: TCSA3 | B46: Tecnisa | C46: ON | D46: BR | E46: Ação | F46: Construção | G46: 433.86 | H46: 1.31 | I46: 331.192 | J46: 772.01 | K46: 307.99 | L46: 175.93 | M46: -520.65 | N46: -53.67 | O46: -139.5 | P46: -212.87 | Q46: -277.05 | R46: -520.65 | S46: -277.05 | T46: -277.05 | U46: -26.585 | V46: 73.8872 | W46: -464.4 | X46: -209 | Y46: -209 | Z46: 578.173 | AA46: 0 | AB46: 2.3 | AC46: -36.4 | AD46: 331.2 | AE46: 331.2 | AF46: 1 | AG46: TCSA3 | AH46: - | AI46: - | AJ46: 2480 | AK46: ativo
A47: GFSA3 | B47: Gafisa | C47: ON | D47: BR | E47: Ação | F47: Construção | G47: 339.76 | H47: 8.54 | I47: 39.785 | J47: 491.32 | K47: 608.82 | L47: 960.89 | M47: -849.86 | N47: -55.92 | O47: -85.28 | P47: -122.51 | Q47: -419.53 | R47: -849.86 | S47: -419.53 | T47: -419.53 | U47: -55.4746 | V47: 152.5277 | W47: -832.1 | X47: -341.2 | Y47: -341.2 | Z47: 752.253 | AA47: 0 | AB47: -13 | AC47: -58.3 | AD47: 43.7 | AE47: 43.7 | AF47: 1 | AG47: GFSA3 | AH47: - | AI47: - | AJ47: 16627 | AK47: ativo
A48: RSID3 | B48: Rossi Resid | C48: ON | D48: BR | E48: Ação | F48: Construção | G48: 78.88 | H48: 4.69 | I48: 16.819 | J48: -237.45 | K48: 326.03 | L48: 148.72 | M48: -338.89 | N48: -142.85 | O48: -242.5 | P48: -400.8 | Q48: -614.05 | R48: -338.89 | S48: -614.05 | T48: -614.05 | U48: -164.0966 | V48: -625.6289 | W48: -418 | X48: -427.4 | Y48: -427.4 | Z48: 1534.724 | AA48: 0 | AB48: -5.8 | AC48: -34.8 | AD48: 17.2 | AE48: 17.2 | AF48: 1 | AG48: RSID3 | AH48: - | AI48: - | AJ48: 243 | AK48: ativo
A49: AZEV4 | B49: Azevedo | C49: PN | D49: BR | E49: Ação | F49: Construção | G49: 71.82 | H49: 0.99 | I49: 27 | J49: -101.34 | K49: 63.77 | L49: - | M49: -84.23 | N49: -12.02 | O49: -23.01 | P49: - | Q49: - | R49: -84.23 | S49: - | T49: -83.31 | U49: - | V49: -25.961 | W49: -70.9 | X49: - | Y49: -63.1 | Z49: 26.318 | AA49: 0 | AB49: -10 | AC49: -6.6 | AD49: 9 | AE49: 27 | AF49: 0.333 | AG49: AZEV4 | AH49: - | AI49: - | AJ49: 1361 | AK49: ativo
A50: PDGR3 | B50: PDG Realt | C50: ON | D50: BR | E50: Ação | F50: Construção | G50: 58.89 | H50: 7.3 | I50: 8.067 | J50: -3963.66 | K50: 458.25 | L50: 213.46 | M50: 173.22 | N50: -260.31 | O50: -600.12 | P50: -708.98 | Q50: -838.91 | R50: 173.22 | S50: -838.91 | T50: -838.91 | U50: - | V50: -36.7314 | W50: -1745.7 | X50: -359.1 | Y50: -359.1 | Z50: 1469.065 | AA50: 0 | AB50: 0 | AC50: -67.8 | AD50: 80.7 | AE50: 8.1 | AF50: 10 | AG50: PDGR3 | AH50: - | AI50: - | AJ50: 732 | AK50: ativo
A51: VIVR3 | B51: Viver | C51: ON | D51: BR | E51: Ação | F51: Construção | G51: 171.34 | H51: 0.37 | I51: 463.085 | J51: 46.11 | K51: 5.94 | L51: 85.03 | M51: -120.63 | N51: -18.66 | O51: -46.1 | P51: -118.09 | Q51: -197.22 | R51: -120.63 | S51: -197.22 | T51: -197.22 | U51: - | V51: 565.0525 | W51: -94.7 | X51: -81.9 | Y51: -81.9 | Z51: 260.557 | AA51: 0 | AB51: 0 | AC51: -76.7 | AD51: 445.4 | AE51: 463.1 | AF51: 0.962 | AG51: VIVR3 | AH51: - | AI51: - | AJ51: 8495 | AK51: ativo
A52: WHRL4 | B52: Whirlpool | C52: PN | D52: BR | E52: Ação | F52: Eletroeletrônicos | G52: 6763.97 | H52: 4.72 | I52: 1502.786 | J52: 2189.91 | K52: 9482.87 | L52: 6193.96 | M52: 435.86 | N52: 75.49 | O52: 94.13 | P52: 164.61 | Q52: 180.6 | R52: 435.86 | S52: 180.6 | T52: 180.6 | U52: 7.3301 | V52: -23.1272 | W52: 594.7 | X52: 408.5 | Y52: 408.5 | Z52: -506.571 | AA52: -210.01 | AB52: -3.3 | AC52: -2.4 | AD52: 1028.7 | AE52: 1502.8 | AF52: 0.685 | AG52: WHRL4 | AH52: - | AI52: - | AJ52: 117 | AK52: ativo
A53: POSI3 | B53: Positivo Tec | C53: ON | D53: BR | E53: Ação | F53: Eletroeletrônicos | G53: 196 | H53: 2.28 | I53: 85.965 | J53: 508.99 | K53: 1913.61 | L53: 1951.34 | M53: -47.55 | N53: 1.96 | O53: -9.65 | P53: 2.18 | Q53: -0.46 | R53: -47.55 | S53: -0.46 | T53: -0.46 | U53: -0.091 | V53: 42.5345 | W53: 71.1 | X53: 107.6 | Y53: 107.6 | Z53: 216.887 | AA53: 0 | AB53: -3 | AC53: -26.7 | AD53: 87.8 | AE53: 87.8 | AF53: 1 | AG53: POSI3 | AH53: - | AI53: - | AJ53: 308 | AK53: ativo
A54: IGBR3 | B54: IGB S/A | C54: ON | D54: BR | E54: Ação | F54: Eletroeletrônicos | G54: 28.26 | H54: 2.26 | I54: 12.505 | J54: -828.34 | K54: 4.52 | L54: - | M54: 44 | N54: -39.09 | O54: -47.26 | P54: -61.22 | Q54: - | R54: 44 | S54: - | T54: 49.38 | U54: - | V54: -106.9484 | W54: - | X54: - | Y54: - | Z54: 885.894 | AA54: - | AB54: -3 | AC54: 96.5 | AD54: 12.5 | AE54: 12.5 | AF54: 1 | AG54: IGBR3 | AH54: - | AI54: - | AJ54: 88 | AK54: ativo
A55: EGIE3 | B55: Engie Brasil | C55: ON | D55: BR | E55: Ação | F55: Energia Elétrica | G55: 34848.27 | H55: 42.71 | I55: 815.928 | J55: 6316.19 | K55: 7009.96 | L55: 8794.79 | M55: 2003.41 | N55: 489.04 | O55: 1078.01 | P55: 1553.08 | Q55: 2314.36 | R55: 2003.41 | S55: 2314.36 | T55: 2314.36 | U55: 33.8771 | V55: 115.5661 | W55: 3499.2 | X55: 4327.3 | Y55: 4327.3 | Z55: 7304.442 | AA55: -1989.97 | AB55: 3.8 | AC55: 68.5 | AD55: 815.9 | AE55: 815.9 | AF55: 1 | AG55: EGIE3 | AH55: - | AI55: - | AJ55: 60540 | AK55: ativo
A56: ELET6 | B56: Eletrobras | C56: PNB | D56: BR | E56: Ação | F56: Energia Elétrica | G56: 49940.37 | H56: 37.86 | I56: 1352.634 | J56: 55542.91 | K56: 37876.02 | L56: 24975.75 | M56: -1763.81 | N56: 31.84 | O56: 2851.4 | P56: 1230.24 | Q56: 13262.38 | R56: -1763.81 | S56: 13262.38 | T56: 13262.38 | U56: 31.2206 | V56: 84.3894 | W56: 6744.2 | X56: 19990.4 | Y56: 19990.4 | Z56: 47265.597 | AA56: -1.58 | AB56: -2.8 | AC56: 66.8 | AD56: 1087.1 | AE56: 1352.6 | AF56: 0.804 | AG56: ELET6 | AH56: - | AI56: - | AJ56: 104501 | AK56: ativo
A57: ENGI11 | B57: Energisa | C57: UNT N2 | D57: BR | E57: Ação | F57: Energia Elétrica | G57: 18303.71 | H57: 40.55 | I57: 1814.562 | J57: 5388.14 | K57: 13637.15 | L57: 15787.58 | M57: 558.61 | N57: 131.04 | O57: 232.2 | P57: 474.68 | Q57: 1148.43 | R57: 558.61 | S57: 1148.43 | T57: 1148.43 | U57: 24.656 | V57: 189.3893 | W57: 2052.6 | X57: 3817.6 | Y57: 3817.6 | Z57: 11453.373 | AA57: -269.39 | AB57: 1 | AC57: 55.8 | AD57: 756 | AE57: 1814.6 | AF57: 0.417 | AG57: ENGI11 | AH57: - | AI57: - | AJ57: 37600 | AK57: ativo
A58: TAEE11 | B58: Taesa | C58: UNT N2 | D58: BR | E58: Ação | F58: Energia Elétrica | G58: 8931.1 | H58: 24.8 | I58: 1033.497 | J58: 4572.05 | K58: 1077.06 | L58: 1635.24 | M58: 648.29 | N58: 217.28 | O58: 476.53 | P58: 744.25 | Q58: 1071.31 | R58: 648.29 | S58: 1071.31 | T58: 1071.31 | U58: 24.6416 | V58: 71.7202 | W58: 930.2 | X58: 1436.3 | Y58: 1436.3 | Z58: 3279.086 | AA58: -960.2 | AB58: -0.6 | AC58: 32.5 | AD58: 590.7 | AE58: 1033.5 | AF58: 0.572 | AG58: TAEE11 | AH58: - | AI58: - | AJ58: 42250 | AK58: ativo
A59: EKTR4 | B59: Elektro | C59: PN | D59: BR | E59: Ação | F59: Energia Elétrica | G59: 3607.92 | H59: 19 | I59: 193.759 | J59: 2293.83 | K59: 5811.5 | L59: 6249.36 | M59: 374.43 | N59: 72.44 | O59: 145.72 | P59: 233.59 | Q59: 414.33 | R59: 374.43 | S59: 414.33 | T59: 414.33 | U59: 20.4074 | V59: 132.3197 | W59: 873 | X59: 928.5 | Y59: 928.5 | Z59: 3035.184 | AA59: 0 | AB59: 0 | AC59: -13.7 | AD59: 91.9 | AE59: 193.8 | AF59: 0.474 | AG59: EKTR4 | AH59: - | AI59: - | AJ59: 43 | AK59: ativo
A60: EQTL3 | B60: Equatorial | C60: ON | D60: BR | E60: Ação | F60: Energia Elétrica | G60: 16088.18 | H60: 80 | I60: 201.102 | J60: 5596.03 | K60: 9071.42 | L60: 11252.63 | M60: 997.26 | N60: 64.58 | O60: 185.68 | P60: 433.71 | Q60: 917.94 | R60: 997.26 | S60: 917.94 | T60: 917.94 | U60: 20.199 | V60: 103.6521 | W60: 1797 | X60: - | Y60: - | Z60: 6792.19 | AA60: - | AB60: -2.6 | AC60: 24 | AD60: 198.8 | AE60: 201.1 | AF60: 0.988 | AG60: EQTL3 | AH60: - | AI60: - | AJ60: 98723 | AK60: ativo
A61: CPFE3 | B61: CPFL Energia | C61: ON | D61: BR | E61: Ação | F61: Energia Elétrica | G61: 31026.04 | H61: 30.48 | I61: 1017.915 | J61: 10262.75 | K61: 26744.91 | L61: 28136.63 | M61: 1179.75 | N61: 443.78 | O61: 899.5 | P61: 1453.23 | Q61: 2058.04 | R61: 1179.75 | S61: 2058.04 | T61: 2058.04 | U61: 19.3628 | V61: 147.5007 | W61: 4863.3 | X61: 5636.7 | Y61: 5636.7 | Z61: 18485.347 | AA61: -279.1 | AB61: -0.7 | AC61: 59.3 | AD61: 1017.9 | AE61: 1017.9 | AF61: 1 | AG61: CPFE3 | AH61: - | AI61: - | AJ61: 15992 | AK61: ativo
A62: TIET3 | B62: AES Tiete E | C62: ON | D62: BR | E62: Ação | F62: Energia Elétrica | G62: 4378.93 | H62: 2.25 | I62: 1967.385 | J62: 1523.47 | K62: 1728.13 | L62: 1923.53 | M62: 298.28 | N62: 54.76 | O62: 147.72 | P62: 183.09 | Q62: 287.96 | R62: 298.28 | S62: 287.96 | T62: 287.96 | U62: 18.4865 | V62: 203.0861 | W62: 842.2 | X62: 1011.2 | Y62: 1011.2 | Z62: 3093.964 | AA62: -270.06 | AB62: -4.7 | AC62: -6.1 | AD62: 775.2 | AE62: 1967.4 | AF62: 0.394 | AG62: TIET3 | AH62: - | AI62: - | AJ62: 167 | AK62: ativo
A63: TIET4 | B63: AES Tiete E | C63: PN | D63: BR | E63: Ação | F63: Energia Elétrica | G63: 4378.93 | H63: 2.21 | I63: 1967.385 | J63: 1523.47 | K63: 1728.13 | L63: 1923.53 | M63: 298.28 | N63: 54.76 | O63: 147.72 | P63: 183.09 | Q63: 287.96 | R63: 298.28 | S63: 287.96 | T63: 287.96 | U63: 18.4865 | V63: 203.0861 | W63: 842.2 | X63: 1011.2 | Y63: 1011.2 | Z63: 3093.964 | AA63: -270.06 | AB63: -5.2 | AC63: -7.8 | AD63: 775.2 | AE63: 1967.4 | AF63: 0.394 | AG63: TIET4 | AH63: - | AI63: - | AJ63: 409 | AK63: ativo
A64: TIET11 | B64: AES Tiete E | C64: UNT N2 | D64: BR | E64: Ação | F64: Energia Elétrica | G64: 4378.93 | H64: 11.08 | I64: 1967.385 | J64: 1523.47 | K64: 1728.13 | L64: 1923.53 | M64: 298.28 | N64: 54.76 | O64: 147.72 | P64: 183.09 | Q64: 287.96 | R64: 298.28 | S64: 287.96 | T64: 287.96 | U64: 18.4865 | V64: 203.0861 | W64: 842.2 | X64: 1011.2 | Y64: 1011.2 | Z64: 3093.964 | AA64: -270.06 | AB64: -4.8 | AC64: -6.4 | AD64: 775.2 | AE64: 1967.4 | AF64: 0.394 | AG64: TIET11 | AH64: - | AI64: - | AJ64: 20822 | AK64: ativo
A65: CELP5 | B65: Celpa | C65: PNA | D65: BR | E65: Ação | F65: Energia Elétrica | G65: 5316.86 | H65: 6.52 | I65: 2209.074 | J65: 3006.08 | K65: 5150.97 | L65: 5491.54 | M65: 613.53 | N65: 0.43 | O65: 49.63 | P65: 183.41 | Q65: 455.39 | R65: 613.53 | S65: 455.39 | T65: 455.39 | U65: 17.6323 | V65: 70.7923 | W65: 940.7 | X65: - | Y65: - | Z65: 2128.075 | AA65: -132.56 | AB65: -6.3 | AC65: 186.8 | AD65: 2204.6 | AE65: 2209.1 | AF65: 0.998 | AG65: CELP5 | AH65: - | AI65: - | AJ65: 9 | AK65: ativo
A66: TRPL4 | B66: Tran Paulist | C66: PN | D66: BR | E66: Ação | F66: Energia Elétrica | G66: 13109.59 | H66: 77.14 | I66: 164.721 | J66: 11068.65 | K66: 2701.19 | L66: 3184.65 | M66: 1365.51 | N66: 236.95 | O66: 481.73 | P66: 1173.53 | Q66: 1881.67 | R66: 1365.51 | S66: 1881.67 | T66: 1881.67 | U66: 16.9224 | V66: 20.5081 | W66: 2056.9 | X66: 2468.1 | Y66: 2468.1 | Z66: 2317.318 | AA66: -2064.26 | AB66: -0.1 | AC66: 38.1 | AD66: 64.5 | AE66: 164.7 | AF66: 0.391 | AG66: TRPL4 | AH66: - | AI66: - | AJ66: 38531 | AK66: ativo
A67: ENEV3 | B67: Eneva | C67: ON | D67: BR | E67: Ação | F67: Energia Elétrica | G67: 5827.32 | H67: 18.5 | I67: 314.99 | J67: 6298.04 | K67: 2721.77 | L67: 3129.11 | M67: 95.5 | N67: 36.71 | O67: 242.76 | P67: 418.44 | Q67: 887.87 | R67: 95.5 | S67: 887.87 | T67: 887.87 | U67: 16.5222 | V67: 60.5432 | W67: 1124.6 | X67: 1563 | Y67: 1563 | Z67: 3804.461 | AA67: 0 | AB67: -1 | AC67: 33.1 | AD67: 315 | AE67: 315 | AF67: 1 | AG67: ENEV3 | AH67: - | AI67: - | AJ67: 12554 | AK67: ativo
A68: =IF(AG68="","",AG68) -> ENBR3 | B68: Energias BR | C68: ON | D68: BR | E68: Ação | F68: Energia Elétrica | G68: 10283.87 | H68: 16.98 | I68: 605.646 | J68: 8523.71 | K68: 12373.38 | L68: 13834.22 | M68: 611.86 | N68: 214.12 | O68: 441.79 | P68: 748.73 | Q68: 1272.83 | R68: 611.86 | S68: 1272.83 | T68: 1272.83 | U68: 15.6541 | V68: 52.5185 | W68: 2170.3 | X68: 2773.2 | Y68: 2773.2 | Z68: 5080.942 | AA68: -356 | AB68: -1.8 | AC68: 32.3 | AD68: 606.2 | AE68: 606.2 | AF68: 1 | AG68: ENBR3 | AH68: - | AI68: - | AJ68: 52820 | AK68: ativo
A69: GEPA4 | B69: Ger Paranap | C69: PN | D69: BR | E69: Ação | F69: Energia Elétrica | G69: 3667.15 | H69: 40.5 | I69: 94.433 | J69: 1635.42 | K69: 1453.35 | L69: 1318.86 | M69: 243.88 | N69: 85.67 | O69: 134.38 | P69: 127.26 | Q69: 255.91 | R69: 243.88 | S69: 255.91 | T69: 255.91 | U69: 15.1099 | V69: 32.5867 | W69: 644.5 | X69: 705.4 | Y69: 705.4 | Z69: 532.93 | AA69: -307.43 | AB69: 1.4 | AC69: 10.8 | AD69: 31.5 | AE69: 94.4 | AF69: 0.333 | AG69: GEPA4 | AH69: - | AI69: - | AJ69: 81 | AK69: ativo
A70: COCE5 | B70: Coelce | C70: PNA | D70: BR | E70: Ação | F70: Energia Elétrica | G70: 3720.94 | H70: 52.3 | I70: 77.855 | J70: 2862.64 | K70: 4594.42 | L70: 5102.24 | M70: 435.78 | N70: 85.39 | O70: 166.43 | P70: 235.7 | Q70: 364.52 | R70: 435.78 | S70: 364.52 | T70: 364.52 | U70: 14.1127 | V70: 60.2431 | W70: 808 | X70: 741.3 | Y70: 741.3 | Z70: 1724.542 | AA70: -84.96 | AB70: -4.9 | AC70: -2.6 | AD70: 48.1 | AE70: 77.9 | AF70: 0.617 | AG70: COCE5 | AH70: - | AI70: - | AJ70: 520 | AK70: ativo
A71: REDE4 | B71: Rede Energia | C71: PN | D71: BR | E71: Ação | F71: Energia Elétrica | G71: 15434.06 | H71: - | I71: 2057.875 | J71: 3258.2 | K71: 8977.15 | L71: 10069.54 | M71: 111.23 | N71: 117.14 | O71: 192.81 | P71: 343.01 | Q71: 399.56 | R71: 111.23 | S71: 399.56 | T71: 399.56 | U71: 13.9668 | V71: 130.1484 | W71: 1316.7 | X71: 1793 | Y71: 1793 | Z71: 5662.725 | AA71: -26.46 | AB71: - | AC71: - | AD71: 2057.9 | AE71: 2057.9 | AF71: 1 | AG71: REDE4 | AH71: - | AI71: - | AJ71: 14 | AK71: ativo
A72: ALUP11 | B72: Alupar | C72: UNT N2 | D72: BR | E72: Ação | F72: Energia Elétrica | G72: 6840.79 | H72: 23.22 | I72: 879.111 | J72: 4328.05 | K72: 1538.19 | L72: 1882.91 | M72: 330.89 | N72: 60.34 | O72: 144.96 | P72: 252.69 | Q72: 386.75 | R72: 330.89 | S72: 386.75 | T72: 386.75 | U72: 13.3907 | V72: 44.8458 | W72: 1170.2 | X72: - | Y72: - | Z72: 2808.112 | AA72: -210.99 | AB72: 1.6 | AC72: 31 | AD72: 597 | AE72: 879.1 | AF72: 0.679 | AG72: ALUP11 | AH72: - | AI72: - | AJ72: 16128 | AK72: ativo
A73: EMAE4 | B73: Emae | C73: PN | D73: BR | E73: Ação | F73: Energia Elétrica | G73: 856.8 | H73: 23.19 | I73: 36.947 | J73: 868.86 | K73: 209.51 | L73: 316.42 | M73: 119.15 | N73: 15.94 | O73: 32.31 | P73: 38.59 | Q73: 101.52 | R73: 119.15 | S73: 101.52 | T73: 101.52 | U73: 12.382 | V73: -17.5737 | W73: 115.4 | X73: 6.7 | Y73: 6.7 | Z73: -152.69 | AA73: -34.29 | AB73: 3.3 | AC73: 186.2 | AD73: 14.7 | AE73: 36.9 | AF73: 0.398 | AG73: EMAE4 | AH73: - | AI73: - | AJ73: 54 | AK73: ativo
A74: CMIG4 | B74: Cemig | C74: PN | D74: BR | E74: Ação | F74: Energia Elétrica | G74: 21634.17 | H74: 13.9 | I74: 1458.191 | J74: 14968.53 | K74: 21711.69 | L74: - | M74: 1000.95 | N74: 464.45 | O74: 453.41 | P74: 697.73 | Q74: - | R74: 1000.95 | S74: - | T74: 1301.94 | U74: 9.8039 | V74: 89.0215 | W74: 3492.2 | X74: - | Y74: 4308.9 | Z74: 13329.052 | AA74: -270.65 | AB74: -3.5 | AC74: 117.4 | AD74: 487.6 | AE74: 1458.8 | AF74: 0.334 | AG74: CMIG4 | AH74: - | AI74: - | AJ74: 132155 | AK74: ativo
A75: CPLE6 | B75: Copel | C75: PNB | D75: BR | E75: Ação | F75: Energia Elétrica | G75: 9337.42 | H75: 36.4 | I75: 273.655 | J75: 16032.93 | K75: 14024.57 | L75: 14934.78 | M75: 1033.63 | N75: 332.28 | O75: 679.49 | P75: 1034.27 | Q75: 1407.06 | R75: 1033.63 | S75: 1407.06 | T75: 1407.06 | U75: 9.3098 | V75: 58.1038 | W75: 2873 | X75: 3143.2 | Y75: 3143.2 | Z75: 9491.964 | AA75: -264.73 | AB75: 1.8 | AC75: 58.4 | AD75: 145 | AE75: 273.7 | AF75: 0.53 | AG75: CPLE6 | AH75: - | AI75: - | AJ75: 41743 | AK75: ativo
A76: CLSC4 | B76: Celesc | C76: PN | D76: BR | E76: Ação | F76: Energia Elétrica | G76: 2060.85 | H76: 53.43 | I76: 38.571 | J76: 1800.86 | K76: 7091.24 | L76: 7664.54 | M76: 66.49 | N76: 70.99 | O76: 140.21 | P76: 182.29 | Q76: 165.03 | R76: 66.49 | S76: 165.03 | T76: 165.03 | U76: 8.9582 | V76: 40.0922 | W76: 523.2 | X76: - | Y76: - | Z76: 722.003 | AA76: -15.31 | AB76: -2.5 | AC76: 100.6 | AD76: 15.5 | AE76: 38.6 | AF76: 0.403 | AG76: CLSC4 | AH76: - | AI76: - | AJ76: 123 | AK76: ativo
A77: EEEL4 | B77: Ceee-Gt | C77: PN | D77: BR | E77: Ação | F77: Energia Elétrica | G77: 2277.44 | H77: 250 | I77: 9.681 | J77: 2372.58 | K77: 1017.23 | L77: 1023.43 | M77: 395.08 | N77: 54.19 | O77: 41.63 | P77: 104.72 | Q77: 173.39 | R77: 395.08 | S77: 173.39 | T77: 173.39 | U77: 7.4163 | V77: 12.4752 | W77: 408.7 | X77: 329.5 | Y77: 329.5 | Z77: 298.009 | AA77: 0 | AB77: 0 | AC77: 141.3 | AD77: 9.5 | AE77: 9.7 | AF77: 0.983 | AG77: EEEL4 | AH77: - | AI77: - | AJ77: 7 | AK77: ativo
A78: LIPR3 | B78: Eletropar | C78: ON | D78: BR | E78: Ação | F78: Energia Elétrica | G78: 705.84 | H78: 60 | I78: 11.764 | J78: 187.43 | K78: 0 | L78: 0 | M78: 39.22 | N78: -4.56 | O78: 0.09 | P78: 7.32 | Q78: 13.18 | R78: 39.22 | S78: 13.18 | T78: 13.18 | U78: 6.554 | V78: -55.8704 | W78: 44.6 | X78: 9.1 | Y78: 9.1 | Z78: -104.719 | AA78: -87.38 | AB78: 0 | AC78: 28.9 | AD78: 11.8 | AE78: 11.8 | AF78: 1 | AG78: LIPR3 | AH78: - | AI78: - | AJ78: 8 | AK78: ativo
A79: LIGT3 | B79: Light S/A | C79: ON | D79: BR | E79: Ação | F79: Energia Elétrica | G79: 4190.84 | H79: 20.55 | I79: 203.934 | J79: 3389.49 | K79: 11314.56 | L79: 11970.55 | M79: 124.22 | N79: 92.75 | O79: 67.3 | P79: 73.43 | Q79: 165.78 | R79: 124.22 | S79: 165.78 | T79: 165.78 | U79: 4.8298 | V79: 246.1909 | W79: 1694.1 | X79: 1507.1 | Y79: 1507.1 | Z79: 8344.621 | AA79: -29.5 | AB79: 3.5 | AC79: 24.1 | AD79: 203.9 | AE79: 203.9 | AF79: 1 | AG79: LIGT3 | AH79: - | AI79: - | AJ79: 36299 | AK79: ativo
A80: CESP6 | B80: Cesp | C80: PNB | D80: BR | E80: Ação | F80: Energia Elétrica | G80: 7715.17 | H80: 24.14 | I80: 327.503 | J80: 7102.07 | K80: 1476.62 | L80: 1634.11 | M80: -168.53 | N80: -3.73 | O80: 337.26 | P80: 235.18 | Q80: 294.43 | R80: -168.53 | S80: 294.43 | T80: 294.43 | U80: 4.1385 | V80: -2.7492 | W80: 197.3 | X80: 613.7 | Y80: 613.7 | Z80: -195.25 | AA80: -25.57 | AB80: 0.2 | AC80: 83.3 | AD80: 109.2 | AE80: 327.5 | AF80: 0.333 | AG80: CESP6 | AH80: - | AI80: - | AJ80: 25336 | AK80: ativo
A81: CPRE3 | B81: CPFL Renovav | C81: ON | D81: BR | E81: Ação | F81: Energia Elétrica | G81: 8325.55 | H81: 15.97 | I81: 521.325 | J81: 4147.79 | K81: 1959.08 | L81: 1936.32 | M81: 11.48 | N81: -74.43 | O81: -113.66 | P81: 5.1 | Q81: 109.26 | R81: 11.48 | S81: 109.26 | T81: 109.26 | U81: 2.8704 | V81: 108.3755 | W81: 1221.6 | X81: 1208.8 | Y81: 1208.8 | Z81: 4607.228 | AA81: -3.62 | AB81: 1.7 | AC81: 19.7 | AD81: 503.8 | AE81: 521.3 | AF81: 0.966 | AG81: CPRE3 | AH81: - | AI81: - | AJ81: 53 | AK81: ativo
A82: RNEW11 | B82: Renova | C82: UNT N2 | D82: BR | E82: Ação | F82: Energia Elétrica | G82: 470.3 | H82: 33.63 | I82: 41.72 | J82: -76.49 | K82: 734.1 | L82: 709.8 | M82: -1139.54 | N82: -120.54 | O82: -245.69 | P82: -486.96 | Q82: -856.3 | R82: -1139.54 | S82: -856.3 | T82: -856.3 | U82: -109.8087 | V82: -501.4433 | W82: -776.1 | X82: -522.7 | Y82: -522.7 | Z82: 383.549 | AA82: 0 | AB82: 90.1 | AC82: -44.5 | AD82: 33 | AE82: 41.7 | AF82: 0.791 | AG82: RNEW11 | AH82: - | AI82: - | AJ82: 1180 | AK82: ativo
A83: WIZS3 | B83: Wiz S.A | C83: ON | D83: BR | E83: Ação | F83: Finanças e Seguros | G83: 1359.21 | H83: 8.5 | I83: 159.907 | J83: 168.97 | K83: 529.73 | L83: 585.01 | M83: 159.41 | N83: 30.57 | O83: 77.99 | P83: 129.15 | Q83: 177.73 | R83: 159.41 | S83: 177.73 | T83: 177.73 | U83: 110.3541 | V83: -29.9789 | W83: 268 | X83: - | Y83: - | Z83: -53.023 | AA83: - | AB83: -5.5 | AC83: -23.9 | AD83: 159.9 | AE83: 159.9 | AF83: 1 | AG83: WIZS3 | AH83: - | AI83: - | AJ83: 5686 | AK83: ativo
A84: =IF(AG84="","",AG84) -> TRPN3 | B84: Tarpon Inv | C84: ON | D84: BR | E84: Ação | F84: Finanças e Seguros | G84: 49.21 | H84: 1.09 | I84: 45.143 | J84: 58.62 | K84: 47.09 | L84: 126.51 | M84: 9.43 | N84: -3.55 | O84: 0.31 | P84: 1.75 | Q84: 56.18 | R84: 9.43 | S84: 56.18 | T84: 56.18 | U84: 106.446 | V84: -172.323 | W84: 14.4 | X84: 81.9 | Y84: 81.9 | Z84: -101.014 | AA84: -34.33 | AB84: -2.7 | AC84: -24.2 | AD84: 45.3 | AE84: 45.3 | AF84: 1 | AG84: TRPN3 | AH84: - | AI84: - | AJ84: 144 | AK84: ativo
A85: BBSE3 | B85: BBSeguridade | C85: ON | D85: BR | E85: Ação | F85: Finanças e Seguros | G85: 52949.75 | H85: 26.52 | I85: 1996.597 | J85: 6830.39 | K85: - | L85: - | M85: 4049.25 | N85: 886.5 | O85: 1948.89 | P85: 2822.67 | Q85: 3539.55 | R85: 4049.25 | S85: 3539.55 | T85: 3539.55 | U85: 39.7771 | V85: - | W85: - | X85: - | Y85: - | Z85: - | AA85: -3485.56 | AB85: -2.9 | AC85: 6.8 | AD85: 2000 | AE85: 2000 | AF85: 1 | AG85: BBSE3 | AH85: - | AI85: - | AJ85: 114174 | AK85: ativo
A86: IRBR3 | B86: Irbbrasil Re | C86: ON | D86: BR | E86: Ação | F86: Finanças e Seguros | G86: 28325.41 | H86: 91.25 | I86: 310.415 | J86: 4000.78 | K86: - | L86: - | M86: 925.05 | N86: 254.01 | O86: 541.34 | P86: 845.86 | Q86: 1218.8 | R86: 925.05 | S86: 1218.8 | T86: 1218.8 | U86: 34.0333 | V86: - | W86: - | X86: - | Y86: - | Z86: - | AA86: -684.26 | AB86: 5.2 | AC86: 189 | AD86: 312 | AE86: 312 | AF86: 1 | AG86: IRBR3 | AH86: - | AI86: - | AJ86: 145030 | AK86: ativo
A87: SANB11 | B87: Santander BR | C87: UNT | D87: BR | E87: Ação | F87: Finanças e Seguros | G87: 163053.46 | H87: 43.97 | I87: 7471.897 | J87: 65233.74 | K87: 76310.78 | L87: 77380.98 | M87: 7996.58 | N87: 2819.73 | O87: 5791.95 | P87: 8830.63 | Q87: 12166.15 | R87: 7996.58 | S87: 12166.15 | T87: 12166.15 | U87: 19.8157 | V87: - | W87: - | X87: - | Y87: - | Z87: - | AA87: -6042.34 | AB87: -2.2 | AC87: 49.4 | AD87: 3818.7 | AE87: 7498.5 | AF87: 0.509 | AG87: SANB11 | AH87: 76310782 | AI87: 77380980 | AJ87: 74742 | AK87: ativo
A88: ITUB4 | B88: ItauUnibanco | C88: PN | D88: BR | E88: Ação | F88: Finanças e Seguros | G88: 311968.57 | H88: 34.43 | I88: 9720.521 | J88: 131756.57 | K88: 147494.99 | L88: 141582.11 | M88: 23964.55 | N88: 6280.32 | O88: 12524.41 | P88: 18771.57 | Q88: 24977.42 | R88: 23964.55 | S88: 24977.42 | T88: 24977.42 | U88: 18.209 | V88: - | W88: - | X88: - | Y88: - | Z88: - | AA88: -20092.75 | AB88: -2.2 | AC88: 36.1 | AD88: 4958.3 | AE88: 9804.1 | AF88: 0.506 | AG88: ITUB4 | AH88: 147494988 | AI88: 141582105 | AJ88: 738032 | AK88: ativo
A89: BBDC4 | B89: Bradesco | C89: PN | D89: BR | E89: Ação | F89: Finanças e Seguros | G89: 270348.51 | H89: 42.94 | I89: 6693.581 | J89: 121120.87 | K89: 148262.13 | L89: 125611.76 | M89: 14657.76 | N89: 4466.72 | O89: 8994.51 | P89: 14004.19 | Q89: 19084.95 | R89: 14657.76 | S89: 19084.95 | T89: 19084.95 | U89: 17.3389 | V89: - | W89: - | X89: - | Y89: - | Z89: - | AA89: -6483.2 | AB89: -0.7 | AC89: 44.5 | AD89: 3359.9 | AE89: 6719.9 | AF89: 0.5 | AG89: BBDC4 | AH89: 148262127 | AI89: 125611761 | AJ89: 695368 | AK89: ativo
A90: PSSA3 | B90: Porto Seguro | C90: ON | D90: BR | E90: Ação | F90: Finanças e Seguros | G90: 17402.86 | H90: 53.83 | I90: 323.293 | J90: 7643.24 | K90: 16894.1 | L90: 17821.96 | M90: 1100.87 | N90: 276.12 | O90: 609.21 | P90: 925.57 | Q90: 1310.62 | R90: 1100.87 | S90: 1310.62 | T90: 1310.62 | U90: 16.9694 | V90: -141.4477 | W90: 628.3 | X90: 1493.1 | Y90: 1493.1 | Z90: -10811.871 | AA90: -1240.35 | AB90: -3.9 | AC90: 61.5 | AD90: 323.3 | AE90: 323.3 | AF90: 1 | AG90: PSSA3 | AH90: - | AI90: - | AJ90: 38230 | AK90: ativo
A91: SULA11 | B91: Sul America | C91: UNT N2 | D91: BR | E91: Ação | F91: Finanças e Seguros | G91: 12069.68 | H91: 29.8 | I91: 1160.731 | J91: 6286.11 | K91: 17762.2 | L91: 19831.21 | M91: 773.25 | N91: 141.42 | O91: 276.81 | P91: 511.38 | Q91: 904.96 | R91: 773.25 | S91: 904.96 | T91: 904.96 | U91: 16.046 | V91: -224.7357 | W91: 491.4 | X91: 814.5 | Y91: 814.5 | Z91: -14130.288 | AA91: -184.92 | AB91: -1.3 | AC91: 67.7 | AD91: 592.7 | AE91: 1182.5 | AF91: 0.501 | AG91: SULA11 | AH91: - | AI91: - | AJ91: 32984 | AK91: ativo
A92: BRSR6 | B92: Banrisul | C92: PNB | D92: BR | E92: Ação | F92: Finanças e Seguros | G92: 10020.69 | H92: 24.19 | I92: 408.974 | J92: 7278.9 | K92: 9978.49 | L92: 9551.78 | M92: 1053.04 | N92: 243.96 | O92: 505.92 | P92: 796.14 | Q92: 1048.63 | R92: 1053.04 | S92: 1048.63 | T92: 1048.63 | U92: 14.9166 | V92: - | W92: - | X92: - | Y92: - | Z92: - | AA92: -381.3 | AB92: -2 | AC92: 85.5 | AD92: 205.1 | AE92: 409 | AF92: 0.501 | AG92: BRSR6 | AH92: 9978492 | AI92: 9551777 | AJ92: 25933 | AK92: ativo
A93: BBAS3 | B93: Brasil | C93: ON | D93: BR | E93: Ação | F93: Finanças e Seguros | G93: 135711.06 | H93: 48.72 | I93: 2785.531 | J93: 102252.88 | K93: 142438.86 | L93: 134487.86 | M93: 11010.78 | N93: 2748.81 | O93: 5883.82 | P93: 9059.23 | Q93: 12862.03 | R93: 11010.78 | S93: 12862.03 | T93: 12862.03 | U93: 14.4422 | V93: - | W93: - | X93: - | Y93: - | Z93: - | AA93: -4206.52 | AB93: -3.4 | AC93: 62 | AD93: 2865.4 | AE93: 2865.4 | AF93: 1 | AG93: BBAS3 | AH93: 142438857 | AI93: 134487863 | AJ93: 610758 | AK93: ativo
A94: BEES3 | B94: Banestes | C94: ON | D94: BR | E94: Ação | F94: Finanças e Seguros | G94: 1565.28 | H94: 4.92 | I94: 315.912 | J94: 1492.01 | K94: 2701.41 | L94: 2193.72 | M94: 175.22 | N94: 23.36 | O94: 81.2 | P94: 136.31 | Q94: 181.06 | R94: 175.22 | S94: 181.06 | T94: 181.06 | U94: 12.9934 | V94: - | W94: - | X94: - | Y94: - | Z94: - | AA94: -77.64 | AB94: 1 | AC94: 47.6 | AD94: 231.4 | AE94: 315.9 | AF94: 0.732 | AG94: BEES3 | AH94: 2701405 | AI94: 2193723 | AJ94: 73 | AK94: ativo
A95: BPAC11 | B95: Btgp Banco | C95: UNT | D95: BR | E95: Ação | F95: Finanças e Seguros | G95: 42846.6 | H95: 36.2 | I95: 2618.16 | J95: 18844.93 | K95: 9523.75 | L95: 9893.38 | M95: 2383.86 | N95: 600.36 | O95: 1222.83 | P95: 1808.33 | Q95: 2360.78 | R95: 2383.86 | S95: 2360.78 | T95: 2360.78 | U95: 12.6914 | V95: - | W95: - | X95: - | Y95: - | Z95: - | AA95: -1201.48 | AB95: 6 | AC95: 109.8 | AD95: 1731.3 | AE95: 2637.2 | AF95: 0.656 | AG95: BPAC11 | AH95: 9523750 | AI95: 9893381 | AJ95: 50890 | AK95: ativo
A96: B3SA3 | B96: B3 | C96: ON | D96: BR | E96: Ação | F96: Finanças e Seguros | G96: 65660.21 | H96: 32.12 | I96: 2044.216 | J96: 25032.97 | K96: 3673.6 | L96: 4831.92 | M96: 1296.24 | N96: 314.72 | O96: 1039.16 | P96: 1504.52 | Q96: 2087.44 | R96: 1296.24 | S96: 2087.44 | T96: 2087.44 | U96: 8.5905 | V96: -9.3153 | W96: 2199.8 | X96: 3345.2 | Y96: 3345.2 | Z96: -2332.954 | AA96: -1528.86 | AB96: -1.5 | AC96: 46.2 | AD96: 2059.1 | AE96: 2059.1 | AF96: 1 | AG96: B3SA3 | AH96: - | AI96: - | AJ96: 321635 | AK96: ativo
A97: BMIN4 | B97: Merc Invest | C97: PN | D97: BR | E97: Ação | F97: Finanças e Seguros | G97: 93.39 | H97: 18.46 | I97: 4.825 | J97: 119.04 | K97: 19.09 | L97: 14.63 | M97: -12.93 | N97: 1.12 | O97: 2.49 | P97: 3.24 | Q97: 4.13 | R97: -12.93 | S97: 4.13 | T97: 4.13 | U97: 7.3479 | V97: - | W97: - | X97: - | Y97: - | Z97: - | AA97: -0.7 | AB97: 18.7 | AC97: 15.9 | AD97: 4.1 | AE97: 4.8 | AF97: 0.853 | AG97: BMIN4 | AH97: 19085 | AI97: 14632 | AJ97: 55 | AK97: ativo
A98: BMEB4 | B98: Merc Brasil | C98: PN | D98: BR | E98: Ação | F98: Finanças e Seguros | G98: 392.77 | H98: 7.4 | I98: 52.416 | J98: 800.1 | K98: 2823.44 | L98: 2353.67 | M98: 26.24 | N98: 19.68 | O98: 27.52 | P98: 39.39 | Q98: 53.4 | R98: 26.24 | S98: 53.4 | T98: 53.4 | U98: 7.1506 | V98: - | W98: - | X98: - | Y98: - | Z98: - | AA98: - | AB98: -0.1 | AC98: 80 | AD98: 32.6 | AE98: 52.4 | AF98: 0.622 | AG98: BMEB4 | AH98: 2823438 | AI98: 2353669 | AJ98: 87 | AK98: ativo
A99: BPAN4 | B99: Banco Pan | C99: PN | D99: BR | E99: Ação | F99: Finanças e Seguros | G99: 3722.29 | H99: 3.26 | I99: 1141.806 | J99: 4095.92 | K99: 7780.35 | L99: 7099.37 | M99: 212.61 | N99: 56.55 | O99: 98.76 | P99: 147.89 | Q99: 221.52 | R99: 212.61 | S99: 221.52 | T99: 221.52 | U99: 6.2296 | V99: - | W99: - | X99: - | Y99: - | Z99: - | AA99: - | AB99: 8.7 | AC99: 80.1 | AD99: 657.6 | AE99: 1141.8 | AF99: 0.576 | AG99: BPAN4 | AH99: 7780348 | AI99: 7099373 | AJ99: 2498 | AK99: ativo
A100: BAZA3 | B100: Amazonia | C100: ON | D100: BR | E100: Ação | F100: Finanças e Seguros | G100: 809.33 | H100: 27.3 | I100: 29.646 | J100: 1938.61 | K100: 1421.05 | L100: 1303.19 | M100: 64.51 | N100: -56.99 | O100: -26.21 | P100: -13.5 | Q100: 109.08 | R100: 64.51 | S100: 109.08 | T100: 109.08 | U100: 5.7857 | V100: - | W100: - | X100: - | Y100: - | Z100: - | AA100: -19.05 | AB100: 4.2 | AC100: 12 | AD100: 29.6 | AE100: 29.6 | AF100: 1 | AG100: BAZA3 | AH100: 1421049 | AI100: 1303185 | AJ100: 87 | AK100: ativo
A101: PINE4 | B101: Pine | C101: PN | D101: BR | E101: Ação | F101: Finanças e Seguros | G101: 283.53 | H101: 2.34 | I101: 121.168 | J101: 868.74 | K101: 731.4 | L101: 605.7 | M101: -262.83 | N101: 5.2 | O101: 10.46 | P101: 15.3 | Q101: -59.71 | R101: -262.83 | S101: -59.71 | T101: -59.71 | U101: -6.5723 | V101: - | W101: - | X101: - | Y101: - | Z101: - | AA101: 0 | AB101: -14.9 | AC101: -33.1 | AD101: 65.2 | AE101: 121.2 | AF101: 0.538 | AG101: PINE4 | AH101: 731397 | AI101: 605696 | AJ101: 174 | AK101: ativo
A102: IDVL4 | B102: Indusval | C102: PN | D102: BR | E102: Ação | F102: Finanças e Seguros | G102: 1081.84 | H102: 6.85 | I102: 108.198 | J102: 145.52 | K102: 319.49 | L102: 186.24 | M102: -223.51 | N102: -69.13 | O102: -120.94 | P102: -179.76 | Q102: -125.06 | R102: -223.51 | S102: -125.06 | T102: -125.06 | U102: -46.1729 | V102: - | W102: - | X102: - | Y102: - | Z102: - | AA102: 0 | AB102: 143 | AC102: 1.6 | AD102: 115 | AE102: 108.3 | AF102: 1.063 | AG102: IDVL4 | AH102: 319487 | AI102: 186236 | AJ102: 446 | AK102: ativo
A103: APER3 | B103: Alper S.A. | C103: ON | D103: BR | E103: Ação | F103: Finanças e Seguros | G103: 183.47 | H103: 24.9 | I103: 7.368 | J103: 93.14 | K103: 93.73 | L103: 87.58 | M103: -82.59 | N103: -4.06 | O103: -21.69 | P103: -22.57 | Q103: -163.72 | R103: -82.59 | S103: -163.72 | T103: -163.72 | U103: -63.8263 | V103: -37.5205 | W103: -69.5 | X103: -158.3 | Y103: -158.3 | Z103: -34.926 | AA103: 0 | AB103: 1.6 | AC103: 106.2 | AD103: 7.7 | AE103: 7.7 | AF103: 1 | AG103: APER3 | AH103: - | AI103: - | AJ103: 456 | AK103: ativo
A104: PPLA11 | B104: Ppla | C104: UNT | D104: BR | E104: Ação | F104: Finanças e Seguros | G104: 71.39 | H104: 2.6 | I104: 82.369 | J104: 10.43 | K104: - | L104: - | M104: -532.06 | N104: -104.1 | O104: -135.94 | P104: -156.92 | Q104: - | R104: -532.06 | S104: - | T104: -257.45 | U104: -103.0736 | V104: - | W104: - | X104: - | Y104: - | Z104: - | AA104: 0 | AB104: 20.9 | AC104: 94 | AD104: 28.1 | AE104: 84.4 | AF104: 0.333 | AG104: PPLA11 | AH104: 0 | AI104: - | AJ104: 125 | AK104: ativo
A105: ABCB4 | B105: Abc Brasil | C105: PN | D105: BR | E105: Ação | F105: Finanças e Seguros | G105: 3974.18 | H105: 19.05 | I105: 208.618 | J105: 3665.51 | K105: 2520.92 | L105: 3254.38 | M105: 418.73 | N105: 108.55 | O105: 220.2 | P105: 336.31 | Q105: 418.09 | R105: 418.73 | S105: 418.09 | T105: 418.09 | U105: - | V105: - | W105: - | X105: - | Y105: - | Z105: - | AA105: -220.45 | AB105: 4.2 | AC105: 25.2 | AD105: 106.6 | AE105: 211.1 | AF105: 0.505 | AG105: ABCB4 | AH105: 2520915 | AI105: 3254375 | AJ105: 8080 | AK105: ativo
A106: BIDI4 | B106: Banco Inter | C106: PN | D106: BR | E106: Ação | F106: Finanças e Seguros | G106: 5359.3 | H106: 52.91 | I106: 101.291 | J106: 948.78 | K106: 545.81 | L106: 646.63 | M106: 48.16 | N106: 11.17 | O106: 28.42 | P106: 46.75 | Q106: 69.84 | R106: 48.16 | S106: 69.84 | T106: 69.84 | U106: - | V106: - | W106: - | X106: - | Y106: - | Z106: - | AA106: -21.18 | AB106: 38.9 | AC106: - | AD106: 50.8 | AE106: 101.4 | AF106: 0.501 | AG106: BIDI4 | AH106: 545812 | AI106: 646633 | AJ106: 30624 | AK106: ativo
A107: PTBL3 | B107: Portobello | C107: ON | D107: BR | E107: Ação | F107: Minerais não Met | G107: 778.18 | H107: 4.91 | I107: 158.489 | J107: 362.11 | K107: 1023.94 | L107: 1054.19 | M107: 64.14 | N107: 6.99 | O107: 103.4 | P107: 105.97 | Q107: 134.28 | R107: 64.14 | S107: 134.28 | T107: 134.28 | U107: 47.1171 | V107: 141.6693 | W107: 189 | X107: 288 | Y107: 288 | Z107: 513.013 | AA107: -29.7 | AB107: -5.6 | AC107: -6.8 | AD107: 158.5 | AE107: 158.5 | AF107: 1 | AG107: PTBL3 | AH107: - | AI107: - | AJ107: 2046 | AK107: ativo
A108: ETER3 | B108: Eternit | C108: ON | D108: BR | E108: Ação | F108: Minerais não Met | G108: 61.73 | H108: 2.07 | I108: 29.823 | J108: 12.23 | K108: 665.74 | L108: 536.91 | M108: -276.39 | N108: -11.14 | O108: -45.91 | P108: -89.02 | Q108: -149.37 | R108: -276.39 | S108: -149.37 | T108: -149.37 | U108: -87.6001 | V108: 993.8286 | W108: -192.9 | X108: -92.3 | Y108: -92.3 | Z108: 121.744 | AA108: 0 | AB108: -24.5 | AC108: -62.5 | AD108: 29.8 | AE108: 29.8 | AF108: 1 | AG108: ETER3 | AH108: - | AI108: - | AJ108: 304 | AK108: ativo
A109: VALE3 | B109: Vale | C109: ON | D109: BR | E109: Ação | F109: Mineração | G109: 261080.37 | H109: 50.93 | I109: 5126.259 | J109: 170402.63 | K109: 108532.02 | L109: 134483.13 | M109: 17627.2 | N109: 5112.11 | O109: 5418.21 | P109: 11171.25 | Q109: 25656.53 | R109: 17627.2 | S109: 25656.53 | T109: 25656.53 | U109: 17.4023 | V109: 21.6 | W109: 46376 | X109: 55414.7 | Y109: 55414.7 | Z109: 37515.407 | AA109: -12415.27 | AB109: 8.1 | AC109: 31.6 | AD109: 5284.5 | AE109: 5284.5 | AF109: 1 | AG109: VALE3 | AH109: - | AI109: - | AJ109: 1104579 | AK109: ativo
A110: MMXM3 | B110: MMX Miner | C110: ON | D110: BR | E110: Ação | F110: Mineração | G110: 13.43 | H110: 2.07 | I110: 6.488 | J110: -611.64 | K110: 0.45 | L110: 2.7 | M110: -28.1 | N110: -7.96 | O110: -45.32 | P110: -60.6 | Q110: -110.11 | R110: -28.1 | S110: -110.11 | T110: -110.11 | U110: - | V110: -28.1265 | W110: -14.5 | X110: -45.2 | Y110: -45.2 | Z110: 172.362 | AA110: 0 | AB110: -1.9 | AC110: -30.1 | AD110: 6.5 | AE110: 6.5 | AF110: 1 | AG110: MMXM3 | AH110: - | AI110: - | AJ110: 85 | AK110: ativo
A111: WEGE3 | B111: Weg | C111: ON | D111: BR | E111: Ação | F111: Máquinas Indust | G111: 37748.96 | H111: 18 | I111: 2097.165 | J111: 7714.27 | K111: 9523.83 | L111: 11970.09 | M111: 1142.15 | N111: 285 | O111: 621.61 | P111: 1003.04 | Q111: 1338.32 | R111: 1142.15 | S111: 1338.32 | T111: 1338.32 | U111: 19.6418 | V111: 3.0844 | W111: 1466.3 | X111: 1824.1 | Y111: 1824.1 | Z111: 242.226 | AA111: -604.15 | AB111: -2 | AC111: -0.5 | AD111: 2098.7 | AE111: 2098.7 | AF111: 1 | AG111: WEGE3 | AH111: - | AI111: - | AJ111: 45967 | AK111: ativo
A112: ROMI3 | B112: Inds Romi | C112: ON | D112: BR | E112: Ação | F112: Máquinas Indust | G112: 688.92 | H112: 10.96 | I112: 62.858 | J112: 695.98 | K112: 672.87 | L112: 743.46 | M112: 37.66 | N112: 1.8 | O112: 47.2 | P112: 63.09 | Q112: 84 | R112: 37.66 | S112: 84 | T112: 84 | U112: 13.0925 | V112: 30.4861 | W112: 81.5 | X112: 79.3 | Y112: 79.3 | Z112: 212.672 | AA112: -27.3 | AB112: 0.6 | AC112: 54.9 | AD112: 62.9 | AE112: 62.9 | AF112: 1 | AG112: ROMI3 | AH112: - | AI112: - | AJ112: 1607 | AK112: ativo
A113: FRIO3 | B113: Metalfrio | C113: ON | D113: BR | E113: Ação | F113: Máquinas Indust | G113: 195.56 | H113: 47.62 | I113: 4.107 | J113: 37.76 | K113: 985.75 | L113: 1196.9 | M113: -23.92 | N113: -13.91 | O113: -33.71 | P113: -26.42 | Q113: -18.47 | R113: -23.92 | S113: -18.47 | T113: -18.47 | U113: -5.5087 | V113: 382.2029 | W113: 101.5 | X113: 117.8 | Y113: 117.8 | Z113: 334.225 | AA113: 0 | AB113: -19.3 | AC113: 13.4 | AD113: 4.1 | AE113: 4.1 | AF113: 1 | AG113: FRIO3 | AH113: - | AI113: - | AJ113: 5 | AK113: ativo
A114: BDLL4 | B114: Bardella | C114: PN | D114: BR | E114: Ação | F114: Máquinas Indust | G114: 22.24 | H114: 13.9 | I114: 1.6 | J114: 126.62 | K114: 136.64 | L114: - | M114: -97.76 | N114: -31.62 | O114: -61.84 | P114: -85.35 | Q114: - | R114: -97.76 | S114: - | T114: -115.62 | U114: -47.6073 | V114: 164.609 | W114: -47.7 | X114: - | Y114: -77.2 | Z114: 208.423 | AA114: 0 | AB114: -2.7 | AC114: -53.3 | AD114: 0.6 | AE114: 1.6 | AF114: 0.379 | AG114: BDLL4 | AH114: - | AI114: - | AJ114: 11 | AK114: ativo
A115: IDNT3 | B115: Ideiasnet | C115: ON | D115: BR | E115: Ação | F115: Outros | G115: 48.71 | H115: 2.98 | I115: 16.344 | J115: 13.3 | K115: 0.49 | L115: 0 | M115: 18.84 | N115: -1.7 | O115: 2.99 | P115: 2.27 | Q115: 11.3 | R115: 18.84 | S115: 11.3 | T115: 11.3 | U115: 470.5246 | V115: -27.0327 | W115: 23.2 | X115: 9.6 | Y115: 9.6 | Z115: -3.594 | AA115: 0 | AB115: -6.9 | AC115: -71.3 | AD115: 16.3 | AE115: 16.3 | AF115: 1 | AG115: IDNT3 | AH115: - | AI115: - | AJ115: 147 | AK115: ativo
A116: HAPV3 | B116: Hapvida | C116: ON | D116: BR | E116: Ação | F116: Outros | G116: 20669.45 | H116: 30.76 | I116: 671.959 | J116: 3602.54 | K116: 3847.98 | L116: 4575.9 | M116: 648.77 | N116: 213.65 | O116: 363.35 | P116: 553.27 | Q116: 787.47 | R116: 648.77 | S116: 787.47 | T116: 787.47 | U116: 167.0189 | V116: -24.6224 | W116: 824.4 | X116: 913 | Y116: 913 | Z116: -887.847 | AA116: -822.27 | AB116: -5.6 | AC116: - | AD116: 672 | AE116: 672 | AF116: 1 | AG116: HAPV3 | AH116: - | AI116: - | AJ116: 69518 | AK116: ativo
A117: MPLU3 | B117: Multiplus | C117: ON | D117: BR | E117: Ação | F117: Outros | G117: 4348.64 | H117: 26.84 | I117: 162.021 | J117: 250.28 | K117: 2309.77 | L117: 632.26 | M117: 517.2 | N117: 98.19 | O117: 171.96 | P117: 236.86 | Q117: 356.4 | R117: 517.2 | S117: 356.4 | T117: 356.4 | U117: 148.6501 | V117: -441.8121 | W117: 610.4 | X117: 444.5 | Y117: 444.5 | Z117: -1105.763 | AA117: -340.77 | AB117: 0.6 | AC117: -17.6 | AD117: 162.2 | AE117: 162.2 | AF117: 1 | AG117: MPLU3 | AH117: - | AI117: - | AJ117: 10559 | AK117: ativo
A118: SMLS3 | B118: Smiles | C118: ON | D118: BR | E118: Ação | F118: Outros | G118: 5915.18 | H118: 47.7 | I118: 124.008 | J118: 1014.23 | K118: 1804.13 | L118: 987.44 | M118: 760.62 | N118: 155.01 | O118: 269.17 | P118: 481.28 | Q118: 645.84 | R118: 760.62 | S118: 645.84 | T118: 645.84 | U118: 74.0883 | V118: -66.5835 | W118: 663.4 | X118: 759.3 | Y118: 759.3 | Z118: -675.31 | AA118: -462.7 | AB118: -0.6 | AC118: -33.6 | AD118: 124 | AE118: 124 | AF118: 1 | AG118: SMLS3 | AH118: - | AI118: - | AJ118: 42769 | AK118: ativo
A119: LCAM3 | B119: Locamerica | C119: ON | D119: BR | E119: Ação | F119: Outros | G119: 5721.68 | H119: 38.99 | I119: 146.747 | J119: 2565.55 | K119: 1094.61 | L119: 2917.2 | M119: 60.6 | N119: 18.25 | O119: 66.22 | P119: 126.93 | Q119: 189.2 | R119: 60.6 | S119: 189.2 | T119: 189.2 | U119: 39.1495 | V119: 75.2141 | W119: 361.3 | X119: 840.7 | Y119: 840.7 | Z119: 1929.653 | AA119: -75.8 | AB119: -0.3 | AC119: 111.8 | AD119: 116.9 | AE119: 147.9 | AF119: 0.79 | AG119: LCAM3 | AH119: - | AI119: - | AJ119: 21033 | AK119: ativo
A120: ODPV3 | B120: Odontoprev | C120: ON | D120: BR | E120: Ação | F120: Outros | G120: 8694.32 | H120: 16.4 | I120: 530.142 | J120: 1027.46 | K120: 1437.28 | L120: 1591.84 | M120: 502.92 | N120: 81.97 | O120: 142.31 | P120: 207.35 | Q120: 284.79 | R120: 502.92 | S120: 284.79 | T120: 284.79 | U120: 30.7872 | V120: -46.6746 | W120: 584.1 | X120: 397.5 | Y120: 397.5 | Z120: -481.536 | AA120: -86.72 | AB120: -1 | AC120: 5.4 | AD120: 531.3 | AE120: 531.3 | AF120: 1 | AG120: ODPV3 | AH120: - | AI120: - | AJ120: 19891 | AK120: ativo
A121: RENT3 | B121: Localiza | C121: ON | D121: BR | E121: Ação | F121: Outros | G121: 23710.14 | H121: 33.06 | I121: 717.185 | J121: 3094.5 | K121: 6058.28 | L121: 7895.8 | M121: 505.68 | N121: 176.01 | O121: 317.91 | P121: 477.76 | Q121: 659.21 | R121: 505.68 | S121: 659.21 | T121: 659.21 | U121: 25.3471 | V121: 168.1431 | W121: 1240.2 | X121: 1590.1 | Y121: 1590.1 | Z121: 5203.192 | AA121: -172.31 | AB121: -4 | AC121: 52.3 | AD121: 667.1 | AE121: 722.3 | AF121: 0.924 | AG121: RENT3 | AH121: - | AI121: - | AJ121: 146895 | AK121: ativo
A122: GNDI3 | B122: Intermedica | C122: ON | D122: BR | E122: Ação | F122: Outros | G122: 17334 | H122: 32.8 | I122: 528.476 | J122: 2340.07 | K122: 5304.92 | L122: 6135.22 | M122: 238.17 | N122: 60.26 | O122: 111.54 | P122: 205.69 | Q122: 334.07 | R122: 238.17 | S122: 334.07 | T122: 334.07 | U122: 24.725 | V122: -18.5288 | W122: 616.1 | X122: 744.8 | Y122: 744.8 | Z122: -433.585 | AA122: 0 | AB122: -0.8 | AC122: - | AD122: 528.8 | AE122: 528.8 | AF122: 1 | AG122: GNDI3 | AH122: - | AI122: - | AJ122: 99585 | AK122: ativo
A123: ESTC3 | B123: Estacio Part | C123: ON | D123: BR | E123: Ação | F123: Outros | G123: 7983.01 | H123: 26.6 | I123: 300.113 | J123: 2591.41 | K123: 3378.98 | L123: 3619.38 | M123: 424.59 | N123: 197.36 | O123: 434.25 | P123: 628.57 | Q123: 644.87 | R123: 424.59 | S123: 644.87 | T123: 644.87 | U123: 23.2198 | V123: -0.0321 | W123: 737.8 | X123: 967.4 | Y123: 967.4 | Z123: -0.831 | AA123: -500.84 | AB123: -3.4 | AC123: -13.2 | AD123: 309.1 | AE123: 309.1 | AF123: 1 | AG123: ESTC3 | AH123: - | AI123: - | AJ123: 89966 | AK123: ativo
A124: PARD3 | B124: Ihpardini | C124: ON | D124: BR | E124: Ação | F124: Outros | G124: 2642.43 | H124: 20.3 | I124: 130.169 | J124: 605.62 | K124: 1117.04 | L124: 1204.71 | M124: 129.54 | N124: 29.53 | O124: 62.64 | P124: 96.72 | Q124: 123.12 | R124: 129.54 | S124: 123.12 | T124: 123.12 | U124: 22.9453 | V124: 16.2319 | W124: 234.7 | X124: 226.1 | Y124: 226.1 | Z124: 98.498 | AA124: -42.48 | AB124: 6.4 | AC124: -37.9 | AD124: 131 | AE124: 131 | AF124: 1 | AG124: PARD3 | AH124: - | AI124: - | AJ124: 4888 | AK124: ativo
A125: FLRY3 | B125: Fleury | C125: ON | D125: BR | E125: Ação | F125: Outros | G125: 6448.71 | H125: 20.4 | I125: 316.113 | J125: 1749.96 | K125: 2383.01 | L125: 2664.46 | M125: 320.62 | N125: 96.43 | O125: 183.06 | P125: 273.4 | Q125: 331.59 | R125: 320.62 | S125: 331.59 | T125: 331.59 | U125: 19.4304 | V125: 25.7317 | W125: 619.6 | X125: 692.5 | Y125: 692.5 | Z125: 450.294 | AA125: -303.21 | AB125: 5.6 | AC125: -25.7 | AD125: 316.1 | AE125: 316.1 | AF125: 1 | AG125: FLRY3 | AH125: - | AI125: - | AJ125: 34974 | AK125: ativo
A126: SAPR4 | B126: Sanepar | C126: PN | D126: BR | E126: Ação | F126: Outros | G126: 7967.41 | H126: 13.9 | I126: 503.735 | J126: 5717.19 | K126: 3869.4 | L126: 4162.21 | M126: 686.17 | N126: 186.91 | O126: 440.48 | P126: 572.47 | Q126: 892.49 | R126: 686.17 | S126: 892.49 | T126: 892.49 | U126: 17.3209 | V126: 42.7604 | W126: 1383.5 | X126: 1642 | Y126: 1642 | Z126: 2444.694 | AA126: -298.4 | AB126: 1.6 | AC126: 31.2 | AD126: 167.9 | AE126: 503.7 | AF126: 0.333 | AG126: SAPR4 | AH126: - | AI126: - | AJ126: 16086 | AK126: ativo
A127: SAPR11 | B127: Sanepar | C127: UNT N2 | D127: BR | E127: Ação | F127: Outros | G127: 7967.41 | H127: 74.95 | I127: 503.735 | J127: 5717.19 | K127: 3869.4 | L127: 4162.21 | M127: 686.17 | N127: 186.91 | O127: 440.48 | P127: 572.47 | Q127: 892.49 | R127: 686.17 | S127: 892.49 | T127: 892.49 | U127: 17.3209 | V127: 42.7604 | W127: 1383.5 | X127: 1642 | Y127: 1642 | Z127: 2444.694 | AA127: -298.4 | AB127: -2.8 | AC127: 37 | AD127: 167.9 | AE127: 503.7 | AF127: 0.333 | AG127: SAPR11 | AH127: - | AI127: - | AJ127: 61490 | AK127: ativo
A128: ITSA4 | B128: Itausa | C128: PN | D128: BR | E128: Ação | F128: Outros | G128: 108504.93 | H128: 11.98 | I128: 8410.698 | J128: 55143 | K128: 4969 | L128: 5375 | M128: 8403 | N128: 2400 | O128: 4447 | P128: 6929 | Q128: 9436 | R128: 8403 | S128: 9436 | T128: 9436 | U128: 17.2708 | V128: 1.0675 | W128: 9182 | X128: 10752 | Y128: 10752 | Z128: 620 | AA128: -6602 | AB128: -3 | AC128: 40.8 | AD128: 2889.8 | AE128: 8410.7 | AF128: 0.344 | AG128: ITSA4 | AH128: - | AI128: - | AJ128: 292453 | AK128: ativo
A129: QUAL3 | B129: Qualicorp | C129: ON | D129: BR | E129: Ação | F129: Outros | G129: 4398.8 | H129: 15.68 | I129: 280.536 | J129: 2354.49 | K129: 2075.29 | L129: 1932.12 | M129: 370.71 | N129: 102.7 | O129: 191.28 | P129: 301 | Q129: 397.04 | R129: 370.71 | S129: 397.04 | T129: 397.04 | U129: 16.7748 | V129: 5.3595 | W129: 836.8 | X129: 979.6 | Y129: 979.6 | Z129: 126.189 | AA129: -354.87 | AB129: 1.2 | AC129: -47.6 | AD129: 283.2 | AE129: 283.2 | AF129: 1 | AG129: QUAL3 | AH129: - | AI129: - | AJ129: 35869 | AK129: ativo
A130: SBSP3 | B130: Sabesp | C130: ON | D130: BR | E130: Ação | F130: Outros | G130: 28707.41 | H130: 42 | I130: 683.51 | J130: 19551.69 | K130: 14608.23 | L130: 16085.09 | M130: 2519.31 | N130: 580.43 | O130: 762.32 | P130: 1327.48 | Q130: 2835.07 | R130: 2519.31 | S130: 2835.07 | T130: 2835.07 | U130: 16.1884 | V130: 51.7787 | W130: 5263.6 | X130: 6569.2 | Y130: 6569.2 | Z130: 10123.605 | AA130: -653.39 | AB130: 6.7 | AC130: 26 | AD130: 683.5 | AE130: 683.5 | AF130: 1 | AG130: SBSP3 | AH130: - | AI130: - | AJ130: 111663 | AK130: ativo
A131: CARD3 | B131: Csu Cardsyst | C131: ON | D131: BR | E131: Ação | F131: Outros | G131: 277.38 | H131: 6.75 | I131: 41.093 | J131: 240.84 | K131: 486.85 | L131: 419.77 | M131: 45.2 | N131: 8.1 | O131: 16.51 | P131: 23.53 | Q131: 32.8 | R131: 45.2 | S131: 32.8 | T131: 32.8 | U131: 14.6505 | V131: 10.7244 | W131: 100.3 | X131: 81.5 | Y131: 81.5 | Z131: 25.828 | AA131: -16.08 | AB131: -7 | AC131: -28.5 | AD131: 41.8 | AE131: 41.8 | AF131: 1 | AG131: CARD3 | AH131: - | AI131: - | AJ131: 742 | AK131: ativo
A132: =IF(AG132="","",AG132) -> HYPE3 | B132: Hypera | C132: ON | D132: BR | E132: Ação | F132: Outros | G132: 16370.01 | H132: 25.9 | I132: 632.047 | J132: 8267.67 | K132: 3638.46 | L132: 3724.31 | M132: 964.94 | N132: 299.76 | O132: 577.56 | P132: 819.83 | Q132: 1129.6 | R132: 964.94 | S132: 1129.6 | T132: 1129.6 | U132: 14.5986 | V132: -13.0939 | W132: 1236.9 | X132: 1318.7 | Y132: 1318.7 | Z132: -1082.56 | AA132: -633 | AB132: -3.7 | AC132: -23.8 | AD132: 632.2 | AE132: 632.2 | AF132: 1 | AG132: HYPE3 | AH132: - | AI132: - | AJ132: 79305 | AK132: ativo
A133: BRAP4 | B133: Bradespar | C133: PN | D133: BR | E133: Ação | F133: Outros | G133: 10520.75 | H133: 31.9 | I133: 348.034 | J133: 9959.84 | K133: 0 | L133: 0 | M133: 2328.38 | N133: -283.51 | O133: -902.45 | P133: -779.21 | Q133: 1190.5 | R133: 2328.38 | S133: 1190.5 | T133: 1190.5 | U133: 13.5191 | V133: -2.5096 | W133: 2609.8 | X133: 1234.3 | Y133: 1234.3 | Z133: -249.95 | AA133: -719.42 | AB133: 10.7 | AC133: 17.5 | AD133: 122.2 | AE133: 348 | AF133: 0.351 | AG133: BRAP4 | AH133: - | AI133: - | AJ133: 59831 | AK133: ativo
A134: SEER3 | B134: Ser Educa | C134: ON | D134: BR | E134: Ação | F134: Outros | G134: 2620.77 | H134: 20.36 | I134: 128.722 | J134: 1470.54 | K134: 1231.79 | L134: 1262.49 | M134: 197.48 | N134: 58.22 | O134: 131.24 | P134: 168.17 | Q134: 201.28 | R134: 197.48 | S134: 201.28 | T134: 201.28 | U134: 13.344 | V134: -41.7995 | W134: 321.1 | X134: 312 | Y134: 312 | Z134: -614.68 | AA134: -58.53 | AB134: 7.3 | AC134: -33.2 | AD134: 133 | AE134: 133 | AF134: 1 | AG134: SEER3 | AH134: - | AI134: - | AJ134: 10460 | AK134: ativo
A135: MOVI3 | B135: Movida | C135: ON | D135: BR | E135: Ação | F135: Outros | G135: 2846.69 | H135: 10.85 | I135: 262.368 | J135: 1658.84 | K135: 2467.98 | L135: 2538.6 | M135: 66.47 | N135: 26.85 | O135: 66.77 | P135: 108.04 | Q135: 159.75 | R135: 66.47 | S135: 159.75 | T135: 159.75 | U135: 12.4338 | V135: 87.6383 | W135: 326.8 | X135: 481.7 | Y135: 481.7 | Z135: 1453.781 | AA135: -23.64 | AB135: -6.5 | AC135: 61.8 | AD135: 263.4 | AE135: 263.4 | AF135: 1 | AG135: MOVI3 | AH135: - | AI135: - | AJ135: 10283 | AK135: ativo
A136: BRML3 | B136: BR Malls Par | C136: ON | D136: BR | E136: Ação | F136: Outros | G136: 10587.23 | H136: 12.57 | I136: 842.262 | J136: 10485.1 | K136: 1265.24 | L136: 1196.21 | M136: -796.28 | N136: 126.53 | O136: 194.12 | P136: 286.35 | Q136: 1014.09 | R136: -796.28 | S136: 1014.09 | T136: 1014.09 | U136: 10.5336 | V136: 16.9152 | W136: -899.5 | X136: - | Y136: - | Z136: 1848.134 | AA136: - | AB136: -5.6 | AC136: 0 | AD136: 871.9 | AE136: 871.9 | AF136: 1 | AG136: BRML3 | AH136: - | AI136: - | AJ136: 88809 | AK136: ativo
A137: VLID3 | B137: Valid | C137: ON | D137: BR | E137: Ação | F137: Outros | G137: 1357.41 | H137: 19.28 | I137: 70.405 | J137: 1071.91 | K137: 1574.47 | L137: 1734.31 | M137: 27.69 | N137: 19.72 | O137: 33.2 | P137: 56.98 | Q137: 100.04 | R137: 27.69 | S137: 100.04 | T137: 100.04 | U137: 10.1018 | V137: 47.7076 | W137: 206.7 | X137: 269.8 | Y137: 269.8 | Z137: 519.27 | AA137: -31.12 | AB137: -2.1 | AC137: 10.3 | AD137: 71.2 | AE137: 71.2 | AF137: 1 | AG137: VLID3 | AH137: - | AI137: - | AJ137: 12271 | AK137: ativo
A138: SSBR3 | B138: Sierrabrasil | C138: ON | D138: BR | E138: Ação | F138: Outros | G138: 2193.36 | H138: 28.7 | I138: 76.424 | J138: 2766.6 | K138: 354.86 | L138: 374.11 | M138: 138.42 | N138: 24.87 | O138: 66.6 | P138: 92.55 | Q138: 189.26 | R138: 138.42 | S138: 189.26 | T138: 189.26 | U138: 10.0369 | V138: 12.4154 | W138: 384.7 | X138: 562.2 | Y138: 562.2 | Z138: 485.035 | AA138: -34.77 | AB138: -7.1 | AC138: 15.5 | AD138: 76.4 | AE138: 76.4 | AF138: 1 | AG138: SSBR3 | AH138: - | AI138: - | AJ138: 707 | AK138: ativo
A139: IGTA3 | B139: Iguatemi | C139: ON | D139: BR | E139: Ação | F139: Outros | G139: 6861.47 | H139: 38.92 | I139: 176.297 | J139: 2835.66 | K139: 692.16 | L139: 721.53 | M139: 215.73 | N139: 57.34 | O139: 116.94 | P139: 181.42 | Q139: 256.36 | R139: 215.73 | S139: 256.36 | T139: 256.36 | U139: 9.2754 | V139: 55.8244 | W139: 540.6 | X139: 558.5 | Y139: 558.5 | Z139: 1588.948 | AA139: -120 | AB139: -6.9 | AC139: 1.2 | AD139: 176.6 | AE139: 176.6 | AF139: 1 | AG139: IGTA3 | AH139: - | AI139: - | AJ139: 51304 | AK139: ativo
A140: CSMG3 | B140: Copasa | C140: ON | D140: BR | E140: Ação | F140: Outros | G140: 7718.88 | H140: 61.07 | I140: 126.394 | J140: 6226.63 | K140: 4326.4 | L140: 4737.29 | M140: 560.44 | N140: 164.23 | O140: 274.39 | P140: 400.7 | Q140: 578.7 | R140: 560.44 | S140: 578.7 | T140: 578.7 | U140: 9.2676 | V140: 51.853 | W140: 1520.7 | X140: 1490.9 | Y140: 1490.9 | Z140: 3228.697 | AA140: -443.54 | AB140: 0.5 | AC140: 56.4 | AD140: 126.8 | AE140: 126.8 | AF140: 1 | AG140: CSMG3 | AH140: - | AI140: - | AJ140: 25762 | AK140: ativo
A141: KROT3 | B141: Kroton | C141: ON | D141: BR | E141: Ação | F141: Outros | G141: 17273.82 | H141: 10.6 | I141: 1629.605 | J141: 15902.64 | K141: 5557.75 | L141: 6060.71 | M141: 1882.32 | N141: 475.42 | O141: 942.76 | P141: 1290.58 | Q141: 1403.75 | R141: 1882.32 | S141: 1403.75 | T141: 1403.75 | U141: 9.1589 | V141: 31.8603 | W141: 2111.2 | X141: 1721.7 | Y141: 1721.7 | Z141: 5099.826 | AA141: -638.87 | AB141: -3.4 | AC141: -40.4 | AD141: 1644.2 | AE141: 1644.2 | AF141: 1 | AG141: KROT3 | AH141: - | AI141: - | AJ141: 121853 | AK141: ativo
A142: DTEX3 | B142: Duratex | C142: ON | D142: BR | E142: Ação | F142: Outros | G142: 7563.47 | H142: 10.97 | I142: 689.469 | J142: 4633.7 | K142: 3990.87 | L142: 4949.36 | M142: 184.88 | N142: 30.79 | O142: 197.32 | P142: 573.59 | Q142: 431.57 | R142: 184.88 | S142: 431.57 | T142: 431.57 | U142: 9.1554 | V142: 36.6863 | W142: 986.8 | X142: 1546 | Y142: 1546 | Z142: 1700.363 | AA142: -60.77 | AB142: -7 | AC142: 27.7 | AD142: 691.8 | AE142: 691.8 | AF142: 1 | AG142: DTEX3 | AH142: - | AI142: - | AJ142: 13915 | AK142: ativo
A143: MULT3 | B143: Multiplan | C143: ON | D143: BR | E143: Ação | F143: Outros | G143: 13902.95 | H143: 23.39 | I143: 594.397 | J143: 5335.98 | K143: 1156.38 | L143: 1229.14 | M143: 369.4 | N143: 98.13 | O143: 243.81 | P143: 360.26 | Q143: 472.95 | R143: 369.4 | S143: 472.95 | T143: 472.95 | U143: 9.0489 | V143: 36.5825 | W143: 818.1 | X143: 939.2 | Y143: 939.2 | Z143: 1957.963 | AA143: -301.07 | AB143: -7.1 | AC143: 1.2 | AD143: 565.2 | AE143: 600.8 | AF143: 0.941 | AG143: MULT3 | AH143: - | AI143: - | AJ143: 68113 | AK143: ativo
A144: JPSA4 | B144: Jereissati | C144: PN | D144: BR | E144: Ação | F144: Outros | G144: 2130.43 | H144: - | I144: 87.889 | J144: 1446.32 | K144: 693.24 | L144: 722.61 | M144: 76.9 | N144: 22.9 | O144: 47.07 | P144: 80.73 | Q144: 110.15 | R144: 76.9 | S144: 110.15 | T144: 110.15 | U144: 8.5087 | V144: 58.304 | W144: 510.1 | X144: 544.7 | Y144: 544.7 | Z144: 1664.602 | AA144: -34.9 | AB144: - | AC144: 12.7 | AD144: 87.9 | AE144: 87.9 | AF144: 1 | AG144: JPSA4 | AH144: - | AI144: - | AJ144: 682 | AK144: ativo
A145: BKBR3 | B145: Bk Brasil | C145: ON | D145: BR | E145: Ação | F145: Outros | G145: 5020.63 | H145: 22.11 | I145: 227.075 | J145: 1716.96 | K145: 1783.84 | L145: 2348.33 | M145: 3.82 | N145: 8.81 | O145: 17.38 | P145: 44.41 | Q145: 128.04 | R145: 3.82 | S145: 128.04 | T145: 128.04 | U145: 7.9172 | V145: -18.1409 | W145: 185 | X145: 260 | Y145: 260 | Z145: -311.472 | AA145: 0 | AB145: 0.1 | AC145: 27.1 | AD145: 222.5 | AE145: 227.1 | AF145: 0.98 | AG145: BKBR3 | AH145: - | AI145: - | AJ145: 22742 | AK145: ativo
A146: LUXM4 | B146: Trevisa | C146: PN | D146: BR | E146: Ação | F146: Outros | G146: 77.94 | H146: 15 | I146: 5.196 | J146: 105.11 | K146: 102.29 | L146: 129.77 | M146: 3.89 | N146: -0.6 | O146: 5.38 | P146: 11.16 | Q146: 6.23 | R146: 3.89 | S146: 6.23 | T146: 6.23 | U146: 6.1619 | V146: 28.4285 | W146: 28.8 | X146: 31.7 | Y146: 31.7 | Z146: 29.882 | AA146: 0 | AB146: -27.2 | AC146: - | AD146: 2.3 | AE146: 5.2 | AF146: 0.442 | AG146: LUXM4 | AH146: - | AI146: - | AJ146: 24 | AK146: ativo
A147: ALSC3 | B147: Aliansce | C147: ON | D147: BR | E147: Ação | F147: Outros | G147: 4047.27 | H147: 19.97 | I147: 202.668 | J147: 2553.98 | K147: 507.69 | L147: 508.43 | M147: 94.54 | N147: 6.4 | O147: 31.43 | P147: 52.71 | Q147: 113.96 | R147: 94.54 | S147: 113.96 | T147: 113.96 | U147: 4.7744 | V147: -21.9707 | W147: 388.8 | X147: 394.4 | Y147: 394.4 | Z147: -572.543 | AA147: -23.64 | AB147: -0.6 | AC147: 11.5 | AD147: 202.7 | AE147: 202.7 | AF147: 1 | AG147: ALSC3 | AH147: - | AI147: - | AJ147: 14431 | AK147: ativo
A148: TESA3 | B148: Terra Santa | C148: ON | D148: BR | E148: Ação | F148: Outros | G148: 236.46 | H148: 13.2 | I148: 17.914 | J148: 940.01 | K148: 796.32 | L148: 1119.01 | M148: 7.35 | N148: 38.01 | O148: 18.76 | P148: 31.44 | Q148: 42.26 | R148: 7.35 | S148: 42.26 | T148: 42.26 | U148: 4.2606 | V148: 90.6461 | W148: 85.6 | X148: 172.3 | Y148: 172.3 | Z148: 852.078 | AA148: 0 | AB148: 0.8 | AC148: -11.3 | AD148: 17.9 | AE148: 17.9 | AF148: 1 | AG148: TESA3 | AH148: - | AI148: - | AJ148: 172 | AK148: ativo
A149: GPCP3 | B149: GPC Part | C149: ON | D149: BR | E149: Ação | F149: Outros | G149: 80.48 | H149: 12.84 | I149: 6.268 | J149: 161.22 | K149: 483.88 | L149: 735.14 | M149: 81.16 | N149: 9.05 | O149: -3.33 | P149: 1.23 | Q149: 6.8 | R149: 81.16 | S149: 6.8 | T149: 6.8 | U149: 4.1347 | V149: 88.3066 | W149: 118.9 | X149: 65.2 | Y149: 65.2 | Z149: 165.703 | AA149: 0 | AB149: 29.7 | AC149: -21.4 | AD149: 5.9 | AE149: 6.3 | AF149: 0.939 | AG149: GPCP3 | AH149: - | AI149: - | AJ149: 162 | AK149: ativo
A150: AALR3 | B150: Alliar | C150: ON | D150: BR | E150: Ação | F150: Outros | G150: 1714.25 | H150: 14.52 | I150: 118.062 | J150: 1256.95 | K150: 1077.88 | L150: 1076.92 | M150: 6.65 | N150: 7.1 | O150: 12.37 | P150: 23.59 | Q150: 40.09 | R150: 6.65 | S150: 40.09 | T150: 40.09 | U150: 4.0595 | V150: 40.9588 | W150: 149.4 | X150: 219.9 | Y150: 219.9 | Z150: 532.346 | AA150: 0 | AB150: -8.1 | AC150: -1.9 | AD150: 118.3 | AE150: 118.3 | AF150: 1 | AG150: AALR3 | AH150: - | AI150: - | AJ150: 1754 | AK150: ativo
A151: MOAR3 | B151: Mont Aranha | C151: ON | D151: BR | E151: Ação | F151: Outros | G151: 2082.71 | H151: 170 | I151: 12.251 | J151: 1134.16 | K151: 2.76 | L151: 3.67 | M151: 141.19 | N151: -9.65 | O151: -19.16 | P151: 8.35 | Q151: 40.81 | R151: 141.19 | S151: 40.81 | T151: 40.81 | U151: 3.4019 | V151: -30.6655 | W151: 99.6 | X151: 21 | Y151: 21 | Z151: -348.891 | AA151: -188.14 | AB151: -2.9 | AC151: 29 | AD151: 12.3 | AE151: 12.3 | AF151: 1 | AG151: MOAR3 | AH151: - | AI151: - | AJ151: 17 | AK151: ativo
A152: SHOW3 | B152: Time For Fun | C152: ON | D152: BR | E152: Ação | F152: Outros | G152: 456.2 | H152: 6.78 | I152: 67.286 | J152: 329.17 | K152: 652.9 | L152: 598.38 | M152: 44.35 | N152: 4.01 | O152: 7.62 | P152: 20.67 | Q152: 8.38 | R152: 44.35 | S152: 8.38 | T152: 8.38 | U152: 3.2508 | V152: -25.47 | W152: 75 | X152: 37.4 | Y152: 37.4 | Z152: -85.192 | AA152: -21.07 | AB152: -6.5 | AC152: -4.8 | AD152: 67.5 | AE152: 67.5 | AF152: 1 | AG152: SHOW3 | AH152: - | AI152: - | AJ152: 1561 | AK152: ativo
A153: TECN3 | B153: Technos | C153: ON | D153: BR | E153: Ação | F153: Outros | G153: 188.61 | H153: 2.44 | I153: 77.298 | J153: 465.69 | K153: 340.08 | L153: 305.7 | M153: -1.92 | N153: -15.02 | O153: -7.54 | P153: -11.26 | Q153: 14.37 | R153: -1.92 | S153: 14.37 | T153: 14.37 | U153: 3.0971 | V153: 6.2108 | W153: 9.3 | X153: 8.4 | Y153: 8.4 | Z153: 28.923 | AA153: 0 | AB153: -1.6 | AC153: -31.3 | AD153: 78.5 | AE153: 78.5 | AF153: 1 | AG153: TECN3 | AH153: - | AI153: - | AJ153: 221 | AK153: ativo
A154: OMGE3 | B154: Omega Ger | C154: ON | D154: BR | E154: Ação | F154: Outros | G154: 2668.35 | H154: 19.5 | I154: 136.838 | J154: 1811.96 | K154: 546.11 | L154: 742.02 | M154: 100.38 | N154: -16.42 | O154: -36.16 | P154: -11.85 | Q154: 41.89 | R154: 100.38 | S154: 41.89 | T154: 41.89 | U154: 2.7634 | V154: 103.1303 | W154: 291.9 | X154: 393.2 | Y154: 393.2 | Z154: 1913.622 | AA154: -10.68 | AB154: -2 | AC154: 12 | AD154: 117.8 | AE154: 136.8 | AF154: 0.861 | AG154: OMGE3 | AH154: - | AI154: - | AJ154: 4947 | AK154: ativo
A155: CCPR3 | B155: Cyre Com-Ccp | C155: ON | D155: BR | E155: Ação | F155: Outros | G155: 1519.73 | H155: 12.7 | I155: 119.664 | J155: 1045.42 | K155: 446.27 | L155: 489.77 | M155: 174.2 | N155: 8.99 | O155: 31.99 | P155: 12.89 | Q155: -0.89 | R155: 174.2 | S155: -0.89 | T155: -0.89 | U155: 2.6459 | V155: 76.1445 | W155: 523.1 | X155: 256.9 | Y155: 256.9 | Z155: 1351.198 | AA155: -120 | AB155: 2.8 | AC155: 58.3 | AD155: 119.7 | AE155: 119.7 | AF155: 1 | AG155: CCPR3 | AH155: - | AI155: - | AJ155: 102 | AK155: ativo
A156: EUCA4 | B156: Eucatex | C156: PN | D156: BR | E156: Ação | F156: Outros | G156: 364.94 | H156: 3.96 | I156: 92.156 | J156: 1262.97 | K156: 1205.36 | L156: 1262.33 | M156: 41.94 | N156: 1.72 | O156: -9.93 | P156: -7.14 | Q156: 28.97 | R156: 41.94 | S156: 28.97 | T156: 28.97 | U156: 2.3414 | V156: 32.9434 | W156: 211.8 | X156: 234 | Y156: 234 | Z156: 416.052 | AA156: 0 | AB156: -5.9 | AC156: 1.7 | AD156: 31.3 | AE156: 92.6 | AF156: 0.337 | AG156: EUCA4 | AH156: - | AI156: - | AJ156: 99 | AK156: ativo
A157: UCAS3 | B157: Unicasa | C157: ON | D157: BR | E157: Ação | F157: Outros | G157: 193.63 | H157: 2.93 | I157: 66.086 | J157: 171.27 | K157: 157.94 | L157: 149.31 | M157: -6.36 | N157: -0.37 | O157: -0.35 | P157: 1.59 | Q157: 3.39 | R157: -6.36 | S157: 3.39 | T157: 3.39 | U157: 2.0218 | V157: -22.5159 | W157: -4.1 | X157: 10.5 | Y157: 10.5 | Z157: -38.562 | AA157: 0 | AB157: 2.4 | AC157: 15.4 | AD157: 66.1 | AE157: 66.1 | AF157: 1 | AG157: UCAS3 | AH157: - | AI157: - | AJ157: 276 | AK157: ativo
A158: SCAR3 | B158: Sao Carlos | C158: ON | D158: BR | E158: Ação | F158: Outros | G158: 1894.22 | H158: 33.8 | I158: 56.042 | J158: 1400.28 | K158: 552.42 | L158: 369.22 | M158: 119.23 | N158: 14.69 | O158: 14.22 | P158: 17.62 | Q158: 15.65 | R158: 119.23 | S158: 15.65 | T158: 15.65 | U158: 1.2115 | V158: 68.8639 | W158: 341.1 | X158: 191.8 | Y158: 191.8 | Z158: 966.647 | AA158: -24.83 | AB158: -1.5 | AC158: -21.4 | AD158: 57.7 | AE158: 57.7 | AF158: 1 | AG158: SCAR3 | AH158: - | AI158: - | AJ158: 341 | AK158: ativo
A159: ANIM3 | B159: Anima | C159: ON | D159: BR | E159: Ação | F159: Outros | G159: 1451.72 | H159: 18.7 | I159: 77.632 | J159: 665.25 | K159: 1045.67 | L159: 1102.46 | M159: 85.15 | N159: 39.94 | O159: 36.96 | P159: 20.31 | Q159: 2.25 | R159: 85.15 | S159: 2.25 | T159: 2.25 | U159: 0.3232 | V159: 31.7725 | W159: 137.5 | X159: 93 | Y159: 93 | Z159: 211.366 | AA159: -20.21 | AB159: -0.1 | AC159: -33.2 | AD159: 78.6 | AE159: 78.6 | AF159: 1 | AG159: ANIM3 | AH159: - | AI159: - | AJ159: 3446 | AK159: ativo
A160: BRPR3 | B160: BR Propert | C160: ON | D160: BR | E160: Ação | F160: Outros | G160: 3590.5 | H160: 8.9 | I160: 403.427 | J160: 5870.37 | K160: 430.45 | L160: 421.32 | M160: 277.02 | N160: -11.58 | O160: -73.32 | P160: -110.43 | Q160: 13.71 | R160: 277.02 | S160: 13.71 | T160: 13.71 | U160: 0.2332 | V160: 34.438 | W160: 487.3 | X160: 520.5 | Y160: 520.5 | Z160: 2021.634 | AA160: -65.79 | AB160: 1.6 | AC160: -14.5 | AD160: 407.1 | AE160: 407.1 | AF160: 1 | AG160: BRPR3 | AH160: - | AI160: - | AJ160: 5084 | AK160: ativo
A161: BAHI3 | B161: Bahema | C161: ON | D161: BR | E161: Ação | F161: Outros | G161: 155.29 | H161: 132.5 | I161: 1.172 | J161: 52.57 | K161: 37.64 | L161: 44.11 | M161: -4.56 | N161: -1.62 | O161: -0.03 | P161: -0.11 | Q161: -2.11 | R161: -4.56 | S161: -2.11 | T161: -2.11 | U161: -4.3601 | V161: -28.0542 | W161: -1.3 | X161: -1.4 | Y161: -1.4 | Z161: -15.728 | AA161: 0 | AB161: -1.1 | AC161: 110.4 | AD161: 1.2 | AE161: 1.2 | AF161: 1 | AG161: BAHI3 | AH161: - | AI161: - | AJ161: 12 | AK161: ativo
A162: MILS3 | B162: Mills | C162: ON | D162: BR | E162: Ação | F162: Outros | G162: 831.88 | H162: 4.8 | I162: 173.308 | J162: 750.31 | K162: 291.27 | L162: 304.19 | M162: -138.38 | N162: -30.43 | O162: -74.09 | P162: -106.67 | Q162: -94.97 | R162: -138.38 | S162: -94.97 | T162: -94.97 | U162: -11.218 | V162: 7.8035 | W162: -43.2 | X162: 0.3 | Y162: 0.3 | Z162: 58.55 | AA162: 0 | AB162: -11.6 | AC162: 16.5 | AD162: 175.6 | AE162: 175.6 | AF162: 1 | AG162: MILS3 | AH162: - | AI162: - | AJ162: 4159 | AK162: ativo
A163: BBRK3 | B163: BR Brokers | C163: ON | D163: BR | E163: Ação | F163: Outros | G163: 186.28 | H163: 5.25 | I163: 35.481 | J163: 225 | K163: 89.07 | L163: 111.31 | M163: -106.16 | N163: -12.84 | O163: -24.24 | P163: -37.2 | Q163: -76.71 | R163: -106.16 | S163: -76.71 | T163: -76.71 | U163: -27.0484 | V163: -22.9556 | W163: -103.8 | X163: -61.7 | Y163: -61.7 | Z163: -51.732 | AA163: 0 | AB163: -24.7 | AC163: -47 | AD163: 36.3 | AE163: 36.3 | AF163: 1 | AG163: BBRK3 | AH163: - | AI163: - | AJ163: 506 | AK163: ativo
A164: GSHP3 | B164: Generalshopp | C164: ON | D164: BR | E164: Ação | F164: Outros | G164: 73.59 | H164: 1.09 | I164: 67.512 | J164: 38.68 | K164: 252.29 | L164: 215.63 | M164: 251.46 | N164: -64.65 | O164: -287.87 | P164: -349.14 | Q164: -357.05 | R164: 251.46 | S164: -357.05 | T164: -357.05 | U164: -29.1542 | V164: 1866.3444 | W164: 433.1 | X164: 57 | Y164: 57 | Z164: 721.958 | AA164: - | AB164: 12799.7 | AC164: 13567.8 | AD164: 69.4 | AE164: 69.4 | AF164: 1 | AG164: GSHP3 | AH164: - | AI164: - | AJ164: 1271 | AK164: ativo
A165: SEDU3 | B165: Somos Educa | C165: ON | D165: BR | E165: Ação | F165: Outros | G165: 5863.82 | H165: 22.37 | I165: 262.129 | J165: 390.94 | K165: 1871.58 | L165: 1866.94 | M165: 11.39 | N165: 113.07 | O165: 65.23 | P165: -127.46 | Q165: -399.47 | R165: 11.39 | S165: -399.47 | T165: -399.47 | U165: -46.9329 | V165: 407.4895 | W165: 324.6 | X165: -146 | Y165: -146 | Z165: 1604.486 | AA165: 0 | AB165: 1.4 | AC165: 51.6 | AD165: 262.1 | AE165: 262.1 | AF165: 1 | AG165: SEDU3 | AH165: - | AI165: - | AJ165: 66169 | AK165: ativo
A166: LPSB3 | B166: Lopes Brasil | C166: ON | D166: BR | E166: Ação | F166: Outros | G166: 609.47 | H166: 4.85 | I166: 125.663 | J166: 47.12 | K166: 111.02 | L166: 109.2 | M166: -63.37 | N166: -5.51 | O166: -19.47 | P166: -30.99 | Q166: -46.67 | R166: -63.37 | S166: -46.67 | T166: -46.67 | U166: -60.6002 | V166: -64.6002 | W166: -57.5 | X166: -16.2 | Y166: -16.2 | Z166: -14.172 | AA166: 0 | AB166: -15.7 | AC166: -13.2 | AD166: 125.7 | AE166: 125.7 | AF166: 1 | AG166: LPSB3 | AH166: - | AI166: - | AJ166: 1205 | AK166: ativo
A167: SLED4 | B167: Saraiva Livr | C167: PN | D167: BR | E167: Ação | F167: Outros | G167: 51.28 | H167: 1.95 | I167: 26.542 | J167: 120.91 | K167: 1724.89 | L167: 1445.42 | M167: -52.01 | N167: 1.32 | O167: -36.34 | P167: -102.94 | Q167: -301.73 | R167: -52.01 | S167: -301.73 | T167: -301.73 | U167: -71.4959 | V167: 64.0451 | W167: 15.2 | X167: -167.2 | Y167: -167.2 | Z167: 77.442 | AA167: 0 | AB167: -9.3 | AC167: -52.1 | AD167: 9.6 | AE167: 26.7 | AF167: 0.36 | AG167: SLED4 | AH167: - | AI167: - | AJ167: 83 | AK167: ativo
A168: HOOT4 | B168: Hoteis Othon | C168: PN | D168: BR | E168: Ação | F168: Outros | G168: 34.91 | H168: 1.9 | I168: 18.372 | J168: -226.26 | K168: 117.45 | L168: 78.54 | M168: -40.12 | N168: -15.75 | O168: -34.27 | P168: -55.57 | Q168: -94.48 | R168: -40.12 | S168: -94.48 | T168: -94.48 | U168: - | V168: -1.7261 | W168: -3.9 | X168: -24 | Y168: -24 | Z168: 4.241 | AA168: 0 | AB168: -2.1 | AC168: -29.4 | AD168: 10.5 | AE168: 18.4 | AF168: 0.57 | AG168: HOOT4 | AH168: - | AI168: - | AJ168: 10 | AK168: ativo
A169: INEP4 | B169: Inepar | C169: PN | D169: BR | E169: Ação | F169: Outros | G169: 95.63 | H169: 12.6 | I169: 7.463 | J169: -1382.43 | K169: 39.8 | L169: - | M169: -321.06 | N169: -56.35 | O169: -52.21 | P169: -99.18 | Q169: - | R169: -321.06 | S169: - | T169: -269.94 | U169: - | V169: -44.8523 | W169: -127 | X169: - | Y169: -128.3 | Z169: 620.052 | AA169: -1.25 | AB169: -17.8 | AC169: 342.1 | AD169: 3.2 | AE169: 7.5 | AF169: 0.426 | AG169: INEP4 | AH169: - | AI169: - | AJ169: 238 | AK169: ativo
A170: SNSY5 | B170: Sansuy | C170: PNA | D170: BR | E170: Ação | F170: Outros | G170: 14.37 | H170: 74.5 | I170: 0.193 | J170: -1045.26 | K170: 385.41 | L170: 423.16 | M170: -153.89 | N170: -36.35 | O170: -77.19 | P170: -114.22 | Q170: -150.79 | R170: -153.89 | S170: -150.79 | T170: -150.79 | U170: - | V170: -7.4946 | W170: -69.1 | X170: -67.6 | Y170: -67.6 | Z170: 78.973 | AA170: 0 | AB170: 0.8 | AC170: - | AD170: 0.1 | AE170: 0.2 | AF170: 0.344 | AG170: SNSY5 | AH170: - | AI170: - | AJ170: 7 | AK170: ativo
A171: SUZB5+SUZB3 | B171: Suzano Papel | C171: ON | D171: BR | E171: Ação | F171: Papel e Celulose | G171: 62806.26 | H171: 46.55 | I171: 1349.221 | J171: 12012.01 | K171: 10520.79 | L171: 13437.33 | M171: 1807.43 | N171: 813.13 | O171: -1036.43 | P171: -1144.21 | Q171: 318.34 | R171: 1807.43 | S171: 318.34 | T171: 318.34 | U171: 2.7403 | V171: 85.2449 | W171: 4660.7 | X171: 6569 | Y171: 6569 | Z171: 10251.491 | AA171: -210.21 | AB171: -2.3 | AC171: 150.3 | AD171: 1105.8 | AE171: 1361.3 | AF171: 0.812 | AG171: SUZB5+SUZB3 | AH171: - | AI171: - | AJ171: 262494 | AK171: ativo
A172: KLBN11 | B172: Klabin S/A | C172: UNT N2 | D172: BR | E172: Ação | F172: Papel e Celulose | G172: 19339.12 | H172: 17.03 | I172: 5263.208 | J172: 6292.24 | K172: 8373.38 | L172: 10016.46 | M172: 532.17 | N172: 124.66 | O172: -829.98 | P172: -726.16 | Q172: 137.46 | R172: 532.17 | S172: 137.46 | T172: 137.46 | U172: 2.5824 | V172: 189.7755 | W172: 3492.5 | X172: 4657 | Y172: 4657 | Z172: 12398.468 | AA172: -840 | AB172: -5.6 | AC172: 2.5 | AD172: 1984.6 | AE172: 5409.8 | AF172: 0.367 | AG172: KLBN11 | AH172: - | AI172: - | AJ172: 61796 | AK172: ativo
A173: CGAS5 | B173: Comgas | C173: PNA | D173: BR | E173: Ação | F173: Petróleo e Gas | G173: 10274.64 | H173: 81.9 | I173: 132.023 | J173: 2721.32 | K173: 5537.86 | L173: 6840.01 | M173: 640.12 | N173: 179.09 | O173: 293.1 | P173: 480.59 | Q173: 1339.43 | R173: 640.12 | S173: 1339.43 | T173: 1339.43 | U173: 66.4045 | V173: 112.0384 | W173: 1518.5 | X173: 2186.3 | Y173: 2186.3 | Z173: 3048.927 | AA173: -756.77 | AB173: 1 | AC173: 48 | AD173: 103.5 | AE173: 132 | AF173: 0.784 | AG173: CGAS5 | AH173: - | AI173: - | AJ173: 4389 | AK173: ativo
A174: BRDT3 | B174: Petrobras BR | C174: ON | D174: BR | E174: Ação | F174: Petróleo e Gas | G174: 26969.75 | H174: 23.15 | I174: 1165 | J174: 9686 | K174: 84567 | L174: 97770 | M174: 1151 | N174: 247 | O174: 510 | P174: 1588 | Q174: 3193 | R174: 1151 | S174: 3193 | T174: 3193 | U174: 36.1772 | V174: 25.9653 | W174: 2574 | X174: 2803 | Y174: 2803 | Z174: 2515 | AA174: -1034 | AB174: -5.3 | AC174: 44.4 | AD174: 1165 | AE174: 1165 | AF174: 1 | AG174: BRDT3 | AH174: - | AI174: - | AJ174: 133666 | AK174: ativo
A175: PRIO3 | B175: Petrorio | C175: ON | D175: BR | E175: Ação | F175: Petróleo e Gas | G175: 2339.98 | H175: 18.9 | I175: 123.808 | J175: 1006.6 | K175: 533.92 | L175: 848.92 | M175: 50.85 | N175: 2.69 | O175: 73.25 | P175: 144.71 | Q175: 204.88 | R175: 50.85 | S175: 204.88 | T175: 204.88 | U175: 23.1987 | V175: -51.4794 | W175: 166 | X175: 247.2 | Y175: 247.2 | Z175: -518.19 | AA175: 0 | AB175: 25.2 | AC175: 131.1 | AD175: 13.3 | AE175: 135.6 | AF175: 0.098 | AG175: PRIO3 | AH175: - | AI175: - | AJ175: 40766 | AK175: ativo
A176: CSAN3 | B176: Cosan | C176: ON | D176: BR | E176: Ação | F176: Petróleo e Gas | G176: 16740.81 | H176: 42.65 | I176: 392.516 | J176: 9928.72 | K176: 7670.78 | L176: 10299.1 | M176: 1315.32 | N176: 345.72 | O176: 281.37 | P176: 325.32 | Q176: 1652.32 | R176: 1315.32 | S176: 1652.32 | T176: 1652.32 | U176: 18.4879 | V176: 66.4662 | W176: 3463.3 | X176: 3322.8 | Y176: 3322.8 | Z176: 7260.191 | AA176: -446.3 | AB176: -2.4 | AC176: 5.7 | AD176: 407.9 | AE176: 407.9 | AF176: 1 | AG176: CSAN3 | AH176: - | AI176: - | AJ176: 72729 | AK176: ativo
A177: QGEP3 | B177: Qgep Part | C177: ON | D177: BR | E177: Ação | F177: Petróleo e Gas | G177: 4000.53 | H177: 15.3 | I177: 261.473 | J177: 3199.59 | K177: 501.73 | L177: 797.2 | M177: 357.38 | N177: 159.08 | O177: 244.25 | P177: 299.9 | Q177: 425.22 | R177: 357.38 | S177: 425.22 | T177: 425.22 | U177: 13.6722 | V177: -51.2696 | W177: 407.9 | X177: 573.7 | Y177: 573.7 | Z177: -1640.415 | AA177: -400 | AB177: 15.7 | AC177: 63.4 | AD177: 265.8 | AE177: 265.8 | AF177: 1 | AG177: QGEP3 | AH177: - | AI177: - | AJ177: 33154 | AK177: ativo
A178: UGPA3 | B178: Ultrapar | C178: ON | D178: BR | E178: Ação | F178: Petróleo e Gas | G178: 25521.7 | H178: 47 | I178: 543.015 | J178: 9448.11 | K178: 80007.42 | L178: 90697.98 | M178: 1574.31 | N178: 73.86 | O178: 315.44 | P178: 642.78 | Q178: 1150.42 | R178: 1574.31 | S178: 1150.42 | T178: 1150.42 | U178: 11.6484 | V178: 85.8578 | W178: 4063.5 | X178: 2697.1 | Y178: 2697.1 | Z178: 8414.092 | AA178: -789.38 | AB178: -10.8 | AC178: -34.9 | AD178: 556.4 | AE178: 556.4 | AF178: 1 | AG178: UGPA3 | AH178: - | AI178: - | AJ178: 184666 | AK178: ativo
A179: PETR4 | B179: Petrobras | C179: PN | D179: BR | E179: Ação | F179: Petróleo e Gas | G179: 389016.77 | H179: 28.06 | I179: 13044.201 | J179: 277225 | K179: 283695 | L179: 349836 | M179: -446 | N179: 6961 | O179: 17033 | P179: 23677 | Q179: 25779 | R179: -446 | S179: 25779 | T179: 25779 | U179: 9.9025 | V179: 94.8089 | W179: 80251 | X179: 108522 | Y179: 108522 | Z179: 268824 | AA179: -2368 | AB179: 3.7 | AC179: 81.7 | AD179: 7442.5 | AE179: 13044.5 | AF179: 0.571 | AG179: PETR4 | AH179: - | AI179: - | AJ179: 1806898 | AK179: ativo
A180: DMMO3 | B180: Dommo | C180: ON | D180: BR | E180: Ação | F180: Petróleo e Gas | G180: 2133.32 | H180: 0.79 | I180: 2700.399 | J180: -376.35 | K180: 426.48 | L180: 538.27 | M180: -1952.74 | N180: 70.23 | O180: 269 | P180: -341.71 | Q180: -670.98 | R180: -1952.74 | S180: -670.98 | T180: -670.98 | U180: -170.9879 | V180: 41.7991 | W180: -798.3 | X180: -478.6 | Y180: -478.6 | Z180: -157.311 | AA180: 0 | AB180: -11.2 | AC180: -24 | AD180: 2700.4 | AE180: 2700.4 | AF180: 1 | AG180: DMMO3 | AH180: - | AI180: - | AJ180: 2196 | AK180: ativo
A181: RPMG3 | B181: Pet Manguinh | C181: ON | D181: BR | E181: Ação | F181: Petróleo e Gas | G181: 173.27 | H181: 2.56 | I181: 67.685 | J181: -2465.01 | K181: 694.51 | L181: - | M181: -236.03 | N181: -78.07 | O181: -67.91 | P181: -91.01 | Q181: - | R181: -236.03 | S181: - | T181: -135.13 | U181: - | V181: -1.6505 | W181: -270.4 | X181: - | Y181: -174 | Z181: 40.707 | AA181: 0 | AB181: -12.9 | AC181: -67.6 | AD181: 67.7 | AE181: 67.7 | AF181: 1 | AG181: RPMG3 | AH181: - | AI181: - | AJ181: 31 | AK181: ativo
A182: BRKM5 | B182: Braskem | C182: PNA | D182: BR | E182: Ação | F182: Química | G182: 41482.15 | H182: 50.9 | I182: 795.984 | J182: 6787.65 | K182: 49260.59 | L182: 57999.87 | M182: 4082.99 | N182: 1053.59 | O182: 1600.84 | P182: 2945.11 | Q182: 2866.68 | R182: 4082.99 | S182: 2866.68 | T182: 2866.68 | U182: 51.0902 | V182: 291.9805 | W182: 12287.9 | X182: 11294.5 | Y182: 11294.5 | Z182: 17259.683 | AA182: -1498.45 | AB182: -6.4 | AC182: 23.8 | AD182: 451.7 | AE182: 797.2 | AF182: 0.567 | AG182: BRKM5 | AH182: - | AI182: - | AJ182: 77122 | AK182: ativo
A183: UNIP6 | B183: Unipar | C183: PNB | D183: BR | E183: Ação | F183: Química | G183: 3348.19 | H183: 38.15 | I183: 87.155 | J183: 1347.52 | K183: 3019.59 | L183: 3469.13 | M183: 302.66 | N183: 158.51 | O183: 229.63 | P183: 374.23 | Q183: 528.04 | R183: 302.66 | S183: 528.04 | T183: 528.04 | U183: 51.0276 | V183: 11.5056 | W183: 575.8 | X183: 1007 | Y183: 1007 | Z183: 166.365 | AA183: -206.96 | AB183: -4.2 | AC183: 182.9 | AD183: 30.4 | AE183: 87.2 | AF183: 0.349 | AG183: UNIP6 | AH183: - | AI183: - | AJ183: 8646 | AK183: ativo
A184: CRPG5 | B184: Cristal | C184: PNA | D184: BR | E184: Ação | F184: Química | G184: 921.78 | H184: 39.8 | I184: 23.215 | J184: 509.05 | K184: 568.23 | L184: 636.05 | M184: 79 | N184: 23.98 | O184: 60.34 | P184: 109.99 | Q184: 155.67 | R184: 79 | S184: 155.67 | T184: 155.67 | U184: 34.5525 | V184: -11.5047 | W184: 112.9 | X184: 172.1 | Y184: 172.1 | Z184: -58.565 | AA184: -108.19 | AB184: 8.2 | AC184: 209.7 | AD184: 8.1 | AE184: 23.2 | AF184: 0.35 | AG184: CRPG5 | AH184: - | AI184: - | AJ184: 403 | AK184: ativo
A185: OFSA3 | B185: Ourofino S/A | C185: ON | D185: BR | E185: Ação | F185: Química | G185: 1685.91 | H185: 31.25 | I185: 53.949 | J185: 455.94 | K185: 505.28 | L185: 589.22 | M185: 38.11 | N185: 3.62 | O185: 27.87 | P185: 49.75 | Q185: 68.85 | R185: 38.11 | S185: 68.85 | T185: 68.85 | U185: 16.9775 | V185: 48.7636 | W185: 91.2 | X185: 123.5 | Y185: 123.5 | Z185: 222.346 | AA185: - | AB185: -3.5 | AC185: 31.3 | AD185: 53.9 | AE185: 53.9 | AF185: 1 | AG185: OFSA3 | AH185: - | AI185: - | AJ185: 322 | AK185: ativo
A186: GBIO33 | B186: Biotoscana | C186: ON | D186: BR | E186: Ação | F186: Química | G186: 894.28 | H186: 8.44 | I186: 105.958 | J186: 729.24 | K186: 817.55 | L186: 820.96 | M186: 16.93 | N186: 15.96 | O186: 35.91 | P186: 45 | Q186: 63.46 | R186: 16.93 | S186: 63.46 | T186: 63.46 | U186: 10.696 | V186: 15.7714 | W186: - | X186: - | Y186: - | Z186: 115.011 | AA186: - | AB186: -3.3 | AC186: -59 | AD186: 106.6 | AE186: 106.6 | AF186: 1 | AG186: GBIO33 | AH186: - | AI186: - | AJ186: 1421 | AK186: ativo
A187: FHER3 | B187: Fer Heringer | C187: ON | D187: BR | E187: Ação | F187: Química | G187: 119.02 | H187: 2.21 | I187: 53.857 | J187: -621.84 | K187: 4789.72 | L187: 3688.72 | M187: -125.6 | N187: -46.75 | O187: -324.07 | P187: -441.45 | Q187: -779.61 | R187: -125.6 | S187: -779.61 | T187: -779.61 | U187: -476.5255 | V187: -157.9545 | W187: 91.9 | X187: -150.4 | Y187: -150.4 | Z187: 982.218 | AA187: 0 | AB187: -2.6 | AC187: -13.3 | AD187: 53.9 | AE187: 53.9 | AF187: 1 | AG187: FHER3 | AH187: - | AI187: - | AJ187: 429 | AK187: ativo
A188: BOBR4 | B188: Bombril | C188: PN | D188: BR | E188: Ação | F188: Química | G188: 122.73 | H188: 2.27 | I188: 54.065 | J188: -241.39 | K188: 1096.72 | L188: 1046.69 | M188: 126.82 | N188: -15.75 | O188: -21.99 | P188: 107.36 | Q188: 70.17 | R188: 126.82 | S188: 70.17 | T188: 70.17 | U188: - | V188: -112.3655 | W188: 203 | X188: 19.2 | Y188: 19.2 | Z188: 271.238 | AA188: 0 | AB188: -15 | AC188: -54 | AD188: 20 | AE188: 54.1 | AF188: 0.37 | AG188: BOBR4 | AH188: - | AI188: - | AJ188: 81 | AK188: ativo
A189: CSNA3 | B189: Sid Nacional | C189: ON | D189: BR | E189: Ação | F189: Siderur & Metalur | G189: 22426.86 | H189: 16.25 | I189: 1380.115 | J189: 8702.74 | K189: 18524.6 | L189: 22968.89 | M189: 10.27 | N189: 1471.86 | O189: 2632.31 | P189: 3353.85 | Q189: 5074.14 | R189: 10.27 | S189: 5074.14 | T189: 5074.14 | U189: 62.7466 | V189: 256.4888 | W189: 4437.3 | X189: 8219.6 | Y189: 8219.6 | Z189: 25683.357 | AA189: 0 | AB189: 24.2 | AC189: 93.9 | AD189: 1387.5 | AE189: 1387.5 | AF189: 1 | AG189: CSNA3 | AH189: - | AI189: - | AJ189: 306777 | AK189: ativo
A190: FESA4 | B190: Ferbasa | C190: PN | D190: BR | E190: Ação | F190: Siderur & Metalur | G190: 2090.88 | H190: 21.71 | I190: 85.097 | J190: 1743.32 | K190: 1108.72 | L190: 1381.06 | M190: 269.85 | N190: 63.4 | O190: 139.74 | P190: 288.89 | Q190: 308.8 | R190: 269.85 | S190: 308.8 | T190: 308.8 | U190: 20.3071 | V190: 5.9785 | W190: 356.1 | X190: 522.7 | Y190: 522.7 | Z190: 104.57 | AA190: -108.5 | AB190: -20.8 | AC190: 13.7 | AD190: 29.4 | AE190: 88.3 | AF190: 0.333 | AG190: FESA4 | AH190: - | AI190: - | AJ190: 6630 | AK190: ativo
A191: GGBR4 | B191: Gerdau | C191: PN | D191: BR | E191: Ação | F191: Siderur & Metalur | G191: 23998.44 | H191: 15.14 | I191: 1696.164 | J191: 25730.6 | K191: 36917.62 | L191: 46159.48 | M191: -359.36 | N191: 441.03 | O191: 1135.62 | P191: 1920.53 | Q191: 2303.87 | R191: -359.36 | S191: 2303.87 | T191: 2303.87 | U191: 9.7363 | V191: 44.5557 | W191: 3192.6 | X191: 5939 | Y191: 5939 | Z191: 11557.1 | AA191: -592.61 | AB191: 0.7 | AC191: 26.1 | AD191: 573.6 | AE191: 1719.7 | AF191: 0.334 | AG191: GGBR4 | AH191: - | AI191: - | AJ191: 192333 | AK191: ativo
A192: GOAU4 | B192: Gerdau Met | C192: PN | D192: BR | E192: Ação | F192: Siderur & Metalur | G192: 6983.56 | H192: 7.11 | I192: 979.421 | J192: 9345.17 | K192: 36917.62 | L192: 46159.48 | M192: -203.29 | N192: 146.97 | O192: 397.57 | P192: 680.05 | Q192: 799.01 | R192: -203.29 | S192: 799.01 | T192: 799.01 | U192: 9.5992 | V192: 48.1028 | W192: 3184.3 | X192: 5914.5 | Y192: 5914.5 | Z192: 12204.878 | AA192: -195.4 | AB192: -0.3 | AC192: 27 | AD192: 331.3 | AE192: 985.7 | AF192: 0.336 | AG192: GOAU4 | AH192: - | AI192: - | AJ192: 67590 | AK192: ativo
A193: MTSA4 | B193: Metisa | C193: PN | D193: BR | E193: Ação | F193: Siderur & Metalur | G193: 152.72 | H193: 16.96 | I193: 9.005 | J193: 230.64 | K193: 240.18 | L193: 270.73 | M193: 13.14 | N193: 2.95 | O193: 7.54 | P193: 13.58 | Q193: 16.34 | R193: 13.14 | S193: 16.34 | T193: 16.34 | U193: 7.428 | V193: -16.6524 | W193: 15.8 | X193: 24.7 | Y193: 24.7 | Z193: -38.407 | AA193: -5.6 | AB193: -5.8 | AC193: 9.4 | AD193: 4.2 | AE193: 9.1 | AF193: 0.461 | AG193: MTSA4 | AH193: - | AI193: - | AJ193: 181 | AK193: ativo
A194: USIM5 | B194: Usiminas | C194: PNA | D194: BR | E194: Ação | F194: Siderur & Metalur | G194: 13473.59 | H194: 10.04 | I194: 1229.302 | J194: 14266.3 | K194: 10734.12 | L194: 13736.78 | M194: 233.02 | N194: 140.11 | O194: 107.94 | P194: 371.86 | Q194: 726.66 | R194: 233.02 | S194: 726.66 | T194: 726.66 | U194: 5.4577 | V194: 26.4785 | W194: 2055.7 | X194: 2171.8 | Y194: 2171.8 | Z194: 4156.441 | AA194: -55.26 | AB194: 3.9 | AC194: 11.7 | AD194: 705.3 | AE194: 1253.1 | AF194: 0.563 | AG194: USIM5 | AH194: - | AI194: - | AJ194: 154929 | AK194: ativo
A195: KEPL3 | B195: Kepler Weber | C195: ON | D195: BR | E195: Ação | F195: Siderur & Metalur | G195: 455.2 | H195: 17.3 | I195: 26.312 | J195: 441.03 | K195: 578.38 | L195: 576.3 | M195: -34.26 | N195: -10.6 | O195: -24.59 | P195: -20.48 | Q195: 8.27 | R195: -34.26 | S195: 8.27 | T195: 8.27 | U195: 1.8987 | V195: 3.7587 | W195: -12.7 | X195: 48.4 | Y195: 48.4 | Z195: 16.577 | AA195: 0 | AB195: 0.3 | AC195: -11.4 | AD195: 26.3 | AE195: 26.3 | AF195: 1 | AG195: KEPL3 | AH195: - | AI195: - | AJ195: 1519 | AK195: ativo
A196: =IF(AG196="","",AG196) -> APTI4 | B196: Aliperti | C196: PN | D196: BR | E196: Ação | F196: Siderur & Metalur | G196: - | H196: - | I196: 0.018 | J196: 232.15 | K196: 33.95 | L196: 32.01 | M196: -27.1 | N196: -3.63 | O196: -7.5 | P196: -12.42 | Q196: -11.57 | R196: -27.1 | S196: -11.57 | T196: -11.57 | U196: -4.6954 | V196: 23.3439 | W196: -15.6 | X196: 0.8 | Y196: 0.8 | Z196: 54.168 | AA196: 0 | AB196: - | AC196: - | AD196: 0 | AE196: 0 | AF196: 0.336 | AG196: APTI4 | AH196: - | AI196: - | AJ196: 32 | AK196: ativo
A197: PMAM3 | B197: Paranapanema | C197: ON | D197: BR | E197: Ação | F197: Siderur & Metalur | G197: 1010.82 | H197: 1.46 | I197: 692.346 | J197: 602.5 | K197: 3508.46 | L197: 4765.78 | M197: -135.77 | N197: -49.16 | O197: -337.2 | P197: -356.04 | Q197: -323.37 | R197: -135.77 | S197: -323.37 | T197: -323.37 | U197: -36.3945 | V197: 315.9275 | W197: -214.7 | X197: 82.7 | Y197: 82.7 | Z197: 1903.454 | AA197: 0 | AB197: 0 | AC197: -8.2 | AD197: 692.4 | AE197: 692.4 | AF197: 1 | AG197: PMAM3 | AH197: - | AI197: - | AJ197: 2396 | AK197: ativo
A198: LUPA3 | B198: Lupatech | C198: ON | D198: BR | E198: Ação | F198: Siderur & Metalur | G198: 30.21 | H198: 1.82 | I198: 16.598 | J198: 84.61 | K198: 112.37 | L198: 126.55 | M198: -5.49 | N198: -20.85 | O198: -66.25 | P198: -89.67 | Q198: -96.71 | R198: -5.49 | S198: -96.71 | T198: -96.71 | U198: -90.3409 | V198: 131.0004 | W198: -40.7 | X198: -43.5 | Y198: -43.5 | Z198: 174.486 | AA198: 0 | AB198: -7.1 | AC198: -37.2 | AD198: 16.2 | AE198: 16.6 | AF198: 0.977 | AG198: LUPA3 | AH198: - | AI198: - | AJ198: 218 | AK198: ativo
A199: EALT4 | B199: Aco Altona | C199: PN | D199: BR | E199: Ação | F199: Siderur & Metalur | G199: 122.88 | H199: 5.21 | I199: 22.5 | J199: 154.62 | K199: 168.41 | L199: 246.96 | M199: 30.65 | N199: 3.66 | O199: 6.19 | P199: 9.74 | Q199: 12.25 | R199: 30.65 | S199: 12.25 | T199: 12.25 | U199: - | V199: 49.5538 | W199: 57.7 | X199: 30.1 | Y199: 30.1 | Z199: 76.622 | AA199: -5.81 | AB199: 1.2 | AC199: 66.2 | AD199: 9.8 | AE199: 22.5 | AF199: 0.433 | AG199: EALT4 | AH199: - | AI199: - | AJ199: 46 | AK199: ativo
A200: FJTA4 | B200: Forja Taurus | C200: PN | D200: BR | E200: Ação | F200: Siderur & Metalur | G200: 298.08 | H200: 3.87 | I200: 74.863 | J200: -406.96 | K200: 784.88 | L200: 845.29 | M200: -286.03 | N200: 1.19 | O200: -92.58 | P200: -44.61 | Q200: -59.86 | R200: -286.03 | S200: -59.86 | T200: -59.86 | U200: - | V200: -193.6599 | W200: -125.8 | X200: 80.5 | Y200: 80.5 | Z200: 788.124 | AA200: 0 | AB200: -7.9 | AC200: 120.7 | AD200: 46.4 | AE200: 74.9 | AF200: 0.62 | AG200: FJTA4 | AH200: - | AI200: - | AJ200: 4224 | AK200: ativo
A201: HAGA4 | B201: Haga S/A | C201: PN | D201: BR | E201: Ação | F201: Siderur & Metalur | G201: 23.8 | H201: 1.5 | I201: 11.9 | J201: -76.84 | K201: 24.41 | L201: 22.91 | M201: -1.41 | N201: -0.98 | O201: 1.41 | P201: 0.96 | Q201: 5.97 | R201: -1.41 | S201: 5.97 | T201: 5.97 | U201: - | V201: -12.1344 | W201: - | X201: - | Y201: - | Z201: 9.324 | AA201: - | AB201: -2.6 | AC201: -31.8 | AD201: 4 | AE201: 11.9 | AF201: 0.333 | AG201: HAGA4 | AH201: - | AI201: - | AJ201: 20 | AK201: ativo
... 66 more rows

Sheet Dados (hidden)
A1: Código | B1: Setor | C1: Empresa | D1: Fech (R$) | E1: Quantidade de Ações | F1: Valor Mercado | G1: Patrimônio Líquido (últ. balan.) | H1: Rec Líq. Anual (t-2) | I1: Rec Líq. Anual (t-1) | J1: Lucr Líq. Anual Acum. (t-4) | K1: Lucr Líq. Anual Acum. (t-3) | L1: Lucr Líq. Anual Acum. (t-2) | M1: Lucr Líq. Anual Acum. (t-1) | N1: Lucr Líq. Anual Acum. (t) | O1: Lucr Líq. Anual (t-2) | P1: Lucr Líq. Anual (t-1) | Q1: LPA (últimos 12 meses) | R1: VPA (últimos 12 meses) | S1: P/VPA (últimos 12 meses) | T1: P/L (últimos 12 meses) | U1: Rentab. Patrimonial | V1: Dívida Líq/ Patrimônio | W1: EBITDA Anual (t-2) | X1: EBITDA Anual (t-1) | Y1: EBITDA 12 meses | Z1: FirmValue/Ebitda | AA1: Dividendos acum ano (t-1) | AB1: Dividend Yield. | AC1: Oscliação mês % | AD1: Oscliação ano % | AE1: % ON / Total | AF1: Código Ação | AG1: Dívida Líquida | AH1: Nome Maiores/elhores
A2: =IF(Economática!AG4="","",Economática!AG4) -> AGRO3 | B2: =IF($A2="","",VLOOKUP(VLOOKUP($A2,Economática!$A$3:$AI$823,6,FALSE),Correção!$B$16:$C$36,2,FALSE)) -> Agro | C2: =IF(Economática!B4="","",Economática!B4) -> Brasilagro | D2: =IF($A2="","",IF(OR(VLOOKUP($A2,Economática!$A$3:$AI$823,8,FALSE)=0,VLOOKUP($A2,Economática!$A$3:$AI$823,8,FALSE)="-"),1/0,VLOOKUP($A2,Economática!$A$3:$AI$823,8,FALSE))) -> 15.55 | E2: =IF(A2="","",IF(ISERROR(VLOOKUP(A2,Correção!$B$2:$G$13,9,FALSE)),VLOOKUP($A2,Economática!$A$3:$AI$823,9,FALSE),VLOOKUP(A2,Correção!$B$2:$G$13,9,FALSE))) -> 53.802 | F2: =IF($A2="","",Economática!G4) -> 836.62 | G2: =IF($A2="","",IF(OR(VLOOKUP($A2,Economática!$A$3:$AI$823,10,FALSE)=0,VLOOKUP($A2,Economática!$A$3:$AI$823,10,FALSE)="-"),1/0,VLOOKUP($A2,Economática!$A$3:$AI$823,10,FALSE))) -> 882.81 | H2: =IF($A2="","",IF(OR(VLOOKUP($A2,Economática!$A$3:$AI$823,11,FALSE)=0,VLOOKUP($A2,Economática!$A$3:$AI$823,11,FALSE)="-"),1/0,VLOOKUP($A2,Economática!$A$3:$AI$823,11,FALSE))) -> 174.6 | I2: =IF($A2="","",IF(OR(VLOOKUP($A2,Economática!$A$3:$AI$823,12,FALSE)=0,VLOOKUP($A2,Economática!$A$3:$AI$823,12,FALSE)="-"),1/0,VLOOKUP($A2,Economática!$A$3:$AI$823,12,FALSE))) -> 336.38 | J2: =IF($A2="","",IF(OR(VLOOKUP($A2,Economática!$A$3:$AI$823,13,FALSE)=0,VLOOKUP($A2,Economática!$A$3:$AI$823,13,FALSE)="-"),1/0,VLOOKUP($A2,Economática!$A$3:$AI$823,13,FALSE))) -> 31.64 | K2: =IF($A2="","",IF(OR(VLOOKUP($A2,Economática!$A$3:$AI$823,14,FALSE)=0,VLOOKUP($A2,Economática!$A$3:$AI$823,14,FALSE)="-"),1/0,VLOOKUP($A2,Economática!$A$3:$AI$823,14,FALSE))) -> 85.62 | L2: =IF($A2="","",IF(OR(VLOOKUP($A2,Economática!$A$3:$AI$823,15,FALSE)=0,VLOOKUP($A2,Economática!$A$3:$AI$823,15,FALSE)="-"),1/0,VLOOKUP($A2,Economática!$A$3:$AI$823,15,FALSE))) -> 126.34 | M2: =IF($A2="","",IF(OR(VLOOKUP($A2,Economática!$A$3:$AI$823,16,FALSE)=0,VLOOKUP($A2,Economática!$A$3:$AI$823,16,FALSE)="-"),1/0,VLOOKUP($A2,Economática!$A$3:$AI$823,16,FALSE))) -> 136.64 | N2: =IF($A2="","",IF(OR(VLOOKUP($A2,Economática!$A$3:$AI$823,17,FALSE)=0,VLOOKUP($A2,Economática!$A$3:$AI$823,17,FALSE)="-"),1/0,VLOOKUP($A2,Economática!$A$3:$AI$823,17,FALSE))) -> 136.12 | O2: =IF($A2="","",IF(OR(VLOOKUP($A2,Economática!$A$3:$AI$823,18,FALSE)=0,VLOOKUP($A2,Economática!$A$3:$AI$823,18,FALSE)="-"),1/0,VLOOKUP($A2,Economática!$A$3:$AI$823,18,FALSE))) -> 31.64 | P2: =IF($A2="","",IF(OR(VLOOKUP($A2,Economática!$A$3:$AI$823,19,FALSE)=0,VLOOKUP($A2,Economática!$A$3:$AI$823,19,FALSE)="-"),1/0,VLOOKUP($A2,Economática!$A$3:$AI$823,19,FALSE))) -> 136.12 | Q2: =IF($A2="","",VLOOKUP($A2,Economática!$A$3:$AI$823,20,FALSE)/E2) -> 4.290360953 | R2: =IF($A2="","",IF((G2/E2)<=0,1/0,G2/E2)) -> 16.40849783 | S2: =IF($A2="","",D2/R2) -> 0.9476796819 | T2: =IF($A2="","",IF((D2/Q2)<=0,1/0,D2/Q2)) -> 3.624403674 | U2: =IF($A2="","",IF(OR(VLOOKUP($A2,Economática!$A$3:$AI$823,21,FALSE)/100=0,VLOOKUP($A2,Economática!$A$3:$AI$823,21,FALSE)/100="-"),1/0,VLOOKUP($A2,Economática!$A$3:$AI$823,21,FALSE)/100)) -> 0.332711 | V2: =IF($A2="","",IF(OR(VLOOKUP($A2,Economática!$A$3:$AI$823,22,FALSE)/100=0,VLOOKUP($A2,Economática!$A$3:$AI$823,22,FALSE)/100="-"),1/0,VLOOKUP($A2,Economática!$A$3:$AI$823,22,FALSE)/100)) -> 0.236371 | W2: =IF($A2="","",IF(OR(VLOOKUP($A2,Economática!$A$3:$AI$823,23,FALSE)=0,VLOOKUP($A2,Economática!$A$3:$AI$823,23,FALSE)="-"),1/0,VLOOKUP($A2,Economática!$A$3:$AI$823,23,FALSE))) -> 58.8 | X2: =IF($A2="","",IF(OR(VLOOKUP($A2,Economática!$A$3:$AI$823,24,FALSE)=0,VLOOKUP($A2,Economática!$A$3:$AI$823,24,FALSE)="-"),1/0,VLOOKUP($A2,Economática!$A$3:$AI$823,24,FALSE))) -> 175.9 | Y2: =IF($A2="","",IF(OR(VLOOKUP($A2,Economática!$A$3:$AI$823,25,FALSE)=0,VLOOKUP($A2,Economática!$A$3:$AI$823,25,FALSE)="-"),1/0,VLOOKUP($A2,Economática!$A$3:$AI$823,25,FALSE))) -> 301.1 | Z2: =IF($A2="","",IF(ISERROR((F2+VLOOKUP($A2,Economática!$A$3:$AI$823,26,FALSE))/Y2),(F2+VLOOKUP($A2,Economática!$A$3:$AI$823,26,FALSE))/Y2,(F2+VLOOKUP($A2,Economática!$A$3:$AI$823,26,FALSE))/Y2)) -> 3.471577549 | AA2: =IF($A2="","",IF(OR(-VLOOKUP($A2,Economática!$A$3:$AI$823,27,FALSE)=0,-VLOOKUP($A2,Economática!$A$3:$AI$823,27,FALSE)="-"),1/0,-VLOOKUP($A2,Economática!$A$3:$AI$823,27,FALSE))) -> 41 | AB2: =IF(A2="","",AA2/F2) -> 0.04900671751 | AC2: =IF($A2="","",IF(OR(VLOOKUP($A2,Economática!$A$3:$AI$823,28,FALSE)=0,VLOOKUP($A2,Economática!$A$3:$AI$823,28,FALSE)="-"),1/0,VLOOKUP($A2,Economática!$A$3:$AI$823,28,FALSE))) -> -1.9 | AD2: =IF($A2="","",IF(OR(VLOOKUP($A2,Economática!$A$3:$AI$823,29,FALSE)=0,VLOOKUP($A2,Economática!$A$3:$AI$823,29,FALSE)="-"),1/0,VLOOKUP($A2,Economática!$A$3:$AI$823,29,FALSE))) -> 31.2 | AE2: =IF($A2="","",IF(OR(VLOOKUP($A2,Economática!$A$3:$AI$823,30,FALSE)/E2=0,VLOOKUP($A2,Economática!$A$3:$AI$823,30,FALSE)/E2="-",VLOOKUP($A2,Economática!$A$3:$AI$823,30,FALSE)/E2<33.33%,VLOOKUP($A2,Economática!$A$3:$AI$823,30,FALSE)/E2>100%),1/0,VLOOKUP($A2,Economática!$A$3:$AI$823,30,FALSE)/E2)) ->  | AF2: =IF(A2="","",A2) -> AGRO3 | AG2: =IF($A2="","",IF(OR(VLOOKUP($A2,Economática!$A$3:$AI$823,25,FALSE)=0,VLOOKUP($A2,Economática!$A$3:$AI$823,25,FALSE)="-"),1/0,VLOOKUP($A2,Economática!$A$3:$AI$823,25,FALSE))) -> 301.1 | AH2: =CONCATENATE(Economática!B4," ",Economática!C4) -> Brasilagro ON
A3: =IF(Economática!AG5="","",Economática!AG5) -> SLCE3 | B3: =IF($A3="","",VLOOKUP(VLOOKUP($A3,Economática!$A$3:$AI$823,6,FALSE),Correção!$B$16:$C$36,2,FALSE)) -> Agro | C3: =IF(Economática!B5="","",Economática!B5) -> SLC Agricola | D3: =IF($A3="","",IF(OR(VLOOKUP($A3,Economática!$A$3:$AI$823,8,FALSE)=0,VLOOKUP($A3,Economática!$A$3:$AI$823,8,FALSE)="-"),1/0,VLOOKUP($A3,Economática!$A$3:$AI$823,8,FALSE))) -> 41.06 | E3: =IF(A3="","",IF(ISERROR(VLOOKUP(A3,Correção!$B$2:$G$13,9,FALSE)),VLOOKUP($A3,Economática!$A$3:$AI$823,9,FALSE),VLOOKUP(A3,Correção!$B$2:$G$13,9,FALSE))) -> 94.08 | F3: =IF($A3="","",Economática!G5) -> 3862.93 | G3: =IF($A3="","",IF(OR(VLOOKUP($A3,Economática!$A$3:$AI$823,10,FALSE)=0,VLOOKUP($A3,Economática!$A$3:$AI$823,10,FALSE)="-"),1/0,VLOOKUP($A3,Economática!$A$3:$AI$823,10,FALSE))) -> 2598.17 | H3: =IF($A3="","",IF(OR(VLOOKUP($A3,Economática!$A$3:$AI$823,11,FALSE)=0,VLOOKUP($A3,Economática!$A$3:$AI$823,11,FALSE)="-"),1/0,VLOOKUP($A3,Economática!$A$3:$AI$823,11,FALSE))) -> 2219.9 | I3: =IF($A3="","",IF(OR(VLOOKUP($A3,Economática!$A$3:$AI$823,12,FALSE)=0,VLOOKUP($A3,Economática!$A$3:$AI$823,12,FALSE)="-"),1/0,VLOOKUP($A3,Economática!$A$3:$AI$823,12,FALSE))) -> 2823.47 | J3: =IF($A3="","",IF(OR(VLOOKUP($A3,Economática!$A$3:$AI$823,13,FALSE)=0,VLOOKUP($A3,Economática!$A$3:$AI$823,13,FALSE)="-"),1/0,VLOOKUP($A3,Economática!$A$3:$AI$823,13,FALSE))) -> 356.34 | K3: =IF($A3="","",IF(OR(VLOOKUP($A3,Economática!$A$3:$AI$823,14,FALSE)=0,VLOOKUP($A3,Economática!$A$3:$AI$823,14,FALSE)="-"),1/0,VLOOKUP($A3,Economática!$A$3:$AI$823,14,FALSE))) -> 154.32 | L3: =IF($A3="","",IF(OR(VLOOKUP($A3,Economática!$A$3:$AI$823,15,FALSE)=0,VLOOKUP($A3,Economática!$A$3:$AI$823,15,FALSE)="-"),1/0,VLOOKUP($A3,Economática!$A$3:$AI$823,15,FALSE))) -> 311.37 | M3: =IF($A3="","",IF(OR(VLOOKUP($A3,Economática!$A$3:$AI$823,16,FALSE)=0,VLOOKUP($A3,Economática!$A$3:$AI$823,16,FALSE)="-"),1/0,VLOOKUP($A3,Economática!$A$3:$AI$823,16,FALSE))) -> 347.16 | N3: =IF($A3="","",IF(OR(VLOOKUP($A3,Economática!$A$3:$AI$823,17,FALSE)=0,VLOOKUP($A3,Economática!$A$3:$AI$823,17,FALSE)="-"),1/0,VLOOKUP($A3,Economática!$A$3:$AI$823,17,FALSE))) -> 381.25 | O3: =IF($A3="","",IF(OR(VLOOKUP($A3,Economática!$A$3:$AI$823,18,FALSE)=0,VLOOKUP($A3,Economática!$A$3:$AI$823,18,FALSE)="-"),1/0,VLOOKUP($A3,Economática!$A$3:$AI$823,18,FALSE))) -> 356.34 | P3: =IF($A3="","",IF(OR(VLOOKUP($A3,Economática!$A$3:$AI$823,19,FALSE)=0,VLOOKUP($A3,Economática!$A$3:$AI$823,19,FALSE)="-"),1/0,VLOOKUP($A3,Economática!$A$3:$AI$823,19,FALSE))) -> 381.25 | Q3: =IF($A3="","",VLOOKUP($A3,Economática!$A$3:$AI$823,20,FALSE)/E3) -> 4.052402211 | R3: =IF($A3="","",IF((G3/E3)<=0,1/0,G3/E3)) -> 27.61660289 | S3: =IF($A3="","",D3/R3) -> 1.486786777 | T3: =IF($A3="","",IF((D3/Q3)<=0,1/0,D3/Q3)) -> 10.13226177 | U3: =IF($A3="","",IF(OR(VLOOKUP($A3,Economática!$A$3:$AI$823,21,FALSE)/100=0,VLOOKUP($A3,Economática!$A$3:$AI$823,21,FALSE)/100="-"),1/0,VLOOKUP($A3,Economática!$A$3:$AI$823,21,FALSE)/100)) -> 0.150454 | V3: =IF($A3="","",IF(OR(VLOOKUP($A3,Economática!$A$3:$AI$823,22,FALSE)/100=0,VLOOKUP($A3,Economática!$A$3:$AI$823,22,FALSE)/100="-"),1/0,VLOOKUP($A3,Economática!$A$3:$AI$823,22,FALSE)/100)) -> 0.344336 | W3: =IF($A3="","",IF(OR(VLOOKUP($A3,Economática!$A$3:$AI$823,23,FALSE)=0,VLOOKUP($A3,Economática!$A$3:$AI$823,23,FALSE)="-"),1/0,VLOOKUP($A3,Economática!$A$3:$AI$823,23,FALSE))) -> 685 | X3: =IF($A3="","",IF(OR(VLOOKUP($A3,Economática!$A$3:$AI$823,24,FALSE)=0,VLOOKUP($A3,Economática!$A$3:$AI$823,24,FALSE)="-"),1/0,VLOOKUP($A3,Economática!$A$3:$AI$823,24,FALSE))) -> 769 | Y3: =IF($A3="","",IF(OR(VLOOKUP($A3,Economática!$A$3:$AI$823,25,FALSE)=0,VLOOKUP($A3,Economática!$A$3:$AI$823,25,FALSE)="-"),1/0,VLOOKUP($A3,Economática!$A$3:$AI$823,25,FALSE))) -> 769 | Z3: =IF($A3="","",IF(ISERROR((F3+VLOOKUP($A3,Economática!$A$3:$AI$823,26,FALSE))/Y3),(F3+VLOOKUP($A3,Economática!$A$3:$AI$823,26,FALSE))/Y3,(F3+VLOOKUP($A3,Economática!$A$3:$AI$823,26,FALSE))/Y3)) -> 6.274726918 | AA3: =IF($A3="","",IF(OR(-VLOOKUP($A3,Economática!$A$3:$AI$823,27,FALSE)=0,-VLOOKUP($A3,Economática!$A$3:$AI$823,27,FALSE)="-"),1/0,-VLOOKUP($A3,Economática!$A$3:$AI$823,27,FALSE))) -> 199.99 | AB3: =IF(A3="","",AA3/F3) -> 0.05177158271 | AC3: =IF($A3="","",IF(OR(VLOOKUP($A3,Economática!$A$3:$AI$823,28,FALSE)=0,VLOOKUP($A3,Economática!$A$3:$AI$823,28,FALSE)="-"),1/0,VLOOKUP($A3,Economática!$A$3:$AI$823,28,FALSE))) -> 0.1 | AD3: =IF($A3="","",IF(OR(VLOOKUP($A3,Economática!$A$3:$AI$823,29,FALSE)=0,VLOOKUP($A3,Economática!$A$3:$AI$823,29,FALSE)="-"),1/0,VLOOKUP($A3,Economática!$A$3:$AI$823,29,FALSE))) -> 61.7 | AE3: =IF($A3="","",IF(OR(VLOOKUP($A3,Economática!$A$3:$AI$823,30,FALSE)/E3=0,VLOOKUP($A3,Economática!$A$3:$AI$823,30,FALSE)/E3="-",VLOOKUP($A3,Economática!$A$3:$AI$823,30,FALSE)/E3<33.33%,VLOOKUP($A3,Economática!$A$3:$AI$823,30,FALSE)/E3>100%),1/0,VLOOKUP($A3,Economática!$A$3:$AI$823,30,FALSE)/E3)) ->  | AF3: =IF(A3="","",A3) -> SLCE3 | AG3: =IF($A3="","",IF(OR(VLOOKUP($A3,Economática!$A$3:$AI$823,25,FALSE)=0,VLOOKUP($A3,Economática!$A$3:$AI$823,25,FALSE)="-"),1/0,VLOOKUP($A3,Economática!$A$3:$AI$823,25,FALSE))) -> 769 | AH3: =CONCATENATE(Economática!B5," ",Economática!C5) -> SLC Agricola ON
A4: =IF(Economática!AG6="","",Economática!AG6) -> BSEV3 | B4: =IF($A4="","",VLOOKUP(VLOOKUP($A4,Economática!$A$3:$AI$823,6,FALSE),Correção!$B$16:$C$36,2,FALSE)) -> Agro | C4: =IF(Economática!B6="","",Economática!B6) -> Biosev | D4: =IF($A4="","",IF(OR(VLOOKUP($A4,Economática!$A$3:$AI$823,8,FALSE)=0,VLOOKUP($A4,Economática!$A$3:$AI$823,8,FALSE)="-"),1/0,VLOOKUP($A4,Economática!$A$3:$AI$823,8,FALSE))) -> 2.67 | E4: =IF(A4="","",IF(ISERROR(VLOOKUP(A4,Correção!$B$2:$G$13,9,FALSE)),VLOOKUP($A4,Economática!$A$3:$AI$823,9,FALSE),VLOOKUP(A4,Correção!$B$2:$G$13,9,FALSE))) -> 1020.429 | F4: =IF($A4="","",Economática!G6) -> 2724.55 | G4: =IF($A4="","",IF(OR(VLOOKUP($A4,Economática!$A$3:$AI$823,10,FALSE)=0,VLOOKUP($A4,Economática!$A$3:$AI$823,10,FALSE)="-"),1/0,VLOOKUP($A4,Economática!$A$3:$AI$823,10,FALSE))) -> 624.42 | H4: =IF($A4="","",IF(OR(VLOOKUP($A4,Economática!$A$3:$AI$823,11,FALSE)=0,VLOOKUP($A4,Economática!$A$3:$AI$823,11,FALSE)="-"),1/0,VLOOKUP($A4,Economática!$A$3:$AI$823,11,FALSE))) -> 5147.72 | I4: =IF($A4="","",IF(OR(VLOOKUP($A4,Economática!$A$3:$AI$823,12,FALSE)=0,VLOOKUP($A4,Economática!$A$3:$AI$823,12,FALSE)="-"),1/0,VLOOKUP($A4,Economática!$A$3:$AI$823,12,FALSE))) -> 4959.07 | J4: =IF($A4="","",IF(OR(VLOOKUP($A4,Economática!$A$3:$AI$823,13,FALSE)=0,VLOOKUP($A4,Economática!$A$3:$AI$823,13,FALSE)="-"),1/0,VLOOKUP($A4,Economática!$A$3:$AI$823,13,FALSE))) -> -823.16 | K4: =IF($A4="","",IF(OR(VLOOKUP($A4,Economática!$A$3:$AI$823,14,FALSE)=0,VLOOKUP($A4,Economática!$A$3:$AI$823,14,FALSE)="-"),1/0,VLOOKUP($A4,Economática!$A$3:$AI$823,14,FALSE))) -> -1269.83 | L4: =IF($A4="","",IF(OR(VLOOKUP($A4,Economática!$A$3:$AI$823,15,FALSE)=0,VLOOKUP($A4,Economática!$A$3:$AI$823,15,FALSE)="-"),1/0,VLOOKUP($A4,Economática!$A$3:$AI$823,15,FALSE))) -> -506.21 | M4: =IF($A4="","",IF(OR(VLOOKUP($A4,Economática!$A$3:$AI$823,16,FALSE)=0,VLOOKUP($A4,Economática!$A$3:$AI$823,16,FALSE)="-"),1/0,VLOOKUP($A4,Economática!$A$3:$AI$823,16,FALSE))) -> -661.76 | N4: =IF($A4="","",IF(OR(VLOOKUP($A4,Economática!$A$3:$AI$823,17,FALSE)=0,VLOOKUP($A4,Economática!$A$3:$AI$823,17,FALSE)="-"),1/0,VLOOKUP($A4,Economática!$A$3:$AI$823,17,FALSE))) -> -892.2 | O4: =IF($A4="","",IF(OR(VLOOKUP($A4,Economática!$A$3:$AI$823,18,FALSE)=0,VLOOKUP($A4,Economática!$A$3:$AI$823,18,FALSE)="-"),1/0,VLOOKUP($A4,Economática!$A$3:$AI$823,18,FALSE))) -> -823.16 | P4: =IF($A4="","",IF(OR(VLOOKUP($A4,Economática!$A$3:$AI$823,19,FALSE)=0,VLOOKUP($A4,Economática!$A$3:$AI$823,19,FALSE)="-"),1/0,VLOOKUP($A4,Economática!$A$3:$AI$823,19,FALSE))) -> -892.2 | Q4: =IF($A4="","",VLOOKUP($A4,Economática!$A$3:$AI$823,20,FALSE)/E4) -> -1.312065808 | R4: 0.6119191046 | S4: 4.363321851 | U4: =IF($A4="","",IF(OR(VLOOKUP($A4,Economática!$A$3:$AI$823,21,FALSE)/100=0,VLOOKUP($A4,Economática!$A$3:$AI$823,21,FALSE)/100="-"),1/0,VLOOKUP($A4,Economática!$A$3:$AI$823,21,FALSE)/100)) ->  | V4: =IF($A4="","",IF(OR(VLOOKUP($A4,Economática!$A$3:$AI$823,22,FALSE)/100=0,VLOOKUP($A4,Economática!$A$3:$AI$823,22,FALSE)/100="-"),1/0,VLOOKUP($A4,Economática!$A$3:$AI$823,22,FALSE)/100)) -> 8.001728 | W4: =IF($A4="","",IF(OR(VLOOKUP($A4,Economática!$A$3:$AI$823,23,FALSE)=0,VLOOKUP($A4,Economática!$A$3:$AI$823,23,FALSE)="-"),1/0,VLOOKUP($A4,Economática!$A$3:$AI$823,23,FALSE))) -> 968.8 | X4: =IF($A4="","",IF(OR(VLOOKUP($A4,Economática!$A$3:$AI$823,24,FALSE)=0,VLOOKUP($A4,Economática!$A$3:$AI$823,24,FALSE)="-"),1/0,VLOOKUP($A4,Economática!$A$3:$AI$823,24,FALSE))) -> 1050.1 | Y4: =IF($A4="","",IF(OR(VLOOKUP($A4,Economática!$A$3:$AI$823,25,FALSE)=0,VLOOKUP($A4,Economática!$A$3:$AI$823,25,FALSE)="-"),1/0,VLOOKUP($A4,Economática!$A$3:$AI$823,25,FALSE))) -> 1007.6 | Z4: =IF($A4="","",IF(ISERROR((F4+VLOOKUP($A4,Economática!$A$3:$AI$823,26,FALSE))/Y4),(F4+VLOOKUP($A4,Economática!$A$3:$AI$823,26,FALSE))/Y4,(F4+VLOOKUP($A4,Economática!$A$3:$AI$823,26,FALSE))/Y4)) -> 7.712965462 | AA4: =IF($A4="","",IF(OR(-VLOOKUP($A4,Economática!$A$3:$AI$823,27,FALSE)=0,-VLOOKUP($A4,Economática!$A$3:$AI$823,27,FALSE)="-"),1/0,-VLOOKUP($A4,Economática!$A$3:$AI$823,27,FALSE))) ->  | AC4: =IF($A4="","",IF(OR(VLOOKUP($A4,Economática!$A$3:$AI$823,28,FALSE)=0,VLOOKUP($A4,Economática!$A$3:$AI$823,28,FALSE)="-"),1/0,VLOOKUP($A4,Economática!$A$3:$AI$823,28,FALSE))) -> -8.6 | AD4: =IF($A4="","",IF(OR(VLOOKUP($A4,Economática!$A$3:$AI$823,29,FALSE)=0,VLOOKUP($A4,Economática!$A$3:$AI$823,29,FALSE)="-"),1/0,VLOOKUP($A4,Economática!$A$3:$AI$823,29,FALSE))) -> -40.8 | AE4: =IF($A4="","",IF(OR(VLOOKUP($A4,Economática!$A$3:$AI$823,30,FALSE)/E4=0,VLOOKUP($A4,Economática!$A$3:$AI$823,30,FALSE)/E4="-",VLOOKUP($A4,Economática!$A$3:$AI$823,30,FALSE)/E4<33.33%,VLOOKUP($A4,Economática!$A$3:$AI$823,30,FALSE)/E4>100%),1/0,VLOOKUP($A4,Economática!$A$3:$AI$823,30,FALSE)/E4)) -> 0.9999715806 | AF4: BSEV3 | AG4: =IF($A4="","",IF(OR(VLOOKUP($A4,Economática!$A$3:$AI$823,25,FALSE)=0,VLOOKUP($A4,Economática!$A$3:$AI$823,25,FALSE)="-"),1/0,VLOOKUP($A4,Economática!$A$3:$AI$823,25,FALSE))) -> 1007.6 | AH4: =CONCATENATE(Economática!B6," ",Economática!C6) -> Biosev ON
A5: =IF(Economática!AG7="","",Economática!AG7) -> FRTA3 | B5: =IF($A5="","",VLOOKUP(VLOOKUP($A5,Economática!$A$3:$AI$823,6,FALSE),Correção!$B$16:$C$36,2,FALSE)) -> Agro | C5: =IF(Economática!B7="","",Economática!B7) -> Pomifrutas | D5: =IF($A5="","",IF(OR(VLOOKUP($A5,Economática!$A$3:$AI$823,8,FALSE)=0,VLOOKUP($A5,Economática!$A$3:$AI$823,8,FALSE)="-"),1/0,VLOOKUP($A5,Economática!$A$3:$AI$823,8,FALSE))) -> 0.89 | E5: =IF(A5="","",IF(ISERROR(VLOOKUP(A5,Correção!$B$2:$G$13,9,FALSE)),VLOOKUP($A5,Economática!$A$3:$AI$823,9,FALSE),VLOOKUP(A5,Correção!$B$2:$G$13,9,FALSE))) -> 12.006 | F5: =IF($A5="","",Economática!G7) -> 10.69 | G5: =IF($A5="","",IF(OR(VLOOKUP($A5,Economática!$A$3:$AI$823,10,FALSE)=0,VLOOKUP($A5,Economática!$A$3:$AI$823,10,FALSE)="-"),1/0,VLOOKUP($A5,Economática!$A$3:$AI$823,10,FALSE))) -> -68.56 | H5: =IF($A5="","",IF(OR(VLOOKUP($A5,Economática!$A$3:$AI$823,11,FALSE)=0,VLOOKUP($A5,Economática!$A$3:$AI$823,11,FALSE)="-"),1/0,VLOOKUP($A5,Economática!$A$3:$AI$823,11,FALSE))) -> 44.73 | I5: =IF($A5="","",IF(OR(VLOOKUP($A5,Economática!$A$3:$AI$823,12,FALSE)=0,VLOOKUP($A5,Economática!$A$3:$AI$823,12,FALSE)="-"),1/0,VLOOKUP($A5,Economática!$A$3:$AI$823,12,FALSE))) -> 5.22 | J5: =IF($A5="","",IF(OR(VLOOKUP($A5,Economática!$A$3:$AI$823,13,FALSE)=0,VLOOKUP($A5,Economática!$A$3:$AI$823,13,FALSE)="-"),1/0,VLOOKUP($A5,Economática!$A$3:$AI$823,13,FALSE))) -> -20.05 | K5: =IF($A5="","",IF(OR(VLOOKUP($A5,Economática!$A$3:$AI$823,14,FALSE)=0,VLOOKUP($A5,Economática!$A$3:$AI$823,14,FALSE)="-"),1/0,VLOOKUP($A5,Economática!$A$3:$AI$823,14,FALSE))) -> -1.56 | L5: =IF($A5="","",IF(OR(VLOOKUP($A5,Economática!$A$3:$AI$823,15,FALSE)=0,VLOOKUP($A5,Economática!$A$3:$AI$823,15,FALSE)="-"),1/0,VLOOKUP($A5,Economática!$A$3:$AI$823,15,FALSE))) -> -5.72 | M5: =IF($A5="","",IF(OR(VLOOKUP($A5,Economática!$A$3:$AI$823,16,FALSE)=0,VLOOKUP($A5,Economática!$A$3:$AI$823,16,FALSE)="-"),1/0,VLOOKUP($A5,Economática!$A$3:$AI$823,16,FALSE))) -> -7.1 | N5: =IF($A5="","",IF(OR(VLOOKUP($A5,Economática!$A$3:$AI$823,17,FALSE)=0,VLOOKUP($A5,Economática!$A$3:$AI$823,17,FALSE)="-"),1/0,VLOOKUP($A5,Economática!$A$3:$AI$823,17,FALSE))) -> -7.51 | O5: =IF($A5="","",IF(OR(VLOOKUP($A5,Economática!$A$3:$AI$823,18,FALSE)=0,VLOOKUP($A5,Economática!$A$3:$AI$823,18,FALSE)="-"),1/0,VLOOKUP($A5,Economática!$A$3:$AI$823,18,FALSE))) -> -20.05 | P5: =IF($A5="","",IF(OR(VLOOKUP($A5,Economática!$A$3:$AI$823,19,FALSE)=0,VLOOKUP($A5,Economática!$A$3:$AI$823,19,FALSE)="-"),1/0,VLOOKUP($A5,Economática!$A$3:$AI$823,19,FALSE))) -> -7.51 | Q5: =IF($A5="","",VLOOKUP($A5,Economática!$A$3:$AI$823,20,FALSE)/E5) -> -0.625520573 | U5: =IF($A5="","",IF(OR(VLOOKUP($A5,Economática!$A$3:$AI$823,21,FALSE)/100=0,VLOOKUP($A5,Economática!$A$3:$AI$823,21,FALSE)/100="-"),1/0,VLOOKUP($A5,Economática!$A$3:$AI$823,21,FALSE)/100)) ->  | V5: =IF($A5="","",IF(OR(VLOOKUP($A5,Economática!$A$3:$AI$823,22,FALSE)/100=0,VLOOKUP($A5,Economática!$A$3:$AI$823,22,FALSE)/100="-"),1/0,VLOOKUP($A5,Economática!$A$3:$AI$823,22,FALSE)/100)) -> -0.698676 | W5: =IF($A5="","",IF(OR(VLOOKUP($A5,Economática!$A$3:$AI$823,23,FALSE)=0,VLOOKUP($A5,Economática!$A$3:$AI$823,23,FALSE)="-"),1/0,VLOOKUP($A5,Economática!$A$3:$AI$823,23,FALSE))) -> -18.1 | X5: =IF($A5="","",IF(OR(VLOOKUP($A5,Economática!$A$3:$AI$823,24,FALSE)=0,VLOOKUP($A5,Economática!$A$3:$AI$823,24,FALSE)="-"),1/0,VLOOKUP($A5,Economática!$A$3:$AI$823,24,FALSE))) -> -10.8 | Y5: =IF($A5="","",IF(OR(VLOOKUP($A5,Economática!$A$3:$AI$823,25,FALSE)=0,VLOOKUP($A5,Economática!$A$3:$AI$823,25,FALSE)="-"),1/0,VLOOKUP($A5,Economática!$A$3:$AI$823,25,FALSE))) -> -10.8 | Z5: =IF($A5="","",IF(ISERROR((F5+VLOOKUP($A5,Economática!$A$3:$AI$823,26,FALSE))/Y5),(F5+VLOOKUP($A5,Economática!$A$3:$AI$823,26,FALSE))/Y5,(F5+VLOOKUP($A5,Economática!$A$3:$AI$823,26,FALSE))/Y5)) -> -5.42537037 | AA5: =IF($A5="","",IF(OR(-VLOOKUP($A5,Economática!$A$3:$AI$823,27,FALSE)=0,-VLOOKUP($A5,Economática!$A$3:$AI$823,27,FALSE)="-"),1/0,-VLOOKUP($A5,Economática!$A$3:$AI$823,27,FALSE))) ->  | AC5: =IF($A5="","",IF(OR(VLOOKUP($A5,Economática!$A$3:$AI$823,28,FALSE)=0,VLOOKUP($A5,Economática!$A$3:$AI$823,28,FALSE)="-"),1/0,VLOOKUP($A5,Economática!$A$3:$AI$823,28,FALSE))) -> -6.3 | AD5: =IF($A5="","",IF(OR(VLOOKUP($A5,Economática!$A$3:$AI$823,29,FALSE)=0,VLOOKUP($A5,Economática!$A$3:$AI$823,29,FALSE)="-"),1/0,VLOOKUP($A5,Economática!$A$3:$AI$823,29,FALSE))) -> -38.2 | AE5: =IF($A5="","",IF(OR(VLOOKUP($A5,Economática!$A$3:$AI$823,30,FALSE)/E5=0,VLOOKUP($A5,Economática!$A$3:$AI$823,30,FALSE)/E5="-",VLOOKUP($A5,Economática!$A$3:$AI$823,30,FALSE)/E5<33.33%,VLOOKUP($A5,Economática!$A$3:$AI$823,30,FALSE)/E5>100%),1/0,VLOOKUP($A5,Economática!$A$3:$AI$823,30,FALSE)/E5)) -> 0.9995002499 | AF5: FRTA3 | AG5: =IF($A5="","",IF(OR(VLOOKUP($A5,Economática!$A$3:$AI$823,25,FALSE)=0,VLOOKUP($A5,Economática!$A$3:$AI$823,25,FALSE)="-"),1/0,VLOOKUP($A5,Economática!$A$3:$AI$823,25,FALSE))) -> -10.8 | AH5: =CONCATENATE(Economática!B7," ",Economática!C7) -> Pomifrutas ON
A6: =IF(Economática!AG8="","",Economática!AG8) -> MRFG3 | B6: =IF($A6="","",VLOOKUP(VLOOKUP($A6,Economática!$A$3:$AI$823,6,FALSE),Correção!$B$16:$C$36,2,FALSE)) -> Alimentos e Bebidas | C6: =IF(Economática!B8="","",Economática!B8) -> Marfrig | D6: =IF($A6="","",IF(OR(VLOOKUP($A6,Economática!$A$3:$AI$823,8,FALSE)=0,VLOOKUP($A6,Economática!$A$3:$AI$823,8,FALSE)="-"),1/0,VLOOKUP($A6,Economática!$A$3:$AI$823,8,FALSE))) -> 5.98 | E6: =IF(A6="","",IF(ISERROR(VLOOKUP(A6,Correção!$B$2:$G$13,9,FALSE)),VLOOKUP($A6,Economática!$A$3:$AI$823,9,FALSE),VLOOKUP(A6,Correção!$B$2:$G$13,9,FALSE))) -> 619.141 | F6: =IF($A6="","",Economática!G8) -> 3702.47 | G6: =IF($A6="","",IF(OR(VLOOKUP($A6,Economática!$A$3:$AI$823,10,FALSE)=0,VLOOKUP($A6,Economática!$A$3:$AI$823,10,FALSE)="-"),1/0,VLOOKUP($A6,Economática!$A$3:$AI$823,10,FALSE))) -> 673.46 | H6: =IF($A6="","",IF(OR(VLOOKUP($A6,Economática!$A$3:$AI$823,11,FALSE)=0,VLOOKUP($A6,Economática!$A$3:$AI$823,11,FALSE)="-"),1/0,VLOOKUP($A6,Economática!$A$3:$AI$823,11,FALSE))) -> 18577.87 | I6: =IF($A6="","",IF(OR(VLOOKUP($A6,Economática!$A$3:$AI$823,12,FALSE)=0,VLOOKUP($A6,Economática!$A$3:$AI$823,12,FALSE)="-"),1/0,VLOOKUP($A6,Economática!$A$3:$AI$823,12,FALSE))) -> 29715.18 | J6: =IF($A6="","",IF(OR(VLOOKUP($A6,Economática!$A$3:$AI$823,13,FALSE)=0,VLOOKUP($A6,Economática!$A$3:$AI$823,13,FALSE)="-"),1/0,VLOOKUP($A6,Economática!$A$3:$AI$823,13,FALSE))) -> -483.47 | K6: =IF($A6="","",IF(OR(VLOOKUP($A6,Economática!$A$3:$AI$823,14,FALSE)=0,VLOOKUP($A6,Economática!$A$3:$AI$823,14,FALSE)="-"),1/0,VLOOKUP($A6,Economática!$A$3:$AI$823,14,FALSE))) -> -202.69 | L6: =IF($A6="","",IF(OR(VLOOKUP($A6,Economática!$A$3:$AI$823,15,FALSE)=0,VLOOKUP($A6,Economática!$A$3:$AI$823,15,FALSE)="-"),1/0,VLOOKUP($A6,Economática!$A$3:$AI$823,15,FALSE))) -> -740.35 | M6: =IF($A6="","",IF(OR(VLOOKUP($A6,Economática!$A$3:$AI$823,16,FALSE)=0,VLOOKUP($A6,Economática!$A$3:$AI$823,16,FALSE)="-"),1/0,VLOOKUP($A6,Economática!$A$3:$AI$823,16,FALSE))) -> -820.79 | N6: =IF($A6="","",IF(OR(VLOOKUP($A6,Economática!$A$3:$AI$823,17,FALSE)=0,VLOOKUP($A6,Economática!$A$3:$AI$823,17,FALSE)="-"),1/0,VLOOKUP($A6,Economática!$A$3:$AI$823,17,FALSE))) -> 1395.26 | O6: =IF($A6="","",IF(OR(VLOOKUP($A6,Economática!$A$3:$AI$823,18,FALSE)=0,VLOOKUP($A6,Economática!$A$3:$AI$823,18,FALSE)="-"),1/0,VLOOKUP($A6,Economática!$A$3:$AI$823,18,FALSE))) -> -483.47 | P6: =IF($A6="","",IF(OR(VLOOKUP($A6,Economática!$A$3:$AI$823,19,FALSE)=0,VLOOKUP($A6,Economática!$A$3:$AI$823,19,FALSE)="-"),1/0,VLOOKUP($A6,Economática!$A$3:$AI$823,19,FALSE))) -> 1395.26 | Q6: =IF($A6="","",VLOOKUP($A6,Economática!$A$3:$AI$823,20,FALSE)/E6) -> 2.2535416 | R6: 1.087732843 | S6: 5.497673477 | T6: 2.653600892 | U6: =IF($A6="","",IF(OR(VLOOKUP($A6,Economática!$A$3:$AI$823,21,FALSE)/100=0,VLOOKUP($A6,Economática!$A$3:$AI$823,21,FALSE)/100="-"),1/0,VLOOKUP($A6,Economática!$A$3:$AI$823,21,FALSE)/100)) -> 0.817536 | V6: =IF($A6="","",IF(OR(VLOOKUP($A6,Economática!$A$3:$AI$823,22,FALSE)/100=0,VLOOKUP($A6,Economática!$A$3:$AI$823,22,FALSE)/100="-"),1/0,VLOOKUP($A6,Economática!$A$3:$AI$823,22,FALSE)/100)) -> 2.005943 | W6: =IF($A6="","",IF(OR(VLOOKUP($A6,Economática!$A$3:$AI$823,23,FALSE)=0,VLOOKUP($A6,Economática!$A$3:$AI$823,23,FALSE)="-"),1/0,VLOOKUP($A6,Economática!$A$3:$AI$823,23,FALSE))) -> 1566.1 | X6: =IF($A6="","",IF(OR(VLOOKUP($A6,Economática!$A$3:$AI$823,24,FALSE)=0,VLOOKUP($A6,Economática!$A$3:$AI$823,24,FALSE)="-"),1/0,VLOOKUP($A6,Economática!$A$3:$AI$823,24,FALSE))) -> 1075.2 | Y6: =IF($A6="","",IF(OR(VLOOKUP($A6,Economática!$A$3:$AI$823,25,FALSE)=0,VLOOKUP($A6,Economática!$A$3:$AI$823,25,FALSE)="-"),1/0,VLOOKUP($A6,Economática!$A$3:$AI$823,25,FALSE))) -> 1075.2 | Z6: =IF($A6="","",IF(ISERROR((F6+VLOOKUP($A6,Economática!$A$3:$AI$823,26,FALSE))/Y6),(F6+VLOOKUP($A6,Economática!$A$3:$AI$823,26,FALSE))/Y6,(F6+VLOOKUP($A6,Economática!$A$3:$AI$823,26,FALSE))/Y6)) -> 10.92766462 | AA6: =IF($A6="","",IF(OR(-VLOOKUP($A6,Economática!$A$3:$AI$823,27,FALSE)=0,-VLOOKUP($A6,Economática!$A$3:$AI$823,27,FALSE)="-"),1/0,-VLOOKUP($A6,Economática!$A$3:$AI$823,27,FALSE))) ->  | AC6: =IF($A6="","",IF(OR(VLOOKUP($A6,Economática!$A$3:$AI$823,28,FALSE)=0,VLOOKUP($A6,Economática!$A$3:$AI$823,28,FALSE)="-"),1/0,VLOOKUP($A6,Economática!$A$3:$AI$823,28,FALSE))) -> 8.7 | AD6: =IF($A6="","",IF(OR(VLOOKUP($A6,Economática!$A$3:$AI$823,29,FALSE)=0,VLOOKUP($A6,Economática!$A$3:$AI$823,29,FALSE)="-"),1/0,VLOOKUP($A6,Economática!$A$3:$AI$823,29,FALSE))) -> -18.3 | AE6: =IF($A6="","",IF(OR(VLOOKUP($A6,Economática!$A$3:$AI$823,30,FALSE)/E6=0,VLOOKUP($A6,Economática!$A$3:$AI$823,30,FALSE)/E6="-",VLOOKUP($A6,Economática!$A$3:$AI$823,30,FALSE)/E6<33.33%,VLOOKUP($A6,Economática!$A$3:$AI$823,30,FALSE)/E6>100%),1/0,VLOOKUP($A6,Economática!$A$3:$AI$823,30,FALSE)/E6)) ->  | AF6: MRFG3 | AG6: =IF($A6="","",IF(OR(VLOOKUP($A6,Economática!$A$3:$AI$823,25,FALSE)=0,VLOOKUP($A6,Economática!$A$3:$AI$823,25,FALSE)="-"),1/0,VLOOKUP($A6,Economática!$A$3:$AI$823,25,FALSE))) -> 1075.2 | AH6: =CONCATENATE(Economática!B8," ",Economática!C8) -> Marfrig ON
A7: =IF(Economática!AG9="","",Economática!AG9) -> BAUH4 | B7: =IF($A7="","",VLOOKUP(VLOOKUP($A7,Economática!$A$3:$AI$823,6,FALSE),Correção!$B$16:$C$36,2,FALSE)) -> Alimentos e Bebidas | C7: =IF(Economática!B9="","",Economática!B9) -> Excelsior | D7: =IF($A7="","",IF(OR(VLOOKUP($A7,Economática!$A$3:$AI$823,8,FALSE)=0,VLOOKUP($A7,Economática!$A$3:$AI$823,8,FALSE)="-"),1/0,VLOOKUP($A7,Economática!$A$3:$AI$823,8,FALSE))) -> 26.49 | E7: =IF(A7="","",IF(ISERROR(VLOOKUP(A7,Correção!$B$2:$G$13,9,FALSE)),VLOOKUP($A7,Economática!$A$3:$AI$823,9,FALSE),VLOOKUP(A7,Correção!$B$2:$G$13,9,FALSE))) -> 5.222 | F7: =IF($A7="","",Economática!G9) -> 138.33 | G7: =IF($A7="","",IF(OR(VLOOKUP($A7,Economática!$A$3:$AI$823,10,FALSE)=0,VLOOKUP($A7,Economática!$A$3:$AI$823,10,FALSE)="-"),1/0,VLOOKUP($A7,Economática!$A$3:$AI$823,10,FALSE))) -> 49.15 | H7: =IF($A7="","",IF(OR(VLOOKUP($A7,Economática!$A$3:$AI$823,11,FALSE)=0,VLOOKUP($A7,Economática!$A$3:$AI$823,11,FALSE)="-"),1/0,VLOOKUP($A7,Economática!$A$3:$AI$823,11,FALSE))) -> 163.05 | I7: =IF($A7="","",IF(OR(VLOOKUP($A7,Economática!$A$3:$AI$823,12,FALSE)=0,VLOOKUP($A7,Economática!$A$3:$AI$823,12,FALSE)="-"),1/0,VLOOKUP($A7,Economática!$A$3:$AI$823,12,FALSE))) -> 173.87 | J7: =IF($A7="","",IF(OR(VLOOKUP($A7,Economática!$A$3:$AI$823,13,FALSE)=0,VLOOKUP($A7,Economática!$A$3:$AI$823,13,FALSE)="-"),1/0,VLOOKUP($A7,Economática!$A$3:$AI$823,13,FALSE))) -> 9.42 | K7: =IF($A7="","",IF(OR(VLOOKUP($A7,Economática!$A$3:$AI$823,14,FALSE)=0,VLOOKUP($A7,Economática!$A$3:$AI$823,14,FALSE)="-"),1/0,VLOOKUP($A7,Economática!$A$3:$AI$823,14,FALSE))) -> 2.38 | L7: =IF($A7="","",IF(OR(VLOOKUP($A7,Economática!$A$3:$AI$823,15,FALSE)=0,VLOOKUP($A7,Economática!$A$3:$AI$823,15,FALSE)="-"),1/0,VLOOKUP($A7,Economática!$A$3:$AI$823,15,FALSE))) -> 4.05 | M7: =IF($A7="","",IF(OR(VLOOKUP($A7,Economática!$A$3:$AI$823,16,FALSE)=0,VLOOKUP($A7,Economática!$A$3:$AI$823,16,FALSE)="-"),1/0,VLOOKUP($A7,Economática!$A$3:$AI$823,16,FALSE))) -> 8.03 | N7: =IF($A7="","",IF(OR(VLOOKUP($A7,Economática!$A$3:$AI$823,17,FALSE)=0,VLOOKUP($A7,Economática!$A$3:$AI$823,17,FALSE)="-"),1/0,VLOOKUP($A7,Economática!$A$3:$AI$823,17,FALSE))) -> 10.05 | O7: =IF($A7="","",IF(OR(VLOOKUP($A7,Economática!$A$3:$AI$823,18,FALSE)=0,VLOOKUP($A7,Economática!$A$3:$AI$823,18,FALSE)="-"),1/0,VLOOKUP($A7,Economática!$A$3:$AI$823,18,FALSE))) -> 9.42 | P7: =IF($A7="","",IF(OR(VLOOKUP($A7,Economática!$A$3:$AI$823,19,FALSE)=0,VLOOKUP($A7,Economática!$A$3:$AI$823,19,FALSE)="-"),1/0,VLOOKUP($A7,Economática!$A$3:$AI$823,19,FALSE))) -> 10.05 | Q7: =IF($A7="","",VLOOKUP($A7,Economática!$A$3:$AI$823,20,FALSE)/E7) -> 1.924549981 | R7: 9.412102643 | S7: 2.814461445 | T7: 13.76425672 | U7: =IF($A7="","",IF(OR(VLOOKUP($A7,Economática!$A$3:$AI$823,21,FALSE)/100=0,VLOOKUP($A7,Economática!$A$3:$AI$823,21,FALSE)/100="-"),1/0,VLOOKUP($A7,Economática!$A$3:$AI$823,21,FALSE)/100)) -> 0.242292 | V7: =IF($A7="","",IF(OR(VLOOKUP($A7,Economática!$A$3:$AI$823,22,FALSE)/100=0,VLOOKUP($A7,Economática!$A$3:$AI$823,22,FALSE)/100="-"),1/0,VLOOKUP($A7,Economática!$A$3:$AI$823,22,FALSE)/100)) -> -0.490223 | W7: =IF($A7="","",IF(OR(VLOOKUP($A7,Economática!$A$3:$AI$823,23,FALSE)=0,VLOOKUP($A7,Economática!$A$3:$AI$823,23,FALSE)="-"),1/0,VLOOKUP($A7,Economática!$A$3:$AI$823,23,FALSE))) -> 17.1 | X7: =IF($A7="","",IF(OR(VLOOKUP($A7,Economática!$A$3:$AI$823,24,FALSE)=0,VLOOKUP($A7,Economática!$A$3:$AI$823,24,FALSE)="-"),1/0,VLOOKUP($A7,Economática!$A$3:$AI$823,24,FALSE))) -> 17.9 | Y7: =IF($A7="","",IF(OR(VLOOKUP($A7,Economática!$A$3:$AI$823,25,FALSE)=0,VLOOKUP($A7,Economática!$A$3:$AI$823,25,FALSE)="-"),1/0,VLOOKUP($A7,Economática!$A$3:$AI$823,25,FALSE))) -> 17.9 | Z7: =IF($A7="","",IF(ISERROR((F7+VLOOKUP($A7,Economática!$A$3:$AI$823,26,FALSE))/Y7),(F7+VLOOKUP($A7,Economática!$A$3:$AI$823,26,FALSE))/Y7,(F7+VLOOKUP($A7,Economática!$A$3:$AI$823,26,FALSE))/Y7)) -> 6.381955307 | AA7: =IF($A7="","",IF(OR(-VLOOKUP($A7,Economática!$A$3:$AI$823,27,FALSE)=0,-VLOOKUP($A7,Economática!$A$3:$AI$823,27,FALSE)="-"),1/0,-VLOOKUP($A7,Economática!$A$3:$AI$823,27,FALSE))) -> 3.13 | AB7: 0.02262705125 | AC7: =IF($A7="","",IF(OR(VLOOKUP($A7,Economática!$A$3:$AI$823,28,FALSE)=0,VLOOKUP($A7,Economática!$A$3:$AI$823,28,FALSE)="-"),1/0,VLOOKUP($A7,Economática!$A$3:$AI$823,28,FALSE))) -> 7.9 | AD7: =IF($A7="","",IF(OR(VLOOKUP($A7,Economática!$A$3:$AI$823,29,FALSE)=0,VLOOKUP($A7,Economática!$A$3:$AI$823,29,FALSE)="-"),1/0,VLOOKUP($A7,Economática!$A$3:$AI$823,29,FALSE))) -> 152.9 | AE7: =IF($A7="","",IF(OR(VLOOKUP($A7,Economática!$A$3:$AI$823,30,FALSE)/E7=0,VLOOKUP($A7,Economática!$A$3:$AI$823,30,FALSE)/E7="-",VLOOKUP($A7,Economática!$A$3:$AI$823,30,FALSE)/E7<33.33%,VLOOKUP($A7,Economática!$A$3:$AI$823,30,FALSE)/E7>100%),1/0,VLOOKUP($A7,Economática!$A$3:$AI$823,30,FALSE)/E7)) -> 0.5361930295 | AF7: BAUH4 | AG7: =IF($A7="","",IF(OR(VLOOKUP($A7,Economática!$A$3:$AI$823,25,FALSE)=0,VLOOKUP($A7,Economática!$A$3:$AI$823,25,FALSE)="-"),1/0,VLOOKUP($A7,Economática!$A$3:$AI$823,25,FALSE))) -> 17.9 | AH7: =CONCATENATE(Economática!B9," ",Economática!C9) -> Excelsior PN
A8: =IF(Economática!AG10="","",Economática!AG10) -> ABEV3 | B8: =IF($A8="","",VLOOKUP(VLOOKUP($A8,Economática!$A$3:$AI$823,6,FALSE),Correção!$B$16:$C$36,2,FALSE)) -> Alimentos e Bebidas | C8: =IF(Economática!B10="","",Economática!B10) -> Ambev S/A | D8: =IF($A8="","",IF(OR(VLOOKUP($A8,Economática!$A$3:$AI$823,8,FALSE)=0,VLOOKUP($A8,Economática!$A$3:$AI$823,8,FALSE)="-"),1/0,VLOOKUP($A8,Economática!$A$3:$AI$823,8,FALSE))) -> 16.83 | E8: =IF(A8="","",IF(ISERROR(VLOOKUP(A8,Correção!$B$2:$G$13,9,FALSE)),VLOOKUP($A8,Economática!$A$3:$AI$823,9,FALSE),VLOOKUP(A8,Correção!$B$2:$G$13,9,FALSE))) -> 15721.119 | F8: =IF($A8="","",Economática!G10) -> 264586.43 | G8: =IF($A8="","",IF(OR(VLOOKUP($A8,Economática!$A$3:$AI$823,10,FALSE)=0,VLOOKUP($A8,Economática!$A$3:$AI$823,10,FALSE)="-"),1/0,VLOOKUP($A8,Economática!$A$3:$AI$823,10,FALSE))) -> 56340.62 | H8: =IF($A8="","",IF(OR(VLOOKUP($A8,Economática!$A$3:$AI$823,11,FALSE)=0,VLOOKUP($A8,Economática!$A$3:$AI$823,11,FALSE)="-"),1/0,VLOOKUP($A8,Economática!$A$3:$AI$823,11,FALSE))) -> 47899.28 | I8: =IF($A8="","",IF(OR(VLOOKUP($A8,Economática!$A$3:$AI$823,12,FALSE)=0,VLOOKUP($A8,Economática!$A$3:$AI$823,12,FALSE)="-"),1/0,VLOOKUP($A8,Economática!$A$3:$AI$823,12,FALSE))) -> 50231.34 | J8: =IF($A8="","",IF(OR(VLOOKUP($A8,Economática!$A$3:$AI$823,13,FALSE)=0,VLOOKUP($A8,Economática!$A$3:$AI$823,13,FALSE)="-"),1/0,VLOOKUP($A8,Economática!$A$3:$AI$823,13,FALSE))) -> 7331.97 | K8: =IF($A8="","",IF(OR(VLOOKUP($A8,Economática!$A$3:$AI$823,14,FALSE)=0,VLOOKUP($A8,Economática!$A$3:$AI$823,14,FALSE)="-"),1/0,VLOOKUP($A8,Economática!$A$3:$AI$823,14,FALSE))) -> 2515.96 | L8: =IF($A8="","",IF(OR(VLOOKUP($A8,Economática!$A$3:$AI$823,15,FALSE)=0,VLOOKUP($A8,Economática!$A$3:$AI$823,15,FALSE)="-"),1/0,VLOOKUP($A8,Economática!$A$3:$AI$823,15,FALSE))) -> 4833.11 | M8: =IF($A8="","",IF(OR(VLOOKUP($A8,Economática!$A$3:$AI$823,16,FALSE)=0,VLOOKUP($A8,Economática!$A$3:$AI$823,16,FALSE)="-"),1/0,VLOOKUP($A8,Economática!$A$3:$AI$823,16,FALSE))) -> 7664.27 | N8: =IF($A8="","",IF(OR(VLOOKUP($A8,Economática!$A$3:$AI$823,17,FALSE)=0,VLOOKUP($A8,Economática!$A$3:$AI$823,17,FALSE)="-"),1/0,VLOOKUP($A8,Economática!$A$3:$AI$823,17,FALSE))) -> 11024.68 | O8: =IF($A8="","",IF(OR(VLOOKUP($A8,Economática!$A$3:$AI$823,18,FALSE)=0,VLOOKUP($A8,Economática!$A$3:$AI$823,18,FALSE)="-"),1/0,VLOOKUP($A8,Economática!$A$3:$AI$823,18,FALSE))) -> 7331.97 | P8: =IF($A8="","",IF(OR(VLOOKUP($A8,Economática!$A$3:$AI$823,19,FALSE)=0,VLOOKUP($A8,Economática!$A$3:$AI$823,19,FALSE)="-"),1/0,VLOOKUP($A8,Economática!$A$3:$AI$823,19,FALSE))) -> 11024.68 | Q8: =IF($A8="","",VLOOKUP($A8,Economática!$A$3:$AI$823,20,FALSE)/E8) -> 0.7012656033 | R8: 3.583753803 | S8: 4.696193133 | T8: 23.999466 | U8: =IF($A8="","",IF(OR(VLOOKUP($A8,Economática!$A$3:$AI$823,21,FALSE)/100=0,VLOOKUP($A8,Economática!$A$3:$AI$823,21,FALSE)/100="-"),1/0,VLOOKUP($A8,Economática!$A$3:$AI$823,21,FALSE)/100)) -> 0.237114 | V8: =IF($A8="","",IF(OR(VLOOKUP($A8,Economática!$A$3:$AI$823,22,FALSE)/100=0,VLOOKUP($A8,Economática!$A$3:$AI$823,22,FALSE)/100="-"),1/0,VLOOKUP($A8,Economática!$A$3:$AI$823,22,FALSE)/100)) -> -0.157333 | W8: =IF($A8="","",IF(OR(VLOOKUP($A8,Economática!$A$3:$AI$823,23,FALSE)=0,VLOOKUP($A8,Economática!$A$3:$AI$823,23,FALSE)="-"),1/0,VLOOKUP($A8,Economática!$A$3:$AI$823,23,FALSE))) -> 20035.8 | X8: =IF($A8="","",IF(OR(VLOOKUP($A8,Economática!$A$3:$AI$823,24,FALSE)=0,VLOOKUP($A8,Economática!$A$3:$AI$823,24,FALSE)="-"),1/0,VLOOKUP($A8,Economática!$A$3:$AI$823,24,FALSE))) -> 21013.5 | Y8: =IF($A8="","",IF(OR(VLOOKUP($A8,Economática!$A$3:$AI$823,25,FALSE)=0,VLOOKUP($A8,Economática!$A$3:$AI$823,25,FALSE)="-"),1/0,VLOOKUP($A8,Economática!$A$3:$AI$823,25,FALSE))) -> 21013.5 | Z8: =IF($A8="","",IF(ISERROR((F8+VLOOKUP($A8,Economática!$A$3:$AI$823,26,FALSE))/Y8),(F8+VLOOKUP($A8,Economática!$A$3:$AI$823,26,FALSE))/Y8,(F8+VLOOKUP($A8,Economática!$A$3:$AI$823,26,FALSE))/Y8)) -> 12.1603878 | AA8: =IF($A8="","",IF(OR(-VLOOKUP($A8,Economática!$A$3:$AI$823,27,FALSE)=0,-VLOOKUP($A8,Economática!$A$3:$AI$823,27,FALSE)="-"),1/0,-VLOOKUP($A8,Economática!$A$3:$AI$823,27,FALSE))) -> 8598.12 | AB8: 0.03249645116 | AC8: =IF($A8="","",IF(OR(VLOOKUP($A8,Economática!$A$3:$AI$823,28,FALSE)=0,VLOOKUP($A8,Economática!$A$3:$AI$823,28,FALSE)="-"),1/0,VLOOKUP($A8,Economática!$A$3:$AI$823,28,FALSE))) -> -2.3 | AD8: =IF($A8="","",IF(OR(VLOOKUP($A8,Economática!$A$3:$AI$823,29,FALSE)=0,VLOOKUP($A8,Economática!$A$3:$AI$823,29,FALSE)="-"),1/0,VLOOKUP($A8,Economática!$A$3:$AI$823,29,FALSE))) -> -18.3 | AE8: =IF($A8="","",IF(OR(VLOOKUP($A8,Economática!$A$3:$AI$823,30,FALSE)/E8=0,VLOOKUP($A8,Economática!$A$3:$AI$823,30,FALSE)/E8="-",VLOOKUP($A8,Economática!$A$3:$AI$823,30,FALSE)/E8<33.33%,VLOOKUP($A8,Economática!$A$3:$AI$823,30,FALSE)/E8>100%),1/0,VLOOKUP($A8,Economática!$A$3:$AI$823,30,FALSE)/E8)) ->  | AF8: ABEV3 | AG8: =IF($A8="","",IF(OR(VLOOKUP($A8,Economática!$A$3:$AI$823,25,FALSE)=0,VLOOKUP($A8,Economática!$A$3:$AI$823,25,FALSE)="-"),1/0,VLOOKUP($A8,Economática!$A$3:$AI$823,25,FALSE))) -> 21013.5 | AH8: =CONCATENATE(Economática!B10," ",Economática!C10) -> Ambev S/A ON
A9: =IF(Economática!AG11="","",Economática!AG11) -> CAML3 | B9: =IF($A9="","",VLOOKUP(VLOOKUP($A9,Economática!$A$3:$AI$823,6,FALSE),Correção!$B$16:$C$36,2,FALSE)) -> Alimentos e Bebidas | C9: =IF(Economática!B11="","",Economática!B11) -> Camil | D9: =IF($A9="","",IF(OR(VLOOKUP($A9,Economática!$A$3:$AI$823,8,FALSE)=0,VLOOKUP($A9,Economática!$A$3:$AI$823,8,FALSE)="-"),1/0,VLOOKUP($A9,Economática!$A$3:$AI$823,8,FALSE))) -> 6.81 | E9: =IF(A9="","",IF(ISERROR(VLOOKUP(A9,Correção!$B$2:$G$13,9,FALSE)),VLOOKUP($A9,Economática!$A$3:$AI$823,9,FALSE),VLOOKUP(A9,Correção!$B$2:$G$13,9,FALSE))) -> 404.23 | F9: =IF($A9="","",Economática!G11) -> 2752.81 | G9: =IF($A9="","",IF(OR(VLOOKUP($A9,Economática!$A$3:$AI$823,10,FALSE)=0,VLOOKUP($A9,Economática!$A$3:$AI$823,10,FALSE)="-"),1/0,VLOOKUP($A9,Economática!$A$3:$AI$823,10,FALSE))) -> 2091.19 | H9: =IF($A9="","",IF(OR(VLOOKUP($A9,Economática!$A$3:$AI$823,11,FALSE)=0,VLOOKUP($A9,Economática!$A$3:$AI$823,11,FALSE)="-"),1/0,VLOOKUP($A9,Economática!$A$3:$AI$823,11,FALSE))) ->  | I9: =IF($A9="","",IF(OR(VLOOKUP($A9,Economática!$A$3:$AI$823,12,FALSE)=0,VLOOKUP($A9,Economática!$A$3:$AI$823,12,FALSE)="-"),1/0,VLOOKUP($A9,Economática!$A$3:$AI$823,12,FALSE))) ->  | J9: =IF($A9="","",IF(OR(VLOOKUP($A9,Economática!$A$3:$AI$823,13,FALSE)=0,VLOOKUP($A9,Economática!$A$3:$AI$823,13,FALSE)="-"),1/0,VLOOKUP($A9,Economática!$A$3:$AI$823,13,FALSE))) -> 173.43 | K9: =IF($A9="","",IF(OR(VLOOKUP($A9,Economática!$A$3:$AI$823,14,FALSE)=0,VLOOKUP($A9,Economática!$A$3:$AI$823,14,FALSE)="-"),1/0,VLOOKUP($A9,Economática!$A$3:$AI$823,14,FALSE))) -> 250.67 | L9: =IF($A9="","",IF(OR(VLOOKUP($A9,Economática!$A$3:$AI$823,15,FALSE)=0,VLOOKUP($A9,Economática!$A$3:$AI$823,15,FALSE)="-"),1/0,VLOOKUP($A9,Economática!$A$3:$AI$823,15,FALSE))) -> 32.56 | M9: =IF($A9="","",IF(OR(VLOOKUP($A9,Economática!$A$3:$AI$823,16,FALSE)=0,VLOOKUP($A9,Economática!$A$3:$AI$823,16,FALSE)="-"),1/0,VLOOKUP($A9,Economática!$A$3:$AI$823,16,FALSE))) -> 111.63 | N9: =IF($A9="","",IF(OR(VLOOKUP($A9,Economática!$A$3:$AI$823,17,FALSE)=0,VLOOKUP($A9,Economática!$A$3:$AI$823,17,FALSE)="-"),1/0,VLOOKUP($A9,Economática!$A$3:$AI$823,17,FALSE))) -> 261.93 | O9: =IF($A9="","",IF(OR(VLOOKUP($A9,Economática!$A$3:$AI$823,18,FALSE)=0,VLOOKUP($A9,Economática!$A$3:$AI$823,18,FALSE)="-"),1/0,VLOOKUP($A9,Economática!$A$3:$AI$823,18,FALSE))) ->  | P9: =IF($A9="","",IF(OR(VLOOKUP($A9,Economática!$A$3:$AI$823,19,FALSE)=0,VLOOKUP($A9,Economática!$A$3:$AI$823,19,FALSE)="-"),1/0,VLOOKUP($A9,Economática!$A$3:$AI$823,19,FALSE))) ->  | Q9: =IF($A9="","",VLOOKUP($A9,Economática!$A$3:$AI$823,20,FALSE)/E9) -> 0.8390520248 | R9: 5.173267694 | S9: 1.316382682 | T9: 8.116302444 | U9: =IF($A9="","",IF(OR(VLOOKUP($A9,Economática!$A$3:$AI$823,21,FALSE)/100=0,VLOOKUP($A9,Economática!$A$3:$AI$823,21,FALSE)/100="-"),1/0,VLOOKUP($A9,Economática!$A$3:$AI$823,21,FALSE)/100)) -> 0.186252 | V9: =IF($A9="","",IF(OR(VLOOKUP($A9,Economática!$A$3:$AI$823,22,FALSE)/100=0,VLOOKUP($A9,Economática!$A$3:$AI$823,22,FALSE)/100="-"),1/0,VLOOKUP($A9,Economática!$A$3:$AI$823,22,FALSE)/100)) -> 0.442193 | W9: =IF($A9="","",IF(OR(VLOOKUP($A9,Economática!$A$3:$AI$823,23,FALSE)=0,VLOOKUP($A9,Economática!$A$3:$AI$823,23,FALSE)="-"),1/0,VLOOKUP($A9,Economática!$A$3:$AI$823,23,FALSE))) ->  | X9: =IF($A9="","",IF(OR(VLOOKUP($A9,Economática!$A$3:$AI$823,24,FALSE)=0,VLOOKUP($A9,Economática!$A$3:$AI$823,24,FALSE)="-"),1/0,VLOOKUP($A9,Economática!$A$3:$AI$823,24,FALSE))) ->  | Y9: =IF($A9="","",IF(OR(VLOOKUP($A9,Economática!$A$3:$AI$823,25,FALSE)=0,VLOOKUP($A9,Economática!$A$3:$AI$823,25,FALSE)="-"),1/0,VLOOKUP($A9,Economática!$A$3:$AI$823,25,FALSE))) -> 487.4 | Z9: =IF($A9="","",IF(ISERROR((F9+VLOOKUP($A9,Economática!$A$3:$AI$823,26,FALSE))/Y9),(F9+VLOOKUP($A9,Economática!$A$3:$AI$823,26,FALSE))/Y9,(F9+VLOOKUP($A9,Economática!$A$3:$AI$823,26,FALSE))/Y9)) -> 7.545176446 | AA9: =IF($A9="","",IF(OR(-VLOOKUP($A9,Economática!$A$3:$AI$823,27,FALSE)=0,-VLOOKUP($A9,Economática!$A$3:$AI$823,27,FALSE)="-"),1/0,-VLOOKUP($A9,Economática!$A$3:$AI$823,27,FALSE))) -> 85 | AB9: 0.03087753968 | AC9: =IF($A9="","",IF(OR(VLOOKUP($A9,Economática!$A$3:$AI$823,28,FALSE)=0,VLOOKUP($A9,Economática!$A$3:$AI$823,28,FALSE)="-"),1/0,VLOOKUP($A9,Economática!$A$3:$AI$823,28,FALSE))) -> -5.3 | AD9: =IF($A9="","",IF(OR(VLOOKUP($A9,Economática!$A$3:$AI$823,29,FALSE)=0,VLOOKUP($A9,Economática!$A$3:$AI$823,29,FALSE)="-"),1/0,VLOOKUP($A9,Economática!$A$3:$AI$823,29,FALSE))) -> -11 | AE9: =IF($A9="","",IF(OR(VLOOKUP($A9,Economática!$A$3:$AI$823,30,FALSE)/E9=0,VLOOKUP($A9,Economática!$A$3:$AI$823,30,FALSE)/E9="-",VLOOKUP($A9,Economática!$A$3:$AI$823,30,FALSE)/E9<33.33%,VLOOKUP($A9,Economática!$A$3:$AI$823,30,FALSE)/E9>100%),1/0,VLOOKUP($A9,Economática!$A$3:$AI$823,30,FALSE)/E9)) ->  | AF9: CAML3 | AG9: =IF($A9="","",IF(OR(VLOOKUP($A9,Economática!$A$3:$AI$823,25,FALSE)=0,VLOOKUP($A9,Economática!$A$3:$AI$823,25,FALSE)="-"),1/0,VLOOKUP($A9,Economática!$A$3:$AI$823,25,FALSE))) -> 487.4 | AH9: =CONCATENATE(Economática!B11," ",Economática!C11) -> Camil ON
A10: =IF(Economática!AG12="","",Economática!AG12) -> MDIA3 | B10: =IF($A10="","",VLOOKUP(VLOOKUP($A10,Economática!$A$3:$AI$823,6,FALSE),Correção!$B$16:$C$36,2,FALSE)) -> Alimentos e Bebidas | C10: =IF(Economática!B12="","",Economática!B12) -> M.Diasbranco | D10: =IF($A10="","",IF(OR(VLOOKUP($A10,Economática!$A$3:$AI$823,8,FALSE)=0,VLOOKUP($A10,Economática!$A$3:$AI$823,8,FALSE)="-"),1/0,VLOOKUP($A10,Economática!$A$3:$AI$823,8,FALSE))) -> 43.45 | E10: =IF(A10="","",IF(ISERROR(VLOOKUP(A10,Correção!$B$2:$G$13,9,FALSE)),VLOOKUP($A10,Economática!$A$3:$AI$823,9,FALSE),VLOOKUP(A10,Correção!$B$2:$G$13,9,FALSE))) -> 339 | F10: =IF($A10="","",Economática!G12) -> 14729.55 | G10: =IF($A10="","",IF(OR(VLOOKUP($A10,Economática!$A$3:$AI$823,10,FALSE)=0,VLOOKUP($A10,Economática!$A$3:$AI$823,10,FALSE)="-"),1/0,VLOOKUP($A10,Economática!$A$3:$AI$823,10,FALSE))) -> 5561.84 | H10: =IF($A10="","",IF(OR(VLOOKUP($A10,Economática!$A$3:$AI$823,11,FALSE)=0,VLOOKUP($A10,Economática!$A$3:$AI$823,11,FALSE)="-"),1/0,VLOOKUP($A10,Economática!$A$3:$AI$823,11,FALSE))) -> 5415.42 | I10: =IF($A10="","",IF(OR(VLOOKUP($A10,Economática!$A$3:$AI$823,12,FALSE)=0,VLOOKUP($A10,Economática!$A$3:$AI$823,12,FALSE)="-"),1/0,VLOOKUP($A10,Economática!$A$3:$AI$823,12,FALSE))) -> 6025.05 | J10: =IF($A10="","",IF(OR(VLOOKUP($A10,Economática!$A$3:$AI$823,13,FALSE)=0,VLOOKUP($A10,Economática!$A$3:$AI$823,13,FALSE)="-"),1/0,VLOOKUP($A10,Economática!$A$3:$AI$823,13,FALSE))) -> 844.18 | K10: =IF($A10="","",IF(OR(VLOOKUP($A10,Economática!$A$3:$AI$823,14,FALSE)=0,VLOOKUP($A10,Economática!$A$3:$AI$823,14,FALSE)="-"),1/0,VLOOKUP($A10,Economática!$A$3:$AI$823,14,FALSE))) -> 139.78 | L10: =IF($A10="","",IF(OR(VLOOKUP($A10,Economática!$A$3:$AI$823,15,FALSE)=0,VLOOKUP($A10,Economática!$A$3:$AI$823,15,FALSE)="-"),1/0,VLOOKUP($A10,Economática!$A$3:$AI$823,15,FALSE))) -> 349.4 | M10: =IF($A10="","",IF(OR(VLOOKUP($A10,Economática!$A$3:$AI$823,16,FALSE)=0,VLOOKUP($A10,Economática!$A$3:$AI$823,16,FALSE)="-"),1/0,VLOOKUP($A10,Economática!$A$3:$AI$823,16,FALSE))) -> 583.69 | N10: =IF($A10="","",IF(OR(VLOOKUP($A10,Economática!$A$3:$AI$823,17,FALSE)=0,VLOOKUP($A10,Economática!$A$3:$AI$823,17,FALSE)="-"),1/0,VLOOKUP($A10,Economática!$A$3:$AI$823,17,FALSE))) -> 723.5 | O10: =IF($A10="","",IF(OR(VLOOKUP($A10,Economática!$A$3:$AI$823,18,FALSE)=0,VLOOKUP($A10,Economática!$A$3:$AI$823,18,FALSE)="-"),1/0,VLOOKUP($A10,Economática!$A$3:$AI$823,18,FALSE))) -> 844.18 | P10: =IF($A10="","",IF(OR(VLOOKUP($A10,Economática!$A$3:$AI$823,19,FALSE)=0,VLOOKUP($A10,Economática!$A$3:$AI$823,19,FALSE)="-"),1/0,VLOOKUP($A10,Economática!$A$3:$AI$823,19,FALSE))) -> 723.5 | Q10: =IF($A10="","",VLOOKUP($A10,Economática!$A$3:$AI$823,20,FALSE)/E10) -> 2.134218289 | R10: 16.40660767 | S10: 2.648323217 | T10: 20.35874223 | U10: =IF($A10="","",IF(OR(VLOOKUP($A10,Economática!$A$3:$AI$823,21,FALSE)/100=0,VLOOKUP($A10,Economática!$A$3:$AI$823,21,FALSE)/100="-"),1/0,VLOOKUP($A10,Economática!$A$3:$AI$823,21,FALSE)/100)) -> 0.144934 | V10: =IF($A10="","",IF(OR(VLOOKUP($A10,Economática!$A$3:$AI$823,22,FALSE)/100=0,VLOOKUP($A10,Economática!$A$3:$AI$823,22,FALSE)/100="-"),1/0,VLOOKUP($A10,Economática!$A$3:$AI$823,22,FALSE)/100)) -> 0.143442 | W10: =IF($A10="","",IF(OR(VLOOKUP($A10,Economática!$A$3:$AI$823,23,FALSE)=0,VLOOKUP($A10,Economática!$A$3:$AI$823,23,FALSE)="-"),1/0,VLOOKUP($A10,Economática!$A$3:$AI$823,23,FALSE))) -> 966.3 | X10: =IF($A10="","",IF(OR(VLOOKUP($A10,Economática!$A$3:$AI$823,24,FALSE)=0,VLOOKUP($A10,Economática!$A$3:$AI$823,24,FALSE)="-"),1/0,VLOOKUP($A10,Economática!$A$3:$AI$823,24,FALSE))) -> 933.1 | Y10: =IF($A10="","",IF(OR(VLOOKUP($A10,Economática!$A$3:$AI$823,25,FALSE)=0,VLOOKUP($A10,Economática!$A$3:$AI$823,25,FALSE)="-"),1/0,VLOOKUP($A10,Economática!$A$3:$AI$823,25,FALSE))) -> 933.1 | Z10: =IF($A10="","",IF(ISERROR((F10+VLOOKUP($A10,Economática!$A$3:$AI$823,26,FALSE))/Y10),(F10+VLOOKUP($A10,Economática!$A$3:$AI$823,26,FALSE))/Y10,(F10+VLOOKUP($A10,Economática!$A$3:$AI$823,26,FALSE))/Y10)) -> 16.64061087 | AA10: =IF($A10="","",IF(OR(-VLOOKUP($A10,Economática!$A$3:$AI$823,27,FALSE)=0,-VLOOKUP($A10,Economática!$A$3:$AI$823,27,FALSE)="-"),1/0,-VLOOKUP($A10,Economática!$A$3:$AI$823,27,FALSE))) -> 132.37 | AB10: 0.00898669681 | AC10: =IF($A10="","",IF(OR(VLOOKUP($A10,Economática!$A$3:$AI$823,28,FALSE)=0,VLOOKUP($A10,Economática!$A$3:$AI$823,28,FALSE)="-"),1/0,VLOOKUP($A10,Economática!$A$3:$AI$823,28,FALSE))) -> -7.5 | AD10: =IF($A10="","",IF(OR(VLOOKUP($A10,Economática!$A$3:$AI$823,29,FALSE)=0,VLOOKUP($A10,Economática!$A$3:$AI$823,29,FALSE)="-"),1/0,VLOOKUP($A10,Economática!$A$3:$AI$823,29,FALSE))) -> -15.8 | AE10: =IF($A10="","",IF(OR(VLOOKUP($A10,Economática!$A$3:$AI$823,30,FALSE)/E10=0,VLOOKUP($A10,Economática!$A$3:$AI$823,30,FALSE)/E10="-",VLOOKUP($A10,Economática!$A$3:$AI$823,30,FALSE)/E10<33.33%,VLOOKUP($A10,Economática!$A$3:$AI$823,30,FALSE)/E10>100%),1/0,VLOOKUP($A10,Economática!$A$3:$AI$823,30,FALSE)/E10)) -> 1 | AF10: MDIA3 | AG10: =IF($A10="","",IF(OR(VLOOKUP($A10,Economática!$A$3:$AI$823,25,FALSE)=0,VLOOKUP($A10,Economática!$A$3:$AI$823,25,FALSE)="-"),1/0,VLOOKUP($A10,Economática!$A$3:$AI$823,25,FALSE))) -> 933.1 | AH10: =CONCATENATE(Economática!B12," ",Economática!C12) -> M.Diasbranco ON
A11: =IF(Economática!AG13="","",Economática!AG13) -> SMTO3 | B11: =IF($A11="","",VLOOKUP(VLOOKUP($A11,Economática!$A$3:$AI$823,6,FALSE),Correção!$B$16:$C$36,2,FALSE)) -> Alimentos e Bebidas | C11: =IF(Economática!B13="","",Economática!B13) -> Sao Martinho | D11: =IF($A11="","",IF(OR(VLOOKUP($A11,Economática!$A$3:$AI$823,8,FALSE)=0,VLOOKUP($A11,Economática!$A$3:$AI$823,8,FALSE)="-"),1/0,VLOOKUP($A11,Economática!$A$3:$AI$823,8,FALSE))) -> 18.34 | E11: =IF(A11="","",IF(ISERROR(VLOOKUP(A11,Correção!$B$2:$G$13,9,FALSE)),VLOOKUP($A11,Economática!$A$3:$AI$823,9,FALSE),VLOOKUP(A11,Correção!$B$2:$G$13,9,FALSE))) -> 350.803 | F11: =IF($A11="","",Economática!G13) -> 6433.72 | G11: =IF($A11="","",IF(OR(VLOOKUP($A11,Economática!$A$3:$AI$823,10,FALSE)=0,VLOOKUP($A11,Economática!$A$3:$AI$823,10,FALSE)="-"),1/0,VLOOKUP($A11,Economática!$A$3:$AI$823,10,FALSE))) -> 3344.62 | H11: =IF($A11="","",IF(OR(VLOOKUP($A11,Economática!$A$3:$AI$823,11,FALSE)=0,VLOOKUP($A11,Economática!$A$3:$AI$823,11,FALSE)="-"),1/0,VLOOKUP($A11,Economática!$A$3:$AI$823,11,FALSE))) -> 2321.36 | I11: =IF($A11="","",IF(OR(VLOOKUP($A11,Economática!$A$3:$AI$823,12,FALSE)=0,VLOOKUP($A11,Economática!$A$3:$AI$823,12,FALSE)="-"),1/0,VLOOKUP($A11,Economática!$A$3:$AI$823,12,FALSE))) -> 2236.67 | J11: =IF($A11="","",IF(OR(VLOOKUP($A11,Economática!$A$3:$AI$823,13,FALSE)=0,VLOOKUP($A11,Economática!$A$3:$AI$823,13,FALSE)="-"),1/0,VLOOKUP($A11,Economática!$A$3:$AI$823,13,FALSE))) -> 338.37 | K11: =IF($A11="","",IF(OR(VLOOKUP($A11,Economática!$A$3:$AI$823,14,FALSE)=0,VLOOKUP($A11,Economática!$A$3:$AI$823,14,FALSE)="-"),1/0,VLOOKUP($A11,Economática!$A$3:$AI$823,14,FALSE))) -> 491.71 | L11: =IF($A11="","",IF(OR(VLOOKUP($A11,Economática!$A$3:$AI$823,15,FALSE)=0,VLOOKUP($A11,Economática!$A$3:$AI$823,15,FALSE)="-"),1/0,VLOOKUP($A11,Economática!$A$3:$AI$823,15,FALSE))) -> 103.96 | M11: =IF($A11="","",IF(OR(VLOOKUP($A11,Economática!$A$3:$AI$823,16,FALSE)=0,VLOOKUP($A11,Economática!$A$3:$AI$823,16,FALSE)="-"),1/0,VLOOKUP($A11,Economática!$A$3:$AI$823,16,FALSE))) -> 162.51 | N11: =IF($A11="","",IF(OR(VLOOKUP($A11,Economática!$A$3:$AI$823,17,FALSE)=0,VLOOKUP($A11,Economática!$A$3:$AI$823,17,FALSE)="-"),1/0,VLOOKUP($A11,Economática!$A$3:$AI$823,17,FALSE))) -> 228.44 | O11: =IF($A11="","",IF(OR(VLOOKUP($A11,Economática!$A$3:$AI$823,18,FALSE)=0,VLOOKUP($A11,Economática!$A$3:$AI$823,18,FALSE)="-"),1/0,VLOOKUP($A11,Economática!$A$3:$AI$823,18,FALSE))) -> 338.37 | P11: =IF($A11="","",IF(OR(VLOOKUP($A11,Economática!$A$3:$AI$823,19,FALSE)=0,VLOOKUP($A11,Economática!$A$3:$AI$823,19,FALSE)="-"),1/0,VLOOKUP($A11,Economática!$A$3:$AI$823,19,FALSE))) -> 228.44 | Q11: =IF($A11="","",VLOOKUP($A11,Economática!$A$3:$AI$823,20,FALSE)/E11) -> 1.088274616 | R11: 9.534183003 | S11: 1.92360478 | T11: 16.85236404 | U11: =IF($A11="","",IF(OR(VLOOKUP($A11,Economática!$A$3:$AI$823,21,FALSE)/100=0,VLOOKUP($A11,Economática!$A$3:$AI$823,21,FALSE)/100="-"),1/0,VLOOKUP($A11,Economática!$A$3:$AI$823,21,FALSE)/100)) -> 0.113114 | V11: =IF($A11="","",IF(OR(VLOOKUP($A11,Economática!$A$3:$AI$823,22,FALSE)/100=0,VLOOKUP($A11,Economática!$A$3:$AI$823,22,FALSE)/100="-"),1/0,VLOOKUP($A11,Economática!$A$3:$AI$823,22,FALSE)/100)) -> 0.930538 | W11: =IF($A11="","",IF(OR(VLOOKUP($A11,Economática!$A$3:$AI$823,23,FALSE)=0,VLOOKUP($A11,Economática!$A$3:$AI$823,23,FALSE)="-"),1/0,VLOOKUP($A11,Economática!$A$3:$AI$823,23,FALSE))) -> 817.3 | X11: =IF($A11="","",IF(OR(VLOOKUP($A11,Economática!$A$3:$AI$823,24,FALSE)=0,VLOOKUP($A11,Economática!$A$3:$AI$823,24,FALSE)="-"),1/0,VLOOKUP($A11,Economática!$A$3:$AI$823,24,FALSE))) -> 739 | Y11: =IF($A11="","",IF(OR(VLOOKUP($A11,Economática!$A$3:$AI$823,25,FALSE)=0,VLOOKUP($A11,Economática!$A$3:$AI$823,25,FALSE)="-"),1/0,VLOOKUP($A11,Economática!$A$3:$AI$823,25,FALSE))) -> 1616.9 | Z11: =IF($A11="","",IF(ISERROR((F11+VLOOKUP($A11,Economática!$A$3:$AI$823,26,FALSE))/Y11),(F11+VLOOKUP($A11,Economática!$A$3:$AI$823,26,FALSE))/Y11,(F11+VLOOKUP($A11,Economática!$A$3:$AI$823,26,FALSE))/Y11)) -> 5.903896345 | AA11: =IF($A11="","",IF(OR(-VLOOKUP($A11,Economática!$A$3:$AI$823,27,FALSE)=0,-VLOOKUP($A11,Economática!$A$3:$AI$823,27,FALSE)="-"),1/0,-VLOOKUP($A11,Economática!$A$3:$AI$823,27,FALSE))) -> 180 | AB11: 0.02797759306 | AC11: =IF($A11="","",IF(OR(VLOOKUP($A11,Economática!$A$3:$AI$823,28,FALSE)=0,VLOOKUP($A11,Economática!$A$3:$AI$823,28,FALSE)="-"),1/0,VLOOKUP($A11,Economática!$A$3:$AI$823,28,FALSE))) -> -2.3 | AD11: =IF($A11="","",IF(OR(VLOOKUP($A11,Economática!$A$3:$AI$823,29,FALSE)=0,VLOOKUP($A11,Economática!$A$3:$AI$823,29,FALSE)="-"),1/0,VLOOKUP($A11,Economática!$A$3:$AI$823,29,FALSE))) -> -2.5 | AE11: =IF($A11="","",IF(OR(VLOOKUP($A11,Economática!$A$3:$AI$823,30,FALSE)/E11=0,VLOOKUP($A11,Economática!$A$3:$AI$823,30,FALSE)/E11="-",VLOOKUP($A11,Economática!$A$3:$AI$823,30,FALSE)/E11<33.33%,VLOOKUP($A11,Economática!$A$3:$AI$823,30,FALSE)/E11>100%),1/0,VLOOKUP($A11,Economática!$A$3:$AI$823,30,FALSE)/E11)) ->  | AF11: SMTO3 | AG11: =IF($A11="","",IF(OR(VLOOKUP($A11,Economática!$A$3:$AI$823,25,FALSE)=0,VLOOKUP($A11,Economática!$A$3:$AI$823,25,FALSE)="-"),1/0,VLOOKUP($A11,Economática!$A$3:$AI$823,25,FALSE))) -> 1616.9 | AH11: =CONCATENATE(Economática!B13," ",Economática!C13) -> Sao Martinho ON
A12: =IF(Economática!AG14="","",Economática!AG14) -> JBSS3 | B12: =IF($A12="","",VLOOKUP(VLOOKUP($A12,Economática!$A$3:$AI$823,6,FALSE),Correção!$B$16:$C$36,2,FALSE)) -> Alimentos e Bebidas | C12: =IF(Economática!B14="","",Economática!B14) -> JBS | D12: =IF($A12="","",IF(OR(VLOOKUP($A12,Economática!$A$3:$AI$823,8,FALSE)=0,VLOOKUP($A12,Economática!$A$3:$AI$823,8,FALSE)="-"),1/0,VLOOKUP($A12,Economática!$A$3:$AI$823,8,FALSE))) -> 15.92 | E12: =IF(A12="","",IF(ISERROR(VLOOKUP(A12,Correção!$B$2:$G$13,9,FALSE)),VLOOKUP($A12,Economática!$A$3:$AI$823,9,FALSE),VLOOKUP(A12,Correção!$B$2:$G$13,9,FALSE))) -> 2663.108 | F12: =IF($A12="","",Economática!G14) -> 42396.68 | G12: =IF($A12="","",IF(OR(VLOOKUP($A12,Economática!$A$3:$AI$823,10,FALSE)=0,VLOOKUP($A12,Economática!$A$3:$AI$823,10,FALSE)="-"),1/0,VLOOKUP($A12,Economática!$A$3:$AI$823,10,FALSE))) -> 25647 | H12: =IF($A12="","",IF(OR(VLOOKUP($A12,Economática!$A$3:$AI$823,11,FALSE)=0,VLOOKUP($A12,Economática!$A$3:$AI$823,11,FALSE)="-"),1/0,VLOOKUP($A12,Economática!$A$3:$AI$823,11,FALSE))) -> 163169.98 | I12: =IF($A12="","",IF(OR(VLOOKUP($A12,Economática!$A$3:$AI$823,12,FALSE)=0,VLOOKUP($A12,Economática!$A$3:$AI$823,12,FALSE)="-"),1/0,VLOOKUP($A12,Economática!$A$3:$AI$823,12,FALSE))) -> 181680.24 | J12: =IF($A12="","",IF(OR(VLOOKUP($A12,Economática!$A$3:$AI$823,13,FALSE)=0,VLOOKUP($A12,Economática!$A$3:$AI$823,13,FALSE)="-"),1/0,VLOOKUP($A12,Economática!$A$3:$AI$823,13,FALSE))) -> 534.2 | K12: =IF($A12="","",IF(OR(VLOOKUP($A12,Economática!$A$3:$AI$823,14,FALSE)=0,VLOOKUP($A12,Economática!$A$3:$AI$823,14,FALSE)="-"),1/0,VLOOKUP($A12,Economática!$A$3:$AI$823,14,FALSE))) -> 506.52 | L12: =IF($A12="","",IF(OR(VLOOKUP($A12,Economática!$A$3:$AI$823,15,FALSE)=0,VLOOKUP($A12,Economática!$A$3:$AI$823,15,FALSE)="-"),1/0,VLOOKUP($A12,Economática!$A$3:$AI$823,15,FALSE))) -> -404.56 | M12: =IF($A12="","",IF(OR(VLOOKUP($A12,Economática!$A$3:$AI$823,16,FALSE)=0,VLOOKUP($A12,Economática!$A$3:$AI$823,16,FALSE)="-"),1/0,VLOOKUP($A12,Economática!$A$3:$AI$823,16,FALSE))) -> -538.05 | N12: =IF($A12="","",IF(OR(VLOOKUP($A12,Economática!$A$3:$AI$823,17,FALSE)=0,VLOOKUP($A12,Economática!$A$3:$AI$823,17,FALSE)="-"),1/0,VLOOKUP($A12,Economática!$A$3:$AI$823,17,FALSE))) -> 25.2 | O12: =IF($A12="","",IF(OR(VLOOKUP($A12,Economática!$A$3:$AI$823,18,FALSE)=0,VLOOKUP($A12,Economática!$A$3:$AI$823,18,FALSE)="-"),1/0,VLOOKUP($A12,Economática!$A$3:$AI$823,18,FALSE))) -> 534.2 | P12: =IF($A12="","",IF(OR(VLOOKUP($A12,Economática!$A$3:$AI$823,19,FALSE)=0,VLOOKUP($A12,Economática!$A$3:$AI$823,19,FALSE)="-"),1/0,VLOOKUP($A12,Economática!$A$3:$AI$823,19,FALSE))) -> 25.2 | Q12: =IF($A12="","",VLOOKUP($A12,Economática!$A$3:$AI$823,20,FALSE)/E12) -> 0.009462627877 | R12: 9.630476871 | S12: 1.653085326 | T12: 1682.407911 | U12: =IF($A12="","",IF(OR(VLOOKUP($A12,Economática!$A$3:$AI$823,21,FALSE)/100=0,VLOOKUP($A12,Economática!$A$3:$AI$823,21,FALSE)/100="-"),1/0,VLOOKUP($A12,Economática!$A$3:$AI$823,21,FALSE)/100)) -> 0.008038 | V12: =IF($A12="","",IF(OR(VLOOKUP($A12,Economática!$A$3:$AI$823,22,FALSE)/100=0,VLOOKUP($A12,Economática!$A$3:$AI$823,22,FALSE)/100="-"),1/0,VLOOKUP($A12,Economática!$A$3:$AI$823,22,FALSE)/100)) -> 1.689594 | W12: =IF($A12="","",IF(OR(VLOOKUP($A12,Economática!$A$3:$AI$823,23,FALSE)=0,VLOOKUP($A12,Economática!$A$3:$AI$823,23,FALSE)="-"),1/0,VLOOKUP($A12,Economática!$A$3:$AI$823,23,FALSE))) -> 11218.8 | X12: =IF($A12="","",IF(OR(VLOOKUP($A12,Economática!$A$3:$AI$823,24,FALSE)=0,VLOOKUP($A12,Economática!$A$3:$AI$823,24,FALSE)="-"),1/0,VLOOKUP($A12,Economática!$A$3:$AI$823,24,FALSE))) -> 11988.8 | Y12: =IF($A12="","",IF(OR(VLOOKUP($A12,Economática!$A$3:$AI$823,25,FALSE)=0,VLOOKUP($A12,Economática!$A$3:$AI$823,25,FALSE)="-"),1/0,VLOOKUP($A12,Economática!$A$3:$AI$823,25,FALSE))) -> 11988.8 | Z12: =IF($A12="","",IF(ISERROR((F12+VLOOKUP($A12,Economática!$A$3:$AI$823,26,FALSE))/Y12),(F12+VLOOKUP($A12,Economática!$A$3:$AI$823,26,FALSE))/Y12,(F12+VLOOKUP($A12,Economática!$A$3:$AI$823,26,FALSE))/Y12)) -> 7.474845606 | AA12: =IF($A12="","",IF(OR(-VLOOKUP($A12,Economática!$A$3:$AI$823,27,FALSE)=0,-VLOOKUP($A12,Economática!$A$3:$AI$823,27,FALSE)="-"),1/0,-VLOOKUP($A12,Economática!$A$3:$AI$823,27,FALSE))) -> 126.88 | AB12: 0.002992687163 | AC12: =IF($A12="","",IF(OR(VLOOKUP($A12,Economática!$A$3:$AI$823,28,FALSE)=0,VLOOKUP($A12,Economática!$A$3:$AI$823,28,FALSE)="-"),1/0,VLOOKUP($A12,Economática!$A$3:$AI$823,28,FALSE))) -> 18.5 | AD12: =IF($A12="","",IF(OR(VLOOKUP($A12,Economática!$A$3:$AI$823,29,FALSE)=0,VLOOKUP($A12,Economática!$A$3:$AI$823,29,FALSE)="-"),1/0,VLOOKUP($A12,Economática!$A$3:$AI$823,29,FALSE))) -> 63.2 | AE12: =IF($A12="","",IF(OR(VLOOKUP($A12,Economática!$A$3:$AI$823,30,FALSE)/E12=0,VLOOKUP($A12,Economática!$A$3:$AI$823,30,FALSE)/E12="-",VLOOKUP($A12,Economática!$A$3:$AI$823,30,FALSE)/E12<33.33%,VLOOKUP($A12,Economática!$A$3:$AI$823,30,FALSE)/E12>100%),1/0,VLOOKUP($A12,Economática!$A$3:$AI$823,30,FALSE)/E12)) ->  | AF12: JBSS3 | AG12: =IF($A12="","",IF(OR(VLOOKUP($A12,Economática!$A$3:$AI$823,25,FALSE)=0,VLOOKUP($A12,Economática!$A$3:$AI$823,25,FALSE)="-"),1/0,VLOOKUP($A12,Economática!$A$3:$AI$823,25,FALSE))) -> 11988.8 | AH12: =CONCATENATE(Economática!B14," ",Economática!C14) -> JBS ON
A13: =IF(Economática!AG15="","",Economática!AG15) -> BRFS3 | B13: =IF($A13="","",VLOOKUP(VLOOKUP($A13,Economática!$A$3:$AI$823,6,FALSE),Correção!$B$16:$C$36,2,FALSE)) -> Alimentos e Bebidas | C13: =IF(Economática!B15="","",Economática!B15) -> BRF SA | D13: =IF($A13="","",IF(OR(VLOOKUP($A13,Economática!$A$3:$AI$823,8,FALSE)=0,VLOOKUP($A13,Economática!$A$3:$AI$823,8,FALSE)="-"),1/0,VLOOKUP($A13,Economática!$A$3:$AI$823,8,FALSE))) -> 22.65 | E13: =IF(A13="","",IF(ISERROR(VLOOKUP(A13,Correção!$B$2:$G$13,9,FALSE)),VLOOKUP($A13,Economática!$A$3:$AI$823,9,FALSE),VLOOKUP(A13,Correção!$B$2:$G$13,9,FALSE))) -> 811.416 | F13: =IF($A13="","",Economática!G15) -> 18378.57 | G13: =IF($A13="","",IF(OR(VLOOKUP($A13,Economática!$A$3:$AI$823,10,FALSE)=0,VLOOKUP($A13,Economática!$A$3:$AI$823,10,FALSE)="-"),1/0,VLOOKUP($A13,Economática!$A$3:$AI$823,10,FALSE))) -> 6964.63 | H13: =IF($A13="","",IF(OR(VLOOKUP($A13,Economática!$A$3:$AI$823,11,FALSE)=0,VLOOKUP($A13,Economática!$A$3:$AI$823,11,FALSE)="-"),1/0,VLOOKUP($A13,Economática!$A$3:$AI$823,11,FALSE))) -> 33469.35 | I13: =IF($A13="","",IF(OR(VLOOKUP($A13,Economática!$A$3:$AI$823,12,FALSE)=0,VLOOKUP($A13,Economática!$A$3:$AI$823,12,FALSE)="-"),1/0,VLOOKUP($A13,Economática!$A$3:$AI$823,12,FALSE))) -> 30188.42 | J13: =IF($A13="","",IF(OR(VLOOKUP($A13,Economática!$A$3:$AI$823,13,FALSE)=0,VLOOKUP($A13,Economática!$A$3:$AI$823,13,FALSE)="-"),1/0,VLOOKUP($A13,Economática!$A$3:$AI$823,13,FALSE))) -> -1125.57 | K13: =IF($A13="","",IF(OR(VLOOKUP($A13,Economática!$A$3:$AI$823,14,FALSE)=0,VLOOKUP($A13,Economática!$A$3:$AI$823,14,FALSE)="-"),1/0,VLOOKUP($A13,Economática!$A$3:$AI$823,14,FALSE))) -> -124.32 | L13: =IF($A13="","",IF(OR(VLOOKUP($A13,Economática!$A$3:$AI$823,15,FALSE)=0,VLOOKUP($A13,Economática!$A$3:$AI$823,15,FALSE)="-"),1/0,VLOOKUP($A13,Economática!$A$3:$AI$823,15,FALSE))) -> -1709.24 | M13: =IF($A13="","",IF(OR(VLOOKUP($A13,Economática!$A$3:$AI$823,16,FALSE)=0,VLOOKUP($A13,Economática!$A$3:$AI$823,16,FALSE)="-"),1/0,VLOOKUP($A13,Economática!$A$3:$AI$823,16,FALSE))) -> -2351.8 | N13: =IF($A13="","",IF(OR(VLOOKUP($A13,Economática!$A$3:$AI$823,17,FALSE)=0,VLOOKUP($A13,Economática!$A$3:$AI$823,17,FALSE)="-"),1/0,VLOOKUP($A13,Economática!$A$3:$AI$823,17,FALSE))) -> -4448.06 | O13: =IF($A13="","",IF(OR(VLOOKUP($A13,Economática!$A$3:$AI$823,18,FALSE)=0,VLOOKUP($A13,Economática!$A$3:$AI$823,18,FALSE)="-"),1/0,VLOOKUP($A13,Economática!$A$3:$AI$823,18,FALSE))) -> -1125.57 | P13: =IF($A13="","",IF(OR(VLOOKUP($A13,Economática!$A$3:$AI$823,19,FALSE)=0,VLOOKUP($A13,Economática!$A$3:$AI$823,19,FALSE)="-"),1/0,VLOOKUP($A13,Economática!$A$3:$AI$823,19,FALSE))) -> -4448.06 | Q13: =IF($A13="","",VLOOKUP($A13,Economática!$A$3:$AI$823,20,FALSE)/E13) -> -5.481849015 | R13: 8.583303755 | S13: 2.638844045 | U13: =IF($A13="","",IF(OR(VLOOKUP($A13,Economática!$A$3:$AI$823,21,FALSE)/100=0,VLOOKUP($A13,Economática!$A$3:$AI$823,21,FALSE)/100="-"),1/0,VLOOKUP($A13,Economática!$A$3:$AI$823,21,FALSE)/100)) -> -0.381314 | V13: =IF($A13="","",IF(OR(VLOOKUP($A13,Economática!$A$3:$AI$823,22,FALSE)/100=0,VLOOKUP($A13,Economática!$A$3:$AI$823,22,FALSE)/100="-"),1/0,VLOOKUP($A13,Economática!$A$3:$AI$823,22,FALSE)/100)) -> 2.229069 | W13: =IF($A13="","",IF(OR(VLOOKUP($A13,Economática!$A$3:$AI$823,23,FALSE)=0,VLOOKUP($A13,Economática!$A$3:$AI$823,23,FALSE)="-"),1/0,VLOOKUP($A13,Economática!$A$3:$AI$823,23,FALSE))) -> 2654.1 | X13: =IF($A13="","",IF(OR(VLOOKUP($A13,Economática!$A$3:$AI$823,24,FALSE)=0,VLOOKUP($A13,Economática!$A$3:$AI$823,24,FALSE)="-"),1/0,VLOOKUP($A13,Economática!$A$3:$AI$823,24,FALSE))) -> 1540.9 | Y13: =IF($A13="","",IF(OR(VLOOKUP($A13,Economática!$A$3:$AI$823,25,FALSE)=0,VLOOKUP($A13,Economática!$A$3:$AI$823,25,FALSE)="-"),1/0,VLOOKUP($A13,Economática!$A$3:$AI$823,25,FALSE))) -> 1540.9 | Z13: =IF($A13="","",IF(ISERROR((F13+VLOOKUP($A13,Economática!$A$3:$AI$823,26,FALSE))/Y13),(F13+VLOOKUP($A13,Economática!$A$3:$AI$823,26,FALSE))/Y13,(F13+VLOOKUP($A13,Economática!$A$3:$AI$823,26,FALSE))/Y13)) -> 22.82264715 | AA13: =IF($A13="","",IF(OR(-VLOOKUP($A13,Economática!$A$3:$AI$823,27,FALSE)=0,-VLOOKUP($A13,Economática!$A$3:$AI$823,27,FALSE)="-"),1/0,-VLOOKUP($A13,Economática!$A$3:$AI$823,27,FALSE))) ->  | AC13: =IF($A13="","",IF(OR(VLOOKUP($A13,Economática!$A$3:$AI$823,28,FALSE)=0,VLOOKUP($A13,Economática!$A$3:$AI$823,28,FALSE)="-"),1/0,VLOOKUP($A13,Economática!$A$3:$AI$823,28,FALSE))) -> 10.1 | AD13: =IF($A13="","",IF(OR(VLOOKUP($A13,Economática!$A$3:$AI$823,29,FALSE)=0,VLOOKUP($A13,Economática!$A$3:$AI$823,29,FALSE)="-"),1/0,VLOOKUP($A13,Economática!$A$3:$AI$823,29,FALSE))) -> -38.1 | AE13: =IF($A13="","",IF(OR(VLOOKUP($A13,Economática!$A$3:$AI$823,30,FALSE)/E13=0,VLOOKUP($A13,Economática!$A$3:$AI$823,30,FALSE)/E13="-",VLOOKUP($A13,Economática!$A$3:$AI$823,30,FALSE)/E13<33.33%,VLOOKUP($A13,Economática!$A$3:$AI$823,30,FALSE)/E13>100%),1/0,VLOOKUP($A13,Economática!$A$3:$AI$823,30,FALSE)/E13)) ->  | AF13: BRFS3 | AG13: =IF($A13="","",IF(OR(VLOOKUP($A13,Economática!$A$3:$AI$823,25,FALSE)=0,VLOOKUP($A13,Economática!$A$3:$AI$823,25,FALSE)="-"),1/0,VLOOKUP($A13,Economática!$A$3:$AI$823,25,FALSE))) -> 1540.9 | AH13: =CONCATENATE(Economática!B15," ",Economática!C15) -> BRF SA ON
A14: =IF(Economática!AG16="","",Economática!AG16) -> BEEF3 | B14: =IF($A14="","",VLOOKUP(VLOOKUP($A14,Economática!$A$3:$AI$823,6,FALSE),Correção!$B$16:$C$36,2,FALSE)) -> Alimentos e Bebidas | C14: =IF(Economática!B16="","",Economática!B16) -> Minerva | D14: =IF($A14="","",IF(OR(VLOOKUP($A14,Economática!$A$3:$AI$823,8,FALSE)=0,VLOOKUP($A14,Economática!$A$3:$AI$823,8,FALSE)="-"),1/0,VLOOKUP($A14,Economática!$A$3:$AI$823,8,FALSE))) -> 7.03 | E14: =IF(A14="","",IF(ISERROR(VLOOKUP(A14,Correção!$B$2:$G$13,9,FALSE)),VLOOKUP($A14,Economática!$A$3:$AI$823,9,FALSE),VLOOKUP(A14,Correção!$B$2:$G$13,9,FALSE))) -> 373.137 | F14: =IF($A14="","",Economática!G16) -> 2623.15 | G14: =IF($A14="","",IF(OR(VLOOKUP($A14,Economática!$A$3:$AI$823,10,FALSE)=0,VLOOKUP($A14,Economática!$A$3:$AI$823,10,FALSE)="-"),1/0,VLOOKUP($A14,Economática!$A$3:$AI$823,10,FALSE))) -> -301.11 | H14: =IF($A14="","",IF(OR(VLOOKUP($A14,Economática!$A$3:$AI$823,11,FALSE)=0,VLOOKUP($A14,Economática!$A$3:$AI$823,11,FALSE)="-"),1/0,VLOOKUP($A14,Economática!$A$3:$AI$823,11,FALSE))) -> 12103.79 | I14: =IF($A14="","",IF(OR(VLOOKUP($A14,Economática!$A$3:$AI$823,12,FALSE)=0,VLOOKUP($A14,Economática!$A$3:$AI$823,12,FALSE)="-"),1/0,VLOOKUP($A14,Economática!$A$3:$AI$823,12,FALSE))) -> 16214.91 | J14: =IF($A14="","",IF(OR(VLOOKUP($A14,Economática!$A$3:$AI$823,13,FALSE)=0,VLOOKUP($A14,Economática!$A$3:$AI$823,13,FALSE)="-"),1/0,VLOOKUP($A14,Economática!$A$3:$AI$823,13,FALSE))) -> -281.02 | K14: =IF($A14="","",IF(OR(VLOOKUP($A14,Economática!$A$3:$AI$823,14,FALSE)=0,VLOOKUP($A14,Economática!$A$3:$AI$823,14,FALSE)="-"),1/0,VLOOKUP($A14,Economática!$A$3:$AI$823,14,FALSE))) -> -114.72 | L14: =IF($A14="","",IF(OR(VLOOKUP($A14,Economática!$A$3:$AI$823,15,FALSE)=0,VLOOKUP($A14,Economática!$A$3:$AI$823,15,FALSE)="-"),1/0,VLOOKUP($A14,Economática!$A$3:$AI$823,15,FALSE))) -> -1040.7 | M14: =IF($A14="","",IF(OR(VLOOKUP($A14,Economática!$A$3:$AI$823,16,FALSE)=0,VLOOKUP($A14,Economática!$A$3:$AI$823,16,FALSE)="-"),1/0,VLOOKUP($A14,Economática!$A$3:$AI$823,16,FALSE))) -> -1172.72 | N14: =IF($A14="","",IF(OR(VLOOKUP($A14,Economática!$A$3:$AI$823,17,FALSE)=0,VLOOKUP($A14,Economática!$A$3:$AI$823,17,FALSE)="-"),1/0,VLOOKUP($A14,Economática!$A$3:$AI$823,17,FALSE))) -> -1264.78 | O14: =IF($A14="","",IF(OR(VLOOKUP($A14,Economática!$A$3:$AI$823,18,FALSE)=0,VLOOKUP($A14,Economática!$A$3:$AI$823,18,FALSE)="-"),1/0,VLOOKUP($A14,Economática!$A$3:$AI$823,18,FALSE))) -> -281.02 | P14: =IF($A14="","",IF(OR(VLOOKUP($A14,Economática!$A$3:$AI$823,19,FALSE)=0,VLOOKUP($A14,Economática!$A$3:$AI$823,19,FALSE)="-"),1/0,VLOOKUP($A14,Economática!$A$3:$AI$823,19,FALSE))) -> -1264.78 | Q14: =IF($A14="","",VLOOKUP($A14,Economática!$A$3:$AI$823,20,FALSE)/E14) -> -3.389586131 | U14: =IF($A14="","",IF(OR(VLOOKUP($A14,Economática!$A$3:$AI$823,21,FALSE)/100=0,VLOOKUP($A14,Economática!$A$3:$AI$823,21,FALSE)/100="-"),1/0,VLOOKUP($A14,Economática!$A$3:$AI$823,21,FALSE)/100)) -> -17.794533 | V14: =IF($A14="","",IF(OR(VLOOKUP($A14,Economática!$A$3:$AI$823,22,FALSE)/100=0,VLOOKUP($A14,Economática!$A$3:$AI$823,22,FALSE)/100="-"),1/0,VLOOKUP($A14,Economática!$A$3:$AI$823,22,FALSE)/100)) -> -20.160434 | W14: =IF($A14="","",IF(OR(VLOOKUP($A14,Economática!$A$3:$AI$823,23,FALSE)=0,VLOOKUP($A14,Economática!$A$3:$AI$823,23,FALSE)="-"),1/0,VLOOKUP($A14,Economática!$A$3:$AI$823,23,FALSE))) -> 1134.6 | X14: =IF($A14="","",IF(OR(VLOOKUP($A14,Economática!$A$3:$AI$823,24,FALSE)=0,VLOOKUP($A14,Economática!$A$3:$AI$823,24,FALSE)="-"),1/0,VLOOKUP($A14,Economática!$A$3:$AI$823,24,FALSE))) -> 896.2 | Y14: =IF($A14="","",IF(OR(VLOOKUP($A14,Economática!$A$3:$AI$823,25,FALSE)=0,VLOOKUP($A14,Economática!$A$3:$AI$823,25,FALSE)="-"),1/0,VLOOKUP($A14,Economática!$A$3:$AI$823,25,FALSE))) -> 896.2 | Z14: =IF($A14="","",IF(ISERROR((F14+VLOOKUP($A14,Economática!$A$3:$AI$823,26,FALSE))/Y14),(F14+VLOOKUP($A14,Economática!$A$3:$AI$823,26,FALSE))/Y14,(F14+VLOOKUP($A14,Economática!$A$3:$AI$823,26,FALSE))/Y14)) -> 9.700668378 | AA14: =IF($A14="","",IF(OR(-VLOOKUP($A14,Economática!$A$3:$AI$823,27,FALSE)=0,-VLOOKUP($A14,Economática!$A$3:$AI$823,27,FALSE)="-"),1/0,-VLOOKUP($A14,Economática!$A$3:$AI$823,27,FALSE))) ->  | AC14: =IF($A14="","",IF(OR(VLOOKUP($A14,Economática!$A$3:$AI$823,28,FALSE)=0,VLOOKUP($A14,Economática!$A$3:$AI$823,28,FALSE)="-"),1/0,VLOOKUP($A14,Economática!$A$3:$AI$823,28,FALSE))) -> 10.2 | AD14: =IF($A14="","",IF(OR(VLOOKUP($A14,Economática!$A$3:$AI$823,29,FALSE)=0,VLOOKUP($A14,Economática!$A$3:$AI$823,29,FALSE)="-"),1/0,VLOOKUP($A14,Economática!$A$3:$AI$823,29,FALSE))) -> -34 | AE14: =IF($A14="","",IF(OR(VLOOKUP($A14,Economática!$A$3:$AI$823,30,FALSE)/E14=0,VLOOKUP($A14,Economática!$A$3:$AI$823,30,FALSE)/E14="-",VLOOKUP($A14,Economática!$A$3:$AI$823,30,FALSE)/E14<33.33%,VLOOKUP($A14,Economática!$A$3:$AI$823,30,FALSE)/E14>100%),1/0,VLOOKUP($A14,Economática!$A$3:$AI$823,30,FALSE)/E14)) ->  | AF14: BEEF3 | AG14: =IF($A14="","",IF(OR(VLOOKUP($A14,Economática!$A$3:$AI$823,25,FALSE)=0,VLOOKUP($A14,Economática!$A$3:$AI$823,25,FALSE)="-"),1/0,VLOOKUP($A14,Economática!$A$3:$AI$823,25,FALSE))) -> 896.2 | AH14: =CONCATENATE(Economática!B16," ",Economática!C16) -> Minerva ON
A15: =IF(Economática!AG17="","",Economática!AG17) -> JBDU4 | B15: =IF($A15="","",VLOOKUP(VLOOKUP($A15,Economática!$A$3:$AI$823,6,FALSE),Correção!$B$16:$C$36,2,FALSE)) -> Alimentos e Bebidas | C15: =IF(Economática!B17="","",Economática!B17) -> J B Duarte | D15: =IF($A15="","",IF(OR(VLOOKUP($A15,Economática!$A$3:$AI$823,8,FALSE)=0,VLOOKUP($A15,Economática!$A$3:$AI$823,8,FALSE)="-"),1/0,VLOOKUP($A15,Economática!$A$3:$AI$823,8,FALSE))) -> 6.8 | E15: =IF(A15="","",IF(ISERROR(VLOOKUP(A15,Correção!$B$2:$G$13,9,FALSE)),VLOOKUP($A15,Economática!$A$3:$AI$823,9,FALSE),VLOOKUP(A15,Correção!$B$2:$G$13,9,FALSE))) -> 0.136 | F15: =IF($A15="","",Economática!G17) -> 0.93 | G15: =IF($A15="","",IF(OR(VLOOKUP($A15,Economática!$A$3:$AI$823,10,FALSE)=0,VLOOKUP($A15,Economática!$A$3:$AI$823,10,FALSE)="-"),1/0,VLOOKUP($A15,Economática!$A$3:$AI$823,10,FALSE))) -> 25.77 | H15: =IF($A15="","",IF(OR(VLOOKUP($A15,Economática!$A$3:$AI$823,11,FALSE)=0,VLOOKUP($A15,Economática!$A$3:$AI$823,11,FALSE)="-"),1/0,VLOOKUP($A15,Economática!$A$3:$AI$823,11,FALSE))) ->  | I15: =IF($A15="","",IF(OR(VLOOKUP($A15,Economática!$A$3:$AI$823,12,FALSE)=0,VLOOKUP($A15,Economática!$A$3:$AI$823,12,FALSE)="-"),1/0,VLOOKUP($A15,Economática!$A$3:$AI$823,12,FALSE))) ->  | J15: =IF($A15="","",IF(OR(VLOOKUP($A15,Economática!$A$3:$AI$823,13,FALSE)=0,VLOOKUP($A15,Economática!$A$3:$AI$823,13,FALSE)="-"),1/0,VLOOKUP($A15,Economática!$A$3:$AI$823,13,FALSE))) -> -1.44 | K15: =IF($A15="","",IF(OR(VLOOKUP($A15,Economática!$A$3:$AI$823,14,FALSE)=0,VLOOKUP($A15,Economática!$A$3:$AI$823,14,FALSE)="-"),1/0,VLOOKUP($A15,Economática!$A$3:$AI$823,14,FALSE))) -> 33.52 | L15: =IF($A15="","",IF(OR(VLOOKUP($A15,Economática!$A$3:$AI$823,15,FALSE)=0,VLOOKUP($A15,Economática!$A$3:$AI$823,15,FALSE)="-"),1/0,VLOOKUP($A15,Economática!$A$3:$AI$823,15,FALSE))) -> 27.9 | M15: =IF($A15="","",IF(OR(VLOOKUP($A15,Economática!$A$3:$AI$823,16,FALSE)=0,VLOOKUP($A15,Economática!$A$3:$AI$823,16,FALSE)="-"),1/0,VLOOKUP($A15,Economática!$A$3:$AI$823,16,FALSE))) ->  | N15: =IF($A15="","",IF(OR(VLOOKUP($A15,Economática!$A$3:$AI$823,17,FALSE)=0,VLOOKUP($A15,Economática!$A$3:$AI$823,17,FALSE)="-"),1/0,VLOOKUP($A15,Economática!$A$3:$AI$823,17,FALSE))) ->  | O15: =IF($A15="","",IF(OR(VLOOKUP($A15,Economática!$A$3:$AI$823,18,FALSE)=0,VLOOKUP($A15,Economática!$A$3:$AI$823,18,FALSE)="-"),1/0,VLOOKUP($A15,Economática!$A$3:$AI$823,18,FALSE))) -> -1.44 | P15: =IF($A15="","",IF(OR(VLOOKUP($A15,Economática!$A$3:$AI$823,19,FALSE)=0,VLOOKUP($A15,Economática!$A$3:$AI$823,19,FALSE)="-"),1/0,VLOOKUP($A15,Economática!$A$3:$AI$823,19,FALSE))) ->  | Q15: =IF($A15="","",VLOOKUP($A15,Economática!$A$3:$AI$823,20,FALSE)/E15) -> 202.8676471 | R15: 189.4852941 | S15: 0.03588668995 | T15: 0.03351939108 | U15: =IF($A15="","",IF(OR(VLOOKUP($A15,Economática!$A$3:$AI$823,21,FALSE)/100=0,VLOOKUP($A15,Economática!$A$3:$AI$823,21,FALSE)/100="-"),1/0,VLOOKUP($A15,Economática!$A$3:$AI$823,21,FALSE)/100)) ->  | V15: =IF($A15="","",IF(OR(VLOOKUP($A15,Economática!$A$3:$AI$823,22,FALSE)/100=0,VLOOKUP($A15,Economática!$A$3:$AI$823,22,FALSE)/100="-"),1/0,VLOOKUP($A15,Economática!$A$3:$AI$823,22,FALSE)/100)) -> 0.205075 | W15: =IF($A15="","",IF(OR(VLOOKUP($A15,Economática!$A$3:$AI$823,23,FALSE)=0,VLOOKUP($A15,Economática!$A$3:$AI$823,23,FALSE)="-"),1/0,VLOOKUP($A15,Economática!$A$3:$AI$823,23,FALSE))) ->  | X15: =IF($A15="","",IF(OR(VLOOKUP($A15,Economática!$A$3:$AI$823,24,FALSE)=0,VLOOKUP($A15,Economática!$A$3:$AI$823,24,FALSE)="-"),1/0,VLOOKUP($A15,Economática!$A$3:$AI$823,24,FALSE))) ->  | Y15: =IF($A15="","",IF(OR(VLOOKUP($A15,Economática!$A$3:$AI$823,25,FALSE)=0,VLOOKUP($A15,Economática!$A$3:$AI$823,25,FALSE)="-"),1/0,VLOOKUP($A15,Economática!$A$3:$AI$823,25,FALSE))) ->  | Z15: =IF($A15="","",IF(ISERROR((F15+VLOOKUP($A15,Economática!$A$3:$AI$823,26,FALSE))/Y15),(F15+VLOOKUP($A15,Economática!$A$3:$AI$823,26,FALSE))/Y15,(F15+VLOOKUP($A15,Economática!$A$3:$AI$823,26,FALSE))/Y15)) ->  | AA15: =IF($A15="","",IF(OR(-VLOOKUP($A15,Economática!$A$3:$AI$823,27,FALSE)=0,-VLOOKUP($A15,Economática!$A$3:$AI$823,27,FALSE)="-"),1/0,-VLOOKUP($A15,Economática!$A$3:$AI$823,27,FALSE))) ->  | AC15: =IF($A15="","",IF(OR(VLOOKUP($A15,Economática!$A$3:$AI$823,28,FALSE)=0,VLOOKUP($A15,Economática!$A$3:$AI$823,28,FALSE)="-"),1/0,VLOOKUP($A15,Economática!$A$3:$AI$823,28,FALSE))) -> -8.4 | AD15: =IF($A15="","",IF(OR(VLOOKUP($A15,Economática!$A$3:$AI$823,29,FALSE)=0,VLOOKUP($A15,Economática!$A$3:$AI$823,29,FALSE)="-"),1/0,VLOOKUP($A15,Economática!$A$3:$AI$823,29,FALSE))) -> -77.6 | AE15: =IF($A15="","",IF(OR(VLOOKUP($A15,Economática!$A$3:$AI$823,30,FALSE)/E15=0,VLOOKUP($A15,Economática!$A$3:$AI$823,30,FALSE)/E15="-",VLOOKUP($A15,Economática!$A$3:$AI$823,30,FALSE)/E15<33.33%,VLOOKUP($A15,Economática!$A$3:$AI$823,30,FALSE)/E15>100%),1/0,VLOOKUP($A15,Economática!$A$3:$AI$823,30,FALSE)/E15)) ->  | AF15: JBDU4 | AG15: =IF($A15="","",IF(OR(VLOOKUP($A15,Economática!$A$3:$AI$823,25,FALSE)=0,VLOOKUP($A15,Economática!$A$3:$AI$823,25,FALSE)="-"),1/0,VLOOKUP($A15,Economática!$A$3:$AI$823,25,FALSE))) ->  | AH15: =CONCATENATE(Economática!B17," ",Economática!C17) -> J B Duarte PN
A16: =IF(Economática!AG18="","",Economática!AG18) -> MNPR3 | B16: =IF($A16="","",VLOOKUP(VLOOKUP($A16,Economática!$A$3:$AI$823,6,FALSE),Correção!$B$16:$C$36,2,FALSE)) -> Alimentos e Bebidas | C16: =IF(Economática!B18="","",Economática!B18) -> Minupar | D16: =IF($A16="","",IF(OR(VLOOKUP($A16,Economática!$A$3:$AI$823,8,FALSE)=0,VLOOKUP($A16,Economática!$A$3:$AI$823,8,FALSE)="-"),1/0,VLOOKUP($A16,Economática!$A$3:$AI$823,8,FALSE))) -> 2.1 | E16: =IF(A16="","",IF(ISERROR(VLOOKUP(A16,Correção!$B$2:$G$13,9,FALSE)),VLOOKUP($A16,Economática!$A$3:$AI$823,9,FALSE),VLOOKUP(A16,Correção!$B$2:$G$13,9,FALSE))) -> 7.1 | F16: =IF($A16="","",Economática!G18) -> 14.91 | G16: =IF($A16="","",IF(OR(VLOOKUP($A16,Economática!$A$3:$AI$823,10,FALSE)=0,VLOOKUP($A16,Economática!$A$3:$AI$823,10,FALSE)="-"),1/0,VLOOKUP($A16,Economática!$A$3:$AI$823,10,FALSE))) -> -359.63 | H16: =IF($A16="","",IF(OR(VLOOKUP($A16,Economática!$A$3:$AI$823,11,FALSE)=0,VLOOKUP($A16,Economática!$A$3:$AI$823,11,FALSE)="-"),1/0,VLOOKUP($A16,Economática!$A$3:$AI$823,11,FALSE))) -> 190.42 | I16: =IF($A16="","",IF(OR(VLOOKUP($A16,Economática!$A$3:$AI$823,12,FALSE)=0,VLOOKUP($A16,Economática!$A$3:$AI$823,12,FALSE)="-"),1/0,VLOOKUP($A16,Economática!$A$3:$AI$823,12,FALSE))) -> 199.56 | J16: =IF($A16="","",IF(OR(VLOOKUP($A16,Economática!$A$3:$AI$823,13,FALSE)=0,VLOOKUP($A16,Economática!$A$3:$AI$823,13,FALSE)="-"),1/0,VLOOKUP($A16,Economática!$A$3:$AI$823,13,FALSE))) -> -25.34 | K16: =IF($A16="","",IF(OR(VLOOKUP($A16,Economática!$A$3:$AI$823,14,FALSE)=0,VLOOKUP($A16,Economática!$A$3:$AI$823,14,FALSE)="-"),1/0,VLOOKUP($A16,Economática!$A$3:$AI$823,14,FALSE))) -> -1.69 | L16: =IF($A16="","",IF(OR(VLOOKUP($A16,Economática!$A$3:$AI$823,15,FALSE)=0,VLOOKUP($A16,Economática!$A$3:$AI$823,15,FALSE)="-"),1/0,VLOOKUP($A16,Economática!$A$3:$AI$823,15,FALSE))) -> -8.04 | M16: =IF($A16="","",IF(OR(VLOOKUP($A16,Economática!$A$3:$AI$823,16,FALSE)=0,VLOOKUP($A16,Economática!$A$3:$AI$823,16,FALSE)="-"),1/0,VLOOKUP($A16,Economática!$A$3:$AI$823,16,FALSE))) -> -5.83 | N16: =IF($A16="","",IF(OR(VLOOKUP($A16,Economática!$A$3:$AI$823,17,FALSE)=0,VLOOKUP($A16,Economática!$A$3:$AI$823,17,FALSE)="-"),1/0,VLOOKUP($A16,Economática!$A$3:$AI$823,17,FALSE))) -> -66.97 | O16: =IF($A16="","",IF(OR(VLOOKUP($A16,Economática!$A$3:$AI$823,18,FALSE)=0,VLOOKUP($A16,Economática!$A$3:$AI$823,18,FALSE)="-"),1/0,VLOOKUP($A16,Economática!$A$3:$AI$823,18,FALSE))) -> -25.34 | P16: =IF($A16="","",IF(OR(VLOOKUP($A16,Economática!$A$3:$AI$823,19,FALSE)=0,VLOOKUP($A16,Economática!$A$3:$AI$823,19,FALSE)="-"),1/0,VLOOKUP($A16,Economática!$A$3:$AI$823,19,FALSE))) -> -66.97 | Q16: =IF($A16="","",VLOOKUP($A16,Economática!$A$3:$AI$823,20,FALSE)/E16) -> -9.432394366 | U16: =IF($A16="","",IF(OR(VLOOKUP($A16,Economática!$A$3:$AI$823,21,FALSE)/100=0,VLOOKUP($A16,Economática!$A$3:$AI$823,21,FALSE)/100="-"),1/0,VLOOKUP($A16,Economática!$A$3:$AI$823,21,FALSE)/100)) ->  | V16: =IF($A16="","",IF(OR(VLOOKUP($A16,Economática!$A$3:$AI$823,22,FALSE)/100=0,VLOOKUP($A16,Economática!$A$3:$AI$823,22,FALSE)/100="-"),1/0,VLOOKUP($A16,Economática!$A$3:$AI$823,22,FALSE)/100)) -> -0.001258 | W16: =IF($A16="","",IF(OR(VLOOKUP($A16,Economática!$A$3:$AI$823,23,FALSE)=0,VLOOKUP($A16,Economática!$A$3:$AI$823,23,FALSE)="-"),1/0,VLOOKUP($A16,Economática!$A$3:$AI$823,23,FALSE))) -> 11.6 | X16: =IF($A16="","",IF(OR(VLOOKUP($A16,Economática!$A$3:$AI$823,24,FALSE)=0,VLOOKUP($A16,Economática!$A$3:$AI$823,24,FALSE)="-"),1/0,VLOOKUP($A16,Economática!$A$3:$AI$823,24,FALSE))) ->  | Y16: =IF($A16="","",IF(OR(VLOOKUP($A16,Economática!$A$3:$AI$823,25,FALSE)=0,VLOOKUP($A16,Economática!$A$3:$AI$823,25,FALSE)="-"),1/0,VLOOKUP($A16,Economática!$A$3:$AI$823,25,FALSE))) ->  | Z16: =IF($A16="","",IF(ISERROR((F16+VLOOKUP($A16,Economática!$A$3:$AI$823,26,FALSE))/Y16),(F16+VLOOKUP($A16,Economática!$A$3:$AI$823,26,FALSE))/Y16,(F16+VLOOKUP($A16,Economática!$A$3:$AI$823,26,FALSE))/Y16)) ->  | AA16: =IF($A16="","",IF(OR(-VLOOKUP($A16,Economática!$A$3:$AI$823,27,FALSE)=0,-VLOOKUP($A16,Economática!$A$3:$AI$823,27,FALSE)="-"),1/0,-VLOOKUP($A16,Economática!$A$3:$AI$823,27,FALSE))) ->  | AC16: =IF($A16="","",IF(OR(VLOOKUP($A16,Economática!$A$3:$AI$823,28,FALSE)=0,VLOOKUP($A16,Economática!$A$3:$AI$823,28,FALSE)="-"),1/0,VLOOKUP($A16,Economática!$A$3:$AI$823,28,FALSE))) -> -6.7 | AD16: =IF($A16="","",IF(OR(VLOOKUP($A16,Economática!$A$3:$AI$823,29,FALSE)=0,VLOOKUP($A16,Economática!$A$3:$AI$823,29,FALSE)="-"),1/0,VLOOKUP($A16,Economática!$A$3:$AI$823,29,FALSE))) -> -26.3 | AE16: =IF($A16="","",IF(OR(VLOOKUP($A16,Economática!$A$3:$AI$823,30,FALSE)/E16=0,VLOOKUP($A16,Economática!$A$3:$AI$823,30,FALSE)/E16="-",VLOOKUP($A16,Economática!$A$3:$AI$823,30,FALSE)/E16<33.33%,VLOOKUP($A16,Economática!$A$3:$AI$823,30,FALSE)/E16>100%),1/0,VLOOKUP($A16,Economática!$A$3:$AI$823,30,FALSE)/E16)) -> 1 | AF16: MNPR3 | AG16: =IF($A16="","",IF(OR(VLOOKUP($A16,Economática!$A$3:$AI$823,25,FALSE)=0,VLOOKUP($A16,Economática!$A$3:$AI$823,25,FALSE)="-"),1/0,VLOOKUP($A16,Economática!$A$3:$AI$823,25,FALSE))) ->  | AH16: =CONCATENATE(Economática!B18," ",Economática!C18) -> Minupar ON
A17: =IF(Economática!AG19="","",Economática!AG19) -> NATU3 | B17: =IF($A17="","",VLOOKUP(VLOOKUP($A17,Economática!$A$3:$AI$823,6,FALSE),Correção!$B$16:$C$36,2,FALSE)) -> Comércio | C17: =IF(Economática!B19="","",Economática!B19) -> Natura | D17: =IF($A17="","",IF(OR(VLOOKUP($A17,Economática!$A$3:$AI$823,8,FALSE)=0,VLOOKUP($A17,Economática!$A$3:$AI$823,8,FALSE)="-"),1/0,VLOOKUP($A17,Economática!$A$3:$AI$823,8,FALSE))) -> 45.39 | E17: =IF(A17="","",IF(ISERROR(VLOOKUP(A17,Correção!$B$2:$G$13,9,FALSE)),VLOOKUP($A17,Economática!$A$3:$AI$823,9,FALSE),VLOOKUP(A17,Correção!$B$2:$G$13,9,FALSE))) -> 430.727 | F17: =IF($A17="","",Economática!G19) -> 19550.7 | G17: =IF($A17="","",IF(OR(VLOOKUP($A17,Economática!$A$3:$AI$823,10,FALSE)=0,VLOOKUP($A17,Economática!$A$3:$AI$823,10,FALSE)="-"),1/0,VLOOKUP($A17,Economática!$A$3:$AI$823,10,FALSE))) -> 2574.1 | H17: =IF($A17="","",IF(OR(VLOOKUP($A17,Economática!$A$3:$AI$823,11,FALSE)=0,VLOOKUP($A17,Economática!$A$3:$AI$823,11,FALSE)="-"),1/0,VLOOKUP($A17,Economática!$A$3:$AI$823,11,FALSE))) -> 9852.71 | I17: =IF($A17="","",IF(OR(VLOOKUP($A17,Economática!$A$3:$AI$823,12,FALSE)=0,VLOOKUP($A17,Economática!$A$3:$AI$823,12,FALSE)="-"),1/0,VLOOKUP($A17,Economática!$A$3:$AI$823,12,FALSE))) -> 13397.42 | J17: =IF($A17="","",IF(OR(VLOOKUP($A17,Economática!$A$3:$AI$823,13,FALSE)=0,VLOOKUP($A17,Economática!$A$3:$AI$823,13,FALSE)="-"),1/0,VLOOKUP($A17,Economática!$A$3:$AI$823,13,FALSE))) -> 670.25 | K17: =IF($A17="","",IF(OR(VLOOKUP($A17,Economática!$A$3:$AI$823,14,FALSE)=0,VLOOKUP($A17,Economática!$A$3:$AI$823,14,FALSE)="-"),1/0,VLOOKUP($A17,Economática!$A$3:$AI$823,14,FALSE))) -> 24.39 | L17: =IF($A17="","",IF(OR(VLOOKUP($A17,Economática!$A$3:$AI$823,15,FALSE)=0,VLOOKUP($A17,Economática!$A$3:$AI$823,15,FALSE)="-"),1/0,VLOOKUP($A17,Economática!$A$3:$AI$823,15,FALSE))) -> 56.19 | M17: =IF($A17="","",IF(OR(VLOOKUP($A17,Economática!$A$3:$AI$823,16,FALSE)=0,VLOOKUP($A17,Economática!$A$3:$AI$823,16,FALSE)="-"),1/0,VLOOKUP($A17,Economática!$A$3:$AI$823,16,FALSE))) -> 166.75 | N17: =IF($A17="","",IF(OR(VLOOKUP($A17,Economática!$A$3:$AI$823,17,FALSE)=0,VLOOKUP($A17,Economática!$A$3:$AI$823,17,FALSE)="-"),1/0,VLOOKUP($A17,Economática!$A$3:$AI$823,17,FALSE))) -> 548.38 | O17: =IF($A17="","",IF(OR(VLOOKUP($A17,Economática!$A$3:$AI$823,18,FALSE)=0,VLOOKUP($A17,Economática!$A$3:$AI$823,18,FALSE)="-"),1/0,VLOOKUP($A17,Economática!$A$3:$AI$823,18,FALSE))) -> 670.25 | P17: =IF($A17="","",IF(OR(VLOOKUP($A17,Economática!$A$3:$AI$823,19,FALSE)=0,VLOOKUP($A17,Economática!$A$3:$AI$823,19,FALSE)="-"),1/0,VLOOKUP($A17,Economática!$A$3:$AI$823,19,FALSE))) -> 548.38 | Q17: =IF($A17="","",VLOOKUP($A17,Economática!$A$3:$AI$823,20,FALSE)/E17) -> 1.273149814 | R17: 5.976175164 | S17: 7.595158902 | T17: 35.65173517 | U17: =IF($A17="","",IF(OR(VLOOKUP($A17,Economática!$A$3:$AI$823,21,FALSE)/100=0,VLOOKUP($A17,Economática!$A$3:$AI$823,21,FALSE)/100="-"),1/0,VLOOKUP($A17,Economática!$A$3:$AI$823,21,FALSE)/100)) -> 0.335452 | V17: =IF($A17="","",IF(OR(VLOOKUP($A17,Economática!$A$3:$AI$823,22,FALSE)/100=0,VLOOKUP($A17,Economática!$A$3:$AI$823,22,FALSE)/100="-"),1/0,VLOOKUP($A17,Economática!$A$3:$AI$823,22,FALSE)/100)) -> 2.334777 | W17: =IF($A17="","",IF(OR(VLOOKUP($A17,Economática!$A$3:$AI$823,23,FALSE)=0,VLOOKUP($A17,Economática!$A$3:$AI$823,23,FALSE)="-"),1/0,VLOOKUP($A17,Economática!$A$3:$AI$823,23,FALSE))) -> 1742 | X17: =IF($A17="","",IF(OR(VLOOKUP($A17,Economática!$A$3:$AI$823,24,FALSE)=0,VLOOKUP($A17,Economática!$A$3:$AI$823,24,FALSE)="-"),1/0,VLOOKUP($A17,Economática!$A$3:$AI$823,24,FALSE))) -> 1846.6 | Y17: =IF($A17="","",IF(OR(VLOOKUP($A17,Economática!$A$3:$AI$823,25,FALSE)=0,VLOOKUP($A17,Economática!$A$3:$AI$823,25,FALSE)="-"),1/0,VLOOKUP($A17,Economática!$A$3:$AI$823,25,FALSE))) -> 1846.6 | Z17: =IF($A17="","",IF(ISERROR((F17+VLOOKUP($A17,Economática!$A$3:$AI$823,26,FALSE))/Y17),(F17+VLOOKUP($A17,Economática!$A$3:$AI$823,26,FALSE))/Y17,(F17+VLOOKUP($A17,Economática!$A$3:$AI$823,26,FALSE))/Y17)) -> 13.84200964 | AA17: =IF($A17="","",IF(OR(-VLOOKUP($A17,Economática!$A$3:$AI$823,27,FALSE)=0,-VLOOKUP($A17,Economática!$A$3:$AI$823,27,FALSE)="-"),1/0,-VLOOKUP($A17,Economática!$A$3:$AI$823,27,FALSE))) -> 201.65 | AB17: 0.0103142087 | AC17: =IF($A17="","",IF(OR(VLOOKUP($A17,Economática!$A$3:$AI$823,28,FALSE)=0,VLOOKUP($A17,Economática!$A$3:$AI$823,28,FALSE)="-"),1/0,VLOOKUP($A17,Economática!$A$3:$AI$823,28,FALSE))) -> -6.2 | AD17: =IF($A17="","",IF(OR(VLOOKUP($A17,Economática!$A$3:$AI$823,29,FALSE)=0,VLOOKUP($A17,Economática!$A$3:$AI$823,29,FALSE)="-"),1/0,VLOOKUP($A17,Economática!$A$3:$AI$823,29,FALSE))) -> 39.8 | AE17: =IF($A17="","",IF(OR(VLOOKUP($A17,Economática!$A$3:$AI$823,30,FALSE)/E17=0,VLOOKUP($A17,Economática!$A$3:$AI$823,30,FALSE)/E17="-",VLOOKUP($A17,Economática!$A$3:$AI$823,30,FALSE)/E17<33.33%,VLOOKUP($A17,Economática!$A$3:$AI$823,30,FALSE)/E17>100%),1/0,VLOOKUP($A17,Economática!$A$3:$AI$823,30,FALSE)/E17)) ->  | AF17: NATU3 | AG17: =IF($A17="","",IF(OR(VLOOKUP($A17,Economática!$A$3:$AI$823,25,FALSE)=0,VLOOKUP($A17,Economática!$A$3:$AI$823,25,FALSE)="-"),1/0,VLOOKUP($A17,Economática!$A$3:$AI$823,25,FALSE))) -> 1846.6 | AH17: =CONCATENATE(Economática!B19," ",Economática!C19) -> Natura ON
A18: =IF(Economática!AG20="","",Economática!AG20) -> LREN3 | B18: =IF($A18="","",VLOOKUP(VLOOKUP($A18,Economática!$A$3:$AI$823,6,FALSE),Correção!$B$16:$C$36,2,FALSE)) -> Comércio | C18: =IF(Economática!B20="","",Economática!B20) -> Lojas Renner | D18: =IF($A18="","",IF(OR(VLOOKUP($A18,Economática!$A$3:$AI$823,8,FALSE)=0,VLOOKUP($A18,Economática!$A$3:$AI$823,8,FALSE)="-"),1/0,VLOOKUP($A18,Economática!$A$3:$AI$823,8,FALSE))) -> 43.8 | E18: =IF(A18="","",IF(ISERROR(VLOOKUP(A18,Correção!$B$2:$G$13,9,FALSE)),VLOOKUP($A18,Economática!$A$3:$AI$823,9,FALSE),VLOOKUP(A18,Correção!$B$2:$G$13,9,FALSE))) -> 717.939 | F18: =IF($A18="","",Economática!G20) -> 31445.73 | G18: =IF($A18="","",IF(OR(VLOOKUP($A18,Economática!$A$3:$AI$823,10,FALSE)=0,VLOOKUP($A18,Economática!$A$3:$AI$823,10,FALSE)="-"),1/0,VLOOKUP($A18,Economática!$A$3:$AI$823,10,FALSE))) -> 3954.51 | H18: =IF($A18="","",IF(OR(VLOOKUP($A18,Economática!$A$3:$AI$823,11,FALSE)=0,VLOOKUP($A18,Economática!$A$3:$AI$823,11,FALSE)="-"),1/0,VLOOKUP($A18,Economática!$A$3:$AI$823,11,FALSE))) -> 7444.31 | I18: =IF($A18="","",IF(OR(VLOOKUP($A18,Economática!$A$3:$AI$823,12,FALSE)=0,VLOOKUP($A18,Economática!$A$3:$AI$823,12,FALSE)="-"),1/0,VLOOKUP($A18,Economática!$A$3:$AI$823,12,FALSE))) -> 8426.54 | J18: =IF($A18="","",IF(OR(VLOOKUP($A18,Economática!$A$3:$AI$823,13,FALSE)=0,VLOOKUP($A18,Economática!$A$3:$AI$823,13,FALSE)="-"),1/0,VLOOKUP($A18,Economática!$A$3:$AI$823,13,FALSE))) -> 732.68 | K18: =IF($A18="","",IF(OR(VLOOKUP($A18,Economática!$A$3:$AI$823,14,FALSE)=0,VLOOKUP($A18,Economática!$A$3:$AI$823,14,FALSE)="-"),1/0,VLOOKUP($A18,Economática!$A$3:$AI$823,14,FALSE))) -> 111.44 | L18: =IF($A18="","",IF(OR(VLOOKUP($A18,Economática!$A$3:$AI$823,15,FALSE)=0,VLOOKUP($A18,Economática!$A$3:$AI$823,15,FALSE)="-"),1/0,VLOOKUP($A18,Economática!$A$3:$AI$823,15,FALSE))) -> 386.15 | M18: =IF($A18="","",IF(OR(VLOOKUP($A18,Economática!$A$3:$AI$823,16,FALSE)=0,VLOOKUP($A18,Economática!$A$3:$AI$823,16,FALSE)="-"),1/0,VLOOKUP($A18,Economática!$A$3:$AI$823,16,FALSE))) -> 580.36 | N18: =IF($A18="","",IF(OR(VLOOKUP($A18,Economática!$A$3:$AI$823,17,FALSE)=0,VLOOKUP($A18,Economática!$A$3:$AI$823,17,FALSE)="-"),1/0,VLOOKUP($A18,Economática!$A$3:$AI$823,17,FALSE))) -> 1020.14 | O18: =IF($A18="","",IF(OR(VLOOKUP($A18,Economática!$A$3:$AI$823,18,FALSE)=0,VLOOKUP($A18,Economática!$A$3:$AI$823,18,FALSE)="-"),1/0,VLOOKUP($A18,Economática!$A$3:$AI$823,18,FALSE))) -> 732.68 | P18: =IF($A18="","",IF(OR(VLOOKUP($A18,Economática!$A$3:$AI$823,19,FALSE)=0,VLOOKUP($A18,Economática!$A$3:$AI$823,19,FALSE)="-"),1/0,VLOOKUP($A18,Economática!$A$3:$AI$823,19,FALSE))) -> 1020.14 | Q18: =IF($A18="","",VLOOKUP($A18,Economática!$A$3:$AI$823,20,FALSE)/E18) -> 1.420928519 | R18: 5.508142057 | S18: 7.951864631 | T18: 30.82491442 | U18: =IF($A18="","",IF(OR(VLOOKUP($A18,Economática!$A$3:$AI$823,21,FALSE)/100=0,VLOOKUP($A18,Economática!$A$3:$AI$823,21,FALSE)/100="-"),1/0,VLOOKUP($A18,Economática!$A$3:$AI$823,21,FALSE)/100)) -> 0.316474 | V18: =IF($A18="","",IF(OR(VLOOKUP($A18,Economática!$A$3:$AI$823,22,FALSE)/100=0,VLOOKUP($A18,Economática!$A$3:$AI$823,22,FALSE)/100="-"),1/0,VLOOKUP($A18,Economática!$A$3:$AI$823,22,FALSE)/100)) -> 0.136357 | W18: =IF($A18="","",IF(OR(VLOOKUP($A18,Economática!$A$3:$AI$823,23,FALSE)=0,VLOOKUP($A18,Economática!$A$3:$AI$823,23,FALSE)="-"),1/0,VLOOKUP($A18,Economática!$A$3:$AI$823,23,FALSE))) -> 1416.3 | X18: =IF($A18="","",IF(OR(VLOOKUP($A18,Economática!$A$3:$AI$823,24,FALSE)=0,VLOOKUP($A18,Economática!$A$3:$AI$823,24,FALSE)="-"),1/0,VLOOKUP($A18,Economática!$A$3:$AI$823,24,FALSE))) -> 1738.4 | Y18: =IF($A18="","",IF(OR(VLOOKUP($A18,Economática!$A$3:$AI$823,25,FALSE)=0,VLOOKUP($A18,Economática!$A$3:$AI$823,25,FALSE)="-"),1/0,VLOOKUP($A18,Economática!$A$3:$AI$823,25,FALSE))) -> 1738.4 | Z18: =IF($A18="","",IF(ISERROR((F18+VLOOKUP($A18,Economática!$A$3:$AI$823,26,FALSE))/Y18),(F18+VLOOKUP($A18,Economática!$A$3:$AI$823,26,FALSE))/Y18,(F18+VLOOKUP($A18,Economática!$A$3:$AI$823,26,FALSE))/Y18)) -> 18.39907616 | AA18: =IF($A18="","",IF(OR(-VLOOKUP($A18,Economática!$A$3:$AI$823,27,FALSE)=0,-VLOOKUP($A18,Economática!$A$3:$AI$823,27,FALSE)="-"),1/0,-VLOOKUP($A18,Economática!$A$3:$AI$823,27,FALSE))) -> 287.65 | AB18: 0.009147505878 | AC18: =IF($A18="","",IF(OR(VLOOKUP($A18,Economática!$A$3:$AI$823,28,FALSE)=0,VLOOKUP($A18,Economática!$A$3:$AI$823,28,FALSE)="-"),1/0,VLOOKUP($A18,Economática!$A$3:$AI$823,28,FALSE))) -> 1.4 | AD18: =IF($A18="","",IF(OR(VLOOKUP($A18,Economática!$A$3:$AI$823,29,FALSE)=0,VLOOKUP($A18,Economática!$A$3:$AI$823,29,FALSE)="-"),1/0,VLOOKUP($A18,Economática!$A$3:$AI$823,29,FALSE))) -> 25.4 | AE18: =IF($A18="","",IF(OR(VLOOKUP($A18,Economática!$A$3:$AI$823,30,FALSE)/E18=0,VLOOKUP($A18,Economática!$A$3:$AI$823,30,FALSE)/E18="-",VLOOKUP($A18,Economática!$A$3:$AI$823,30,FALSE)/E18<33.33%,VLOOKUP($A18,Economática!$A$3:$AI$823,30,FALSE)/E18>100%),1/0,VLOOKUP($A18,Economática!$A$3:$AI$823,30,FALSE)/E18)) ->  | AF18: LREN3 | AG18: =IF($A18="","",IF(OR(VLOOKUP($A18,Economática!$A$3:$AI$823,25,FALSE)=0,VLOOKUP($A18,Economática!$A$3:$AI$823,25,FALSE)="-"),1/0,VLOOKUP($A18,Economática!$A$3:$AI$823,25,FALSE))) -> 1738.4 | AH18: =CONCATENATE(Economática!B20," ",Economática!C20) -> Lojas Renner ON
A19: =IF(Economática!AG21="","",Economática!AG21) -> MGLU3 | B19: =IF($A19="","",VLOOKUP(VLOOKUP($A19,Economática!$A$3:$AI$823,6,FALSE),Correção!$B$16:$C$36,2,FALSE)) -> Comércio | C19: =IF(Economática!B21="","",Economática!B21) -> Magaz Luiza | D19: =IF($A19="","",IF(OR(VLOOKUP($A19,Economática!$A$3:$AI$823,8,FALSE)=0,VLOOKUP($A19,Economática!$A$3:$AI$823,8,FALSE)="-"),1/0,VLOOKUP($A19,Economática!$A$3:$AI$823,8,FALSE))) -> 172.85 | E19: =IF(A19="","",IF(ISERROR(VLOOKUP(A19,Correção!$B$2:$G$13,9,FALSE)),VLOOKUP($A19,Economática!$A$3:$AI$823,9,FALSE),VLOOKUP(A19,Correção!$B$2:$G$13,9,FALSE))) -> 188.964 | F19: =IF($A19="","",Economática!G21) -> 32662.46 | G19: =IF($A19="","",IF(OR(VLOOKUP($A19,Economática!$A$3:$AI$823,10,FALSE)=0,VLOOKUP($A19,Economática!$A$3:$AI$823,10,FALSE)="-"),1/0,VLOOKUP($A19,Economática!$A$3:$AI$823,10,FALSE))) -> 2302.87 | H19: =IF($A19="","",IF(OR(VLOOKUP($A19,Economática!$A$3:$AI$823,11,FALSE)=0,VLOOKUP($A19,Economática!$A$3:$AI$823,11,FALSE)="-"),1/0,VLOOKUP($A19,Economática!$A$3:$AI$823,11,FALSE))) -> 11984.25 | I19: =IF($A19="","",IF(OR(VLOOKUP($A19,Economática!$A$3:$AI$823,12,FALSE)=0,VLOOKUP($A19,Economática!$A$3:$AI$823,12,FALSE)="-"),1/0,VLOOKUP($A19,Economática!$A$3:$AI$823,12,FALSE))) -> 15590.44 | J19: =IF($A19="","",IF(OR(VLOOKUP($A19,Economática!$A$3:$AI$823,13,FALSE)=0,VLOOKUP($A19,Economática!$A$3:$AI$823,13,FALSE)="-"),1/0,VLOOKUP($A19,Economática!$A$3:$AI$823,13,FALSE))) -> 389.02 | K19: =IF($A19="","",IF(OR(VLOOKUP($A19,Economática!$A$3:$AI$823,14,FALSE)=0,VLOOKUP($A19,Economática!$A$3:$AI$823,14,FALSE)="-"),1/0,VLOOKUP($A19,Economática!$A$3:$AI$823,14,FALSE))) -> 147.48 | L19: =IF($A19="","",IF(OR(VLOOKUP($A19,Economática!$A$3:$AI$823,15,FALSE)=0,VLOOKUP($A19,Economática!$A$3:$AI$823,15,FALSE)="-"),1/0,VLOOKUP($A19,Economática!$A$3:$AI$823,15,FALSE))) -> 288.23 | M19: =IF($A19="","",IF(OR(VLOOKUP($A19,Economática!$A$3:$AI$823,16,FALSE)=0,VLOOKUP($A19,Economática!$A$3:$AI$823,16,FALSE)="-"),1/0,VLOOKUP($A19,Economática!$A$3:$AI$823,16,FALSE))) -> 407.79 | N19: =IF($A19="","",IF(OR(VLOOKUP($A19,Economática!$A$3:$AI$823,17,FALSE)=0,VLOOKUP($A19,Economática!$A$3:$AI$823,17,FALSE)="-"),1/0,VLOOKUP($A19,Economática!$A$3:$AI$823,17,FALSE))) -> 597.43 | O19: =IF($A19="","",IF(OR(VLOOKUP($A19,Economática!$A$3:$AI$823,18,FALSE)=0,VLOOKUP($A19,Economática!$A$3:$AI$823,18,FALSE)="-"),1/0,VLOOKUP($A19,Economática!$A$3:$AI$823,18,FALSE))) -> 389.02 | P19: =IF($A19="","",IF(OR(VLOOKUP($A19,Economática!$A$3:$AI$823,19,FALSE)=0,VLOOKUP($A19,Economática!$A$3:$AI$823,19,FALSE)="-"),1/0,VLOOKUP($A19,Economática!$A$3:$AI$823,19,FALSE))) -> 597.43 | Q19: =IF($A19="","",VLOOKUP($A19,Economática!$A$3:$AI$823,20,FALSE)/E19) -> 3.161607502 | R19: 12.18681865 | S19: 14.18335703 | T19: 54.6715555 | U19: =IF($A19="","",IF(OR(VLOOKUP($A19,Economática!$A$3:$AI$823,21,FALSE)/100=0,VLOOKUP($A19,Economática!$A$3:$AI$823,21,FALSE)/100="-"),1/0,VLOOKUP($A19,Economática!$A$3:$AI$823,21,FALSE)/100)) -> 0.28806 | V19: =IF($A19="","",IF(OR(VLOOKUP($A19,Economática!$A$3:$AI$823,22,FALSE)/100=0,VLOOKUP($A19,Economática!$A$3:$AI$823,22,FALSE)/100="-"),1/0,VLOOKUP($A19,Economática!$A$3:$AI$823,22,FALSE)/100)) -> -0.239801 | W19: =IF($A19="","",IF(OR(VLOOKUP($A19,Economática!$A$3:$AI$823,23,FALSE)=0,VLOOKUP($A19,Economática!$A$3:$AI$823,23,FALSE)="-"),1/0,VLOOKUP($A19,Economática!$A$3:$AI$823,23,FALSE))) -> 1030.8 | X19: =IF($A19="","",IF(OR(VLOOKUP($A19,Economática!$A$3:$AI$823,24,FALSE)=0,VLOOKUP($A19,Economática!$A$3:$AI$823,24,FALSE)="-"),1/0,VLOOKUP($A19,Economática!$A$3:$AI$823,24,FALSE))) -> 1245.2 | Y19: =IF($A19="","",IF(OR(VLOOKUP($A19,Economática!$A$3:$AI$823,25,FALSE)=0,VLOOKUP($A19,Economática!$A$3:$AI$823,25,FALSE)="-"),1/0,VLOOKUP($A19,Economática!$A$3:$AI$823,25,FALSE))) -> 1245.2 | Z19: =IF($A19="","",IF(ISERROR((F19+VLOOKUP($A19,Economática!$A$3:$AI$823,26,FALSE))/Y19),(F19+VLOOKUP($A19,Economática!$A$3:$AI$823,26,FALSE))/Y19,(F19+VLOOKUP($A19,Economática!$A$3:$AI$823,26,FALSE))/Y19)) -> 25.78720607 | AA19: =IF($A19="","",IF(OR(-VLOOKUP($A19,Economática!$A$3:$AI$823,27,FALSE)=0,-VLOOKUP($A19,Economática!$A$3:$AI$823,27,FALSE)="-"),1/0,-VLOOKUP($A19,Economática!$A$3:$AI$823,27,FALSE))) -> 114.27 | AB19: 0.003498511747 | AC19: =IF($A19="","",IF(OR(VLOOKUP($A19,Economática!$A$3:$AI$823,28,FALSE)=0,VLOOKUP($A19,Economática!$A$3:$AI$823,28,FALSE)="-"),1/0,VLOOKUP($A19,Economática!$A$3:$AI$823,28,FALSE))) -> -0.4 | AD19: =IF($A19="","",IF(OR(VLOOKUP($A19,Economática!$A$3:$AI$823,29,FALSE)=0,VLOOKUP($A19,Economática!$A$3:$AI$823,29,FALSE)="-"),1/0,VLOOKUP($A19,Economática!$A$3:$AI$823,29,FALSE))) -> 116.8 | AE19: =IF($A19="","",IF(OR(VLOOKUP($A19,Economática!$A$3:$AI$823,30,FALSE)/E19=0,VLOOKUP($A19,Economática!$A$3:$AI$823,30,FALSE)/E19="-",VLOOKUP($A19,Economática!$A$3:$AI$823,30,FALSE)/E19<33.33%,VLOOKUP($A19,Economática!$A$3:$AI$823,30,FALSE)/E19>100%),1/0,VLOOKUP($A19,Economática!$A$3:$AI$823,30,FALSE)/E19)) ->  | AF19: MGLU3 | AG19: =IF($A19="","",IF(OR(VLOOKUP($A19,Economática!$A$3:$AI$823,25,FALSE)=0,VLOOKUP($A19,Economática!$A$3:$AI$823,25,FALSE)="-"),1/0,VLOOKUP($A19,Economática!$A$3:$AI$823,25,FALSE))) -> 1245.2 | AH19: =CONCATENATE(Economática!B21," ",Economática!C21) -> Magaz Luiza ON
A20: =IF(Economática!AG22="","",Economática!AG22) -> PNVL3 | B20: =IF($A20="","",VLOOKUP(VLOOKUP($A20,Economática!$A$3:$AI$823,6,FALSE),Correção!$B$16:$C$36,2,FALSE)) -> Comércio | C20: =IF(Economática!B22="","",Economática!B22) -> Dimed | D20: =IF($A20="","",IF(OR(VLOOKUP($A20,Economática!$A$3:$AI$823,8,FALSE)=0,VLOOKUP($A20,Economática!$A$3:$AI$823,8,FALSE)="-"),1/0,VLOOKUP($A20,Economática!$A$3:$AI$823,8,FALSE))) -> 391.99 | E20: =IF(A20="","",IF(ISERROR(VLOOKUP(A20,Correção!$B$2:$G$13,9,FALSE)),VLOOKUP($A20,Economática!$A$3:$AI$823,9,FALSE),VLOOKUP(A20,Correção!$B$2:$G$13,9,FALSE))) -> 4.516 | F20: =IF($A20="","",Economática!G22) -> 1704.16 | G20: =IF($A20="","",IF(OR(VLOOKUP($A20,Economática!$A$3:$AI$823,10,FALSE)=0,VLOOKUP($A20,Economática!$A$3:$AI$823,10,FALSE)="-"),1/0,VLOOKUP($A20,Economática!$A$3:$AI$823,10,FALSE))) -> 463.91 | H20: =IF($A20="","",IF(OR(VLOOKUP($A20,Economática!$A$3:$AI$823,11,FALSE)=0,VLOOKUP($A20,Economática!$A$3:$AI$823,11,FALSE)="-"),1/0,VLOOKUP($A20,Economática!$A$3:$AI$823,11,FALSE))) -> 2258.25 | I20: =IF($A20="","",IF(OR(VLOOKUP($A20,Economática!$A$3:$AI$823,12,FALSE)=0,VLOOKUP($A20,Economática!$A$3:$AI$823,12,FALSE)="-"),1/0,VLOOKUP($A20,Economática!$A$3:$AI$823,12,FALSE))) -> 2432.25 | J20: =IF($A20="","",IF(OR(VLOOKUP($A20,Economática!$A$3:$AI$823,13,FALSE)=0,VLOOKUP($A20,Economática!$A$3:$AI$823,13,FALSE)="-"),1/0,VLOOKUP($A20,Economática!$A$3:$AI$823,13,FALSE))) -> 59.8 | K20: =IF($A20="","",IF(OR(VLOOKUP($A20,Economática!$A$3:$AI$823,14,FALSE)=0,VLOOKUP($A20,Economática!$A$3:$AI$823,14,FALSE)="-"),1/0,VLOOKUP($A20,Economática!$A$3:$AI$823,14,FALSE))) -> 12.65 | L20: =IF($A20="","",IF(OR(VLOOKUP($A20,Economática!$A$3:$AI$823,15,FALSE)=0,VLOOKUP($A20,Economática!$A$3:$AI$823,15,FALSE)="-"),1/0,VLOOKUP($A20,Economática!$A$3:$AI$823,15,FALSE))) -> 28.35 | M20: =IF($A20="","",IF(OR(VLOOKUP($A20,Economática!$A$3:$AI$823,16,FALSE)=0,VLOOKUP($A20,Economática!$A$3:$AI$823,16,FALSE)="-"),1/0,VLOOKUP($A20,Economática!$A$3:$AI$823,16,FALSE))) -> 49.15 | N20: =IF($A20="","",IF(OR(VLOOKUP($A20,Economática!$A$3:$AI$823,17,FALSE)=0,VLOOKUP($A20,Economática!$A$3:$AI$823,17,FALSE)="-"),1/0,VLOOKUP($A20,Economática!$A$3:$AI$823,17,FALSE))) -> 74.98 | O20: =IF($A20="","",IF(OR(VLOOKUP($A20,Economática!$A$3:$AI$823,18,FALSE)=0,VLOOKUP($A20,Economática!$A$3:$AI$823,18,FALSE)="-"),1/0,VLOOKUP($A20,Economática!$A$3:$AI$823,18,FALSE))) -> 59.8 | P20: =IF($A20="","",IF(OR(VLOOKUP($A20,Economática!$A$3:$AI$823,19,FALSE)=0,VLOOKUP($A20,Economática!$A$3:$AI$823,19,FALSE)="-"),1/0,VLOOKUP($A20,Economática!$A$3:$AI$823,19,FALSE))) -> 74.98 | Q20: =IF($A20="","",VLOOKUP($A20,Economática!$A$3:$AI$823,20,FALSE)/E20) -> 16.60318866 | R20: 102.7258636 | S20: 3.815884202 | T20: 23.60932035 | U20: =IF($A20="","",IF(OR(VLOOKUP($A20,Economática!$A$3:$AI$823,21,FALSE)/100=0,VLOOKUP($A20,Economática!$A$3:$AI$823,21,FALSE)/100="-"),1/0,VLOOKUP($A20,Economática!$A$3:$AI$823,21,FALSE)/100)) -> 0.175706 | V20: =IF($A20="","",IF(OR(VLOOKUP($A20,Economática!$A$3:$AI$823,22,FALSE)/100=0,VLOOKUP($A20,Economática!$A$3:$AI$823,22,FALSE)/100="-"),1/0,VLOOKUP($A20,Economática!$A$3:$AI$823,22,FALSE)/100)) -> 0.21924 | W20: =IF($A20="","",IF(OR(VLOOKUP($A20,Economática!$A$3:$AI$823,23,FALSE)=0,VLOOKUP($A20,Economática!$A$3:$AI$823,23,FALSE)="-"),1/0,VLOOKUP($A20,Economática!$A$3:$AI$823,23,FALSE))) -> 117.9 | X20: =IF($A20="","",IF(OR(VLOOKUP($A20,Economática!$A$3:$AI$823,24,FALSE)=0,VLOOKUP($A20,Economática!$A$3:$AI$823,24,FALSE)="-"),1/0,VLOOKUP($A20,Economática!$A$3:$AI$823,24,FALSE))) -> 139.7 | Y20: =IF($A20="","",IF(OR(VLOOKUP($A20,Economática!$A$3:$AI$823,25,FALSE)=0,VLOOKUP($A20,Economática!$A$3:$AI$823,25,FALSE)="-"),1/0,VLOOKUP($A20,Economática!$A$3:$AI$823,25,FALSE))) -> 139.7 | Z20: =IF($A20="","",IF(ISERROR((F20+VLOOKUP($A20,Economática!$A$3:$AI$823,26,FALSE))/Y20),(F20+VLOOKUP($A20,Economática!$A$3:$AI$823,26,FALSE))/Y20,(F20+VLOOKUP($A20,Economática!$A$3:$AI$823,26,FALSE))/Y20)) -> 12.92675734 | AA20: =IF($A20="","",IF(OR(-VLOOKUP($A20,Economática!$A$3:$AI$823,27,FALSE)=0,-VLOOKUP($A20,Economática!$A$3:$AI$823,27,FALSE)="-"),1/0,-VLOOKUP($A20,Economática!$A$3:$AI$823,27,FALSE))) -> 17.89 | AB20: 0.01049784058 | AC20: =IF($A20="","",IF(OR(VLOOKUP($A20,Economática!$A$3:$AI$823,28,FALSE)=0,VLOOKUP($A20,Economática!$A$3:$AI$823,28,FALSE)="-"),1/0,VLOOKUP($A20,Economática!$A$3:$AI$823,28,FALSE))) -> 4.8 | AD20: =IF($A20="","",IF(OR(VLOOKUP($A20,Economática!$A$3:$AI$823,29,FALSE)=0,VLOOKUP($A20,Economática!$A$3:$AI$823,29,FALSE)="-"),1/0,VLOOKUP($A20,Economática!$A$3:$AI$823,29,FALSE))) -> -0.1 | AE20: =IF($A20="","",IF(OR(VLOOKUP($A20,Economática!$A$3:$AI$823,30,FALSE)/E20=0,VLOOKUP($A20,Economática!$A$3:$AI$823,30,FALSE)/E20="-",VLOOKUP($A20,Economática!$A$3:$AI$823,30,FALSE)/E20<33.33%,VLOOKUP($A20,Economática!$A$3:$AI$823,30,FALSE)/E20>100%),1/0,VLOOKUP($A20,Economática!$A$3:$AI$823,30,FALSE)/E20)) -> 0.9078830824 | AF20: PNVL3 | AG20: =IF($A20="","",IF(OR(VLOOKUP($A20,Economática!$A$3:$AI$823,25,FALSE)=0,VLOOKUP($A20,Economática!$A$3:$AI$823,25,FALSE)="-"),1/0,VLOOKUP($A20,Economática!$A$3:$AI$823,25,FALSE))) -> 139.7 | AH20: =CONCATENATE(Economática!B22," ",Economática!C22) -> Dimed ON
A21: =IF(Economática!AG23="","",Economática!AG23) -> RADL3 | B21: =IF($A21="","",VLOOKUP(VLOOKUP($A21,Economática!$A$3:$AI$823,6,FALSE),Correção!$B$16:$C$36,2,FALSE)) -> Comércio | C21: =IF(Economática!B23="","",Economática!B23) -> RaiaDrogasil | D21: =IF($A21="","",IF(OR(VLOOKUP($A21,Economática!$A$3:$AI$823,8,FALSE)=0,VLOOKUP($A21,Economática!$A$3:$AI$823,8,FALSE)="-"),1/0,VLOOKUP($A21,Economática!$A$3:$AI$823,8,FALSE))) -> 65.3 | E21: =IF(A21="","",IF(ISERROR(VLOOKUP(A21,Correção!$B$2:$G$13,9,FALSE)),VLOOKUP($A21,Economática!$A$3:$AI$823,9,FALSE),VLOOKUP(A21,Correção!$B$2:$G$13,9,FALSE))) -> 329.339 | F21: =IF($A21="","",Economática!G23) -> 21505.86 | G21: =IF($A21="","",IF(OR(VLOOKUP($A21,Economática!$A$3:$AI$823,10,FALSE)=0,VLOOKUP($A21,Economática!$A$3:$AI$823,10,FALSE)="-"),1/0,VLOOKUP($A21,Economática!$A$3:$AI$823,10,FALSE))) -> 3499.86 | H21: =IF($A21="","",IF(OR(VLOOKUP($A21,Economática!$A$3:$AI$823,11,FALSE)=0,VLOOKUP($A21,Economática!$A$3:$AI$823,11,FALSE)="-"),1/0,VLOOKUP($A21,Economática!$A$3:$AI$823,11,FALSE))) -> 13212.51 | I21: =IF($A21="","",IF(OR(VLOOKUP($A21,Economática!$A$3:$AI$823,12,FALSE)=0,VLOOKUP($A21,Economática!$A$3:$AI$823,12,FALSE)="-"),1/0,VLOOKUP($A21,Economática!$A$3:$AI$823,12,FALSE))) -> 14801.45 | J21: =IF($A21="","",IF(OR(VLOOKUP($A21,Economática!$A$3:$AI$823,13,FALSE)=0,VLOOKUP($A21,Economática!$A$3:$AI$823,13,FALSE)="-"),1/0,VLOOKUP($A21,Economática!$A$3:$AI$823,13,FALSE))) -> 511.16 | K21: =IF($A21="","",IF(OR(VLOOKUP($A21,Economática!$A$3:$AI$823,14,FALSE)=0,VLOOKUP($A21,Economática!$A$3:$AI$823,14,FALSE)="-"),1/0,VLOOKUP($A21,Economática!$A$3:$AI$823,14,FALSE))) -> 120.95 | L21: =IF($A21="","",IF(OR(VLOOKUP($A21,Economática!$A$3:$AI$823,15,FALSE)=0,VLOOKUP($A21,Economática!$A$3:$AI$823,15,FALSE)="-"),1/0,VLOOKUP($A21,Economática!$A$3:$AI$823,15,FALSE))) -> 257.41 | M21: =IF($A21="","",IF(OR(VLOOKUP($A21,Economática!$A$3:$AI$823,16,FALSE)=0,VLOOKUP($A21,Economática!$A$3:$AI$823,16,FALSE)="-"),1/0,VLOOKUP($A21,Economática!$A$3:$AI$823,16,FALSE))) -> 385.36 | N21: =IF($A21="","",IF(OR(VLOOKUP($A21,Economática!$A$3:$AI$823,17,FALSE)=0,VLOOKUP($A21,Economática!$A$3:$AI$823,17,FALSE)="-"),1/0,VLOOKUP($A21,Economática!$A$3:$AI$823,17,FALSE))) -> 502.45 | O21: =IF($A21="","",IF(OR(VLOOKUP($A21,Economática!$A$3:$AI$823,18,FALSE)=0,VLOOKUP($A21,Economática!$A$3:$AI$823,18,FALSE)="-"),1/0,VLOOKUP($A21,Economática!$A$3:$AI$823,18,FALSE))) -> 511.16 | P21: =IF($A21="","",IF(OR(VLOOKUP($A21,Economática!$A$3:$AI$823,19,FALSE)=0,VLOOKUP($A21,Economática!$A$3:$AI$823,19,FALSE)="-"),1/0,VLOOKUP($A21,Economática!$A$3:$AI$823,19,FALSE))) -> 502.45 | Q21: =IF($A21="","",VLOOKUP($A21,Economática!$A$3:$AI$823,20,FALSE)/E21) -> 1.525631644 | R21: 10.62692241 | S21: 6.144770562 | T21: 42.80194388 | U21: =IF($A21="","",IF(OR(VLOOKUP($A21,Economática!$A$3:$AI$823,21,FALSE)/100=0,VLOOKUP($A21,Economática!$A$3:$AI$823,21,FALSE)/100="-"),1/0,VLOOKUP($A21,Economática!$A$3:$AI$823,21,FALSE)/100)) -> 0.156694 | V21: =IF($A21="","",IF(OR(VLOOKUP($A21,Economática!$A$3:$AI$823,22,FALSE)/100=0,VLOOKUP($A21,Economática!$A$3:$AI$823,22,FALSE)/100="-"),1/0,VLOOKUP($A21,Economática!$A$3:$AI$823,22,FALSE)/100)) -> 0.17019 | W21: =IF($A21="","",IF(OR(VLOOKUP($A21,Economática!$A$3:$AI$823,23,FALSE)=0,VLOOKUP($A21,Economática!$A$3:$AI$823,23,FALSE)="-"),1/0,VLOOKUP($A21,Economática!$A$3:$AI$823,23,FALSE))) -> 1130.7 | X21: =IF($A21="","",IF(OR(VLOOKUP($A21,Economática!$A$3:$AI$823,24,FALSE)=0,VLOOKUP($A21,Economática!$A$3:$AI$823,24,FALSE)="-"),1/0,VLOOKUP($A21,Economática!$A$3:$AI$823,24,FALSE))) -> 1137.3 | Y21: =IF($A21="","",IF(OR(VLOOKUP($A21,Economática!$A$3:$AI$823,25,FALSE)=0,VLOOKUP($A21,Economática!$A$3:$AI$823,25,FALSE)="-"),1/0,VLOOKUP($A21,Economática!$A$3:$AI$823,25,FALSE))) -> 1137.3 | Z21: =IF($A21="","",IF(ISERROR((F21+VLOOKUP($A21,Economática!$A$3:$AI$823,26,FALSE))/Y21),(F21+VLOOKUP($A21,Economática!$A$3:$AI$823,26,FALSE))/Y21,(F21+VLOOKUP($A21,Economática!$A$3:$AI$823,26,FALSE))/Y21)) -> 19.43853161 | AA21: =IF($A21="","",IF(OR(-VLOOKUP($A21,Economática!$A$3:$AI$823,27,FALSE)=0,-VLOOKUP($A21,Economática!$A$3:$AI$823,27,FALSE)="-"),1/0,-VLOOKUP($A21,Economática!$A$3:$AI$823,27,FALSE))) -> 173.62 | AB21: 0.008073148435 | AC21: =IF($A21="","",IF(OR(VLOOKUP($A21,Economática!$A$3:$AI$823,28,FALSE)=0,VLOOKUP($A21,Economática!$A$3:$AI$823,28,FALSE)="-"),1/0,VLOOKUP($A21,Economática!$A$3:$AI$823,28,FALSE))) -> 0.1 | AD21: =IF($A21="","",IF(OR(VLOOKUP($A21,Economática!$A$3:$AI$823,29,FALSE)=0,VLOOKUP($A21,Economática!$A$3:$AI$823,29,FALSE)="-"),1/0,VLOOKUP($A21,Economática!$A$3:$AI$823,29,FALSE))) -> -28 | AE21: =IF($A21="","",IF(OR(VLOOKUP($A21,Economática!$A$3:$AI$823,30,FALSE)/E21=0,VLOOKUP($A21,Economática!$A$3:$AI$823,30,FALSE)/E21="-",VLOOKUP($A21,Economática!$A$3:$AI$823,30,FALSE)/E21<33.33%,VLOOKUP($A21,Economática!$A$3:$AI$823,30,FALSE)/E21>100%),1/0,VLOOKUP($A21,Economática!$A$3:$AI$823,30,FALSE)/E21)) ->  | AF21: RADL3 | AG21: =IF($A21="","",IF(OR(VLOOKUP($A21,Economática!$A$3:$AI$823,25,FALSE)=0,VLOOKUP($A21,Economática!$A$3:$AI$823,25,FALSE)="-"),1/0,VLOOKUP($A21,Economática!$A$3:$AI$823,25,FALSE))) -> 1137.3 | AH21: =CONCATENATE(Economática!B23," ",Economática!C23) -> RaiaDrogasil ON
A22: =IF(Economática!AG24="","",Economática!AG24) -> CRFB3 | B22: =IF($A22="","",VLOOKUP(VLOOKUP($A22,Economática!$A$3:$AI$823,6,FALSE),Correção!$B$16:$C$36,2,FALSE)) -> Comércio | C22: =IF(Economática!B24="","",Economática!B24) -> Carrefour BR | D22: =IF($A22="","",IF(OR(VLOOKUP($A22,Economática!$A$3:$AI$823,8,FALSE)=0,VLOOKUP($A22,Economática!$A$3:$AI$823,8,FALSE)="-"),1/0,VLOOKUP($A22,Economática!$A$3:$AI$823,8,FALSE))) -> 20.09 | E22: =IF(A22="","",IF(ISERROR(VLOOKUP(A22,Correção!$B$2:$G$13,9,FALSE)),VLOOKUP($A22,Economática!$A$3:$AI$823,9,FALSE),VLOOKUP(A22,Correção!$B$2:$G$13,9,FALSE))) -> 1983.438 | F22: =IF($A22="","",Economática!G24) -> 39847.27 | G22: =IF($A22="","",IF(OR(VLOOKUP($A22,Economática!$A$3:$AI$823,10,FALSE)=0,VLOOKUP($A22,Economática!$A$3:$AI$823,10,FALSE)="-"),1/0,VLOOKUP($A22,Economática!$A$3:$AI$823,10,FALSE))) -> 13033 | H22: =IF($A22="","",IF(OR(VLOOKUP($A22,Economática!$A$3:$AI$823,11,FALSE)=0,VLOOKUP($A22,Economática!$A$3:$AI$823,11,FALSE)="-"),1/0,VLOOKUP($A22,Economática!$A$3:$AI$823,11,FALSE))) -> 50280 | I22: =IF($A22="","",IF(OR(VLOOKUP($A22,Economática!$A$3:$AI$823,12,FALSE)=0,VLOOKUP($A22,Economática!$A$3:$AI$823,12,FALSE)="-"),1/0,VLOOKUP($A22,Economática!$A$3:$AI$823,12,FALSE))) -> 54267 | J22: =IF($A22="","",IF(OR(VLOOKUP($A22,Economática!$A$3:$AI$823,13,FALSE)=0,VLOOKUP($A22,Economática!$A$3:$AI$823,13,FALSE)="-"),1/0,VLOOKUP($A22,Economática!$A$3:$AI$823,13,FALSE))) -> 1599 | K22: =IF($A22="","",IF(OR(VLOOKUP($A22,Economática!$A$3:$AI$823,14,FALSE)=0,VLOOKUP($A22,Economática!$A$3:$AI$823,14,FALSE)="-"),1/0,VLOOKUP($A22,Economática!$A$3:$AI$823,14,FALSE))) -> 280 | L22: =IF($A22="","",IF(OR(VLOOKUP($A22,Economática!$A$3:$AI$823,15,FALSE)=0,VLOOKUP($A22,Economática!$A$3:$AI$823,15,FALSE)="-"),1/0,VLOOKUP($A22,Economática!$A$3:$AI$823,15,FALSE))) -> 669 | M22: =IF($A22="","",IF(OR(VLOOKUP($A22,Economática!$A$3:$AI$823,16,FALSE)=0,VLOOKUP($A22,Economática!$A$3:$AI$823,16,FALSE)="-"),1/0,VLOOKUP($A22,Economática!$A$3:$AI$823,16,FALSE))) -> 1024 | N22: =IF($A22="","",IF(OR(VLOOKUP($A22,Economática!$A$3:$AI$823,17,FALSE)=0,VLOOKUP($A22,Economática!$A$3:$AI$823,17,FALSE)="-"),1/0,VLOOKUP($A22,Economática!$A$3:$AI$823,17,FALSE))) -> 1660 | O22: =IF($A22="","",IF(OR(VLOOKUP($A22,Economática!$A$3:$AI$823,18,FALSE)=0,VLOOKUP($A22,Economática!$A$3:$AI$823,18,FALSE)="-"),1/0,VLOOKUP($A22,Economática!$A$3:$AI$823,18,FALSE))) -> 1599 | P22: =IF($A22="","",IF(OR(VLOOKUP($A22,Economática!$A$3:$AI$823,19,FALSE)=0,VLOOKUP($A22,Economática!$A$3:$AI$823,19,FALSE)="-"),1/0,VLOOKUP($A22,Economática!$A$3:$AI$823,19,FALSE))) -> 1660 | Q22: =IF($A22="","",VLOOKUP($A22,Economática!$A$3:$AI$823,20,FALSE)/E22) -> 0.8369306225 | R22: 6.570913737 | S22: 3.057413444 | T22: 24.00437917 | U22: =IF($A22="","",IF(OR(VLOOKUP($A22,Economática!$A$3:$AI$823,21,FALSE)/100=0,VLOOKUP($A22,Economática!$A$3:$AI$823,21,FALSE)/100="-"),1/0,VLOOKUP($A22,Economática!$A$3:$AI$823,21,FALSE)/100)) -> 0.141781 | V22: =IF($A22="","",IF(OR(VLOOKUP($A22,Economática!$A$3:$AI$823,22,FALSE)/100=0,VLOOKUP($A22,Economática!$A$3:$AI$823,22,FALSE)/100="-"),1/0,VLOOKUP($A22,Economática!$A$3:$AI$823,22,FALSE)/100)) -> -0.214993 | W22: =IF($A22="","",IF(OR(VLOOKUP($A22,Economática!$A$3:$AI$823,23,FALSE)=0,VLOOKUP($A22,Economática!$A$3:$AI$823,23,FALSE)="-"),1/0,VLOOKUP($A22,Economática!$A$3:$AI$823,23,FALSE))) -> 3785 | X22: =IF($A22="","",IF(OR(VLOOKUP($A22,Economática!$A$3:$AI$823,24,FALSE)=0,VLOOKUP($A22,Economática!$A$3:$AI$823,24,FALSE)="-"),1/0,VLOOKUP($A22,Economática!$A$3:$AI$823,24,FALSE))) -> 3891 | Y22: =IF($A22="","",IF(OR(VLOOKUP($A22,Economática!$A$3:$AI$823,25,FALSE)=0,VLOOKUP($A22,Economática!$A$3:$AI$823,25,FALSE)="-"),1/0,VLOOKUP($A22,Economática!$A$3:$AI$823,25,FALSE))) -> 3891 | Z22: =IF($A22="","",IF(ISERROR((F22+VLOOKUP($A22,Economática!$A$3:$AI$823,26,FALSE))/Y22),(F22+VLOOKUP($A22,Economática!$A$3:$AI$823,26,FALSE))/Y22,(F22+VLOOKUP($A22,Economática!$A$3:$AI$823,26,FALSE))/Y22)) -> 9.464731432 | AA22: =IF($A22="","",IF(OR(-VLOOKUP($A22,Economática!$A$3:$AI$823,27,FALSE)=0,-VLOOKUP($A22,Economática!$A$3:$AI$823,27,FALSE)="-"),1/0,-VLOOKUP($A22,Economática!$A$3:$AI$823,27,FALSE))) -> 697 | AB22: 0.01749178802 | AC22: =IF($A22="","",IF(OR(VLOOKUP($A22,Economática!$A$3:$AI$823,28,FALSE)=0,VLOOKUP($A22,Economática!$A$3:$AI$823,28,FALSE)="-"),1/0,VLOOKUP($A22,Economática!$A$3:$AI$823,28,FALSE))) -> 2.9 | AD22: =IF($A22="","",IF(OR(VLOOKUP($A22,Economática!$A$3:$AI$823,29,FALSE)=0,VLOOKUP($A22,Economática!$A$3:$AI$823,29,FALSE)="-"),1/0,VLOOKUP($A22,Economática!$A$3:$AI$823,29,FALSE))) -> 34.8 | AE22: =IF($A22="","",IF(OR(VLOOKUP($A22,Economática!$A$3:$AI$823,30,FALSE)/E22=0,VLOOKUP($A22,Economática!$A$3:$AI$823,30,FALSE)/E22="-",VLOOKUP($A22,Economática!$A$3:$AI$823,30,FALSE)/E22<33.33%,VLOOKUP($A22,Economática!$A$3:$AI$823,30,FALSE)/E22>100%),1/0,VLOOKUP($A22,Economática!$A$3:$AI$823,30,FALSE)/E22)) -> 0.9999808413 | AF22: CRFB3 | AG22: =IF($A22="","",IF(OR(VLOOKUP($A22,Economática!$A$3:$AI$823,25,FALSE)=0,VLOOKUP($A22,Economática!$A$3:$AI$823,25,FALSE)="-"),1/0,VLOOKUP($A22,Economática!$A$3:$AI$823,25,FALSE))) -> 3891 | AH22: =CONCATENATE(Economática!B24," ",Economática!C24) -> Carrefour BR ON
A23: =IF(Economática!AG25="","",Economática!AG25) -> CGRA4 | B23: =IF($A23="","",VLOOKUP(VLOOKUP($A23,Economática!$A$3:$AI$823,6,FALSE),Correção!$B$16:$C$36,2,FALSE)) -> Comércio | C23: =IF(Economática!B25="","",Economática!B25) -> Grazziotin | D23: =IF($A23="","",IF(OR(VLOOKUP($A23,Economática!$A$3:$AI$823,8,FALSE)=0,VLOOKUP($A23,Economática!$A$3:$AI$823,8,FALSE)="-"),1/0,VLOOKUP($A23,Economática!$A$3:$AI$823,8,FALSE))) -> 24.08 | E23: =IF(A23="","",IF(ISERROR(VLOOKUP(A23,Correção!$B$2:$G$13,9,FALSE)),VLOOKUP($A23,Economática!$A$3:$AI$823,9,FALSE),VLOOKUP(A23,Correção!$B$2:$G$13,9,FALSE))) -> 20.057 | F23: =IF($A23="","",Economática!G25) -> 483.54 | G23: =IF($A23="","",IF(OR(VLOOKUP($A23,Economática!$A$3:$AI$823,10,FALSE)=0,VLOOKUP($A23,Economática!$A$3:$AI$823,10,FALSE)="-"),1/0,VLOOKUP($A23,Economática!$A$3:$AI$823,10,FALSE))) -> 497.95 | H23: =IF($A23="","",IF(OR(VLOOKUP($A23,Economática!$A$3:$AI$823,11,FALSE)=0,VLOOKUP($A23,Economática!$A$3:$AI$823,11,FALSE)="-"),1/0,VLOOKUP($A23,Economática!$A$3:$AI$823,11,FALSE))) -> 428.28 | I23: =IF($A23="","",IF(OR(VLOOKUP($A23,Economática!$A$3:$AI$823,12,FALSE)=0,VLOOKUP($A23,Economática!$A$3:$AI$823,12,FALSE)="-"),1/0,VLOOKUP($A23,Economática!$A$3:$AI$823,12,FALSE))) -> 463.17 | J23: =IF($A23="","",IF(OR(VLOOKUP($A23,Economática!$A$3:$AI$823,13,FALSE)=0,VLOOKUP($A23,Economática!$A$3:$AI$823,13,FALSE)="-"),1/0,VLOOKUP($A23,Economática!$A$3:$AI$823,13,FALSE))) -> 61.4 | K23: =IF($A23="","",IF(OR(VLOOKUP($A23,Economática!$A$3:$AI$823,14,FALSE)=0,VLOOKUP($A23,Economática!$A$3:$AI$823,14,FALSE)="-"),1/0,VLOOKUP($A23,Economática!$A$3:$AI$823,14,FALSE))) -> 4.76 | L23: =IF($A23="","",IF(OR(VLOOKUP($A23,Economática!$A$3:$AI$823,15,FALSE)=0,VLOOKUP($A23,Economática!$A$3:$AI$823,15,FALSE)="-"),1/0,VLOOKUP($A23,Economática!$A$3:$AI$823,15,FALSE))) -> 22.57 | M23: =IF($A23="","",IF(OR(VLOOKUP($A23,Economática!$A$3:$AI$823,16,FALSE)=0,VLOOKUP($A23,Economática!$A$3:$AI$823,16,FALSE)="-"),1/0,VLOOKUP($A23,Economática!$A$3:$AI$823,16,FALSE))) -> 32.29 | N23: =IF($A23="","",IF(OR(VLOOKUP($A23,Economática!$A$3:$AI$823,17,FALSE)=0,VLOOKUP($A23,Economática!$A$3:$AI$823,17,FALSE)="-"),1/0,VLOOKUP($A23,Economática!$A$3:$AI$823,17,FALSE))) -> 53.77 | O23: =IF($A23="","",IF(OR(VLOOKUP($A23,Economática!$A$3:$AI$823,18,FALSE)=0,VLOOKUP($A23,Economática!$A$3:$AI$823,18,FALSE)="-"),1/0,VLOOKUP($A23,Economática!$A$3:$AI$823,18,FALSE))) -> 61.4 | P23: =IF($A23="","",IF(OR(VLOOKUP($A23,Economática!$A$3:$AI$823,19,FALSE)=0,VLOOKUP($A23,Economática!$A$3:$AI$823,19,FALSE)="-"),1/0,VLOOKUP($A23,Economática!$A$3:$AI$823,19,FALSE))) -> 53.77 | Q23: =IF($A23="","",VLOOKUP($A23,Economática!$A$3:$AI$823,20,FALSE)/E23) -> 2.68085955 | R23: 24.82674378 | S23: 0.9699217994 | T23: 8.982193788 | U23: =IF($A23="","",IF(OR(VLOOKUP($A23,Economática!$A$3:$AI$823,21,FALSE)/100=0,VLOOKUP($A23,Economática!$A$3:$AI$823,21,FALSE)/100="-"),1/0,VLOOKUP($A23,Economática!$A$3:$AI$823,21,FALSE)/100)) -> 0.112413 | V23: =IF($A23="","",IF(OR(VLOOKUP($A23,Economática!$A$3:$AI$823,22,FALSE)/100=0,VLOOKUP($A23,Economática!$A$3:$AI$823,22,FALSE)/100="-"),1/0,VLOOKUP($A23,Economática!$A$3:$AI$823,22,FALSE)/100)) -> -0.125102 | W23: =IF($A23="","",IF(OR(VLOOKUP($A23,Economática!$A$3:$AI$823,23,FALSE)=0,VLOOKUP($A23,Economática!$A$3:$AI$823,23,FALSE)="-"),1/0,VLOOKUP($A23,Economática!$A$3:$AI$823,23,FALSE))) -> 61.2 | X23: =IF($A23="","",IF(OR(VLOOKUP($A23,Economática!$A$3:$AI$823,24,FALSE)=0,VLOOKUP($A23,Economática!$A$3:$AI$823,24,FALSE)="-"),1/0,VLOOKUP($A23,Economática!$A$3:$AI$823,24,FALSE))) -> 59.8 | Y23: =IF($A23="","",IF(OR(VLOOKUP($A23,Economática!$A$3:$AI$823,25,FALSE)=0,VLOOKUP($A23,Economática!$A$3:$AI$823,25,FALSE)="-"),1/0,VLOOKUP($A23,Economática!$A$3:$AI$823,25,FALSE))) -> 59.8 | Z23: =IF($A23="","",IF(ISERROR((F23+VLOOKUP($A23,Economática!$A$3:$AI$823,26,FALSE))/Y23),(F23+VLOOKUP($A23,Economática!$A$3:$AI$823,26,FALSE))/Y23,(F23+VLOOKUP($A23,Economática!$A$3:$AI$823,26,FALSE))/Y23)) -> 7.044247492 | AA23: =IF($A23="","",IF(OR(-VLOOKUP($A23,Economática!$A$3:$AI$823,27,FALSE)=0,-VLOOKUP($A23,Economática!$A$3:$AI$823,27,FALSE)="-"),1/0,-VLOOKUP($A23,Economática!$A$3:$AI$823,27,FALSE))) -> 22 | AB23: 0.04549778715 | AC23: =IF($A23="","",IF(OR(VLOOKUP($A23,Economática!$A$3:$AI$823,28,FALSE)=0,VLOOKUP($A23,Economática!$A$3:$AI$823,28,FALSE)="-"),1/0,VLOOKUP($A23,Economática!$A$3:$AI$823,28,FALSE))) -> -7.6 | AD23: =IF($A23="","",IF(OR(VLOOKUP($A23,Economática!$A$3:$AI$823,29,FALSE)=0,VLOOKUP($A23,Economática!$A$3:$AI$823,29,FALSE)="-"),1/0,VLOOKUP($A23,Economática!$A$3:$AI$823,29,FALSE))) -> -7.5 | AE23: =IF($A23="","",IF(OR(VLOOKUP($A23,Economática!$A$3:$AI$823,30,FALSE)/E23=0,VLOOKUP($A23,Economática!$A$3:$AI$823,30,FALSE)/E23="-",VLOOKUP($A23,Economática!$A$3:$AI$823,30,FALSE)/E23<33.33%,VLOOKUP($A23,Economática!$A$3:$AI$823,30,FALSE)/E23>100%),1/0,VLOOKUP($A23,Economática!$A$3:$AI$823,30,FALSE)/E23)) -> 0.4088348208 | AF23: CGRA4 | AG23: =IF($A23="","",IF(OR(VLOOKUP($A23,Economática!$A$3:$AI$823,25,FALSE)=0,VLOOKUP($A23,Economática!$A$3:$AI$823,25,FALSE)="-"),1/0,VLOOKUP($A23,Economática!$A$3:$AI$823,25,FALSE))) -> 59.8 | AH23: =CONCATENATE(Economática!B25," ",Economática!C25) -> Grazziotin PN
A24: =IF(Economática!AG26="","",Economática!AG26) -> PCAR4 | B24: =IF($A24="","",VLOOKUP(VLOOKUP($A24,Economática!$A$3:$AI$823,6,FALSE),Correção!$B$16:$C$36,2,FALSE)) -> Comércio | C24: =IF(Economática!B26="","",Economática!B26) -> P.Acucar-Cbd | D24: =IF($A24="","",IF(OR(VLOOKUP($A24,Economática!$A$3:$AI$823,8,FALSE)=0,VLOOKUP($A24,Economática!$A$3:$AI$823,8,FALSE)="-"),1/0,VLOOKUP($A24,Economática!$A$3:$AI$823,8,FALSE))) -> 91.46 | E24: =IF(A24="","",IF(ISERROR(VLOOKUP(A24,Correção!$B$2:$G$13,9,FALSE)),VLOOKUP($A24,Economática!$A$3:$AI$823,9,FALSE),VLOOKUP(A24,Correção!$B$2:$G$13,9,FALSE))) -> 266.612 | F24: =IF($A24="","",Economática!G26) -> 24384.33 | G24: =IF($A24="","",IF(OR(VLOOKUP($A24,Economática!$A$3:$AI$823,10,FALSE)=0,VLOOKUP($A24,Economática!$A$3:$AI$823,10,FALSE)="-"),1/0,VLOOKUP($A24,Economática!$A$3:$AI$823,10,FALSE))) -> 11083 | H24: =IF($A24="","",IF(OR(VLOOKUP($A24,Economática!$A$3:$AI$823,11,FALSE)=0,VLOOKUP($A24,Economática!$A$3:$AI$823,11,FALSE)="-"),1/0,VLOOKUP($A24,Economática!$A$3:$AI$823,11,FALSE))) -> 44634 | I24: =IF($A24="","",IF(OR(VLOOKUP($A24,Economática!$A$3:$AI$823,12,FALSE)=0,VLOOKUP($A24,Economática!$A$3:$AI$823,12,FALSE)="-"),1/0,VLOOKUP($A24,Economática!$A$3:$AI$823,12,FALSE))) -> 49388 | J24: =IF($A24="","",IF(OR(VLOOKUP($A24,Economática!$A$3:$AI$823,13,FALSE)=0,VLOOKUP($A24,Economática!$A$3:$AI$823,13,FALSE)="-"),1/0,VLOOKUP($A24,Economática!$A$3:$AI$823,13,FALSE))) -> 619 | K24: =IF($A24="","",IF(OR(VLOOKUP($A24,Economática!$A$3:$AI$823,14,FALSE)=0,VLOOKUP($A24,Economática!$A$3:$AI$823,14,FALSE)="-"),1/0,VLOOKUP($A24,Economática!$A$3:$AI$823,14,FALSE))) -> 150 | L24: =IF($A24="","",IF(OR(VLOOKUP($A24,Economática!$A$3:$AI$823,15,FALSE)=0,VLOOKUP($A24,Economática!$A$3:$AI$823,15,FALSE)="-"),1/0,VLOOKUP($A24,Economática!$A$3:$AI$823,15,FALSE))) -> 628 | M24: =IF($A24="","",IF(OR(VLOOKUP($A24,Economática!$A$3:$AI$823,16,FALSE)=0,VLOOKUP($A24,Economática!$A$3:$AI$823,16,FALSE)="-"),1/0,VLOOKUP($A24,Economática!$A$3:$AI$823,16,FALSE))) -> 778 | N24: =IF($A24="","",IF(OR(VLOOKUP($A24,Economática!$A$3:$AI$823,17,FALSE)=0,VLOOKUP($A24,Economática!$A$3:$AI$823,17,FALSE)="-"),1/0,VLOOKUP($A24,Economática!$A$3:$AI$823,17,FALSE))) -> 1193 | O24: =IF($A24="","",IF(OR(VLOOKUP($A24,Economática!$A$3:$AI$823,18,FALSE)=0,VLOOKUP($A24,Economática!$A$3:$AI$823,18,FALSE)="-"),1/0,VLOOKUP($A24,Economática!$A$3:$AI$823,18,FALSE))) -> 619 | P24: =IF($A24="","",IF(OR(VLOOKUP($A24,Economática!$A$3:$AI$823,19,FALSE)=0,VLOOKUP($A24,Economática!$A$3:$AI$823,19,FALSE)="-"),1/0,VLOOKUP($A24,Economática!$A$3:$AI$823,19,FALSE))) -> 1193 | Q24: =IF($A24="","",VLOOKUP($A24,Economática!$A$3:$AI$823,20,FALSE)/E24) -> 4.474667307 | R24: 41.5697718 | S24: 2.200156413 | T24: 20.4395084 | U24: =IF($A24="","",IF(OR(VLOOKUP($A24,Economática!$A$3:$AI$823,21,FALSE)/100=0,VLOOKUP($A24,Economática!$A$3:$AI$823,21,FALSE)/100="-"),1/0,VLOOKUP($A24,Economática!$A$3:$AI$823,21,FALSE)/100)) -> 0.088775 | V24: =IF($A24="","",IF(OR(VLOOKUP($A24,Economática!$A$3:$AI$823,22,FALSE)/100=0,VLOOKUP($A24,Economática!$A$3:$AI$823,22,FALSE)/100="-"),1/0,VLOOKUP($A24,Economática!$A$3:$AI$823,22,FALSE)/100)) -> 0.082933 | W24: =IF($A24="","",IF(OR(VLOOKUP($A24,Economática!$A$3:$AI$823,23,FALSE)=0,VLOOKUP($A24,Economática!$A$3:$AI$823,23,FALSE)="-"),1/0,VLOOKUP($A24,Economática!$A$3:$AI$823,23,FALSE))) -> 2342 | X24: =IF($A24="","",IF(OR(VLOOKUP($A24,Economática!$A$3:$AI$823,24,FALSE)=0,VLOOKUP($A24,Economática!$A$3:$AI$823,24,FALSE)="-"),1/0,VLOOKUP($A24,Economática!$A$3:$AI$823,24,FALSE))) -> 3066 | Y24: =IF($A24="","",IF(OR(VLOOKUP($A24,Economática!$A$3:$AI$823,25,FALSE)=0,VLOOKUP($A24,Economática!$A$3:$AI$823,25,FALSE)="-"),1/0,VLOOKUP($A24,Economática!$A$3:$AI$823,25,FALSE))) -> 3066 | Z24: =IF($A24="","",IF(ISERROR((F24+VLOOKUP($A24,Economática!$A$3:$AI$823,26,FALSE))/Y24),(F24+VLOOKUP($A24,Economática!$A$3:$AI$823,26,FALSE))/Y24,(F24+VLOOKUP($A24,Economática!$A$3:$AI$823,26,FALSE))/Y24)) -> 8.330179387 | AA24: =IF($A24="","",IF(OR(-VLOOKUP($A24,Economática!$A$3:$AI$823,27,FALSE)=0,-VLOOKUP($A24,Economática!$A$3:$AI$823,27,FALSE)="-"),1/0,-VLOOKUP($A24,Economática!$A$3:$AI$823,27,FALSE))) -> 342 | AB24: 0.01402540074 | AC24: =IF($A24="","",IF(OR(VLOOKUP($A24,Economática!$A$3:$AI$823,28,FALSE)=0,VLOOKUP($A24,Economática!$A$3:$AI$823,28,FALSE)="-"),1/0,VLOOKUP($A24,Economática!$A$3:$AI$823,28,FALSE))) -> -1 | AD24: =IF($A24="","",IF(OR(VLOOKUP($A24,Economática!$A$3:$AI$823,29,FALSE)=0,VLOOKUP($A24,Economática!$A$3:$AI$823,29,FALSE)="-"),1/0,VLOOKUP($A24,Economática!$A$3:$AI$823,29,FALSE))) -> 18.9 | AE24: =IF($A24="","",IF(OR(VLOOKUP($A24,Economática!$A$3:$AI$823,30,FALSE)/E24=0,VLOOKUP($A24,Economática!$A$3:$AI$823,30,FALSE)/E24="-",VLOOKUP($A24,Economática!$A$3:$AI$823,30,FALSE)/E24<33.33%,VLOOKUP($A24,Economática!$A$3:$AI$823,30,FALSE)/E24>100%),1/0,VLOOKUP($A24,Economática!$A$3:$AI$823,30,FALSE)/E24)) -> 0.3739516601 | AF24: PCAR4 | AG24: =IF($A24="","",IF(OR(VLOOKUP($A24,Economática!$A$3:$AI$823,25,FALSE)=0,VLOOKUP($A24,Economática!$A$3:$AI$823,25,FALSE)="-"),1/0,VLOOKUP($A24,Economática!$A$3:$AI$823,25,FALSE))) -> 3066 | AH24: =CONCATENATE(Economática!B26," ",Economática!C26) -> P.Acucar-Cbd PN
A25: =IF(Economática!AG27="","",Economática!AG27) -> WLMM4 | B25: =IF($A25="","",VLOOKUP(VLOOKUP($A25,Economática!$A$3:$AI$823,6,FALSE),Correção!$B$16:$C$36,2,FALSE)) -> Comércio | C25: =IF(Economática!B27="","",Economática!B27) -> Wlm Ind Com | D25: =IF($A25="","",IF(OR(VLOOKUP($A25,Economática!$A$3:$AI$823,8,FALSE)=0,VLOOKUP($A25,Economática!$A$3:$AI$823,8,FALSE)="-"),1/0,VLOOKUP($A25,Economática!$A$3:$AI$823,8,FALSE))) -> 6.71 | E25: =IF(A25="","",IF(ISERROR(VLOOKUP(A25,Correção!$B$2:$G$13,9,FALSE)),VLOOKUP($A25,Economática!$A$3:$AI$823,9,FALSE),VLOOKUP(A25,Correção!$B$2:$G$13,9,FALSE))) -> 36.415 | F25: =IF($A25="","",Economática!G27) -> 233.41 | G25: =IF($A25="","",IF(OR(VLOOKUP($A25,Economática!$A$3:$AI$823,10,FALSE)=0,VLOOKUP($A25,Economática!$A$3:$AI$823,10,FALSE)="-"),1/0,VLOOKUP($A25,Economática!$A$3:$AI$823,10,FALSE))) -> 388.14 | H25: =IF($A25="","",IF(OR(VLOOKUP($A25,Economática!$A$3:$AI$823,11,FALSE)=0,VLOOKUP($A25,Economática!$A$3:$AI$823,11,FALSE)="-"),1/0,VLOOKUP($A25,Economática!$A$3:$AI$823,11,FALSE))) -> 489.74 | I25: =IF($A25="","",IF(OR(VLOOKUP($A25,Economática!$A$3:$AI$823,12,FALSE)=0,VLOOKUP($A25,Economática!$A$3:$AI$823,12,FALSE)="-"),1/0,VLOOKUP($A25,Economática!$A$3:$AI$823,12,FALSE))) -> 752.3 | J25: =IF($A25="","",IF(OR(VLOOKUP($A25,Economática!$A$3:$AI$823,13,FALSE)=0,VLOOKUP($A25,Economática!$A$3:$AI$823,13,FALSE)="-"),1/0,VLOOKUP($A25,Economática!$A$3:$AI$823,13,FALSE))) -> -6.68 | K25: =IF($A25="","",IF(OR(VLOOKUP($A25,Economática!$A$3:$AI$823,14,FALSE)=0,VLOOKUP($A25,Economática!$A$3:$AI$823,14,FALSE)="-"),1/0,VLOOKUP($A25,Economática!$A$3:$AI$823,14,FALSE))) -> 5.43 | L25: =IF($A25="","",IF(OR(VLOOKUP($A25,Economática!$A$3:$AI$823,15,FALSE)=0,VLOOKUP($A25,Economática!$A$3:$AI$823,15,FALSE)="-"),1/0,VLOOKUP($A25,Economática!$A$3:$AI$823,15,FALSE))) -> 4.4 | M25: =IF($A25="","",IF(OR(VLOOKUP($A25,Economática!$A$3:$AI$823,16,FALSE)=0,VLOOKUP($A25,Economática!$A$3:$AI$823,16,FALSE)="-"),1/0,VLOOKUP($A25,Economática!$A$3:$AI$823,16,FALSE))) -> 11.13 | N25: =IF($A25="","",IF(OR(VLOOKUP($A25,Economática!$A$3:$AI$823,17,FALSE)=0,VLOOKUP($A25,Economática!$A$3:$AI$823,17,FALSE)="-"),1/0,VLOOKUP($A25,Economática!$A$3:$AI$823,17,FALSE))) -> 16.08 | O25: =IF($A25="","",IF(OR(VLOOKUP($A25,Economática!$A$3:$AI$823,18,FALSE)=0,VLOOKUP($A25,Economática!$A$3:$AI$823,18,FALSE)="-"),1/0,VLOOKUP($A25,Economática!$A$3:$AI$823,18,FALSE))) -> -6.68 | P25: =IF($A25="","",IF(OR(VLOOKUP($A25,Economática!$A$3:$AI$823,19,FALSE)=0,VLOOKUP($A25,Economática!$A$3:$AI$823,19,FALSE)="-"),1/0,VLOOKUP($A25,Economática!$A$3:$AI$823,19,FALSE))) -> 16.08 | Q25: =IF($A25="","",VLOOKUP($A25,Economática!$A$3:$AI$823,20,FALSE)/E25) -> 0.4415762735 | R25: 10.65879445 | S25: 0.6295271036 | T25: 15.19556281 | U25: =IF($A25="","",IF(OR(VLOOKUP($A25,Economática!$A$3:$AI$823,21,FALSE)/100=0,VLOOKUP($A25,Economática!$A$3:$AI$823,21,FALSE)/100="-"),1/0,VLOOKUP($A25,Economática!$A$3:$AI$823,21,FALSE)/100)) -> 0.042812 | V25: =IF($A25="","",IF(OR(VLOOKUP($A25,Economática!$A$3:$AI$823,22,FALSE)/100=0,VLOOKUP($A25,Economática!$A$3:$AI$823,22,FALSE)/100="-"),1/0,VLOOKUP($A25,Economática!$A$3:$AI$823,22,FALSE)/100)) -> -0.078729 | W25: =IF($A25="","",IF(OR(VLOOKUP($A25,Economática!$A$3:$AI$823,23,FALSE)=0,VLOOKUP($A25,Economática!$A$3:$AI$823,23,FALSE)="-"),1/0,VLOOKUP($A25,Economática!$A$3:$AI$823,23,FALSE))) -> -4.7 | X25: =IF($A25="","",IF(OR(VLOOKUP($A25,Economática!$A$3:$AI$823,24,FALSE)=0,VLOOKUP($A25,Economática!$A$3:$AI$823,24,FALSE)="-"),1/0,VLOOKUP($A25,Economática!$A$3:$AI$823,24,FALSE))) -> 21.9 | Y25: =IF($A25="","",IF(OR(VLOOKUP($A25,Economática!$A$3:$AI$823,25,FALSE)=0,VLOOKUP($A25,Economática!$A$3:$AI$823,25,FALSE)="-"),1/0,VLOOKUP($A25,Economática!$A$3:$AI$823,25,FALSE))) -> 21.9 | Z25: =IF($A25="","",IF(ISERROR((F25+VLOOKUP($A25,Economática!$A$3:$AI$823,26,FALSE))/Y25),(F25+VLOOKUP($A25,Economática!$A$3:$AI$823,26,FALSE))/Y25,(F25+VLOOKUP($A25,Economática!$A$3:$AI$823,26,FALSE))/Y25)) -> 9.261187215 | AA25: =IF($A25="","",IF(OR(-VLOOKUP($A25,Economática!$A$3:$AI$823,27,FALSE)=0,-VLOOKUP($A25,Economática!$A$3:$AI$823,27,FALSE)="-"),1/0,-VLOOKUP($A25,Economática!$A$3:$AI$823,27,FALSE))) ->  | AC25: =IF($A25="","",IF(OR(VLOOKUP($A25,Economática!$A$3:$AI$823,28,FALSE)=0,VLOOKUP($A25,Economática!$A$3:$AI$823,28,FALSE)="-"),1/0,VLOOKUP($A25,Economática!$A$3:$AI$823,28,FALSE))) -> 5 | AD25: =IF($A25="","",IF(OR(VLOOKUP($A25,Economática!$A$3:$AI$823,29,FALSE)=0,VLOOKUP($A25,Economática!$A$3:$AI$823,29,FALSE)="-"),1/0,VLOOKUP($A25,Economática!$A$3:$AI$823,29,FALSE))) -> 27.8 | AE25: =IF($A25="","",IF(OR(VLOOKUP($A25,Economática!$A$3:$AI$823,30,FALSE)/E25=0,VLOOKUP($A25,Economática!$A$3:$AI$823,30,FALSE)/E25="-",VLOOKUP($A25,Economática!$A$3:$AI$823,30,FALSE)/E25<33.33%,VLOOKUP($A25,Economática!$A$3:$AI$823,30,FALSE)/E25>100%),1/0,VLOOKUP($A25,Economática!$A$3:$AI$823,30,FALSE)/E25)) -> 0.4558561033 | AF25: WLMM4 | AG25: =IF($A25="","",IF(OR(VLOOKUP($A25,Economática!$A$3:$AI$823,25,FALSE)=0,VLOOKUP($A25,Economática!$A$3:$AI$823,25,FALSE)="-"),1/0,VLOOKUP($A25,Economática!$A$3:$AI$823,25,FALSE))) -> 21.9 | AH25: =CONCATENATE(Economática!B27," ",Economática!C27) -> Wlm Ind Com PN
A26: =IF(Economática!AG28="","",Economática!AG28) -> LAME4 | B26: =IF($A26="","",VLOOKUP(VLOOKUP($A26,Economática!$A$3:$AI$823,6,FALSE),Correção!$B$16:$C$36,2,FALSE)) -> Comércio | C26: =IF(Economática!B28="","",Economática!B28) -> Lojas Americ | D26: =IF($A26="","",IF(OR(VLOOKUP($A26,Economática!$A$3:$AI$823,8,FALSE)=0,VLOOKUP($A26,Economática!$A$3:$AI$823,8,FALSE)="-"),1/0,VLOOKUP($A26,Economática!$A$3:$AI$823,8,FALSE))) -> 16.77 | E26: =IF(A26="","",IF(ISERROR(VLOOKUP(A26,Correção!$B$2:$G$13,9,FALSE)),VLOOKUP($A26,Economática!$A$3:$AI$823,9,FALSE),VLOOKUP(A26,Correção!$B$2:$G$13,9,FALSE))) -> 1598.353 | F26: =IF($A26="","",Economática!G28) -> 24887.58 | G26: =IF($A26="","",IF(OR(VLOOKUP($A26,Economática!$A$3:$AI$823,10,FALSE)=0,VLOOKUP($A26,Economática!$A$3:$AI$823,10,FALSE)="-"),1/0,VLOOKUP($A26,Economática!$A$3:$AI$823,10,FALSE))) -> 4924.6 | H26: =IF($A26="","",IF(OR(VLOOKUP($A26,Economática!$A$3:$AI$823,11,FALSE)=0,VLOOKUP($A26,Economática!$A$3:$AI$823,11,FALSE)="-"),1/0,VLOOKUP($A26,Economática!$A$3:$AI$823,11,FALSE))) -> 17044.72 | I26: =IF($A26="","",IF(OR(VLOOKUP($A26,Economática!$A$3:$AI$823,12,FALSE)=0,VLOOKUP($A26,Economática!$A$3:$AI$823,12,FALSE)="-"),1/0,VLOOKUP($A26,Economática!$A$3:$AI$823,12,FALSE))) -> 17689.86 | J26: =IF($A26="","",IF(OR(VLOOKUP($A26,Economática!$A$3:$AI$823,13,FALSE)=0,VLOOKUP($A26,Economática!$A$3:$AI$823,13,FALSE)="-"),1/0,VLOOKUP($A26,Economática!$A$3:$AI$823,13,FALSE))) -> 237.63 | K26: =IF($A26="","",IF(OR(VLOOKUP($A26,Economática!$A$3:$AI$823,14,FALSE)=0,VLOOKUP($A26,Economática!$A$3:$AI$823,14,FALSE)="-"),1/0,VLOOKUP($A26,Economática!$A$3:$AI$823,14,FALSE))) -> 20.02 | L26: =IF($A26="","",IF(OR(VLOOKUP($A26,Economática!$A$3:$AI$823,15,FALSE)=0,VLOOKUP($A26,Economática!$A$3:$AI$823,15,FALSE)="-"),1/0,VLOOKUP($A26,Economática!$A$3:$AI$823,15,FALSE))) -> 46.29 | M26: =IF($A26="","",IF(OR(VLOOKUP($A26,Economática!$A$3:$AI$823,16,FALSE)=0,VLOOKUP($A26,Economática!$A$3:$AI$823,16,FALSE)="-"),1/0,VLOOKUP($A26,Economática!$A$3:$AI$823,16,FALSE))) -> 107.69 | N26: =IF($A26="","",IF(OR(VLOOKUP($A26,Economática!$A$3:$AI$823,17,FALSE)=0,VLOOKUP($A26,Economática!$A$3:$AI$823,17,FALSE)="-"),1/0,VLOOKUP($A26,Economática!$A$3:$AI$823,17,FALSE))) -> 380.49 | O26: =IF($A26="","",IF(OR(VLOOKUP($A26,Economática!$A$3:$AI$823,18,FALSE)=0,VLOOKUP($A26,Economática!$A$3:$AI$823,18,FALSE)="-"),1/0,VLOOKUP($A26,Economática!$A$3:$AI$823,18,FALSE))) -> 237.63 | P26: =IF($A26="","",IF(OR(VLOOKUP($A26,Economática!$A$3:$AI$823,19,FALSE)=0,VLOOKUP($A26,Economática!$A$3:$AI$823,19,FALSE)="-"),1/0,VLOOKUP($A26,Economática!$A$3:$AI$823,19,FALSE))) -> 380.49 | Q26: =IF($A26="","",VLOOKUP($A26,Economática!$A$3:$AI$823,20,FALSE)/E26) -> 0.2380512941 | R26: 3.081046552 | S26: 5.442955734 | T26: 70.44700205 | U26: =IF($A26="","",IF(OR(VLOOKUP($A26,Economática!$A$3:$AI$823,21,FALSE)/100=0,VLOOKUP($A26,Economática!$A$3:$AI$823,21,FALSE)/100="-"),1/0,VLOOKUP($A26,Economática!$A$3:$AI$823,21,FALSE)/100)) -> 0.037258 | V26: =IF($A26="","",IF(OR(VLOOKUP($A26,Economática!$A$3:$AI$823,22,FALSE)/100=0,VLOOKUP($A26,Economática!$A$3:$AI$823,22,FALSE)/100="-"),1/0,VLOOKUP($A26,Economática!$A$3:$AI$823,22,FALSE)/100)) -> 0.88626 | W26: =IF($A26="","",IF(OR(VLOOKUP($A26,Economática!$A$3:$AI$823,23,FALSE)=0,VLOOKUP($A26,Economática!$A$3:$AI$823,23,FALSE)="-"),1/0,VLOOKUP($A26,Economática!$A$3:$AI$823,23,FALSE))) -> 2682.2 | X26: =IF($A26="","",IF(OR(VLOOKUP($A26,Economática!$A$3:$AI$823,24,FALSE)=0,VLOOKUP($A26,Economática!$A$3:$AI$823,24,FALSE)="-"),1/0,VLOOKUP($A26,Economática!$A$3:$AI$823,24,FALSE))) -> 2654.4 | Y26: =IF($A26="","",IF(OR(VLOOKUP($A26,Economática!$A$3:$AI$823,25,FALSE)=0,VLOOKUP($A26,Economática!$A$3:$AI$823,25,FALSE)="-"),1/0,VLOOKUP($A26,Economática!$A$3:$AI$823,25,FALSE))) -> 2654.4 | Z26: =IF($A26="","",IF(ISERROR((F26+VLOOKUP($A26,Economática!$A$3:$AI$823,26,FALSE))/Y26),(F26+VLOOKUP($A26,Economática!$A$3:$AI$823,26,FALSE))/Y26,(F26+VLOOKUP($A26,Economática!$A$3:$AI$823,26,FALSE))/Y26)) -> 11.47480485 | AA26: =IF($A26="","",IF(OR(-VLOOKUP($A26,Economática!$A$3:$AI$823,27,FALSE)=0,-VLOOKUP($A26,Economática!$A$3:$AI$823,27,FALSE)="-"),1/0,-VLOOKUP($A26,Economática!$A$3:$AI$823,27,FALSE))) -> 101.73 | AB26: 0.004087581034 | AC26: =IF($A26="","",IF(OR(VLOOKUP($A26,Economática!$A$3:$AI$823,28,FALSE)=0,VLOOKUP($A26,Economática!$A$3:$AI$823,28,FALSE)="-"),1/0,VLOOKUP($A26,Economática!$A$3:$AI$823,28,FALSE))) -> -15.8 | AD26: =IF($A26="","",IF(OR(VLOOKUP($A26,Economática!$A$3:$AI$823,29,FALSE)=0,VLOOKUP($A26,Economática!$A$3:$AI$823,29,FALSE)="-"),1/0,VLOOKUP($A26,Economática!$A$3:$AI$823,29,FALSE))) -> -0.8 | AE26: =IF($A26="","",IF(OR(VLOOKUP($A26,Economática!$A$3:$AI$823,30,FALSE)/E26=0,VLOOKUP($A26,Economática!$A$3:$AI$823,30,FALSE)/E26="-",VLOOKUP($A26,Economática!$A$3:$AI$823,30,FALSE)/E26<33.33%,VLOOKUP($A26,Economática!$A$3:$AI$823,30,FALSE)/E26>100%),1/0,VLOOKUP($A26,Economática!$A$3:$AI$823,30,FALSE)/E26)) -> 0.3377852076 | AF26: LAME4 | AG26: =IF($A26="","",IF(OR(VLOOKUP($A26,Economática!$A$3:$AI$823,25,FALSE)=0,VLOOKUP($A26,Economática!$A$3:$AI$823,25,FALSE)="-"),1/0,VLOOKUP($A26,Economática!$A$3:$AI$823,25,FALSE))) -> 2654.4 | AH26: =CONCATENATE(Economática!B28," ",Economática!C28) -> Lojas Americ PN
A27: =IF(Economática!AG29="","",Economática!AG29) -> AMAR3 | B27: =IF($A27="","",VLOOKUP(VLOOKUP($A27,Economática!$A$3:$AI$823,6,FALSE),Correção!$B$16:$C$36,2,FALSE)) -> Comércio | C27: =IF(Economática!B29="","",Economática!B29) -> Lojas Marisa | D27: =IF($A27="","",IF(OR(VLOOKUP($A27,Economática!$A$3:$AI$823,8,FALSE)=0,VLOOKUP($A27,Economática!$A$3:$AI$823,8,FALSE)="-"),1/0,VLOOKUP($A27,Economática!$A$3:$AI$823,8,FALSE))) -> 6.43 | E27: =IF(A27="","",IF(ISERROR(VLOOKUP(A27,Correção!$B$2:$G$13,9,FALSE)),VLOOKUP($A27,Economática!$A$3:$AI$823,9,FALSE),VLOOKUP(A27,Correção!$B$2:$G$13,9,FALSE))) -> 204.28 | F27: =IF($A27="","",Economática!G29) -> 1313.52 | G27: =IF($A27="","",IF(OR(VLOOKUP($A27,Economática!$A$3:$AI$823,10,FALSE)=0,VLOOKUP($A27,Economática!$A$3:$AI$823,10,FALSE)="-"),1/0,VLOOKUP($A27,Economática!$A$3:$AI$823,10,FALSE))) -> 973.65 | H27: =IF($A27="","",IF(OR(VLOOKUP($A27,Economática!$A$3:$AI$823,11,FALSE)=0,VLOOKUP($A27,Economática!$A$3:$AI$823,11,FALSE)="-"),1/0,VLOOKUP($A27,Economática!$A$3:$AI$823,11,FALSE))) -> 2875.58 | I27: =IF($A27="","",IF(OR(VLOOKUP($A27,Economática!$A$3:$AI$823,12,FALSE)=0,VLOOKUP($A27,Economática!$A$3:$AI$823,12,FALSE)="-"),1/0,VLOOKUP($A27,Economática!$A$3:$AI$823,12,FALSE))) -> 2764.13 | J27: =IF($A27="","",IF(OR(VLOOKUP($A27,Economática!$A$3:$AI$823,13,FALSE)=0,VLOOKUP($A27,Economática!$A$3:$AI$823,13,FALSE)="-"),1/0,VLOOKUP($A27,Economática!$A$3:$AI$823,13,FALSE))) -> -60.44 | K27: =IF($A27="","",IF(OR(VLOOKUP($A27,Economática!$A$3:$AI$823,14,FALSE)=0,VLOOKUP($A27,Economática!$A$3:$AI$823,14,FALSE)="-"),1/0,VLOOKUP($A27,Economática!$A$3:$AI$823,14,FALSE))) -> -41.08 | L27: =IF($A27="","",IF(OR(VLOOKUP($A27,Economática!$A$3:$AI$823,15,FALSE)=0,VLOOKUP($A27,Economática!$A$3:$AI$823,15,FALSE)="-"),1/0,VLOOKUP($A27,Economática!$A$3:$AI$823,15,FALSE))) -> -78.09 | M27: =IF($A27="","",IF(OR(VLOOKUP($A27,Economática!$A$3:$AI$823,16,FALSE)=0,VLOOKUP($A27,Economática!$A$3:$AI$823,16,FALSE)="-"),1/0,VLOOKUP($A27,Economática!$A$3:$AI$823,16,FALSE))) -> -131.17 | N27: =IF($A27="","",IF(OR(VLOOKUP($A27,Economática!$A$3:$AI$823,17,FALSE)=0,VLOOKUP($A27,Economática!$A$3:$AI$823,17,FALSE)="-"),1/0,VLOOKUP($A27,Economática!$A$3:$AI$823,17,FALSE))) -> 28.36 | O27: =IF($A27="","",IF(OR(VLOOKUP($A27,Economática!$A$3:$AI$823,18,FALSE)=0,VLOOKUP($A27,Economática!$A$3:$AI$823,18,FALSE)="-"),1/0,VLOOKUP($A27,Economática!$A$3:$AI$823,18,FALSE))) -> -60.44 | P27: =IF($A27="","",IF(OR(VLOOKUP($A27,Economática!$A$3:$AI$823,19,FALSE)=0,VLOOKUP($A27,Economática!$A$3:$AI$823,19,FALSE)="-"),1/0,VLOOKUP($A27,Economática!$A$3:$AI$823,19,FALSE))) -> 28.36 | Q27: =IF($A27="","",VLOOKUP($A27,Economática!$A$3:$AI$823,20,FALSE)/E27) -> 0.1388290582 | R27: 4.766252203 | S27: 1.349068351 | T27: 46.31595205 | U27: =IF($A27="","",IF(OR(VLOOKUP($A27,Economática!$A$3:$AI$823,21,FALSE)/100=0,VLOOKUP($A27,Economática!$A$3:$AI$823,21,FALSE)/100="-"),1/0,VLOOKUP($A27,Economática!$A$3:$AI$823,21,FALSE)/100)) -> 0.029556 | V27: =IF($A27="","",IF(OR(VLOOKUP($A27,Economática!$A$3:$AI$823,22,FALSE)/100=0,VLOOKUP($A27,Economática!$A$3:$AI$823,22,FALSE)/100="-"),1/0,VLOOKUP($A27,Economática!$A$3:$AI$823,22,FALSE)/100)) -> 0.636364 | W27: =IF($A27="","",IF(OR(VLOOKUP($A27,Economática!$A$3:$AI$823,23,FALSE)=0,VLOOKUP($A27,Economática!$A$3:$AI$823,23,FALSE)="-"),1/0,VLOOKUP($A27,Economática!$A$3:$AI$823,23,FALSE))) -> 265.6 | X27: =IF($A27="","",IF(OR(VLOOKUP($A27,Economática!$A$3:$AI$823,24,FALSE)=0,VLOOKUP($A27,Economática!$A$3:$AI$823,24,FALSE)="-"),1/0,VLOOKUP($A27,Economática!$A$3:$AI$823,24,FALSE))) -> 417.9 | Y27: =IF($A27="","",IF(OR(VLOOKUP($A27,Economática!$A$3:$AI$823,25,FALSE)=0,VLOOKUP($A27,Economática!$A$3:$AI$823,25,FALSE)="-"),1/0,VLOOKUP($A27,Economática!$A$3:$AI$823,25,FALSE))) -> 417.9 | Z27: =IF($A27="","",IF(ISERROR((F27+VLOOKUP($A27,Economática!$A$3:$AI$823,26,FALSE))/Y27),(F27+VLOOKUP($A27,Economática!$A$3:$AI$823,26,FALSE))/Y27,(F27+VLOOKUP($A27,Economática!$A$3:$AI$823,26,FALSE))/Y27)) -> 4.625786073 | AA27: =IF($A27="","",IF(OR(-VLOOKUP($A27,Economática!$A$3:$AI$823,27,FALSE)=0,-VLOOKUP($A27,Economática!$A$3:$AI$823,27,FALSE)="-"),1/0,-VLOOKUP($A27,Economática!$A$3:$AI$823,27,FALSE))) ->  | AC27: =IF($A27="","",IF(OR(VLOOKUP($A27,Economática!$A$3:$AI$823,28,FALSE)=0,VLOOKUP($A27,Economática!$A$3:$AI$823,28,FALSE)="-"),1/0,VLOOKUP($A27,Economática!$A$3:$AI$823,28,FALSE))) -> 4.4 | AD27: =IF($A27="","",IF(OR(VLOOKUP($A27,Economática!$A$3:$AI$823,29,FALSE)=0,VLOOKUP($A27,Economática!$A$3:$AI$823,29,FALSE)="-"),1/0,VLOOKUP($A27,Economática!$A$3:$AI$823,29,FALSE))) -> -11.3 | AE27: =IF($A27="","",IF(OR(VLOOKUP($A27,Economática!$A$3:$AI$823,30,FALSE)/E27=0,VLOOKUP($A27,Economática!$A$3:$AI$823,30,FALSE)/E27="-",VLOOKUP($A27,Economática!$A$3:$AI$823,30,FALSE)/E27<33.33%,VLOOKUP($A27,Economática!$A$3:$AI$823,30,FALSE)/E27>100%),1/0,VLOOKUP($A27,Economática!$A$3:$AI$823,30,FALSE)/E27)) -> 0.9991188565 | AF27: AMAR3 | AG27: =IF($A27="","",IF(OR(VLOOKUP($A27,Economática!$A$3:$AI$823,25,FALSE)=0,VLOOKUP($A27,Economática!$A$3:$AI$823,25,FALSE)="-"),1/0,VLOOKUP($A27,Economática!$A$3:$AI$823,25,FALSE))) -> 417.9 | AH27: =CONCATENATE(Economática!B29," ",Economática!C29) -> Lojas Marisa ON
A28: =IF(Economática!AG30="","",Economática!AG30) -> MEAL3 | B28: =IF($A28="","",VLOOKUP(VLOOKUP($A28,Economática!$A$3:$AI$823,6,FALSE),Correção!$B$16:$C$36,2,FALSE)) -> Comércio | C28: =IF(Economática!B30="","",Economática!B30) -> Imc S/A | D28: =IF($A28="","",IF(OR(VLOOKUP($A28,Economática!$A$3:$AI$823,8,FALSE)=0,VLOOKUP($A28,Economática!$A$3:$AI$823,8,FALSE)="-"),1/0,VLOOKUP($A28,Economática!$A$3:$AI$823,8,FALSE))) -> 6.49 | E28: =IF(A28="","",IF(ISERROR(VLOOKUP(A28,Correção!$B$2:$G$13,9,FALSE)),VLOOKUP($A28,Economática!$A$3:$AI$823,9,FALSE),VLOOKUP(A28,Correção!$B$2:$G$13,9,FALSE))) -> 157.974 | F28: =IF($A28="","",Economática!G30) -> 1025.25 | G28: =IF($A28="","",IF(OR(VLOOKUP($A28,Economática!$A$3:$AI$823,10,FALSE)=0,VLOOKUP($A28,Economática!$A$3:$AI$823,10,FALSE)="-"),1/0,VLOOKUP($A28,Economática!$A$3:$AI$823,10,FALSE))) -> 1015.22 | H28: =IF($A28="","",IF(OR(VLOOKUP($A28,Economática!$A$3:$AI$823,11,FALSE)=0,VLOOKUP($A28,Economática!$A$3:$AI$823,11,FALSE)="-"),1/0,VLOOKUP($A28,Economática!$A$3:$AI$823,11,FALSE))) -> 1494.51 | I28: =IF($A28="","",IF(OR(VLOOKUP($A28,Economática!$A$3:$AI$823,12,FALSE)=0,VLOOKUP($A28,Economática!$A$3:$AI$823,12,FALSE)="-"),1/0,VLOOKUP($A28,Economática!$A$3:$AI$823,12,FALSE))) -> 1582.08 | J28: =IF($A28="","",IF(OR(VLOOKUP($A28,Economática!$A$3:$AI$823,13,FALSE)=0,VLOOKUP($A28,Economática!$A$3:$AI$823,13,FALSE)="-"),1/0,VLOOKUP($A28,Economática!$A$3:$AI$823,13,FALSE))) -> 3.67 | K28: =IF($A28="","",IF(OR(VLOOKUP($A28,Economática!$A$3:$AI$823,14,FALSE)=0,VLOOKUP($A28,Economática!$A$3:$AI$823,14,FALSE)="-"),1/0,VLOOKUP($A28,Economática!$A$3:$AI$823,14,FALSE))) -> -6.43 | L28: =IF($A28="","",IF(OR(VLOOKUP($A28,Economática!$A$3:$AI$823,15,FALSE)=0,VLOOKUP($A28,Economática!$A$3:$AI$823,15,FALSE)="-"),1/0,VLOOKUP($A28,Economática!$A$3:$AI$823,15,FALSE))) -> -3.84 | M28: =IF($A28="","",IF(OR(VLOOKUP($A28,Economática!$A$3:$AI$823,16,FALSE)=0,VLOOKUP($A28,Economática!$A$3:$AI$823,16,FALSE)="-"),1/0,VLOOKUP($A28,Economática!$A$3:$AI$823,16,FALSE))) -> 9.41 | N28: =IF($A28="","",IF(OR(VLOOKUP($A28,Economática!$A$3:$AI$823,17,FALSE)=0,VLOOKUP($A28,Economática!$A$3:$AI$823,17,FALSE)="-"),1/0,VLOOKUP($A28,Economática!$A$3:$AI$823,17,FALSE))) -> 7.89 | O28: =IF($A28="","",IF(OR(VLOOKUP($A28,Economática!$A$3:$AI$823,18,FALSE)=0,VLOOKUP($A28,Economática!$A$3:$AI$823,18,FALSE)="-"),1/0,VLOOKUP($A28,Economática!$A$3:$AI$823,18,FALSE))) -> 3.67 | P28: =IF($A28="","",IF(OR(VLOOKUP($A28,Economática!$A$3:$AI$823,19,FALSE)=0,VLOOKUP($A28,Economática!$A$3:$AI$823,19,FALSE)="-"),1/0,VLOOKUP($A28,Economática!$A$3:$AI$823,19,FALSE))) -> 7.89 | Q28: =IF($A28="","",VLOOKUP($A28,Economática!$A$3:$AI$823,20,FALSE)/E28) -> 0.04994492765 | R28: 6.426500563 | S28: 1.009880873 | T28: 129.9431255 | U28: =IF($A28="","",IF(OR(VLOOKUP($A28,Economática!$A$3:$AI$823,21,FALSE)/100=0,VLOOKUP($A28,Economática!$A$3:$AI$823,21,FALSE)/100="-"),1/0,VLOOKUP($A28,Economática!$A$3:$AI$823,21,FALSE)/100)) -> 0.007863 | V28: =IF($A28="","",IF(OR(VLOOKUP($A28,Economática!$A$3:$AI$823,22,FALSE)/100=0,VLOOKUP($A28,Economática!$A$3:$AI$823,22,FALSE)/100="-"),1/0,VLOOKUP($A28,Economática!$A$3:$AI$823,22,FALSE)/100)) -> 0.02871 | W28: =IF($A28="","",IF(OR(VLOOKUP($A28,Economática!$A$3:$AI$823,23,FALSE)=0,VLOOKUP($A28,Economática!$A$3:$AI$823,23,FALSE)="-"),1/0,VLOOKUP($A28,Economática!$A$3:$AI$823,23,FALSE))) -> 108.5 | X28: =IF($A28="","",IF(OR(VLOOKUP($A28,Economática!$A$3:$AI$823,24,FALSE)=0,VLOOKUP($A28,Economática!$A$3:$AI$823,24,FALSE)="-"),1/0,VLOOKUP($A28,Economática!$A$3:$AI$823,24,FALSE))) -> 102.8 | Y28: =IF($A28="","",IF(OR(VLOOKUP($A28,Economática!$A$3:$AI$823,25,FALSE)=0,VLOOKUP($A28,Economática!$A$3:$AI$823,25,FALSE)="-"),1/0,VLOOKUP($A28,Economática!$A$3:$AI$823,25,FALSE))) -> 102.8 | Z28: =IF($A28="","",IF(ISERROR((F28+VLOOKUP($A28,Economática!$A$3:$AI$823,26,FALSE))/Y28),(F28+VLOOKUP($A28,Economática!$A$3:$AI$823,26,FALSE))/Y28,(F28+VLOOKUP($A28,Economática!$A$3:$AI$823,26,FALSE))/Y28)) -> 10.25678016 | AA28: =IF($A28="","",IF(OR(-VLOOKUP($A28,Economática!$A$3:$AI$823,27,FALSE)=0,-VLOOKUP($A28,Economática!$A$3:$AI$823,27,FALSE)="-"),1/0,-VLOOKUP($A28,Economática!$A$3:$AI$823,27,FALSE))) -> 0.87 | AB28: 0.0008485735187 | AC28: =IF($A28="","",IF(OR(VLOOKUP($A28,Economática!$A$3:$AI$823,28,FALSE)=0,VLOOKUP($A28,Economática!$A$3:$AI$823,28,FALSE)="-"),1/0,VLOOKUP($A28,Economática!$A$3:$AI$823,28,FALSE))) -> 5 | AD28: =IF($A28="","",IF(OR(VLOOKUP($A28,Economática!$A$3:$AI$823,29,FALSE)=0,VLOOKUP($A28,Economática!$A$3:$AI$823,29,FALSE)="-"),1/0,VLOOKUP($A28,Economática!$A$3:$AI$823,29,FALSE))) -> -18 | AE28: =IF($A28="","",IF(OR(VLOOKUP($A28,Economática!$A$3:$AI$823,30,FALSE)/E28=0,VLOOKUP($A28,Economática!$A$3:$AI$823,30,FALSE)/E28="-",VLOOKUP($A28,Economática!$A$3:$AI$823,30,FALSE)/E28<33.33%,VLOOKUP($A28,Economática!$A$3:$AI$823,30,FALSE)/E28>100%),1/0,VLOOKUP($A28,Economática!$A$3:$AI$823,30,FALSE)/E28)) ->  | AF28: MEAL3 | AG28: =IF($A28="","",IF(OR(VLOOKUP($A28,Economática!$A$3:$AI$823,25,FALSE)=0,VLOOKUP($A28,Economática!$A$3:$AI$823,25,FALSE)="-"),1/0,VLOOKUP($A28,Economática!$A$3:$AI$823,25,FALSE))) -> 102.8 | AH28: =CONCATENATE(Economática!B30," ",Economática!C30) -> Imc S/A ON
A29: =IF(Economática!AG31="","",Economática!AG31) -> PFRM3 | B29: =IF($A29="","",VLOOKUP(VLOOKUP($A29,Economática!$A$3:$AI$823,6,FALSE),Correção!$B$16:$C$36,2,FALSE)) -> Comércio | C29: =IF(Economática!B31="","",Economática!B31) -> Profarma | D29: =IF($A29="","",IF(OR(VLOOKUP($A29,Economática!$A$3:$AI$823,8,FALSE)=0,VLOOKUP($A29,Economática!$A$3:$AI$823,8,FALSE)="-"),1/0,VLOOKUP($A29,Economática!$A$3:$AI$823,8,FALSE))) -> 4.33 | E29: =IF(A29="","",IF(ISERROR(VLOOKUP(A29,Correção!$B$2:$G$13,9,FALSE)),VLOOKUP($A29,Economática!$A$3:$AI$823,9,FALSE),VLOOKUP(A29,Correção!$B$2:$G$13,9,FALSE))) -> 122.611 | F29: =IF($A29="","",Economática!G31) -> 530.91 | G29: =IF($A29="","",IF(OR(VLOOKUP($A29,Economática!$A$3:$AI$823,10,FALSE)=0,VLOOKUP($A29,Economática!$A$3:$AI$823,10,FALSE)="-"),1/0,VLOOKUP($A29,Economática!$A$3:$AI$823,10,FALSE))) -> 1021.21 | H29: =IF($A29="","",IF(OR(VLOOKUP($A29,Economática!$A$3:$AI$823,11,FALSE)=0,VLOOKUP($A29,Economática!$A$3:$AI$823,11,FALSE)="-"),1/0,VLOOKUP($A29,Economática!$A$3:$AI$823,11,FALSE))) -> 4100.71 | I29: =IF($A29="","",IF(OR(VLOOKUP($A29,Economática!$A$3:$AI$823,12,FALSE)=0,VLOOKUP($A29,Economática!$A$3:$AI$823,12,FALSE)="-"),1/0,VLOOKUP($A29,Economática!$A$3:$AI$823,12,FALSE))) -> 4271.13 | J29: =IF($A29="","",IF(OR(VLOOKUP($A29,Economática!$A$3:$AI$823,13,FALSE)=0,VLOOKUP($A29,Economática!$A$3:$AI$823,13,FALSE)="-"),1/0,VLOOKUP($A29,Economática!$A$3:$AI$823,13,FALSE))) -> -112.72 | K29: =IF($A29="","",IF(OR(VLOOKUP($A29,Economática!$A$3:$AI$823,14,FALSE)=0,VLOOKUP($A29,Economática!$A$3:$AI$823,14,FALSE)="-"),1/0,VLOOKUP($A29,Economática!$A$3:$AI$823,14,FALSE))) -> -5.9 | L29: =IF($A29="","",IF(OR(VLOOKUP($A29,Economática!$A$3:$AI$823,15,FALSE)=0,VLOOKUP($A29,Economática!$A$3:$AI$823,15,FALSE)="-"),1/0,VLOOKUP($A29,Economática!$A$3:$AI$823,15,FALSE))) -> -4.39 | M29: =IF($A29="","",IF(OR(VLOOKUP($A29,Economática!$A$3:$AI$823,16,FALSE)=0,VLOOKUP($A29,Economática!$A$3:$AI$823,16,FALSE)="-"),1/0,VLOOKUP($A29,Economática!$A$3:$AI$823,16,FALSE))) -> -11.94 | N29: =IF($A29="","",IF(OR(VLOOKUP($A29,Economática!$A$3:$AI$823,17,FALSE)=0,VLOOKUP($A29,Economática!$A$3:$AI$823,17,FALSE)="-"),1/0,VLOOKUP($A29,Economática!$A$3:$AI$823,17,FALSE))) -> -9.73 | O29: =IF($A29="","",IF(OR(VLOOKUP($A29,Economática!$A$3:$AI$823,18,FALSE)=0,VLOOKUP($A29,Economática!$A$3:$AI$823,18,FALSE)="-"),1/0,VLOOKUP($A29,Economática!$A$3:$AI$823,18,FALSE))) -> -112.72 | P29: =IF($A29="","",IF(OR(VLOOKUP($A29,Economática!$A$3:$AI$823,19,FALSE)=0,VLOOKUP($A29,Economática!$A$3:$AI$823,19,FALSE)="-"),1/0,VLOOKUP($A29,Economática!$A$3:$AI$823,19,FALSE))) -> -9.73 | Q29: =IF($A29="","",VLOOKUP($A29,Economática!$A$3:$AI$823,20,FALSE)/E29) -> -0.07935666457 | R29: 8.328861195 | S29: 0.5198789965 | U29: =IF($A29="","",IF(OR(VLOOKUP($A29,Economática!$A$3:$AI$823,21,FALSE)/100=0,VLOOKUP($A29,Economática!$A$3:$AI$823,21,FALSE)/100="-"),1/0,VLOOKUP($A29,Economática!$A$3:$AI$823,21,FALSE)/100)) -> -0.013049 | V29: =IF($A29="","",IF(OR(VLOOKUP($A29,Economática!$A$3:$AI$823,22,FALSE)/100=0,VLOOKUP($A29,Economática!$A$3:$AI$823,22,FALSE)/100="-"),1/0,VLOOKUP($A29,Economática!$A$3:$AI$823,22,FALSE)/100)) -> 0.3984 | W29: =IF($A29="","",IF(OR(VLOOKUP($A29,Economática!$A$3:$AI$823,23,FALSE)=0,VLOOKUP($A29,Economática!$A$3:$AI$823,23,FALSE)="-"),1/0,VLOOKUP($A29,Economática!$A$3:$AI$823,23,FALSE))) -> 20.2 | X29: =IF($A29="","",IF(OR(VLOOKUP($A29,Economática!$A$3:$AI$823,24,FALSE)=0,VLOOKUP($A29,Economática!$A$3:$AI$823,24,FALSE)="-"),1/0,VLOOKUP($A29,Economática!$A$3:$AI$823,24,FALSE))) -> 88.6 | Y29: =IF($A29="","",IF(OR(VLOOKUP($A29,Economática!$A$3:$AI$823,25,FALSE)=0,VLOOKUP($A29,Economática!$A$3:$AI$823,25,FALSE)="-"),1/0,VLOOKUP($A29,Economática!$A$3:$AI$823,25,FALSE))) -> 88.6 | Z29: =IF($A29="","",IF(ISERROR((F29+VLOOKUP($A29,Economática!$A$3:$AI$823,26,FALSE))/Y29),(F29+VLOOKUP($A29,Economática!$A$3:$AI$823,26,FALSE))/Y29,(F29+VLOOKUP($A29,Economática!$A$3:$AI$823,26,FALSE))/Y29)) -> 10.58419865 | AA29: =IF($A29="","",IF(OR(-VLOOKUP($A29,Economática!$A$3:$AI$823,27,FALSE)=0,-VLOOKUP($A29,Economática!$A$3:$AI$823,27,FALSE)="-"),1/0,-VLOOKUP($A29,Economática!$A$3:$AI$823,27,FALSE))) ->  | AC29: =IF($A29="","",IF(OR(VLOOKUP($A29,Economática!$A$3:$AI$823,28,FALSE)=0,VLOOKUP($A29,Economática!$A$3:$AI$823,28,FALSE)="-"),1/0,VLOOKUP($A29,Economática!$A$3:$AI$823,28,FALSE))) -> 1.2 | AD29: =IF($A29="","",IF(OR(VLOOKUP($A29,Economática!$A$3:$AI$823,29,FALSE)=0,VLOOKUP($A29,Economática!$A$3:$AI$823,29,FALSE)="-"),1/0,VLOOKUP($A29,Economática!$A$3:$AI$823,29,FALSE))) -> -39.3 | AE29: =IF($A29="","",IF(OR(VLOOKUP($A29,Economática!$A$3:$AI$823,30,FALSE)/E29=0,VLOOKUP($A29,Economática!$A$3:$AI$823,30,FALSE)/E29="-",VLOOKUP($A29,Economática!$A$3:$AI$823,30,FALSE)/E29<33.33%,VLOOKUP($A29,Economática!$A$3:$AI$823,30,FALSE)/E29>100%),1/0,VLOOKUP($A29,Economática!$A$3:$AI$823,30,FALSE)/E29)) ->  | AF29: PFRM3 | AG29: =IF($A29="","",IF(OR(VLOOKUP($A29,Economática!$A$3:$AI$823,25,FALSE)=0,VLOOKUP($A29,Economática!$A$3:$AI$823,25,FALSE)="-"),1/0,VLOOKUP($A29,Economática!$A$3:$AI$823,25,FALSE))) -> 88.6 | AH29: =CONCATENATE(Economática!B31," ",Economática!C31) -> Profarma ON
A30: =IF(Economática!AG32="","",Economática!AG32) -> BTOW3 | B30: =IF($A30="","",VLOOKUP(VLOOKUP($A30,Economática!$A$3:$AI$823,6,FALSE),Correção!$B$16:$C$36,2,FALSE)) -> Comércio | C30: =IF(Economática!B32="","",Economática!B32) -> B2W Digital | D30: =IF($A30="","",IF(OR(VLOOKUP($A30,Economática!$A$3:$AI$823,8,FALSE)=0,VLOOKUP($A30,Economática!$A$3:$AI$823,8,FALSE)="-"),1/0,VLOOKUP($A30,Economática!$A$3:$AI$823,8,FALSE))) -> 42.22 | E30: =IF(A30="","",IF(ISERROR(VLOOKUP(A30,Correção!$B$2:$G$13,9,FALSE)),VLOOKUP($A30,Economática!$A$3:$AI$823,9,FALSE),VLOOKUP(A30,Correção!$B$2:$G$13,9,FALSE))) -> 457.281 | F30: =IF($A30="","",Economática!G32) -> 19306.4 | G30: =IF($A30="","",IF(OR(VLOOKUP($A30,Economática!$A$3:$AI$823,10,FALSE)=0,VLOOKUP($A30,Economática!$A$3:$AI$823,10,FALSE)="-"),1/0,VLOOKUP($A30,Economática!$A$3:$AI$823,10,FALSE))) -> 3537.12 | H30: =IF($A30="","",IF(OR(VLOOKUP($A30,Economática!$A$3:$AI$823,11,FALSE)=0,VLOOKUP($A30,Economática!$A$3:$AI$823,11,FALSE)="-"),1/0,VLOOKUP($A30,Economática!$A$3:$AI$823,11,FALSE))) -> 7120.78 | I30: =IF($A30="","",IF(OR(VLOOKUP($A30,Economática!$A$3:$AI$823,12,FALSE)=0,VLOOKUP($A30,Economática!$A$3:$AI$823,12,FALSE)="-"),1/0,VLOOKUP($A30,Economática!$A$3:$AI$823,12,FALSE))) -> 6488.47 | J30: =IF($A30="","",IF(OR(VLOOKUP($A30,Economática!$A$3:$AI$823,13,FALSE)=0,VLOOKUP($A30,Economática!$A$3:$AI$823,13,FALSE)="-"),1/0,VLOOKUP($A30,Economática!$A$3:$AI$823,13,FALSE))) -> -411.45 | K30: =IF($A30="","",IF(OR(VLOOKUP($A30,Economática!$A$3:$AI$823,14,FALSE)=0,VLOOKUP($A30,Economática!$A$3:$AI$823,14,FALSE)="-"),1/0,VLOOKUP($A30,Economática!$A$3:$AI$823,14,FALSE))) -> -115.14 | L30: =IF($A30="","",IF(OR(VLOOKUP($A30,Economática!$A$3:$AI$823,15,FALSE)=0,VLOOKUP($A30,Economática!$A$3:$AI$823,15,FALSE)="-"),1/0,VLOOKUP($A30,Economática!$A$3:$AI$823,15,FALSE))) -> -223.95 | M30: =IF($A30="","",IF(OR(VLOOKUP($A30,Economática!$A$3:$AI$823,16,FALSE)=0,VLOOKUP($A30,Economática!$A$3:$AI$823,16,FALSE)="-"),1/0,VLOOKUP($A30,Economática!$A$3:$AI$823,16,FALSE))) -> -329.74 | N30: =IF($A30="","",IF(OR(VLOOKUP($A30,Economática!$A$3:$AI$823,17,FALSE)=0,VLOOKUP($A30,Economática!$A$3:$AI$823,17,FALSE)="-"),1/0,VLOOKUP($A30,Economática!$A$3:$AI$823,17,FALSE))) -> -397.43 | O30: =IF($A30="","",IF(OR(VLOOKUP($A30,Economática!$A$3:$AI$823,18,FALSE)=0,VLOOKUP($A30,Economática!$A$3:$AI$823,18,FALSE)="-"),1/0,VLOOKUP($A30,Economática!$A$3:$AI$823,18,FALSE))) -> -411.45 | P30: =IF($A30="","",IF(OR(VLOOKUP($A30,Economática!$A$3:$AI$823,19,FALSE)=0,VLOOKUP($A30,Economática!$A$3:$AI$823,19,FALSE)="-"),1/0,VLOOKUP($A30,Economática!$A$3:$AI$823,19,FALSE))) -> -397.43 | Q30: =IF($A30="","",VLOOKUP($A30,Economática!$A$3:$AI$823,20,FALSE)/E30) -> -0.8691154892 | R30: 7.735112546 | S30: 5.458226981 | U30: =IF($A30="","",IF(OR(VLOOKUP($A30,Economática!$A$3:$AI$823,21,FALSE)/100=0,VLOOKUP($A30,Economática!$A$3:$AI$823,21,FALSE)/100="-"),1/0,VLOOKUP($A30,Economática!$A$3:$AI$823,21,FALSE)/100)) -> -0.10188 | V30: =IF($A30="","",IF(OR(VLOOKUP($A30,Economática!$A$3:$AI$823,22,FALSE)/100=0,VLOOKUP($A30,Economática!$A$3:$AI$823,22,FALSE)/100="-"),1/0,VLOOKUP($A30,Economática!$A$3:$AI$823,22,FALSE)/100)) -> 0.511026 | W30: =IF($A30="","",IF(OR(VLOOKUP($A30,Economática!$A$3:$AI$823,23,FALSE)=0,VLOOKUP($A30,Economática!$A$3:$AI$823,23,FALSE)="-"),1/0,VLOOKUP($A30,Economática!$A$3:$AI$823,23,FALSE))) -> 583.3 | X30: =IF($A30="","",IF(OR(VLOOKUP($A30,Economática!$A$3:$AI$823,24,FALSE)=0,VLOOKUP($A30,Economática!$A$3:$AI$823,24,FALSE)="-"),1/0,VLOOKUP($A30,Economática!$A$3:$AI$823,24,FALSE))) -> 412.3 | Y30: =IF($A30="","",IF(OR(VLOOKUP($A30,Economática!$A$3:$AI$823,25,FALSE)=0,VLOOKUP($A30,Economática!$A$3:$AI$823,25,FALSE)="-"),1/0,VLOOKUP($A30,Economática!$A$3:$AI$823,25,FALSE))) -> 412.3 | Z30: =IF($A30="","",IF(ISERROR((F30+VLOOKUP($A30,Economática!$A$3:$AI$823,26,FALSE))/Y30),(F30+VLOOKUP($A30,Economática!$A$3:$AI$823,26,FALSE))/Y30,(F30+VLOOKUP($A30,Economática!$A$3:$AI$823,26,FALSE))/Y30)) -> 51.21017706 | AA30: =IF($A30="","",IF(OR(-VLOOKUP($A30,Economática!$A$3:$AI$823,27,FALSE)=0,-VLOOKUP($A30,Economática!$A$3:$AI$823,27,FALSE)="-"),1/0,-VLOOKUP($A30,Economática!$A$3:$AI$823,27,FALSE))) ->  | AC30: =IF($A30="","",IF(OR(VLOOKUP($A30,Economática!$A$3:$AI$823,28,FALSE)=0,VLOOKUP($A30,Economática!$A$3:$AI$823,28,FALSE)="-"),1/0,VLOOKUP($A30,Economática!$A$3:$AI$823,28,FALSE))) -> -12.7 | AD30: =IF($A30="","",IF(OR(VLOOKUP($A30,Economática!$A$3:$AI$823,29,FALSE)=0,VLOOKUP($A30,Economática!$A$3:$AI$823,29,FALSE)="-"),1/0,VLOOKUP($A30,Economática!$A$3:$AI$823,29,FALSE))) -> 106 | AE30: =IF($A30="","",IF(OR(VLOOKUP($A30,Economática!$A$3:$AI$823,30,FALSE)/E30=0,VLOOKUP($A30,Economática!$A$3:$AI$823,30,FALSE)/E30="-",VLOOKUP($A30,Economática!$A$3:$AI$823,30,FALSE)/E30<33.33%,VLOOKUP($A30,Economática!$A$3:$AI$823,30,FALSE)/E30>100%),1/0,VLOOKUP($A30,Economática!$A$3:$AI$823,30,FALSE)/E30)) ->  | AF30: BTOW3 | AG30: =IF($A30="","",IF(OR(VLOOKUP($A30,Economática!$A$3:$AI$823,25,FALSE)=0,VLOOKUP($A30,Economática!$A$3:$AI$823,25,FALSE)="-"),1/0,VLOOKUP($A30,Economática!$A$3:$AI$823,25,FALSE))) -> 412.3 | AH30: =CONCATENATE(Economática!B32," ",Economática!C32) -> B2W Digital ON
A31: =IF(Economática!AG33="","",Economática!AG33) -> BPHA3 | B31: =IF($A31="","",VLOOKUP(VLOOKUP($A31,Economática!$A$3:$AI$823,6,FALSE),Correção!$B$16:$C$36,2,FALSE)) -> Comércio | C31: =IF(Economática!B33="","",Economática!B33) -> BR Pharma | D31: =IF($A31="","",IF(OR(VLOOKUP($A31,Economática!$A$3:$AI$823,8,FALSE)=0,VLOOKUP($A31,Economática!$A$3:$AI$823,8,FALSE)="-"),1/0,VLOOKUP($A31,Economática!$A$3:$AI$823,8,FALSE))) -> 1.39 | E31: =IF(A31="","",IF(ISERROR(VLOOKUP(A31,Correção!$B$2:$G$13,9,FALSE)),VLOOKUP($A31,Economática!$A$3:$AI$823,9,FALSE),VLOOKUP(A31,Correção!$B$2:$G$13,9,FALSE))) -> 113.081 | F31: =IF($A31="","",Economática!G33) -> 157.18 | G31: =IF($A31="","",IF(OR(VLOOKUP($A31,Economática!$A$3:$AI$823,10,FALSE)=0,VLOOKUP($A31,Economática!$A$3:$AI$823,10,FALSE)="-"),1/0,VLOOKUP($A31,Economática!$A$3:$AI$823,10,FALSE))) -> -268.38 | H31: =IF($A31="","",IF(OR(VLOOKUP($A31,Economática!$A$3:$AI$823,11,FALSE)=0,VLOOKUP($A31,Economática!$A$3:$AI$823,11,FALSE)="-"),1/0,VLOOKUP($A31,Economática!$A$3:$AI$823,11,FALSE))) -> 516.79 | I31: =IF($A31="","",IF(OR(VLOOKUP($A31,Economática!$A$3:$AI$823,12,FALSE)=0,VLOOKUP($A31,Economática!$A$3:$AI$823,12,FALSE)="-"),1/0,VLOOKUP($A31,Economática!$A$3:$AI$823,12,FALSE))) -> 9.54 | J31: =IF($A31="","",IF(OR(VLOOKUP($A31,Economática!$A$3:$AI$823,13,FALSE)=0,VLOOKUP($A31,Economática!$A$3:$AI$823,13,FALSE)="-"),1/0,VLOOKUP($A31,Economática!$A$3:$AI$823,13,FALSE))) -> -1621.68 | K31: =IF($A31="","",IF(OR(VLOOKUP($A31,Economática!$A$3:$AI$823,14,FALSE)=0,VLOOKUP($A31,Economática!$A$3:$AI$823,14,FALSE)="-"),1/0,VLOOKUP($A31,Economática!$A$3:$AI$823,14,FALSE))) -> -151.45 | L31: =IF($A31="","",IF(OR(VLOOKUP($A31,Economática!$A$3:$AI$823,15,FALSE)=0,VLOOKUP($A31,Economática!$A$3:$AI$823,15,FALSE)="-"),1/0,VLOOKUP($A31,Economática!$A$3:$AI$823,15,FALSE))) -> -220.97 | M31: =IF($A31="","",IF(OR(VLOOKUP($A31,Economática!$A$3:$AI$823,16,FALSE)=0,VLOOKUP($A31,Economática!$A$3:$AI$823,16,FALSE)="-"),1/0,VLOOKUP($A31,Economática!$A$3:$AI$823,16,FALSE))) -> -233.34 | N31: =IF($A31="","",IF(OR(VLOOKUP($A31,Economática!$A$3:$AI$823,17,FALSE)=0,VLOOKUP($A31,Economática!$A$3:$AI$823,17,FALSE)="-"),1/0,VLOOKUP($A31,Economática!$A$3:$AI$823,17,FALSE))) -> 1048.96 | O31: =IF($A31="","",IF(OR(VLOOKUP($A31,Economática!$A$3:$AI$823,18,FALSE)=0,VLOOKUP($A31,Economática!$A$3:$AI$823,18,FALSE)="-"),1/0,VLOOKUP($A31,Economática!$A$3:$AI$823,18,FALSE))) -> -1621.68 | P31: =IF($A31="","",IF(OR(VLOOKUP($A31,Economática!$A$3:$AI$823,19,FALSE)=0,VLOOKUP($A31,Economática!$A$3:$AI$823,19,FALSE)="-"),1/0,VLOOKUP($A31,Economática!$A$3:$AI$823,19,FALSE))) -> 1048.96 | Q31: =IF($A31="","",VLOOKUP($A31,Economática!$A$3:$AI$823,20,FALSE)/E31) -> 9.276182559 | T31: 0.1498461238 | U31: =IF($A31="","",IF(OR(VLOOKUP($A31,Economática!$A$3:$AI$823,21,FALSE)/100=0,VLOOKUP($A31,Economática!$A$3:$AI$823,21,FALSE)/100="-"),1/0,VLOOKUP($A31,Economática!$A$3:$AI$823,21,FALSE)/100)) ->  | V31: =IF($A31="","",IF(OR(VLOOKUP($A31,Economática!$A$3:$AI$823,22,FALSE)/100=0,VLOOKUP($A31,Economática!$A$3:$AI$823,22,FALSE)/100="-"),1/0,VLOOKUP($A31,Economática!$A$3:$AI$823,22,FALSE)/100)) -> -0.234899 | W31: =IF($A31="","",IF(OR(VLOOKUP($A31,Economática!$A$3:$AI$823,23,FALSE)=0,VLOOKUP($A31,Economática!$A$3:$AI$823,23,FALSE)="-"),1/0,VLOOKUP($A31,Economática!$A$3:$AI$823,23,FALSE))) -> -1475.8 | X31: =IF($A31="","",IF(OR(VLOOKUP($A31,Economática!$A$3:$AI$823,24,FALSE)=0,VLOOKUP($A31,Economática!$A$3:$AI$823,24,FALSE)="-"),1/0,VLOOKUP($A31,Economática!$A$3:$AI$823,24,FALSE))) ->  | Y31: =IF($A31="","",IF(OR(VLOOKUP($A31,Economática!$A$3:$AI$823,25,FALSE)=0,VLOOKUP($A31,Economática!$A$3:$AI$823,25,FALSE)="-"),1/0,VLOOKUP($A31,Economática!$A$3:$AI$823,25,FALSE))) ->  | Z31: =IF($A31="","",IF(ISERROR((F31+VLOOKUP($A31,Economática!$A$3:$AI$823,26,FALSE))/Y31),(F31+VLOOKUP($A31,Economática!$A$3:$AI$823,26,FALSE))/Y31,(F31+VLOOKUP($A31,Economática!$A$3:$AI$823,26,FALSE))/Y31)) ->  | AA31: =IF($A31="","",IF(OR(-VLOOKUP($A31,Economática!$A$3:$AI$823,27,FALSE)=0,-VLOOKUP($A31,Economática!$A$3:$AI$823,27,FALSE)="-"),1/0,-VLOOKUP($A31,Economática!$A$3:$AI$823,27,FALSE))) ->  | AC31: =IF($A31="","",IF(OR(VLOOKUP($A31,Economática!$A$3:$AI$823,28,FALSE)=0,VLOOKUP($A31,Economática!$A$3:$AI$823,28,FALSE)="-"),1/0,VLOOKUP($A31,Economática!$A$3:$AI$823,28,FALSE))) -> -6.1 | AD31: =IF($A31="","",IF(OR(VLOOKUP($A31,Economática!$A$3:$AI$823,29,FALSE)=0,VLOOKUP($A31,Economática!$A$3:$AI$823,29,FALSE)="-"),1/0,VLOOKUP($A31,Economática!$A$3:$AI$823,29,FALSE))) -> -61.8 | AE31: =IF($A31="","",IF(OR(VLOOKUP($A31,Economática!$A$3:$AI$823,30,FALSE)/E31=0,VLOOKUP($A31,Economática!$A$3:$AI$823,30,FALSE)/E31="-",VLOOKUP($A31,Economática!$A$3:$AI$823,30,FALSE)/E31<33.33%,VLOOKUP($A31,Economática!$A$3:$AI$823,30,FALSE)/E31>100%),1/0,VLOOKUP($A31,Economática!$A$3:$AI$823,30,FALSE)/E31)) ->  | AF31: BPHA3 | AG31: =IF($A31="","",IF(OR(VLOOKUP($A31,Economática!$A$3:$AI$823,25,FALSE)=0,VLOOKUP($A31,Economática!$A$3:$AI$823,25,FALSE)="-"),1/0,VLOOKUP($A31,Economática!$A$3:$AI$823,25,FALSE))) ->  | AH31: =CONCATENATE(Economática!B33," ",Economática!C33) -> BR Pharma ON
A32: =IF(Economática!AG34="","",Economática!AG34) -> TEND3 | B32: =IF($A32="","",VLOOKUP(VLOOKUP($A32,Economática!$A$3:$AI$823,6,FALSE),Correção!$B$16:$C$36,2,FALSE)) -> Construção | C32: =IF(Economática!B34="","",Economática!B34) -> Tenda | D32: =IF($A32="","",IF(OR(VLOOKUP($A32,Economática!$A$3:$AI$823,8,FALSE)=0,VLOOKUP($A32,Economática!$A$3:$AI$823,8,FALSE)="-"),1/0,VLOOKUP($A32,Economática!$A$3:$AI$823,8,FALSE))) -> 16.88 | E32: =IF(A32="","",IF(ISERROR(VLOOKUP(A32,Correção!$B$2:$G$13,9,FALSE)),VLOOKUP($A32,Economática!$A$3:$AI$823,9,FALSE),VLOOKUP(A32,Correção!$B$2:$G$13,9,FALSE))) -> 48.393 | F32: =IF($A32="","",Economática!G34) -> 816.87 | G32: =IF($A32="","",IF(OR(VLOOKUP($A32,Economática!$A$3:$AI$823,10,FALSE)=0,VLOOKUP($A32,Economática!$A$3:$AI$823,10,FALSE)="-"),1/0,VLOOKUP($A32,Economática!$A$3:$AI$823,10,FALSE))) -> 1197.67 | H32: =IF($A32="","",IF(OR(VLOOKUP($A32,Economática!$A$3:$AI$823,11,FALSE)=0,VLOOKUP($A32,Economática!$A$3:$AI$823,11,FALSE)="-"),1/0,VLOOKUP($A32,Economática!$A$3:$AI$823,11,FALSE))) -> 1357.9 | I32: =IF($A32="","",IF(OR(VLOOKUP($A32,Economática!$A$3:$AI$823,12,FALSE)=0,VLOOKUP($A32,Economática!$A$3:$AI$823,12,FALSE)="-"),1/0,VLOOKUP($A32,Economática!$A$3:$AI$823,12,FALSE))) -> 1681.25 | J32: =IF($A32="","",IF(OR(VLOOKUP($A32,Economática!$A$3:$AI$823,13,FALSE)=0,VLOOKUP($A32,Economática!$A$3:$AI$823,13,FALSE)="-"),1/0,VLOOKUP($A32,Economática!$A$3:$AI$823,13,FALSE))) -> 106.69 | K32: =IF($A32="","",IF(OR(VLOOKUP($A32,Economática!$A$3:$AI$823,14,FALSE)=0,VLOOKUP($A32,Economática!$A$3:$AI$823,14,FALSE)="-"),1/0,VLOOKUP($A32,Economática!$A$3:$AI$823,14,FALSE))) -> 36.27 | L32: =IF($A32="","",IF(OR(VLOOKUP($A32,Economática!$A$3:$AI$823,15,FALSE)=0,VLOOKUP($A32,Economática!$A$3:$AI$823,15,FALSE)="-"),1/0,VLOOKUP($A32,Economática!$A$3:$AI$823,15,FALSE))) -> 87.86 | M32: =IF($A32="","",IF(OR(VLOOKUP($A32,Economática!$A$3:$AI$823,16,FALSE)=0,VLOOKUP($A32,Economática!$A$3:$AI$823,16,FALSE)="-"),1/0,VLOOKUP($A32,Economática!$A$3:$AI$823,16,FALSE))) -> 152.29 | N32: =IF($A32="","",IF(OR(VLOOKUP($A32,Economática!$A$3:$AI$823,17,FALSE)=0,VLOOKUP($A32,Economática!$A$3:$AI$823,17,FALSE)="-"),1/0,VLOOKUP($A32,Economática!$A$3:$AI$823,17,FALSE))) -> 200.29 | O32: =IF($A32="","",IF(OR(VLOOKUP($A32,Economática!$A$3:$AI$823,18,FALSE)=0,VLOOKUP($A32,Economática!$A$3:$AI$823,18,FALSE)="-"),1/0,VLOOKUP($A32,Economática!$A$3:$AI$823,18,FALSE))) -> 106.69 | P32: =IF($A32="","",IF(OR(VLOOKUP($A32,Economática!$A$3:$AI$823,19,FALSE)=0,VLOOKUP($A32,Economática!$A$3:$AI$823,19,FALSE)="-"),1/0,VLOOKUP($A32,Economática!$A$3:$AI$823,19,FALSE))) -> 200.29 | Q32: =IF($A32="","",VLOOKUP($A32,Economática!$A$3:$AI$823,20,FALSE)/E32) -> 4.13882173 | R32: 24.74882731 | S32: 0.6820525186 | T32: 4.07845544 | U32: =IF($A32="","",IF(OR(VLOOKUP($A32,Economática!$A$3:$AI$823,21,FALSE)/100=0,VLOOKUP($A32,Economática!$A$3:$AI$823,21,FALSE)/100="-"),1/0,VLOOKUP($A32,Economática!$A$3:$AI$823,21,FALSE)/100)) -> 0.173016 | V32: =IF($A32="","",IF(OR(VLOOKUP($A32,Economática!$A$3:$AI$823,22,FALSE)/100=0,VLOOKUP($A32,Economática!$A$3:$AI$823,22,FALSE)/100="-"),1/0,VLOOKUP($A32,Economática!$A$3:$AI$823,22,FALSE)/100)) -> -0.260072 | W32: =IF($A32="","",IF(OR(VLOOKUP($A32,Economática!$A$3:$AI$823,23,FALSE)=0,VLOOKUP($A32,Economática!$A$3:$AI$823,23,FALSE)="-"),1/0,VLOOKUP($A32,Economática!$A$3:$AI$823,23,FALSE))) -> 141.9 | X32: =IF($A32="","",IF(OR(VLOOKUP($A32,Economática!$A$3:$AI$823,24,FALSE)=0,VLOOKUP($A32,Economática!$A$3:$AI$823,24,FALSE)="-"),1/0,VLOOKUP($A32,Economática!$A$3:$AI$823,24,FALSE))) -> 243.5 | Y32: =IF($A32="","",IF(OR(VLOOKUP($A32,Economática!$A$3:$AI$823,25,FALSE)=0,VLOOKUP($A32,Economática!$A$3:$AI$823,25,FALSE)="-"),1/0,VLOOKUP($A32,Economática!$A$3:$AI$823,25,FALSE))) -> 243.5 | Z32: =IF($A32="","",IF(ISERROR((F32+VLOOKUP($A32,Economática!$A$3:$AI$823,26,FALSE))/Y32),(F32+VLOOKUP($A32,Economática!$A$3:$AI$823,26,FALSE))/Y32,(F32+VLOOKUP($A32,Economática!$A$3:$AI$823,26,FALSE))/Y32)) -> 2.069002053 | AA32: =IF($A32="","",IF(OR(-VLOOKUP($A32,Economática!$A$3:$AI$823,27,FALSE)=0,-VLOOKUP($A32,Economática!$A$3:$AI$823,27,FALSE)="-"),1/0,-VLOOKUP($A32,Economática!$A$3:$AI$823,27,FALSE))) -> 24.99 | AB32: 0.03059238312 | AC32: =IF($A32="","",IF(OR(VLOOKUP($A32,Economática!$A$3:$AI$823,28,FALSE)=0,VLOOKUP($A32,Economática!$A$3:$AI$823,28,FALSE)="-"),1/0,VLOOKUP($A32,Economática!$A$3:$AI$823,28,FALSE))) -> 0.8 | AD32: =IF($A32="","",IF(OR(VLOOKUP($A32,Economática!$A$3:$AI$823,29,FALSE)=0,VLOOKUP($A32,Economática!$A$3:$AI$823,29,FALSE)="-"),1/0,VLOOKUP($A32,Economática!$A$3:$AI$823,29,FALSE))) -> 71.7 | AE32: =IF($A32="","",IF(OR(VLOOKUP($A32,Economática!$A$3:$AI$823,30,FALSE)/E32=0,VLOOKUP($A32,Economática!$A$3:$AI$823,30,FALSE)/E32="-",VLOOKUP($A32,Economática!$A$3:$AI$823,30,FALSE)/E32<33.33%,VLOOKUP($A32,Economática!$A$3:$AI$823,30,FALSE)/E32>100%),1/0,VLOOKUP($A32,Economática!$A$3:$AI$823,30,FALSE)/E32)) ->  | AF32: TEND3 | AG32: =IF($A32="","",IF(OR(VLOOKUP($A32,Economática!$A$3:$AI$823,25,FALSE)=0,VLOOKUP($A32,Economática!$A$3:$AI$823,25,FALSE)="-"),1/0,VLOOKUP($A32,Economática!$A$3:$AI$823,25,FALSE))) -> 243.5 | AH32: =CONCATENATE(Economática!B34," ",Economática!C34) -> Tenda ON
A33: =IF(Economática!AG35="","",Economática!AG35) -> TRIS3 | B33: =IF($A33="","",VLOOKUP(VLOOKUP($A33,Economática!$A$3:$AI$823,6,FALSE),Correção!$B$16:$C$36,2,FALSE)) -> Construção | C33: =IF(Economática!B35="","",Economática!B35) -> Trisul | D33: =IF($A33="","",IF(OR(VLOOKUP($A33,Economática!$A$3:$AI$823,8,FALSE)=0,VLOOKUP($A33,Economática!$A$3:$AI$823,8,FALSE)="-"),1/0,VLOOKUP($A33,Economática!$A$3:$AI$823,8,FALSE))) -> 4.7 | E33: =IF(A33="","",IF(ISERROR(VLOOKUP(A33,Correção!$B$2:$G$13,9,FALSE)),VLOOKUP($A33,Economática!$A$3:$AI$823,9,FALSE),VLOOKUP(A33,Correção!$B$2:$G$13,9,FALSE))) -> 146.118 | F33: =IF($A33="","",Economática!G35) -> 686.75 | G33: =IF($A33="","",IF(OR(VLOOKUP($A33,Economática!$A$3:$AI$823,10,FALSE)=0,VLOOKUP($A33,Economática!$A$3:$AI$823,10,FALSE)="-"),1/0,VLOOKUP($A33,Economática!$A$3:$AI$823,10,FALSE))) -> 560.76 | H33: =IF($A33="","",IF(OR(VLOOKUP($A33,Economática!$A$3:$AI$823,11,FALSE)=0,VLOOKUP($A33,Economática!$A$3:$AI$823,11,FALSE)="-"),1/0,VLOOKUP($A33,Economática!$A$3:$AI$823,11,FALSE))) -> 441.68 | I33: =IF($A33="","",IF(OR(VLOOKUP($A33,Economática!$A$3:$AI$823,12,FALSE)=0,VLOOKUP($A33,Economática!$A$3:$AI$823,12,FALSE)="-"),1/0,VLOOKUP($A33,Economática!$A$3:$AI$823,12,FALSE))) -> 545.25 | J33: =IF($A33="","",IF(OR(VLOOKUP($A33,Economática!$A$3:$AI$823,13,FALSE)=0,VLOOKUP($A33,Economática!$A$3:$AI$823,13,FALSE)="-"),1/0,VLOOKUP($A33,Economática!$A$3:$AI$823,13,FALSE))) -> 34.99 | K33: =IF($A33="","",IF(OR(VLOOKUP($A33,Economática!$A$3:$AI$823,14,FALSE)=0,VLOOKUP($A33,Economática!$A$3:$AI$823,14,FALSE)="-"),1/0,VLOOKUP($A33,Economática!$A$3:$AI$823,14,FALSE))) -> 12.89 | L33: =IF($A33="","",IF(OR(VLOOKUP($A33,Economática!$A$3:$AI$823,15,FALSE)=0,VLOOKUP($A33,Economática!$A$3:$AI$823,15,FALSE)="-"),1/0,VLOOKUP($A33,Economática!$A$3:$AI$823,15,FALSE))) -> 30.29 | M33: =IF($A33="","",IF(OR(VLOOKUP($A33,Economática!$A$3:$AI$823,16,FALSE)=0,VLOOKUP($A33,Economática!$A$3:$AI$823,16,FALSE)="-"),1/0,VLOOKUP($A33,Economática!$A$3:$AI$823,16,FALSE))) -> 51.39 | N33: =IF($A33="","",IF(OR(VLOOKUP($A33,Economática!$A$3:$AI$823,17,FALSE)=0,VLOOKUP($A33,Economática!$A$3:$AI$823,17,FALSE)="-"),1/0,VLOOKUP($A33,Economática!$A$3:$AI$823,17,FALSE))) -> 71.95 | O33: =IF($A33="","",IF(OR(VLOOKUP($A33,Economática!$A$3:$AI$823,18,FALSE)=0,VLOOKUP($A33,Economática!$A$3:$AI$823,18,FALSE)="-"),1/0,VLOOKUP($A33,Economática!$A$3:$AI$823,18,FALSE))) -> 34.99 | P33: =IF($A33="","",IF(OR(VLOOKUP($A33,Economática!$A$3:$AI$823,19,FALSE)=0,VLOOKUP($A33,Economática!$A$3:$AI$823,19,FALSE)="-"),1/0,VLOOKUP($A33,Economática!$A$3:$AI$823,19,FALSE))) -> 71.95 | Q33: =IF($A33="","",VLOOKUP($A33,Economática!$A$3:$AI$823,20,FALSE)/E33) -> 0.4924102438 | R33: 3.837720199 | S33: 1.224685427 | T33: 9.544886727 | U33: =IF($A33="","",IF(OR(VLOOKUP($A33,Economática!$A$3:$AI$823,21,FALSE)/100=0,VLOOKUP($A33,Economática!$A$3:$AI$823,21,FALSE)/100="-"),1/0,VLOOKUP($A33,Economática!$A$3:$AI$823,21,FALSE)/100)) -> 0.140541 | V33: =IF($A33="","",IF(OR(VLOOKUP($A33,Economática!$A$3:$AI$823,22,FALSE)/100=0,VLOOKUP($A33,Economática!$A$3:$AI$823,22,FALSE)/100="-"),1/0,VLOOKUP($A33,Economática!$A$3:$AI$823,22,FALSE)/100)) -> 0.295693 | W33: =IF($A33="","",IF(OR(VLOOKUP($A33,Economática!$A$3:$AI$823,23,FALSE)=0,VLOOKUP($A33,Economática!$A$3:$AI$823,23,FALSE)="-"),1/0,VLOOKUP($A33,Economática!$A$3:$AI$823,23,FALSE))) -> 61.1 | X33: =IF($A33="","",IF(OR(VLOOKUP($A33,Economática!$A$3:$AI$823,24,FALSE)=0,VLOOKUP($A33,Economática!$A$3:$AI$823,24,FALSE)="-"),1/0,VLOOKUP($A33,Economática!$A$3:$AI$823,24,FALSE))) -> 102.7 | Y33: =IF($A33="","",IF(OR(VLOOKUP($A33,Economática!$A$3:$AI$823,25,FALSE)=0,VLOOKUP($A33,Economática!$A$3:$AI$823,25,FALSE)="-"),1/0,VLOOKUP($A33,Economática!$A$3:$AI$823,25,FALSE))) -> 102.7 | Z33: =IF($A33="","",IF(ISERROR((F33+VLOOKUP($A33,Economática!$A$3:$AI$823,26,FALSE))/Y33),(F33+VLOOKUP($A33,Economática!$A$3:$AI$823,26,FALSE))/Y33,(F33+VLOOKUP($A33,Economática!$A$3:$AI$823,26,FALSE))/Y33)) -> 8.415881207 | AA33: =IF($A33="","",IF(OR(-VLOOKUP($A33,Economática!$A$3:$AI$823,27,FALSE)=0,-VLOOKUP($A33,Economática!$A$3:$AI$823,27,FALSE)="-"),1/0,-VLOOKUP($A33,Economática!$A$3:$AI$823,27,FALSE))) ->  | AC33: =IF($A33="","",IF(OR(VLOOKUP($A33,Economática!$A$3:$AI$823,28,FALSE)=0,VLOOKUP($A33,Economática!$A$3:$AI$823,28,FALSE)="-"),1/0,VLOOKUP($A33,Economática!$A$3:$AI$823,28,FALSE))) -> -0.8 | AD33: =IF($A33="","",IF(OR(VLOOKUP($A33,Economática!$A$3:$AI$823,29,FALSE)=0,VLOOKUP($A33,Economática!$A$3:$AI$823,29,FALSE)="-"),1/0,VLOOKUP($A33,Economática!$A$3:$AI$823,29,FALSE))) -> 136.9 | AE33: =IF($A33="","",IF(OR(VLOOKUP($A33,Economática!$A$3:$AI$823,30,FALSE)/E33=0,VLOOKUP($A33,Economática!$A$3:$AI$823,30,FALSE)/E33="-",VLOOKUP($A33,Economática!$A$3:$AI$823,30,FALSE)/E33<33.33%,VLOOKUP($A33,Economática!$A$3:$AI$823,30,FALSE)/E33>100%),1/0,VLOOKUP($A33,Economática!$A$3:$AI$823,30,FALSE)/E33)) -> 0.9998768119 | AF33: TRIS3 | AG33: =IF($A33="","",IF(OR(VLOOKUP($A33,Economática!$A$3:$AI$823,25,FALSE)=0,VLOOKUP($A33,Economática!$A$3:$AI$823,25,FALSE)="-"),1/0,VLOOKUP($A33,Economática!$A$3:$AI$823,25,FALSE))) -> 102.7 | AH33: =CONCATENATE(Economática!B35," ",Economática!C35) -> Trisul ON
A34: =IF(Economática!AG36="","",Economática!AG36) -> MRVE3 | B34: =IF($A34="","",VLOOKUP(VLOOKUP($A34,Economática!$A$3:$AI$823,6,FALSE),Correção!$B$16:$C$36,2,FALSE)) -> Construção | C34: =IF(Economática!B36="","",Economática!B36) -> MRV | D34: =IF($A34="","",IF(OR(VLOOKUP($A34,Economática!$A$3:$AI$823,8,FALSE)=0,VLOOKUP($A34,Economática!$A$3:$AI$823,8,FALSE)="-"),1/0,VLOOKUP($A34,Economática!$A$3:$AI$823,8,FALSE))) -> 13.99 | E34: =IF(A34="","",IF(ISERROR(VLOOKUP(A34,Correção!$B$2:$G$13,9,FALSE)),VLOOKUP($A34,Economática!$A$3:$AI$823,9,FALSE),VLOOKUP(A34,Correção!$B$2:$G$13,9,FALSE))) -> 441.011 | F34: =IF($A34="","",Economática!G36) -> 6169.74 | G34: =IF($A34="","",IF(OR(VLOOKUP($A34,Economática!$A$3:$AI$823,10,FALSE)=0,VLOOKUP($A34,Economática!$A$3:$AI$823,10,FALSE)="-"),1/0,VLOOKUP($A34,Economática!$A$3:$AI$823,10,FALSE))) -> 4630.45 | H34: =IF($A34="","",IF(OR(VLOOKUP($A34,Economática!$A$3:$AI$823,11,FALSE)=0,VLOOKUP($A34,Economática!$A$3:$AI$823,11,FALSE)="-"),1/0,VLOOKUP($A34,Economática!$A$3:$AI$823,11,FALSE))) -> 4759.89 | I34: =IF($A34="","",IF(OR(VLOOKUP($A34,Economática!$A$3:$AI$823,12,FALSE)=0,VLOOKUP($A34,Economática!$A$3:$AI$823,12,FALSE)="-"),1/0,VLOOKUP($A34,Economática!$A$3:$AI$823,12,FALSE))) -> 5419 | J34: =IF($A34="","",IF(OR(VLOOKUP($A34,Economática!$A$3:$AI$823,13,FALSE)=0,VLOOKUP($A34,Economática!$A$3:$AI$823,13,FALSE)="-"),1/0,VLOOKUP($A34,Economática!$A$3:$AI$823,13,FALSE))) -> 653.4 | K34: =IF($A34="","",IF(OR(VLOOKUP($A34,Economática!$A$3:$AI$823,14,FALSE)=0,VLOOKUP($A34,Economática!$A$3:$AI$823,14,FALSE)="-"),1/0,VLOOKUP($A34,Economática!$A$3:$AI$823,14,FALSE))) -> 159.66 | L34: =IF($A34="","",IF(OR(VLOOKUP($A34,Economática!$A$3:$AI$823,15,FALSE)=0,VLOOKUP($A34,Economática!$A$3:$AI$823,15,FALSE)="-"),1/0,VLOOKUP($A34,Economática!$A$3:$AI$823,15,FALSE))) -> 325.74 | M34: =IF($A34="","",IF(OR(VLOOKUP($A34,Economática!$A$3:$AI$823,16,FALSE)=0,VLOOKUP($A34,Economática!$A$3:$AI$823,16,FALSE)="-"),1/0,VLOOKUP($A34,Economática!$A$3:$AI$823,16,FALSE))) -> 499.8 | N34: =IF($A34="","",IF(OR(VLOOKUP($A34,Economática!$A$3:$AI$823,17,FALSE)=0,VLOOKUP($A34,Economática!$A$3:$AI$823,17,FALSE)="-"),1/0,VLOOKUP($A34,Economática!$A$3:$AI$823,17,FALSE))) -> 690.31 | O34: =IF($A34="","",IF(OR(VLOOKUP($A34,Economática!$A$3:$AI$823,18,FALSE)=0,VLOOKUP($A34,Economática!$A$3:$AI$823,18,FALSE)="-"),1/0,VLOOKUP($A34,Economática!$A$3:$AI$823,18,FALSE))) -> 653.4 | P34: =IF($A34="","",IF(OR(VLOOKUP($A34,Economática!$A$3:$AI$823,19,FALSE)=0,VLOOKUP($A34,Economática!$A$3:$AI$823,19,FALSE)="-"),1/0,VLOOKUP($A34,Economática!$A$3:$AI$823,19,FALSE))) -> 690.31 | Q34: =IF($A34="","",VLOOKUP($A34,Economática!$A$3:$AI$823,20,FALSE)/E34) -> 1.565289755 | R34: 10.49962473 | S34: 1.332428574 | T34: 8.937642349 | U34: =IF($A34="","",IF(OR(VLOOKUP($A34,Economática!$A$3:$AI$823,21,FALSE)/100=0,VLOOKUP($A34,Economática!$A$3:$AI$823,21,FALSE)/100="-"),1/0,VLOOKUP($A34,Economática!$A$3:$AI$823,21,FALSE)/100)) -> 0.130778 | V34: =IF($A34="","",IF(OR(VLOOKUP($A34,Economática!$A$3:$AI$823,22,FALSE)/100=0,VLOOKUP($A34,Economática!$A$3:$AI$823,22,FALSE)/100="-"),1/0,VLOOKUP($A34,Economática!$A$3:$AI$823,22,FALSE)/100)) -> 0.424275 | W34: =IF($A34="","",IF(OR(VLOOKUP($A34,Economática!$A$3:$AI$823,23,FALSE)=0,VLOOKUP($A34,Economática!$A$3:$AI$823,23,FALSE)="-"),1/0,VLOOKUP($A34,Economática!$A$3:$AI$823,23,FALSE))) -> 715.7 | X34: =IF($A34="","",IF(OR(VLOOKUP($A34,Economática!$A$3:$AI$823,24,FALSE)=0,VLOOKUP($A34,Economática!$A$3:$AI$823,24,FALSE)="-"),1/0,VLOOKUP($A34,Economática!$A$3:$AI$823,24,FALSE))) -> 805.6 | Y34: =IF($A34="","",IF(OR(VLOOKUP($A34,Economática!$A$3:$AI$823,25,FALSE)=0,VLOOKUP($A34,Economática!$A$3:$AI$823,25,FALSE)="-"),1/0,VLOOKUP($A34,Economática!$A$3:$AI$823,25,FALSE))) -> 805.6 | Z34: =IF($A34="","",IF(ISERROR((F34+VLOOKUP($A34,Economática!$A$3:$AI$823,26,FALSE))/Y34),(F34+VLOOKUP($A34,Economática!$A$3:$AI$823,26,FALSE))/Y34,(F34+VLOOKUP($A34,Economática!$A$3:$AI$823,26,FALSE))/Y34)) -> 10.22580189 | AA34: =IF($A34="","",IF(OR(-VLOOKUP($A34,Economática!$A$3:$AI$823,27,FALSE)=0,-VLOOKUP($A34,Economática!$A$3:$AI$823,27,FALSE)="-"),1/0,-VLOOKUP($A34,Economática!$A$3:$AI$823,27,FALSE))) -> 455.63 | AB34: 0.07384914113 | AC34: =IF($A34="","",IF(OR(VLOOKUP($A34,Economática!$A$3:$AI$823,28,FALSE)=0,VLOOKUP($A34,Economática!$A$3:$AI$823,28,FALSE)="-"),1/0,VLOOKUP($A34,Economática!$A$3:$AI$823,28,FALSE))) -> 2.9 | AD34: =IF($A34="","",IF(OR(VLOOKUP($A34,Economática!$A$3:$AI$823,29,FALSE)=0,VLOOKUP($A34,Economática!$A$3:$AI$823,29,FALSE)="-"),1/0,VLOOKUP($A34,Economática!$A$3:$AI$823,29,FALSE))) -> 20.1 | AE34: =IF($A34="","",IF(OR(VLOOKUP($A34,Economática!$A$3:$AI$823,30,FALSE)/E34=0,VLOOKUP($A34,Economática!$A$3:$AI$823,30,FALSE)/E34="-",VLOOKUP($A34,Economática!$A$3:$AI$823,30,FALSE)/E34<33.33%,VLOOKUP($A34,Economática!$A$3:$AI$823,30,FALSE)/E34>100%),1/0,VLOOKUP($A34,Economática!$A$3:$AI$823,30,FALSE)/E34)) ->  | AF34: MRVE3 | AG34: =IF($A34="","",IF(OR(VLOOKUP($A34,Economática!$A$3:$AI$823,25,FALSE)=0,VLOOKUP($A34,Economática!$A$3:$AI$823,25,FALSE)="-"),1/0,VLOOKUP($A34,Economática!$A$3:$AI$823,25,FALSE))) -> 805.6 | AH34: =CONCATENATE(Economática!B36," ",Economática!C36) -> MRV ON
A35: =IF(Economática!AG37="","",Economática!AG37) -> JHSF3 | B35: =IF($A35="","",VLOOKUP(VLOOKUP($A35,Economática!$A$3:$AI$823,6,FALSE),Correção!$B$16:$C$36,2,FALSE)) -> Construção | C35: =IF(Economática!B37="","",Economática!B37) -> JHSF Part | D35: =IF($A35="","",IF(OR(VLOOKUP($A35,Economática!$A$3:$AI$823,8,FALSE)=0,VLOOKUP($A35,Economática!$A$3:$AI$823,8,FALSE)="-"),1/0,VLOOKUP($A35,Economática!$A$3:$AI$823,8,FALSE))) -> 2.45 | E35: =IF(A35="","",IF(ISERROR(VLOOKUP(A35,Correção!$B$2:$G$13,9,FALSE)),VLOOKUP($A35,Economática!$A$3:$AI$823,9,FALSE),VLOOKUP(A35,Correção!$B$2:$G$13,9,FALSE))) -> 526.266 | F35: =IF($A35="","",Economática!G37) -> 1289.35 | G35: =IF($A35="","",IF(OR(VLOOKUP($A35,Economática!$A$3:$AI$823,10,FALSE)=0,VLOOKUP($A35,Economática!$A$3:$AI$823,10,FALSE)="-"),1/0,VLOOKUP($A35,Economática!$A$3:$AI$823,10,FALSE))) -> 2227.84 | H35: =IF($A35="","",IF(OR(VLOOKUP($A35,Economática!$A$3:$AI$823,11,FALSE)=0,VLOOKUP($A35,Economática!$A$3:$AI$823,11,FALSE)="-"),1/0,VLOOKUP($A35,Economática!$A$3:$AI$823,11,FALSE))) -> 355.89 | I35: =IF($A35="","",IF(OR(VLOOKUP($A35,Economática!$A$3:$AI$823,12,FALSE)=0,VLOOKUP($A35,Economática!$A$3:$AI$823,12,FALSE)="-"),1/0,VLOOKUP($A35,Economática!$A$3:$AI$823,12,FALSE))) -> 485.69 | J35: =IF($A35="","",IF(OR(VLOOKUP($A35,Economática!$A$3:$AI$823,13,FALSE)=0,VLOOKUP($A35,Economática!$A$3:$AI$823,13,FALSE)="-"),1/0,VLOOKUP($A35,Economática!$A$3:$AI$823,13,FALSE))) -> -22.65 | K35: =IF($A35="","",IF(OR(VLOOKUP($A35,Economática!$A$3:$AI$823,14,FALSE)=0,VLOOKUP($A35,Economática!$A$3:$AI$823,14,FALSE)="-"),1/0,VLOOKUP($A35,Economática!$A$3:$AI$823,14,FALSE))) -> -10.94 | L35: =IF($A35="","",IF(OR(VLOOKUP($A35,Economática!$A$3:$AI$823,15,FALSE)=0,VLOOKUP($A35,Economática!$A$3:$AI$823,15,FALSE)="-"),1/0,VLOOKUP($A35,Economática!$A$3:$AI$823,15,FALSE))) -> -3.72 | M35: =IF($A35="","",IF(OR(VLOOKUP($A35,Economática!$A$3:$AI$823,16,FALSE)=0,VLOOKUP($A35,Economática!$A$3:$AI$823,16,FALSE)="-"),1/0,VLOOKUP($A35,Economática!$A$3:$AI$823,16,FALSE))) -> 114.86 | N35: =IF($A35="","",IF(OR(VLOOKUP($A35,Economática!$A$3:$AI$823,17,FALSE)=0,VLOOKUP($A35,Economática!$A$3:$AI$823,17,FALSE)="-"),1/0,VLOOKUP($A35,Economática!$A$3:$AI$823,17,FALSE))) -> 182.33 | O35: =IF($A35="","",IF(OR(VLOOKUP($A35,Economática!$A$3:$AI$823,18,FALSE)=0,VLOOKUP($A35,Economática!$A$3:$AI$823,18,FALSE)="-"),1/0,VLOOKUP($A35,Economática!$A$3:$AI$823,18,FALSE))) -> -22.65 | P35: =IF($A35="","",IF(OR(VLOOKUP($A35,Economática!$A$3:$AI$823,19,FALSE)=0,VLOOKUP($A35,Economática!$A$3:$AI$823,19,FALSE)="-"),1/0,VLOOKUP($A35,Economática!$A$3:$AI$823,19,FALSE))) -> 182.33 | Q35: =IF($A35="","",VLOOKUP($A35,Economática!$A$3:$AI$823,20,FALSE)/E35) -> 0.3464597751 | R35: 4.23329647 | S35: 0.5787451971 | T35: 7.071527999 | U35: =IF($A35="","",IF(OR(VLOOKUP($A35,Economática!$A$3:$AI$823,21,FALSE)/100=0,VLOOKUP($A35,Economática!$A$3:$AI$823,21,FALSE)/100="-"),1/0,VLOOKUP($A35,Economática!$A$3:$AI$823,21,FALSE)/100)) -> 0.090996 | V35: =IF($A35="","",IF(OR(VLOOKUP($A35,Economática!$A$3:$AI$823,22,FALSE)/100=0,VLOOKUP($A35,Economática!$A$3:$AI$823,22,FALSE)/100="-"),1/0,VLOOKUP($A35,Economática!$A$3:$AI$823,22,FALSE)/100)) -> 0.422145 | W35: =IF($A35="","",IF(OR(VLOOKUP($A35,Economática!$A$3:$AI$823,23,FALSE)=0,VLOOKUP($A35,Economática!$A$3:$AI$823,23,FALSE)="-"),1/0,VLOOKUP($A35,Economática!$A$3:$AI$823,23,FALSE))) -> 203.8 | X35: =IF($A35="","",IF(OR(VLOOKUP($A35,Economática!$A$3:$AI$823,24,FALSE)=0,VLOOKUP($A35,Economática!$A$3:$AI$823,24,FALSE)="-"),1/0,VLOOKUP($A35,Economática!$A$3:$AI$823,24,FALSE))) -> 342.1 | Y35: =IF($A35="","",IF(OR(VLOOKUP($A35,Economática!$A$3:$AI$823,25,FALSE)=0,VLOOKUP($A35,Economática!$A$3:$AI$823,25,FALSE)="-"),1/0,VLOOKUP($A35,Economática!$A$3:$AI$823,25,FALSE))) -> 342.1 | Z35: =IF($A35="","",IF(ISERROR((F35+VLOOKUP($A35,Economática!$A$3:$AI$823,26,FALSE))/Y35),(F35+VLOOKUP($A35,Economática!$A$3:$AI$823,26,FALSE))/Y35,(F35+VLOOKUP($A35,Economática!$A$3:$AI$823,26,FALSE))/Y35)) -> 6.566670564 | AA35: =IF($A35="","",IF(OR(-VLOOKUP($A35,Economática!$A$3:$AI$823,27,FALSE)=0,-VLOOKUP($A35,Economática!$A$3:$AI$823,27,FALSE)="-"),1/0,-VLOOKUP($A35,Economática!$A$3:$AI$823,27,FALSE))) ->  | AC35: =IF($A35="","",IF(OR(VLOOKUP($A35,Economática!$A$3:$AI$823,28,FALSE)=0,VLOOKUP($A35,Economática!$A$3:$AI$823,28,FALSE)="-"),1/0,VLOOKUP($A35,Economática!$A$3:$AI$823,28,FALSE))) -> 7 | AD35: =IF($A35="","",IF(OR(VLOOKUP($A35,Economática!$A$3:$AI$823,29,FALSE)=0,VLOOKUP($A35,Economática!$A$3:$AI$823,29,FALSE)="-"),1/0,VLOOKUP($A35,Economática!$A$3:$AI$823,29,FALSE))) -> 40 | AE35: =IF($A35="","",IF(OR(VLOOKUP($A35,Economática!$A$3:$AI$823,30,FALSE)/E35=0,VLOOKUP($A35,Economática!$A$3:$AI$823,30,FALSE)/E35="-",VLOOKUP($A35,Economática!$A$3:$AI$823,30,FALSE)/E35<33.33%,VLOOKUP($A35,Economática!$A$3:$AI$823,30,FALSE)/E35>100%),1/0,VLOOKUP($A35,Economática!$A$3:$AI$823,30,FALSE)/E35)) ->  | AF35: JHSF3 | AG35: =IF($A35="","",IF(OR(VLOOKUP($A35,Economática!$A$3:$AI$823,25,FALSE)=0,VLOOKUP($A35,Economática!$A$3:$AI$823,25,FALSE)="-"),1/0,VLOOKUP($A35,Economática!$A$3:$AI$823,25,FALSE))) -> 342.1 | AH35: =CONCATENATE(Economática!B37," ",Economática!C37) -> JHSF Part ON
A36: =IF(Economática!AG38="","",Economática!AG38) -> EZTC3 | B36: =IF($A36="","",VLOOKUP(VLOOKUP($A36,Economática!$A$3:$AI$823,6,FALSE),Correção!$B$16:$C$36,2,FALSE)) -> Construção | C36: =IF(Economática!B38="","",Economática!B38) -> Eztec | D36: =IF($A36="","",IF(OR(VLOOKUP($A36,Economática!$A$3:$AI$823,8,FALSE)=0,VLOOKUP($A36,Economática!$A$3:$AI$823,8,FALSE)="-"),1/0,VLOOKUP($A36,Economática!$A$3:$AI$823,8,FALSE))) -> 26.8 | E36: =IF(A36="","",IF(ISERROR(VLOOKUP(A36,Correção!$B$2:$G$13,9,FALSE)),VLOOKUP($A36,Economática!$A$3:$AI$823,9,FALSE),VLOOKUP(A36,Correção!$B$2:$G$13,9,FALSE))) -> 165.002 | F36: =IF($A36="","",Economática!G38) -> 4422.05 | G36: =IF($A36="","",IF(OR(VLOOKUP($A36,Economática!$A$3:$AI$823,10,FALSE)=0,VLOOKUP($A36,Economática!$A$3:$AI$823,10,FALSE)="-"),1/0,VLOOKUP($A36,Economática!$A$3:$AI$823,10,FALSE))) -> 2609.72 | H36: =IF($A36="","",IF(OR(VLOOKUP($A36,Economática!$A$3:$AI$823,11,FALSE)=0,VLOOKUP($A36,Economática!$A$3:$AI$823,11,FALSE)="-"),1/0,VLOOKUP($A36,Economática!$A$3:$AI$823,11,FALSE))) -> 980.32 | I36: =IF($A36="","",IF(OR(VLOOKUP($A36,Economática!$A$3:$AI$823,12,FALSE)=0,VLOOKUP($A36,Economática!$A$3:$AI$823,12,FALSE)="-"),1/0,VLOOKUP($A36,Economática!$A$3:$AI$823,12,FALSE))) -> 390.76 | J36: =IF($A36="","",IF(OR(VLOOKUP($A36,Economática!$A$3:$AI$823,13,FALSE)=0,VLOOKUP($A36,Economática!$A$3:$AI$823,13,FALSE)="-"),1/0,VLOOKUP($A36,Economática!$A$3:$AI$823,13,FALSE))) -> 358.83 | K36: =IF($A36="","",IF(OR(VLOOKUP($A36,Economática!$A$3:$AI$823,14,FALSE)=0,VLOOKUP($A36,Economática!$A$3:$AI$823,14,FALSE)="-"),1/0,VLOOKUP($A36,Economática!$A$3:$AI$823,14,FALSE))) -> 5.43 | L36: =IF($A36="","",IF(OR(VLOOKUP($A36,Economática!$A$3:$AI$823,15,FALSE)=0,VLOOKUP($A36,Economática!$A$3:$AI$823,15,FALSE)="-"),1/0,VLOOKUP($A36,Economática!$A$3:$AI$823,15,FALSE))) -> 20.14 | M36: =IF($A36="","",IF(OR(VLOOKUP($A36,Economática!$A$3:$AI$823,16,FALSE)=0,VLOOKUP($A36,Economática!$A$3:$AI$823,16,FALSE)="-"),1/0,VLOOKUP($A36,Economática!$A$3:$AI$823,16,FALSE))) -> 54 | N36: =IF($A36="","",IF(OR(VLOOKUP($A36,Economática!$A$3:$AI$823,17,FALSE)=0,VLOOKUP($A36,Economática!$A$3:$AI$823,17,FALSE)="-"),1/0,VLOOKUP($A36,Economática!$A$3:$AI$823,17,FALSE))) -> 97.54 | O36: =IF($A36="","",IF(OR(VLOOKUP($A36,Economática!$A$3:$AI$823,18,FALSE)=0,VLOOKUP($A36,Economática!$A$3:$AI$823,18,FALSE)="-"),1/0,VLOOKUP($A36,Economática!$A$3:$AI$823,18,FALSE))) -> 358.83 | P36: =IF($A36="","",IF(OR(VLOOKUP($A36,Economática!$A$3:$AI$823,19,FALSE)=0,VLOOKUP($A36,Economática!$A$3:$AI$823,19,FALSE)="-"),1/0,VLOOKUP($A36,Economática!$A$3:$AI$823,19,FALSE))) -> 97.54 | Q36: =IF($A36="","",VLOOKUP($A36,Economática!$A$3:$AI$823,20,FALSE)/E36) -> 0.5911443498 | R36: 15.81629314 | S36: 1.694455191 | T36: 45.3357966 | U36: =IF($A36="","",IF(OR(VLOOKUP($A36,Economática!$A$3:$AI$823,21,FALSE)/100=0,VLOOKUP($A36,Economática!$A$3:$AI$823,21,FALSE)/100="-"),1/0,VLOOKUP($A36,Economática!$A$3:$AI$823,21,FALSE)/100)) -> 0.039838 | V36: =IF($A36="","",IF(OR(VLOOKUP($A36,Economática!$A$3:$AI$823,22,FALSE)/100=0,VLOOKUP($A36,Economática!$A$3:$AI$823,22,FALSE)/100="-"),1/0,VLOOKUP($A36,Economática!$A$3:$AI$823,22,FALSE)/100)) -> -0.152876 | W36: =IF($A36="","",IF(OR(VLOOKUP($A36,Economática!$A$3:$AI$823,23,FALSE)=0,VLOOKUP($A36,Economática!$A$3:$AI$823,23,FALSE)="-"),1/0,VLOOKUP($A36,Economática!$A$3:$AI$823,23,FALSE))) -> 321.2 | X36: =IF($A36="","",IF(OR(VLOOKUP($A36,Economática!$A$3:$AI$823,24,FALSE)=0,VLOOKUP($A36,Economática!$A$3:$AI$823,24,FALSE)="-"),1/0,VLOOKUP($A36,Economática!$A$3:$AI$823,24,FALSE))) -> 6 | Y36: =IF($A36="","",IF(OR(VLOOKUP($A36,Economática!$A$3:$AI$823,25,FALSE)=0,VLOOKUP($A36,Economática!$A$3:$AI$823,25,FALSE)="-"),1/0,VLOOKUP($A36,Economática!$A$3:$AI$823,25,FALSE))) -> 6 | Z36: =IF($A36="","",IF(ISERROR((F36+VLOOKUP($A36,Economática!$A$3:$AI$823,26,FALSE))/Y36),(F36+VLOOKUP($A36,Economática!$A$3:$AI$823,26,FALSE))/Y36,(F36+VLOOKUP($A36,Economática!$A$3:$AI$823,26,FALSE))/Y36)) -> 669.819 | AA36: =IF($A36="","",IF(OR(-VLOOKUP($A36,Economática!$A$3:$AI$823,27,FALSE)=0,-VLOOKUP($A36,Economática!$A$3:$AI$823,27,FALSE)="-"),1/0,-VLOOKUP($A36,Economática!$A$3:$AI$823,27,FALSE))) -> 85.22 | AB36: 0.0192716048 | AC36: =IF($A36="","",IF(OR(VLOOKUP($A36,Economática!$A$3:$AI$823,28,FALSE)=0,VLOOKUP($A36,Economática!$A$3:$AI$823,28,FALSE)="-"),1/0,VLOOKUP($A36,Economática!$A$3:$AI$823,28,FALSE))) -> 0.5 | AD36: =IF($A36="","",IF(OR(VLOOKUP($A36,Economática!$A$3:$AI$823,29,FALSE)=0,VLOOKUP($A36,Economática!$A$3:$AI$823,29,FALSE)="-"),1/0,VLOOKUP($A36,Economática!$A$3:$AI$823,29,FALSE))) -> 27 | AE36: =IF($A36="","",IF(OR(VLOOKUP($A36,Economática!$A$3:$AI$823,30,FALSE)/E36=0,VLOOKUP($A36,Economática!$A$3:$AI$823,30,FALSE)/E36="-",VLOOKUP($A36,Economática!$A$3:$AI$823,30,FALSE)/E36<33.33%,VLOOKUP($A36,Economática!$A$3:$AI$823,30,FALSE)/E36>100%),1/0,VLOOKUP($A36,Economática!$A$3:$AI$823,30,FALSE)/E36)) -> 0.9999878789 | AF36: EZTC3 | AG36: =IF($A36="","",IF(OR(VLOOKUP($A36,Economática!$A$3:$AI$823,25,FALSE)=0,VLOOKUP($A36,Economática!$A$3:$AI$823,25,FALSE)="-"),1/0,VLOOKUP($A36,Economática!$A$3:$AI$823,25,FALSE))) -> 6 | AH36: =CONCATENATE(Economática!B38," ",Economática!C38) -> Eztec ON
A37: =IF(Economática!AG39="","",Economática!AG39) -> LOGG3 | B37: =IF($A37="","",VLOOKUP(VLOOKUP($A37,Economática!$A$3:$AI$823,6,FALSE),Correção!$B$16:$C$36,2,FALSE)) -> Construção | C37: =IF(Economática!B39="","",Economática!B39) -> Log Com Prop | D37: =IF($A37="","",IF(OR(VLOOKUP($A37,Economática!$A$3:$AI$823,8,FALSE)=0,VLOOKUP($A37,Economática!$A$3:$AI$823,8,FALSE)="-"),1/0,VLOOKUP($A37,Economática!$A$3:$AI$823,8,FALSE))) -> 16.98 | E37: =IF(A37="","",IF(ISERROR(VLOOKUP(A37,Correção!$B$2:$G$13,9,FALSE)),VLOOKUP($A37,Economática!$A$3:$AI$823,9,FALSE),VLOOKUP(A37,Correção!$B$2:$G$13,9,FALSE))) -> 73.785 | F37: =IF($A37="","",Economática!G39) -> 1252.86 | G37: =IF($A37="","",IF(OR(VLOOKUP($A37,Economática!$A$3:$AI$823,10,FALSE)=0,VLOOKUP($A37,Economática!$A$3:$AI$823,10,FALSE)="-"),1/0,VLOOKUP($A37,Economática!$A$3:$AI$823,10,FALSE))) -> 2147.27 | H37: =IF($A37="","",IF(OR(VLOOKUP($A37,Economática!$A$3:$AI$823,11,FALSE)=0,VLOOKUP($A37,Economática!$A$3:$AI$823,11,FALSE)="-"),1/0,VLOOKUP($A37,Economática!$A$3:$AI$823,11,FALSE))) -> 99.49 | I37: =IF($A37="","",IF(OR(VLOOKUP($A37,Economática!$A$3:$AI$823,12,FALSE)=0,VLOOKUP($A37,Economática!$A$3:$AI$823,12,FALSE)="-"),1/0,VLOOKUP($A37,Economática!$A$3:$AI$823,12,FALSE))) -> 104.83 | J37: =IF($A37="","",IF(OR(VLOOKUP($A37,Economática!$A$3:$AI$823,13,FALSE)=0,VLOOKUP($A37,Economática!$A$3:$AI$823,13,FALSE)="-"),1/0,VLOOKUP($A37,Economática!$A$3:$AI$823,13,FALSE))) -> 37.41 | K37: =IF($A37="","",IF(OR(VLOOKUP($A37,Economática!$A$3:$AI$823,14,FALSE)=0,VLOOKUP($A37,Economática!$A$3:$AI$823,14,FALSE)="-"),1/0,VLOOKUP($A37,Economática!$A$3:$AI$823,14,FALSE))) -> 10.67 | L37: =IF($A37="","",IF(OR(VLOOKUP($A37,Economática!$A$3:$AI$823,15,FALSE)=0,VLOOKUP($A37,Economática!$A$3:$AI$823,15,FALSE)="-"),1/0,VLOOKUP($A37,Economática!$A$3:$AI$823,15,FALSE))) -> 23.12 | M37: =IF($A37="","",IF(OR(VLOOKUP($A37,Economática!$A$3:$AI$823,16,FALSE)=0,VLOOKUP($A37,Economática!$A$3:$AI$823,16,FALSE)="-"),1/0,VLOOKUP($A37,Economática!$A$3:$AI$823,16,FALSE))) -> 33.87 | N37: =IF($A37="","",IF(OR(VLOOKUP($A37,Economática!$A$3:$AI$823,17,FALSE)=0,VLOOKUP($A37,Economática!$A$3:$AI$823,17,FALSE)="-"),1/0,VLOOKUP($A37,Economática!$A$3:$AI$823,17,FALSE))) -> 43.49 | O37: =IF($A37="","",IF(OR(VLOOKUP($A37,Economática!$A$3:$AI$823,18,FALSE)=0,VLOOKUP($A37,Economática!$A$3:$AI$823,18,FALSE)="-"),1/0,VLOOKUP($A37,Economática!$A$3:$AI$823,18,FALSE))) -> 37.41 | P37: =IF($A37="","",IF(OR(VLOOKUP($A37,Economática!$A$3:$AI$823,19,FALSE)=0,VLOOKUP($A37,Economática!$A$3:$AI$823,19,FALSE)="-"),1/0,VLOOKUP($A37,Economática!$A$3:$AI$823,19,FALSE))) -> 43.49 | Q37: =IF($A37="","",VLOOKUP($A37,Economática!$A$3:$AI$823,20,FALSE)/E37) -> 0.5894151928 | R37: 29.10171444 | S37: 0.5834707792 | T37: 28.80821568 | U37: =IF($A37="","",IF(OR(VLOOKUP($A37,Economática!$A$3:$AI$823,21,FALSE)/100=0,VLOOKUP($A37,Economática!$A$3:$AI$823,21,FALSE)/100="-"),1/0,VLOOKUP($A37,Economática!$A$3:$AI$823,21,FALSE)/100)) -> 0.023311 | V37: =IF($A37="","",IF(OR(VLOOKUP($A37,Economática!$A$3:$AI$823,22,FALSE)/100=0,VLOOKUP($A37,Economática!$A$3:$AI$823,22,FALSE)/100="-"),1/0,VLOOKUP($A37,Economática!$A$3:$AI$823,22,FALSE)/100)) -> 0.365724 | W37: =IF($A37="","",IF(OR(VLOOKUP($A37,Economática!$A$3:$AI$823,23,FALSE)=0,VLOOKUP($A37,Economática!$A$3:$AI$823,23,FALSE)="-"),1/0,VLOOKUP($A37,Economática!$A$3:$AI$823,23,FALSE))) -> 72.2 | X37: =IF($A37="","",IF(OR(VLOOKUP($A37,Economática!$A$3:$AI$823,24,FALSE)=0,VLOOKUP($A37,Economática!$A$3:$AI$823,24,FALSE)="-"),1/0,VLOOKUP($A37,Economática!$A$3:$AI$823,24,FALSE))) -> 83.7 | Y37: =IF($A37="","",IF(OR(VLOOKUP($A37,Economática!$A$3:$AI$823,25,FALSE)=0,VLOOKUP($A37,Economática!$A$3:$AI$823,25,FALSE)="-"),1/0,VLOOKUP($A37,Economática!$A$3:$AI$823,25,FALSE))) -> 83.7 | Z37: =IF($A37="","",IF(ISERROR((F37+VLOOKUP($A37,Economática!$A$3:$AI$823,26,FALSE))/Y37),(F37+VLOOKUP($A37,Economática!$A$3:$AI$823,26,FALSE))/Y37,(F37+VLOOKUP($A37,Economática!$A$3:$AI$823,26,FALSE))/Y37)) -> 24.40483871 | AA37: =IF($A37="","",IF(OR(-VLOOKUP($A37,Economática!$A$3:$AI$823,27,FALSE)=0,-VLOOKUP($A37,Economática!$A$3:$AI$823,27,FALSE)="-"),1/0,-VLOOKUP($A37,Economática!$A$3:$AI$823,27,FALSE))) -> 3.55 | AB37: 0.002833516913 | AC37: =IF($A37="","",IF(OR(VLOOKUP($A37,Economática!$A$3:$AI$823,28,FALSE)=0,VLOOKUP($A37,Economática!$A$3:$AI$823,28,FALSE)="-"),1/0,VLOOKUP($A37,Economática!$A$3:$AI$823,28,FALSE))) -> -2.8 | AD37: =IF($A37="","",IF(OR(VLOOKUP($A37,Economática!$A$3:$AI$823,29,FALSE)=0,VLOOKUP($A37,Economática!$A$3:$AI$823,29,FALSE)="-"),1/0,VLOOKUP($A37,Economática!$A$3:$AI$823,29,FALSE))) ->  | AE37: =IF($A37="","",IF(OR(VLOOKUP($A37,Economática!$A$3:$AI$823,30,FALSE)/E37=0,VLOOKUP($A37,Economática!$A$3:$AI$823,30,FALSE)/E37="-",VLOOKUP($A37,Economática!$A$3:$AI$823,30,FALSE)/E37<33.33%,VLOOKUP($A37,Economática!$A$3:$AI$823,30,FALSE)/E37>100%),1/0,VLOOKUP($A37,Economática!$A$3:$AI$823,30,FALSE)/E37)) -> 0.9378599986 | AF37: LOGG3 | AG37: =IF($A37="","",IF(OR(VLOOKUP($A37,Economática!$A$3:$AI$823,25,FALSE)=0,VLOOKUP($A37,Economática!$A$3:$AI$823,25,FALSE)="-"),1/0,VLOOKUP($A37,Economática!$A$3:$AI$823,25,FALSE))) -> 83.7 | AH37: =CONCATENATE(Economática!B39," ",Economática!C39) -> Log Com Prop ON
